Workbook

Sheet Portada Libro
K3: Para iniciar el trabajo que seguidamente le proponemos, Usted debe escribir primeramente su DNI o documento similar sin la/s letra/s en la celda anaranjada y hacer click en el botón ACEPTAR
C4: PROYECTO DE INNOVACIÓN EDUCATIVA | K4: DNI o documento similar:
D6: SUBPROGRAMA DOCENTIC 2014
D8: OBJETOS DE APRENDIZAJE Y SIMULACIÓN DE ENTORNOS REALES PARA LA CONTABILIDAD FINANCIERA
I10: AUTORES: | K10: JUAN LUIS GANDÍA CABEDO (COORDINADOR)
K11: JOSÉ ANTONIO APARISI CAUDELI
K12: ROSA MARÍA DASÍ GONZÁLEZ
K13: DAVID HUGUET BENAVENT
K14: REYES MESTRE BARBERÁ
K15: RAFAEL MOLINA LLOPIS
K16: MARÍA DOLORES MONTAGUD MASCARELL
C18: Objetos de aprendizaje y simulación de entornos reales para la Contabilidad Financiera by Juan Luis Gandía Cabedo, José Antonio Aparisi Caudeli,
C19: Rosa María Dasí González, David Huguet Benavent, Reyes Mestre Barberá, Rafael Molina Llopis y María Dolores Montagud Mascarell is licensed under a
C20: Creative Commons Reconocimiento-NoComercial-SinObraDerivada 4.0 Internacional License.

Sheet Índice Libro (hidden)
C3: A continuación, Usted debe seleccionar el tema que desea trabajar en el presente ÍNDICE LIBRO. Para ello, haga click en el botón del TEMA que haya elegido.
C5: ÍNDICE LIBRO
F8: OPERACIONES COMERCIALES (MERCADERÍAS)
F10: ACREEDORES Y DEUDORES POR OPERACIONES DE TRÁFICO
F12: OTROS GASTOS E INGRESOS DE EXPLOTACIÓN
D14: ANEXO. | F14: CUADRO DE CUENTAS

Sheet Cuadro de Cuentas (hidden)
B2: Cuadro de Cuentas Plan General Contable 2008 | F2: ÍNDICE LIBRO | I2: ÍNDICE TEMA 1 | L2: ÍNDICE TEMA 2 | O2: ÍNDICE TEMA 3
B3: 1 | C3: Financiación Básica
B4: 10 | C4: Capital
B5: 100 | C5: Capital social
B6: 101 | C6: Fondo social
B7: 102 | C7: Capital
B8: 103 | C8: Socios por desembolsos no exigidos...
B9: 1030 | C9: Socios por desembolsos no exigidos, capital social
B10: 1034 | C10: Socios por desembolsos no exigidos, capital pendiente de inscripción
B11: 103 | C11: Socios por desembolsos no exigidos...
B12: 104 | C12: Socios por aportaciones no dinerarias pendientes...
B13: 1040 | C13: Socios por aportaciones no dinerarias pendientes, capital social
B14: 1044 | C14: Socios por aportaciones no dinerarias pendientes, capital pendiente de inscripción
B15: 108 | C15: Acciones o participaciones propias en situaciones especiales
B16: 109 | C16: Acciones o participaciones propias para reducción de capital
B17: 11 | C17: Reservas
B18: 110 | C18: Prima de emisión o asunción
B19: 111 | C19: Patrimonio neto por emisión de instrumentos financieros compuestos
B20: 112 | C20: Reserva legal
B21: 113 | C21: Reservas voluntarias
B22: 114 | C22: Reservas especiales
B23: 115 | C23: Reservas por pérdidas y ganancias actuariales y otros ajustes
B24: 117 | C24: Aportaciones de socios o propietarios
B25: 119 | C25: Diferencias por ajuste del capital a euros
B26: 12 | C26: Resultados pendientes de aplicación
B27: 120 | C27: Remanente
B28: 121 | C28: Resultados negativos de ejercicios anteriores
B29: 129 | C29: Resultados del ejercicio
B30: 13 | C30: Subvenciones, donaciones y ajustes por cambios de valor
B31: 130 | C31: Subvenciones oficiales de capital
B32: 131 | C32: Donaciones y legados de capital
B33: 132 | C33: Otras subvenciones, donaciones y legados
B34: 133 | C34: Ajustes por valoración en instrumentos financieros
B35: 134 | C35: Operaciones de cobertura
B36: 135 | C36: Diferencias de conversión
B37: 136 | C37: Ajustes por valoración en activos no corrientes y grupos enajenables de elementos mantenidos para la venta
B38: 137 | C38: Ingresos fiscales a distribuir en varios ejercicios
B39: 14 | C39: Provisiones
B40: 140 | C40: Provisión para retribuciones y otras prestaciones al personal.
B41: 141 | C41: Provisión para impuestos
B42: 142 | C42: Provisión para otras responsabilidades
B43: 143 | C43: Provisión por desmantelamiento, retiro o rehabilitación del inmovilizado.
B44: 144 | C44: Provisión para otras responsabilidades
B45: 145 | C45: Provisión para actuaciones medioambientales
B46: 146 | C46: Provisión para reestructuraciones
B47: 147 | C47: Provisiones por transacciones con pagos basados en instrumentos de patrimonio
B48: 15 | C48: Deudas a largo plazo con características especiales
B49: 150 | C49: Acciones o participaciones a largo plazo contabilizadas como pasivo
B50: 153 | C50: Desembolsos no exigidos por acciones o participaciones contabilizadas como pasivo.
B51: 154 | C51: Aportaciones no dinerarias pendientes por acciones o participaciones contabilizadas como pasivo
B52: 16 | C52: Deudas a largo plazo con partes vinculadas
B53: 160 | C53: Deudas a largo plazo con entidades de crédito vinculadas
B54: 161 | C54: Proveedores de inmovilizado a largo plazo, partes vinculadas
B55: 162 | C55: Otras deudas a largo plazo con partes vinculadas
B56: 163 | C56: Otras deudas a largo plazo con partes vinculadas
B57: 17 | C57: Deudas a largo plazo por préstamos recibidos y otros conceptos
B58: 170 | C58: Deudas a largo plazo con entidades de crédito
B59: 171 | C59: Deudas a largo plazo
B60: 172 | C60: Deudas a largo plazo transformables en subvenciones, donaciones y legados
B61: 173 | C61: Proveedores de inmovilizado a largo plazo
B62: 174 | C62: Acreedores por arrendamiento financiero a largo plazo
B63: 175 | C63: Efectos a pagar a largo plazo
B64: 176 | C64: Pasivos por derivados financieros a largo plazo
B65: 177 | C65: Obligaciones y bonos
B66: 178 | C66: Obligaciones y bonos convertibles
B67: 179 | C67: Deudas representadas en otros valores negociables
B68: 18 | C68: Pasivos por fianzas y garantías a largo plazo
B69: 180 | C69: Fianzas recibidas a largo plazo
B70: 181 | C70: Anticipos recibidos por ventas o prestaciones de servicios a largo plazo
B71: 185 | C71: Depósitos recibidos a largo plazo
B72: 189 | C72: Garantías financieras a largo plazo
B73: 19 | C73: Situaciones transitorias de financiación
B74: 190 | C74: Acciones o participaciones emitidas
B75: 192 | C75: Suscriptores de acciones
B76: 194 | C76: Capital emitido pendiente de inscripción
B77: 195 | C77: Acciones o participaciones emitidas consideradas como pasivos financieros
B78: 197 | C78: Suscriptores de acciones consideradas coo pasivos financieros
B79: 199 | C79: Acciones o participaciones emitidas consideradas como pasivo financieros, pendientes de inscripción
B80: 2 | C80: Inmovilizado
B81: 20 | C81: Inmovilizaciones intangibles
B82: 200 | C82: Investigación
B83: 201 | C83: Desarrollo
B84: 202 | C84: Concesiones administrativas
B85: 203 | C85: Propiedad industrial
B86: 204 | C86: Fondo de comercio
B87: 205 | C87: Derechos de traspaso
B88: 206 | C88: Aplicaciones informáticas
B89: 209 | C89: Anticipos para inmovilizaciones intangibles
B90: 21 | C90: Inmovilizaciones materiales
B91: 210 | C91: Terrenos y bienes naturales
B92: 211 | C92: Construcciones
B93: 212 | C93: Instalaciones técnicas
B94: 213 | C94: Maquinaria
B95: 214 | C95: Utillaje
B96: 215 | C96: Otras instalaciones
B97: 216 | C97: Mobiliario
B98: 217 | C98: Equipos para procesos de información
B99: 218 | C99: Elementos de transporte
B100: 219 | C100: Otro inmovilizado material
B101: 22 | C101: Inversiones inmobiliarias
B102: 220 | C102: Inversiones en terrenos y bienes naturales
B103: 221 | C103: Inversiones en construcciones
B104: 23 | C104: Inmovilizaciones materiales en curso
B105: 230 | C105: Adaptación de terrenos y bienes naturales
B106: 231 | C106: Construcciones en curso
B107: 232 | C107: Instalaciones técnicas en montaje
B108: 233 | C108: Maquinaria en montaje
B109: 237 | C109: Equipos para procesos de información en montaje
B110: 239 | C110: Anticipos para inmovilizaciones materiales
B111: 24 | C111: Inversiones financieras en partes vinculadas
B112: 240 | C112: Participaciones a largo plazo en partes vinculadas
B113: 241 | C113: Valores representativos de deuda a largo plazo de partes vinculadas
B114: 242 | C114: Créditos a largo plazo a partes vinculadas
B115: 249 | C115: Desembolsos pendientes sobre participaciones a largo plazo en partes vinculadas
B116: 25 | C116: Otras inversiones financieras a largo plazo
B117: 250 | C117: Inversiones financieras a largo plazo en instrumentos de patrimonio
B118: 251 | C118: Valores representativos de deuda a largo plazo
B119: 252 | C119: Créditos a largo plazo
B120: 253 | C120: Créditos a largo plazo por enajenación de inmovilizado
B121: 254 | C121: Créditos a largo plazo al personal
B122: 255 | C122: Activos por derivados financieros a largo plazo
B123: 257 | C123: Activos por retribuciones a largo plazo de prestación definida
B124: 258 | C124: Imposiciones a largo plazo
B125: 259 | C125: Desembolsos pendientes sobre participaciones en el patrimonio neto a largo plazo
B126: 26 | C126: Fianzas y depósitos constituidos a largo plazo
B127: 260 | C127: Fianzas constituidas a largo plazo
B128: 265 | C128: Depósitos constituidos a largo plazo
B129: 28 | C129: Amortización acumulada del inmovilizado
B130: 280 | C130: Amortización acumulada del inmovilizado intangible
B131: 281 | C131: Amortización acumulada del inmovilizado material
B132: 282 | C132: Amortización acumulada de las inversiones inmobiliarias
B133: 29 | C133: Deterioro de valor de inmovilizado
B134: 290 | C134: Deterioro de valor del inmovilizado intangible
B135: 291 | C135: Deterioro de valor del inmovilizado material
B136: 292 | C136: Deterioro de valor de las inversiones inmobiliarias
B137: 293 | C137: Deterioro de valor de participaciones a largo plazo en partes vinculadas
B138: 294 | C138: Deterioro de valor de valores representativos de deuda a largo plazo de partes vinculadas
B139: 295 | C139: Deterioro de valor de créditos a largo plazo a partes vinculadas
B140: 297 | C140: Deterioro de valor de valores representativos de deuda a largo plazo
B141: 298 | C141: Deterioro de valor de créditos a largo plazo
B142: 3 | C142: Existencias
B143: 30 | C143: Comerciales
B144: 300 | C144: Mercaderías A
B145: 301 | C145: Mercaderías B
B146: 302 | C146: Mercaderías C
B147: 303 | C147: Mercaderías D
B148: 304 | C148: Mercaderías E
B149: 305 | C149: Mercaderías F
B150: 306 | C150: Mercaderías G
B151: 307 | C151: Mercaderías H
B152: 308 | C152: Mercaderías I
B153: 309 | C153: Mercaderías J
B154: 31 | C154: Materias Primas
B155: 310 | C155: Materias primas A
B156: 312 | C156: Materias primas B
B157: 313 | C157: Materias primas C
B158: 314 | C158: Materias primas D
B159: 315 | C159: Materias primas E
B160: 316 | C160: Materias primas F
B161: 317 | C161: Materias primas H
B162: 318 | C162: Materias primas I
B163: 319 | C163: Materias primas J
B164: 32 | C164: Otros aprovisionamientos
B165: 320 | C165: Elementos y conjuntos incorporables
B166: 321 | C166: Combustibles
B167: 322 | C167: Repuestos
B168: 325 | C168: Materiales diversos
B169: 326 | C169: Embalajes
B170: 327 | C170: Envases
B171: 328 | C171: Material de oficina
B172: 33 | C172: Productos en curso
B173: 330 | C173: Productos en curso A
B174: 331 | C174: Productos en curso B
B175: 332 | C175: Productos en curso C
B176: 333 | C176: Productos en curso D
B177: 334 | C177: Productos en curso E
B178: 335 | C178: Productos en curso F
B179: 336 | C179: Productos en curso G
B180: 337 | C180: Productos en curso H
B181: 338 | C181: Productos en curso I
B182: 339 | C182: Productos en curso J
B183: 34 | C183: Productos semiterminados
B184: 340 | C184: Productos semiterminados A
B185: 341 | C185: Productos semiterminados B
B186: 342 | C186: Productos semiterminados C
B187: 343 | C187: Productos semiterminados D
B188: 344 | C188: Productos semiterminados E
B189: 345 | C189: Productos semiterminados F
B190: 346 | C190: Productos semiterminados G
B191: 347 | C191: Productos semiterminados H
B192: 348 | C192: Productos semiterminados I
B193: 349 | C193: Productos semiterminados J
B194: 35 | C194: Productos terminados
B195: 350 | C195: Productos terminados A
B196: 351 | C196: Productos terminados B
B197: 352 | C197: Productos terminados C
B198: 353 | C198: Productos terminados D
B199: 354 | C199: Productos terminados E
B200: 355 | C200: Productos terminados F
B201: 356 | C201: Productos terminados G
... 366 more rows

Sheet Índice Tema 1 (hidden)
D3: TEMA 1. OPERACIONES COMERCIALES (MERCADERÍAS) | O3: ÍNDICE LIBRO
D5: OBJETIVO DEL TEMA
D7: CONCEPTOS BÁSICOS
D9: Niveles | E9: Objetivos de los casos propuestos
E10: Compras y ventas nacionales sin descuentos ni gastos adicionales
E11: Compras y ventas nacionales con descuentos comerciales incluidos en factura y sin gastos adicionales
E12: Compras y ventas nacionales con descuentos comerciales y por pronto pago incluidos en factura y sin gastos adicionales
E13: Compras y ventas internacionales con descuentos comerciales y por pronto pago incluidos en factura, con transporte y seguros contratados de forma externa para las compras y prestados de forma interna para el caso de las ventas como prestación de servicios diversos. Además, se realiza la liquidación en aduana pagándose los correspondientes aranceles
E14: Compras y ventas internacionales con descuentos comerciales y por pronto pago incluidos en factura, con transporte y seguros contratados de forma externa tanto para las compras como para las ventas. Además, se realiza la liquidación en aduana pagándose los correspondientes aranceles
C16: ANEXO. | D16: CUADRO DE CUENTAS

Sheet Objetivo Tema 1 (hidden)
G1: Haga un doble click sobre la imagen para ver esta Presentación
P3: ÍNDICE TEMA 1

Sheet Conceptos Básicos Tema 1 (hidden)
G1: Haga un doble click sobre la imagen para ver esta Presentación
P3: ÍNDICE TEMA 1

Sheet Resumen Operaciones (hidden)
D2: TEMA 1
C3: Existencias iniciales de mayo:
C4: Unidades = | E4: 490 | G4: Tipo IVA soportado = | H4: 0.21
C5: Precio unitario = | E5: 13 | G5: Tipo IVA repercutido = | H5: 0.21
C6: Total Saldo = | E6: 6370
C8: Resumen operaciones mes de mayo:
C10: Fecha | D10: Operación | E10: Unidades | F10: Precio bruto | G10: Descuento comercial | H10: Descuento por pronto pago | I10: Transporte | J10: Seguro mercancía | K10: Aranceles de Aduanas
C11: 2013-05-08 | D11: Compra 1 | E11: 590 | F11: 10.3 | G11: 0.02 | H11: 0.03 | I11: 298 | J11: 60
C12: 2013-05-11 | D12: Venta 1 | E12: 610 | F12: 14 | G12: 0.09 | H12: 0.04 | I12: 389 | J12: 78
C13: 2013-05-18 | D13: Compra 2 | E13: 675 | F13: 10.5 | G13: 0.03 | H13: 0.02 | I13: 344 | J13: 69
C14: 2013-05-21 | D14: Compra 3 | E14: 840 | F14: 10.2 | G14: 0.01 | H14: 0 | I14: 425 | J14: 85
C15: 2013-05-27 | D15: Venta 2 | E15: 1325 | F15: 14 | G15: 0.1 | H15: 0.03 | I15: 835 | J15: 167
D21: TEMA 1
C22: Existencias iniciales de mayo:
C23: Unidades = | E23: =IF('Portada Libro'!$M$4="","",CEILING(RANDBETWEEN(100,500),5)) ->  | G23: Tipo IVA soportado = | H23: =IF('Portada Libro'!$M$4="","",21%) -> 0.21
C24: Precio unitario = | E24: =IF('Portada Libro'!$M$4="","",CEILING(RANDBETWEEN(10,20),0.01)) ->  | G24: Tipo IVA repercutido = | H24: =IF('Portada Libro'!$M$4="","",21%) -> 0.21
C25: Total Saldo = | E25: =IF('Portada Libro'!$M$4="","",E23*E24) -> 
C27: Resumen operaciones mes de mayo:
C29: Fecha | D29: Operación | E29: Unidades | F29: Precio bruto | G29: Descuento comercial | H29: Descuento por pronto pago | I29: Transporte | J29: Seguro mercancía | K29: Aranceles de Aduanas
C30: 2013-05-08 | D30: Compra 1 | E30: =IF('Portada Libro'!$M$4="","",CEILING(RANDBETWEEN(400,1000),5)) ->  | F30: =IF('Portada Libro'!$M$4="","",ROUNDUP(E24*1.03,1)) ->  | G30: =IF('Portada Libro'!$M$4="","",CEILING(RANDBETWEEN(1,3),0.01)/100) ->  | H30: =IF('Portada Libro'!$M$4="","",CEILING(RANDBETWEEN(1,3),0.01)/100) ->  | I30: =IF('Portada Libro'!$M$4="","",ROUNDUP((E30*F30)*(1-G30)*0.05,0)) ->  | J30: =IF('Portada Libro'!$M$4="","",ROUNDUP((E30*F30)*(1-G30)*0.01,0)) -> 
C31: 2013-05-11 | D31: Venta 1 | E31: =IF('Portada Libro'!$M$4="","",CEILING(RANDBETWEEN(0.5*(E23+E30),0.9*(E23+E30)),5)) ->  | F31: =IF('Portada Libro'!$M$4="","",ROUNDUP(E24*1.4,1)) ->  | G31: =IF('Portada Libro'!$M$4="","",CEILING(RANDBETWEEN(5,10),0.01)/100) ->  | H31: =IF('Portada Libro'!$M$4="","",CEILING(RANDBETWEEN(1,5),0.01)/100) ->  | I31: =IF('Portada Libro'!$M$4="","",ROUNDUP((E31*F31)*(1-G31)*0.05,0)) ->  | J31: =IF('Portada Libro'!$M$4="","",ROUNDUP((E31*F31)*(1-G31)*0.01,0)) -> 
C32: 2013-05-18 | D32: Compra 2 | E32: =IF('Portada Libro'!$M$4="","",CEILING(RANDBETWEEN(400,1000),5)) ->  | F32: =IF('Portada Libro'!$M$4="","",ROUNDUP(E24*1.05,1)) ->  | G32: =IF('Portada Libro'!$M$4="","",CEILING(RANDBETWEEN(1,3),0.01)/100) ->  | H32: =IF('Portada Libro'!$M$4="","",CEILING(RANDBETWEEN(1,3),0.01)/100) ->  | I32: =IF('Portada Libro'!$M$4="","",ROUNDUP((E32*F32)*(1-G32)*0.05,0)) ->  | J32: =IF('Portada Libro'!$M$4="","",ROUNDUP((E32*F32)*(1-G32)*0.01,0)) -> 
C33: 2013-05-21 | D33: Compra 3 | E33: =IF('Portada Libro'!$M$4="","",CEILING(RANDBETWEEN(400,1000),5)) ->  | F33: =IF('Portada Libro'!$M$4="","",ROUNDUP(E24*1.02,1)) ->  | G33: =IF('Portada Libro'!$M$4="","",CEILING(RANDBETWEEN(1,3),0.01)/100) ->  | H33: =IF('Portada Libro'!$M$4="","",0) -> 0 | I33: =IF('Portada Libro'!$M$4="","",ROUNDUP((E33*F33)*(1-G33)*0.05,0)) ->  | J33: =IF('Portada Libro'!$M$4="","",ROUNDUP((E33*F33)*(1-G33)*0.01,0)) -> 
C34: 2013-05-27 | D34: Venta 2 | E34: =IF('Portada Libro'!$M$4="","",CEILING(RANDBETWEEN(0.5*(E23+E30-E31+E32+E33),0.9*(E23+E30-E31+E32+E33)),5)) ->  | F34: =IF('Portada Libro'!$M$4="","",ROUNDUP(E24*1.4,1)) ->  | G34: =IF('Portada Libro'!$M$4="","",CEILING(RANDBETWEEN(5,10),0.01)/100) ->  | H34: =IF('Portada Libro'!$M$4="","",CEILING(RANDBETWEEN(1,5),0.01)/100) ->  | I34: =IF('Portada Libro'!$M$4="","",ROUNDUP((E34*F34)*(1-G34)*0.05,0)) ->  | J34: =IF('Portada Libro'!$M$4="","",ROUNDUP((E34*F34)*(1-G34)*0.01,0)) -> 
D40: TEMA 3 — CASO 1
G41: Tipo IVA soportado = | H41: 0.21
G42: Tipo IVA repercutido = | H42: 0.21
G43: Retenciones practicadas IRPF = | H43: 0.21
C44: Resumen operaciones mes de mayo:
E46: Concepto 1 | H46: Concepto 2 | K46: Concepto 3 | N46: Concepto 4
C47: Fecha | D47: Operación | E47: Cantidad | F47: Precio | G47: Importe | H47: Cantidad | I47: Precio | J47: Importe | K47: Cantidad | L47: Precio | M47: Importe | N47: Cantidad | O47: Precio | P47: Importe | Q47: Dto. Com. | R47: Base Imp. | S47: IVA | T47: IRPF | U47: TOTAL
C48: =C75 -> 2013-05-02 | D48: =D75 -> Ingreso por alquiler del local comercial | E48: 1 | F48: 1070 | G48: 1070 | J48: 0 | M48: 0 | P48: 0 | R48: 1070 | S48: 224.7 | U48: 1294.7
C49: =C76 -> 2013-05-12 | D49: Arrendamiento de fotocopiadora con mantenimiento | E49: 1 | F49: 240 | G49: 240 | H49: 1 | I49: 23 | J49: 23 | M49: 0 | P49: 0 | R49: 263 | S49: 55.23 | U49: 318.23
C50: 2013-05-15 | D50: Honorarios de la asesoría fiscal (persona física) | E50: 1 | F50: 290 | G50: 290 | J50: 0 | M50: 0 | P50: 0 | R50: 290 | S50: 60.9 | T50: -60.9 | U50: 290
C51: 2013-05-15 | D51: Seguro multirriesgo | E51: 1 | F51: 591.22 | G51: 591.22 | H51: 1 | I51: 8.24 | J51: 8.24 | K51: 1 | L51: 3.06 | M51: 3.06 | P51: 0 | R51: 602.52 | U51: 602.52
C52: 2013-05-15 | D52: Cargo en cuenta corriente seguro multirriesgo | U52: 602.52
C53: =C80 -> 2013-05-17 | D53: Abono en cuenta corriente transferencia por alquiler del local comercial | U53: 1294.7
C54: 2013-05-20 | D54: Cheque pago honorarios de la asesoría fiscal | U54: 290
C55: 2013-05-20 | D55: Cuota de renovación de la tarjeta de crédito | E55: 1 | F55: 35 | G55: 35 | J55: 0 | M55: 0 | P55: 0 | R55: 35 | U55: 35
C56: 2013-05-22 | D56: Obsequios para clientes (calendarios de pared) | E56: 820 | F56: 2.1 | G56: 1722 | J56: 0 | M56: 0 | P56: 0 | Q56: 0.08 | R56: 1584.24 | S56: 332.6904 | U56: 1916.9304
C57: 2013-05-25 | D57: Electricidad | E57: 68 | F57: 0.449282 | G57: 30.551176 | H57: 435 | I57: 0.130485 | J57: 56.760975 | K57: 87.312151 | L57: 0.051127 | M57: 4.464008344 | N57: 68 | O57: 0.02663 | P57: 1.81084 | R57: 93.58699934 | S57: 19.65326986 | U57: 113.2402692
C58: 2013-05-25 | D58: Cargo en cuenta corriente factura electricidad | U58: 113.2402692
C59: 2013-05-28 | D59: Cartucho de tinta de la impresora | E59: 1 | F59: 42 | G59: 42 | J59: 0 | M59: 0 | P59: 0 | R59: 42 | S59: 8.82 | U59: 50.82
C60: 2013-05-31 | D60: Nóminas del mes de mayo
C61: 2013-05-31 | D61: Cuota patronal seguridad social del mes de mayo
D67: TEMA 3 — CASO 1
G68: Tipo IVA soportado = | H68: =IF('Portada Libro'!$M$4="","",$H$23) -> 0.21
G69: Tipo IVA repercutido = | H69: =IF('Portada Libro'!$M$4="","",$H$24) -> 0.21
G70: Retenciones practicadas IRPF = | H70: =IF('Portada Libro'!$M$4="","",21%) -> 0.21
C71: Resumen operaciones mes de mayo:
E73: Concepto 1 | H73: Concepto 2 | K73: Concepto 3 | N73: Concepto 4
C74: Fecha | D74: Operación | E74: Cantidad | F74: Precio | G74: Importe | H74: Cantidad | I74: Precio | J74: Importe | K74: Cantidad | L74: Precio | M74: Importe | N74: Cantidad | O74: Precio | P74: Importe | Q74: Dto. Com. | R74: Base Imp. | S74: IVA | T74: IRPF | U74: TOTAL
C75: 2013-05-02 | D75: Ingreso por alquiler del local comercial | E75: =IF('Portada Libro'!$M$4="","",1) -> 1 | F75: =IF('Portada Libro'!$M$4="","",CEILING(RANDBETWEEN(900,1200),10)) ->  | G75: =IF('Portada Libro'!$M$4="","",+E75*F75) ->  | J75: =IF('Portada Libro'!$M$4="","",+H75*I75) -> 0 | M75: =IF('Portada Libro'!$M$4="","",+K75*L75) -> 0 | P75: =IF('Portada Libro'!$M$4="","",+N75*O75) -> 0 | R75: =IF('Portada Libro'!$M$4="","",G75+J75+M75+P75-Q75*(G75+J75+M75+P75)) ->  | S75: =IF('Portada Libro'!$M$4="","",R75*H69) ->  | U75: =IF('Portada Libro'!$M$4="","",R75+S75+T75) -> 
C76: 2013-05-12 | D76: Arrendamiento de fotocopiadora con mantenimiento | E76: =IF('Portada Libro'!$M$4="","",1) -> 1 | F76: =IF('Portada Libro'!$M$4="","",CEILING(RANDBETWEEN(180,250),10)) ->  | G76: =IF('Portada Libro'!$M$4="","",+E76*F76) ->  | H76: =IF('Portada Libro'!$M$4="","",1) -> 1 | I76: =IF('Portada Libro'!$M$4="","",CEILING(RANDBETWEEN(20,30),1)) ->  | J76: =IF('Portada Libro'!$M$4="","",+H76*I76) ->  | M76: =IF('Portada Libro'!$M$4="","",+K76*L76) -> 0 | P76: =IF('Portada Libro'!$M$4="","",+N76*O76) -> 0 | R76: =IF('Portada Libro'!$M$4="","",G76+J76+M76+P76-Q76*(G76+J76+M76+P76)) ->  | S76: =IF('Portada Libro'!$M$4="","",R76*$H$68) ->  | U76: =IF('Portada Libro'!$M$4="","",R76+S76+T76) -> 
C77: 2013-05-15 | D77: Honorarios de la asesoría fiscal (persona física) | E77: =IF('Portada Libro'!$M$4="","",1) -> 1 | F77: =IF('Portada Libro'!$M$4="","",CEILING(RANDBETWEEN(250,320),10)) ->  | G77: =IF('Portada Libro'!$M$4="","",+E77*F77) ->  | J77: =IF('Portada Libro'!$M$4="","",+H77*I77) -> 0 | M77: =IF('Portada Libro'!$M$4="","",+K77*L77) -> 0 | P77: =IF('Portada Libro'!$M$4="","",+N77*O77) -> 0 | R77: =IF('Portada Libro'!$M$4="","",G77+J77+M77+P77-Q77*(G77+J77+M77+P77)) ->  | S77: =IF('Portada Libro'!$M$4="","",R77*$H$68) ->  | T77: =IF('Portada Libro'!$M$4="","",-R77*H70) ->  | U77: =IF('Portada Libro'!$M$4="","",R77+S77+T77) -> 
C78: 2013-05-15 | D78: Seguro multirriesgo | E78: =IF('Portada Libro'!$M$4="","",1) -> 1 | F78: =IF('Portada Libro'!$M$4="","",(CEILING(RANDBETWEEN(560,600),1))*1.03) ->  | G78: =IF('Portada Libro'!$M$4="","",+E78*F78) ->  | H78: =IF('Portada Libro'!$M$4="","",1) -> 1 | I78: =IF('Portada Libro'!$M$4="","",(CEILING(RANDBETWEEN(5,8),1))*1.03) ->  | J78: =IF('Portada Libro'!$M$4="","",+H78*I78) ->  | K78: =IF('Portada Libro'!$M$4="","",1) -> 1 | L78: =IF('Portada Libro'!$M$4="","",(CEILING(RANDBETWEEN(2,4),1))*1.02) ->  | M78: =IF('Portada Libro'!$M$4="","",+K78*L78) ->  | P78: =IF('Portada Libro'!$M$4="","",+N78*O78) -> 0 | R78: =IF('Portada Libro'!$M$4="","",G78+J78+M78+P78-Q78*(G78+J78+M78+P78)) ->  | U78: =IF('Portada Libro'!$M$4="","",R78+S78+T78) -> 
C79: 2013-05-15 | D79: Cargo en cuenta corriente seguro multirriesgo | U79: =U78 -> 
C80: 2013-05-17 | D80: Abono en cuenta corriente transferencia por alquiler del local comercial | U80: =U75 -> 
C81: 2013-05-20 | D81: Cheque pago honorarios de la asesoría fiscal | U81: =U77 -> 
C82: 2013-05-20 | D82: Cuota de renovación de la tarjeta de crédito | E82: =IF('Portada Libro'!$M$4="","",1) -> 1 | F82: =IF('Portada Libro'!$M$4="","",CEILING(RANDBETWEEN(15,35),5)) ->  | G82: =IF('Portada Libro'!$M$4="","",+E82*F82) ->  | J82: =IF('Portada Libro'!$M$4="","",+H82*I82) -> 0 | M82: =IF('Portada Libro'!$M$4="","",+K82*L82) -> 0 | P82: =IF('Portada Libro'!$M$4="","",+N82*O82) -> 0 | R82: =IF('Portada Libro'!$M$4="","",G82+J82+M82+P82-Q82*(G82+J82+M82+P82)) ->  | U82: =IF('Portada Libro'!$M$4="","",R82+S82+T82) -> 
C83: 2013-05-22 | D83: Obsequios para clientes (calendarios de pared) | E83: =IF('Portada Libro'!$M$4="","",CEILING(RANDBETWEEN(500,900),5)) ->  | F83: =IF('Portada Libro'!$M$4="","",2.1) -> 2.1 | G83: =IF('Portada Libro'!$M$4="","",+E83*F83) ->  | J83: =IF('Portada Libro'!$M$4="","",+H83*I83) -> 0 | M83: =IF('Portada Libro'!$M$4="","",+K83*L83) -> 0 | P83: =IF('Portada Libro'!$M$4="","",+N83*O83) -> 0 | Q83: =IF('Portada Libro'!$M$4="","",CEILING(RANDBETWEEN(5,10),1)/100) ->  | R83: =IF('Portada Libro'!$M$4="","",G83+J83+M83+P83-Q83*(G83+J83+M83+P83)) ->  | S83: =IF('Portada Libro'!$M$4="","",R83*$H$68) ->  | U83: =IF('Portada Libro'!$M$4="","",R83+S83+T83) -> 
C84: 2013-05-25 | D84: Electricidad | E84: =IF('Portada Libro'!$M$4="","",68) -> 68 | F84: =IF('Portada Libro'!$M$4="","",'Fra. Electricidad C1'!G54*'Fra. Electricidad C1'!K54) -> 0.449282 | G84: =IF('Portada Libro'!$M$4="","",+E84*F84) -> 30.551176 | H84: =IF('Portada Libro'!$M$4="","",CEILING(RANDBETWEEN(350,500),1)) ->  | I84: =IF('Portada Libro'!$M$4="","",'Fra. Electricidad C1'!K55) -> 0.130485 | J84: =IF('Portada Libro'!$M$4="","",+H84*I84) ->  | K84: =IF('Portada Libro'!$M$4="","",G84+J84) ->  | L84: =IF('Portada Libro'!$M$4="","",'Fra. Electricidad C1'!I57) -> 0.051127 | M84: =IF('Portada Libro'!$M$4="","",+K84*L84) ->  | N84: =+E84 -> 68 | O84: =IF('Portada Libro'!$M$4="","",'Fra. Electricidad C1'!K61) -> 0.02663 | P84: =IF('Portada Libro'!$M$4="","",+N84*O84) -> 1.81084 | R84: =IF('Portada Libro'!$M$4="","",G84+J84+M84+P84-Q84*(G84+J84+M84+P84)) ->  | S84: =IF('Portada Libro'!$M$4="","",R84*$H$68) ->  | U84: =IF('Portada Libro'!$M$4="","",R84+S84+T84) -> 
C85: 2013-05-25 | D85: Cargo en cuenta corriente factura electricidad | U85: =U84 -> 
C86: 2013-05-28 | D86: Cartucho de tinta de la impresora | E86: =IF('Portada Libro'!$M$4="","",1) -> 1 | F86: =IF('Portada Libro'!$M$4="","",CEILING(RANDBETWEEN(35,50),1)) ->  | G86: =IF('Portada Libro'!$M$4="","",+E86*F86) ->  | J86: =IF('Portada Libro'!$M$4="","",+H86*I86) -> 0 | M86: =IF('Portada Libro'!$M$4="","",+K86*L86) -> 0 | P86: =IF('Portada Libro'!$M$4="","",+N86*O86) -> 0 | R86: =IF('Portada Libro'!$M$4="","",G86+J86+M86+P86-Q86*(G86+J86+M86+P86)) ->  | S86: =IF('Portada Libro'!$M$4="","",R86*$H$68) ->  | U86: =IF('Portada Libro'!$M$4="","",R86+S86+T86) -> 
C87: 2013-05-31 | D87: Nóminas del mes de mayo
C88: 2013-05-31 | D88: Cuota patronal seguridad social del mes de mayo
D94: TEMA 3 — CASO 2
G95: Tipo IVA soportado = | H95: 0.21
G96: Tipo IVA repercutido = | H96: 0.21
G97: Retenciones practicadas IRPF = | H97: 0.21
C98: Resumen operaciones mes de mayo:
E100: Concepto 1 | H100: Concepto 2 | K100: Concepto 3 | N100: Concepto 4
C101: Fecha | D101: Operación | E101: Cantidad | F101: Precio | G101: Importe | H101: Cantidad | I101: Precio | J101: Importe | K101: Cantidad | L101: Precio | M101: Importe | N101: Cantidad | O101: Precio | P101: Importe | Q101: Dto. Com. | R101: Base Imp. | S101: IVA | T101: IRPF | U101: TOTAL
C102: =C133 -> 2013-05-01 | D102: =D133 -> Comisiones por mediación en ventas de terceros | E102: 1 | F102: 1000 | G102: 1000 | J102: 0 | M102: 0 | P102: 0 | R102: 1000 | S102: 210 | U102: 1210
C103: =C134 -> 2013-05-04 | D103: Alquiler local comercial (arrendador persona física) | E103: 1 | F103: 1700 | G103: 1700 | J103: 0 | M103: 0 | P103: 0 | R103: 1700 | S103: 357 | T103: -357 | U103: 1700
C104: 2013-05-05 | D104: Cargo en cuenta corriente por alquiler local comercial | U104: 1700
C105: 2013-05-13 | D105: Abono en cuenta corriente transferencia por comisiones comerciales | U105: 1210
C106: 2013-05-14 | D106: Reparación del vehículo comercial | E106: 1 | F106: 47.47 | G106: 47.47 | H106: 1 | I106: 17.34 | J106: 17.34 | K106: 1 | L106: 41.6 | M106: 41.6 | N106: 2 | O106: 33 | P106: 66 | Q106: 0.08 | R106: 158.6172 | S106: 33.309612 | U106: 191.926812
C107: 2013-05-14 | D107: Cheque pago por reparación del vehículo comercial | U107: 191.926812
C108: 2013-05-19 | D108: Honorarios de la asesoría laboral (persona física) | E108: 1 | F108: 155 | G108: 155 | H108: 1 | I108: 145 | J108: 145 | M108: 0 | P108: 0 | R108: 300 | S108: 63 | T108: -63 | U108: 300
C109: 2013-05-19 | D109: Seguro del vehículo comercial | E109: 1 | F109: 208 | G109: 208 | H109: 1 | I109: 5.15 | J109: 5.15 | K109: 1 | L109: 21.21 | M109: 21.21 | Q109: 0.08 | R109: 215.6112 | U109: 215.6112
C110: 2013-05-19 | D110: Cargo en cuenta corriente por seguro vehículo comercial
C111: 2013-05-20 | D111: Nómina del mes de mayo + Paga extra de verano
C112: 2013-05-21 | D112: Cheque pago por honorarios de la asesoría laboral | U112: 300
C113: 2013-05-24 | D113: Cuota de mantenimiento de la cuenta corriente | E113: 1 | F113: 20 | G113: 20 | J113: 0 | M113: 0 | P113: 0 | R113: 20 | U113: 20
C114: 2013-05-24 | D114: Obsequios para empleados y clientes (cajas de vino) * | E114: 3 | F114: 23.1 | G114: 69.3 | H114: 24 | I114: 23.1 | J114: 554.4 | M114: 0 | P114: 0 | Q114: 0.06 | R114: 586.278 | S114: 123.11838 | U114: 709.39638
C115: 2013-05-27 | D115: Cheque pago por obsequios para empleados y clientes | U115: 709.39638
C116: 2013-05-28 | D116: Consumo mensual de gasóleo del vehículo comercial | E116: 161 | F116: 1.090578512 | G116: 175.5831404 | J116: 0 | M116: 0 | P116: 0 | R116: 175.5831404 | S116: 36.87245947 | U116: 212.4555998
C117: 2013-05-29 | D117: Cargo en cuenta corriente del consumo mensual de gasóleo | U117: 212.4555998
C118: 2013-05-29 | D118: Teléfono | E118: 1 | F118: 52 | G118: 52 | H118: 1 | I118: 42 | J118: 42 | K118: 1 | L118: 3.141826813 | M118: 3.141826813 | P118: 0 | R118: 97.14182681 | S118: 20.39978363 | U118: 117.5416104
C119: 2013-05-31 | D119: Cargo en cuenta corriente del teléfono | U119: 117.5416104
D125: TEMA 3 — CASO 2
G126: Tipo IVA soportado = | H126: =IF('Portada Libro'!$M$4="","",$H$23) -> 0.21
G127: Tipo IVA repercutido = | H127: =IF('Portada Libro'!$M$4="","",$H$24) -> 0.21
G128: Retenciones practicadas IRPF = | H128: =IF('Portada Libro'!$M$4="","",H70) -> 0.21
C129: Resumen operaciones mes de mayo:
E131: Concepto 1 | H131: Concepto 2 | K131: Concepto 3 | N131: Concepto 4
C132: Fecha | D132: Operación | E132: Cantidad | F132: Precio | G132: Importe | H132: Cantidad | I132: Precio | J132: Importe | K132: Cantidad | L132: Precio | M132: Importe | N132: Cantidad | O132: Precio | P132: Importe | Q132: Dto. Com. | R132: Base Imp. | S132: IVA | T132: IRPF | U132: TOTAL
C133: 2013-05-01 | D133: Comisiones por mediación en ventas de terceros | E133: =IF('Portada Libro'!$M$4="","",1) -> 1 | F133: =IF('Portada Libro'!$M$4="","",CEILING(RANDBETWEEN(1000,1200),10)) ->  | G133: =IF('Portada Libro'!$M$4="","",+E133*F133) ->  | J133: =IF('Portada Libro'!$M$4="","",+H133*I133) -> 0 | M133: =IF('Portada Libro'!$M$4="","",+K133*L133) -> 0 | P133: =IF('Portada Libro'!$M$4="","",+N133*O133) -> 0 | R133: =IF('Portada Libro'!$M$4="","",G133+J133+M133+P133-Q133*(G133+J133+M133+P133)) ->  | S133: =IF('Portada Libro'!$M$4="","",R133*H127) ->  | U133: =IF('Portada Libro'!$M$4="","",R133+S133+T133) -> 
C134: 2013-05-04 | D134: Alquiler local comercial (arrendador persona física) | E134: =IF('Portada Libro'!$M$4="","",1) -> 1 | F134: =IF('Portada Libro'!$M$4="","",CEILING(RANDBETWEEN(1600,2000),50)) ->  | G134: =IF('Portada Libro'!$M$4="","",+E134*F134) ->  | J134: =IF('Portada Libro'!$M$4="","",+H134*I134) -> 0 | M134: =IF('Portada Libro'!$M$4="","",+K134*L134) -> 0 | P134: =IF('Portada Libro'!$M$4="","",+N134*O134) -> 0 | R134: =IF('Portada Libro'!$M$4="","",G134+J134+M134+P134-Q134*(G134+J134+M134+P134)) ->  | S134: =IF('Portada Libro'!$M$4="","",R134*$H$126) ->  | T134: =IF('Portada Libro'!$M$4="","",-R134*$H$128) ->  | U134: =IF('Portada Libro'!$M$4="","",R134+S134+T134) -> 
C135: 2013-05-05 | D135: Cargo en cuenta corriente por alquiler local comercial | U135: =U134 -> 
C136: 2013-05-13 | D136: Abono en cuenta corriente transferencia por comisiones comerciales | U136: =U133 -> 
C137: 2013-05-14 | D137: Reparación del vehículo comercial | E137: =IF('Portada Libro'!$M$4="","",1) -> 1 | F137: =IF('Portada Libro'!$M$4="","",(CEILING(RANDBETWEEN(45,50),1)*1.01)) ->  | G137: =IF('Portada Libro'!$M$4="","",+E137*F137) ->  | H137: =IF('Portada Libro'!$M$4="","",1) -> 1 | I137: =IF('Portada Libro'!$M$4="","",(CEILING(RANDBETWEEN(14,17),1)*1.02)) ->  | J137: =IF('Portada Libro'!$M$4="","",+H137*I137) ->  | K137: =IF('Portada Libro'!$M$4="","",1) -> 1 | L137: =IF('Portada Libro'!$M$4="","",CEILING(RANDBETWEEN(37,42),1)*1.04) ->  | M137: =IF('Portada Libro'!$M$4="","",+K137*L137) ->  | N137: =IF('Portada Libro'!$M$4="","",2) -> 2 | O137: =IF('Portada Libro'!$M$4="","",CEILING(RANDBETWEEN(30,35),1)) ->  | P137: =IF('Portada Libro'!$M$4="","",+N137*O137) ->  | Q137: =IF('Portada Libro'!$M$4="","",CEILING(RANDBETWEEN(5,10),1)/100) ->  | R137: =IF('Portada Libro'!$M$4="","",G137+J137+M137+P137-Q137*(G137+J137+M137+P137)) ->  | S137: =IF('Portada Libro'!$M$4="","",R137*$H$126) ->  | U137: =IF('Portada Libro'!$M$4="","",R137+S137+T137) -> 
C138: 2013-05-14 | D138: Cheque pago por reparación del vehículo comercial | U138: =U137 -> 
C139: 2013-05-19 | D139: Honorarios de la asesoría laboral (persona física) | E139: =IF('Portada Libro'!$M$4="","",1) -> 1 | F139: =IF('Portada Libro'!$M$4="","",CEILING(RANDBETWEEN(150,190),5)) ->  | G139: =IF('Portada Libro'!$M$4="","",+E139*F139) ->  | H139: =IF('Portada Libro'!$M$4="","",1) -> 1 | I139: =IF('Portada Libro'!$M$4="","",CEILING(RANDBETWEEN(140,170),5)) ->  | J139: =IF('Portada Libro'!$M$4="","",+H139*I139) ->  | M139: =IF('Portada Libro'!$M$4="","",+K139*L139) -> 0 | P139: =IF('Portada Libro'!$M$4="","",+N139*O139) -> 0 | R139: =IF('Portada Libro'!$M$4="","",G139+J139+M139+P139-Q139*(G139+J139+M139+P139)) ->  | S139: =IF('Portada Libro'!$M$4="","",R139*$H$126) ->  | T139: =IF('Portada Libro'!$M$4="","",-R139*$H$128) ->  | U139: =IF('Portada Libro'!$M$4="","",R139+S139+T139) -> 
C140: 2013-05-19 | D140: Seguro del vehículo comercial | E140: =IF('Portada Libro'!$M$4="","",1) -> 1 | F140: =IF('Portada Libro'!$M$4="","",CEILING(RANDBETWEEN(200,240),0.01)) ->  | G140: =IF('Portada Libro'!$M$4="","",+E140*F140) ->  | H140: =IF('Portada Libro'!$M$4="","",1) -> 1 | I140: =IF('Portada Libro'!$M$4="","",(CEILING(RANDBETWEEN(5,8),1))*1.03) ->  | J140: =IF('Portada Libro'!$M$4="","",+H140*I140) ->  | K140: =IF('Portada Libro'!$M$4="","",1) -> 1 | L140: =IF('Portada Libro'!$M$4="","",(CEILING(RANDBETWEEN(18,21),1))*1.01) ->  | M140: =IF('Portada Libro'!$M$4="","",+K140*L140) ->  | Q140: =IF('Portada Libro'!$M$4="","",CEILING(RANDBETWEEN(5,10),1)/100) ->  | R140: =IF('Portada Libro'!$M$4="","",G140+J140+M140+P140-Q140*(G140+J140+M140+P140)) ->  | U140: =IF('Portada Libro'!$M$4="","",R140+S140+T140) -> 
C141: 2013-05-19 | D141: Cargo en cuenta corriente por seguro vehículo comercial
C142: 2013-05-20 | D142: Nómina del mes de mayo + Paga extra de verano
C143: 2013-05-21 | D143: Cheque pago por honorarios de la asesoría laboral | U143: =U139 -> 
C144: 2013-05-24 | D144: Cuota de mantenimiento de la cuenta corriente | E144: =IF('Portada Libro'!$M$4="","",1) -> 1 | F144: =IF('Portada Libro'!$M$4="","",CEILING(RANDBETWEEN(20,30),1)) ->  | G144: =IF('Portada Libro'!$M$4="","",+E144*F144) ->  | J144: =IF('Portada Libro'!$M$4="","",+H144*I144) -> 0 | M144: =IF('Portada Libro'!$M$4="","",+K144*L144) -> 0 | P144: =IF('Portada Libro'!$M$4="","",+N144*O144) -> 0 | R144: =IF('Portada Libro'!$M$4="","",G144+J144+M144+P144-Q144*(G144+J144+M144+P144)) ->  | U144: =IF('Portada Libro'!$M$4="","",R144+S144+T144) -> 
C145: 2013-05-24 | D145: Obsequios para empleados y clientes (cajas de vino) * | E145: =IF('Portada Libro'!$M$4="","",3) -> 3 | F145: =IF('Portada Libro'!$M$4="","",(CEILING(RANDBETWEEN(18,22),1))*1.05) ->  | G145: =IF('Portada Libro'!$M$4="","",+E145*F145) ->  | H145: =IF('Portada Libro'!$M$4="","",CEILING(RANDBETWEEN(15,25),1)) ->  | I145: =IF('Portada Libro'!$M$4="","",F145) ->  | J145: =IF('Portada Libro'!$M$4="","",+H145*I145) ->  | M145: =IF('Portada Libro'!$M$4="","",+K145*L145) -> 0 | P145: =IF('Portada Libro'!$M$4="","",+N145*O145) -> 0 | Q145: =IF('Portada Libro'!$M$4="","",CEILING(RANDBETWEEN(3,8),0.01)/100) ->  | R145: =IF('Portada Libro'!$M$4="","",G145+J145+M145+P145-Q145*(G145+J145+M145+P145)) ->  | S145: =IF('Portada Libro'!$M$4="","",R145*$H$126) ->  | U145: =IF('Portada Libro'!$M$4="","",R145+S145+T145) -> 
C146: 2013-05-27 | D146: Cheque pago por obsequios para empleados y clientes | U146: =U145 -> 
C147: 2013-05-28 | D147: Consumo mensual de gasóleo del vehículo comercial | E147: =IF('Portada Libro'!$M$4="","",CEILING(RANDBETWEEN(135,200),1)) ->  | F147: =IF('Portada Libro'!$M$4="","",1.05)+RAND()/10 ->  | G147: =IF('Portada Libro'!$M$4="","",+E147*F147) ->  | J147: =IF('Portada Libro'!$M$4="","",+H147*I147) -> 0 | M147: =IF('Portada Libro'!$M$4="","",+K147*L147) -> 0 | P147: =IF('Portada Libro'!$M$4="","",+N147*O147) -> 0 | R147: =IF('Portada Libro'!$M$4="","",G147+J147+M147+P147-Q147*(G147+J147+M147+P147)) ->  | S147: =IF('Portada Libro'!$M$4="","",R147*$H$126) ->  | U147: =IF('Portada Libro'!$M$4="","",R147+S147+T147) -> 
C148: 2013-05-29 | D148: Cargo en cuenta corriente del consumo mensual de gasóleo | U148: =U147 -> 
C149: 2013-05-29 | D149: Teléfono | E149: =IF('Portada Libro'!$M$4="","",1) -> 1 | F149: =IF('Portada Libro'!$M$4="","",CEILING(RANDBETWEEN(50,60),1)) ->  | G149: =IF('Portada Libro'!$M$4="","",+E149*F149) ->  | H149: =IF('Portada Libro'!$M$4="","",1) -> 1 | I149: =IF('Portada Libro'!$M$4="","",CEILING(RANDBETWEEN(30,45),1)) ->  | J149: =IF('Portada Libro'!$M$4="","",+H149*I149) ->  | K149: =IF('Portada Libro'!$M$4="","",1) -> 1 | L149: =IF('Portada Libro'!$M$4="","",3.5*RAND()) ->  | M149: =IF('Portada Libro'!$M$4="","",+K149*L149) ->  | P149: =IF('Portada Libro'!$M$4="","",+N149*O149) -> 0 | R149: =IF('Portada Libro'!$M$4="","",G149+J149+M149+P149-Q149*(G149+J149+M149+P149)) ->  | S149: =IF('Portada Libro'!$M$4="","",R149*$H$126) ->  | U149: =IF('Portada Libro'!$M$4="","",R149+S149+T149) -> 
C150: 2013-05-31 | D150: Cargo en cuenta corriente del teléfono | U150: =U149 -> 
D156: TEMA 3 — CASO 3
G157: Tipo IVA soportado = | H157: 0.21
G158: Tipo IVA repercutido = | H158: 0.21
G159: Retenciones practicadas IRPF = | H159: 0.21
C160: Resumen operaciones mes de mayo:
E162: Concepto 1 | H162: Concepto 2 | K162: Concepto 3 | N162: Concepto 4
C163: Fecha | D163: Operación | E163: Cantidad | F163: Precio | G163: Importe | H163: Cantidad | I163: Precio | J163: Importe | K163: Cantidad | L163: Precio | M163: Importe | N163: Cantidad | O163: Precio | P163: Importe | Q163: Dto. Com. | R163: Base Imp. | S163: IVA | T163: IRPF | U163: TOTAL
C164: =C190 -> 2013-05-01 | D164: =D190 -> Ingreso por servicio de transporte | E164: 1 | F164: 300 | G164: 300 | J164: 0 | M164: 0 | P164: 0 | R164: 300 | S164: 63 | U164: 363
C165: =C191 -> 2013-05-04 | D165: Alquiler local comercial (persona jurídica) | E165: 1 | F165: 1650 | G165: 1650 | J165: 0 | M165: 0 | P165: 0 | R165: 1650 | S165: 346.5 | U165: 1996.5
C166: 2013-05-05 | D166: Cargo en cuenta corriente por alquiler local comercial | U166: 1996.5
C167: 2013-05-16 | D167: Pintura del local comercial (persona jurídica) | E167: 20 | F167: 13 | G167: 260 | H167: 2 | I167: 19.24586176 | J167: 38.49172352 | K167: 3 | L167: 18.03583201 | M167: 54.10749604 | N167: 1 | O167: 20.3796917 | P167: 20.3796917 | Q167: 0.1 | R167: 335.6810201 | S167: 70.49301423 | U167: 406.1740344
C168: 2013-05-17 | D168: Abono en cuenta corriente por transferencia servicio transporte | U168: 363
C169: 2013-05-18 | D169: Cheque pago pintura del local comercial | U169: 406.1740344
C170: 2013-05-20 | D170: Honorarios asesoría fiscal (persona jurídica) | E170: 1 | F170: 380 | G170: 380 | J170: 0 | M170: 0 | P170: 0 | R170: 380 | S170: 79.8 | U170: 459.8
C171: 2013-05-22 | D171: Cargo en cuenta corriente transferencia con comisión bancaria por honorarios asesoría fiscal | E171: 1 | F171: 459.8 | G171: 459.8 | H171: 1 | I171: 5 | J171: 5 | M171: 0 | P171: 0 | R171: 464.8 | U171: 464.8
C172: 2013-05-23 | D172: Obsequios para clientes (llaveros) | E172: 205 | F172: 4.267916866 | G172: 874.9229575 | J172: 0 | M172: 0 | P172: 0 | Q172: 0.05 | R172: 831.1768096 | S172: 174.54713 | U172: 1005.72394
C173: 2013-05-23 | D173: Combustible Gas | E173: 37 | F173: 0.05079 | G173: 1.87923 | H173: 37 | I173: 0.00234 | J173: 0.08658 | K173: 60 | L173: 0.282082 | M173: 16.92492 | P173: 0 | R173: 18.89073 | S173: 3.9670533 | U173: 22.8577833
C174: 2013-05-25 | D174: Cargo en cuenta corriente combustible gas | U174: 22.8577833
C175: 2013-05-30 | D175: Impuesto sobre vehículos de tracción mecánica | E175: 1 | F175: 118.0930411 | G175: 118.0930411 | J175: 0 | M175: 0 | P175: 0 | R175: 118.0930411 | U175: 118.0930411
C176: =C202 -> 2013-05-31 | D176: =D202 -> Diferencia negativa en el arqueo de caja | G176: 220.7668275
D182: TEMA 3 — CASO 3
G183: Tipo IVA soportado = | H183: =IF('Portada Libro'!$M$4="","",$H$23) -> 0.21
G184: Tipo IVA repercutido = | H184: =IF('Portada Libro'!$M$4="","",$H$24) -> 0.21
G185: Retenciones practicadas IRPF = | H185: =IF('Portada Libro'!$M$4="","",H70) -> 0.21
C186: Resumen operaciones mes de mayo:
E188: Concepto 1 | H188: Concepto 2 | K188: Concepto 3 | N188: Concepto 4
C189: Fecha | D189: Operación | E189: Cantidad | F189: Precio | G189: Importe | H189: Cantidad | I189: Precio | J189: Importe | K189: Cantidad | L189: Precio | M189: Importe | N189: Cantidad | O189: Precio | P189: Importe | Q189: Dto. Com. | R189: Base Imp. | S189: IVA | T189: IRPF | U189: TOTAL
C190: 2013-05-01 | D190: Ingreso por servicio de transporte | E190: =IF('Portada Libro'!$M$4="","",1) -> 1 | F190: =IF('Portada Libro'!$M$4="","",CEILING(RANDBETWEEN(200,300),10)) ->  | G190: =IF('Portada Libro'!$M$4="","",+E190*F190) ->  | J190: =IF('Portada Libro'!$M$4="","",+H190*I190) -> 0 | M190: =IF('Portada Libro'!$M$4="","",+K190*L190) -> 0 | P190: =IF('Portada Libro'!$M$4="","",+N190*O190) -> 0 | R190: =IF('Portada Libro'!$M$4="","",G190+J190+M190+P190-Q190*(G190+J190+M190+P190)) ->  | S190: =IF('Portada Libro'!$M$4="","",R190*H184) ->  | U190: =IF('Portada Libro'!$M$4="","",R190+S190+T190) -> 
C191: 2013-05-04 | D191: Alquiler local comercial (persona jurídica) | E191: =IF('Portada Libro'!$M$4="","",1) -> 1 | F191: =IF('Portada Libro'!$M$4="","",CEILING(RANDBETWEEN(1600,2000),50)) ->  | G191: =IF('Portada Libro'!$M$4="","",+E191*F191) ->  | J191: =IF('Portada Libro'!$M$4="","",+H191*I191) -> 0 | M191: =IF('Portada Libro'!$M$4="","",+K191*L191) -> 0 | P191: =IF('Portada Libro'!$M$4="","",+N191*O191) -> 0 | R191: =IF('Portada Libro'!$M$4="","",G191+J191+M191+P191-Q191*(G191+J191+M191+P191)) ->  | S191: =IF('Portada Libro'!$M$4="","",R191*$H$183) ->  | U191: =IF('Portada Libro'!$M$4="","",R191+S191+T191) -> 
C192: 2013-05-05 | D192: Cargo en cuenta corriente por alquiler local comercial | U192: =U191 -> 
C193: 2013-05-16 | D193: Pintura del local comercial (persona jurídica) | E193: =IF('Portada Libro'!$M$4="","",CEILING(RANDBETWEEN(20,25),0.5)) ->  | F193: =IF('Portada Libro'!$M$4="","",CEILING(RANDBETWEEN(12,15),1)) ->  | G193: =IF('Portada Libro'!$M$4="","",+E193*F193) ->  | H193: =IF('Portada Libro'!$M$4="","",2) -> 2 | I193: =IF('Portada Libro'!$M$4="","",CEILING(RANDBETWEEN(18,22),1)+RAND()) ->  | J193: =IF('Portada Libro'!$M$4="","",+H193*I193) ->  | K193: =IF('Portada Libro'!$M$4="","",3) -> 3 | L193: =IF('Portada Libro'!$M$4="","",CEILING(RANDBETWEEN(18,22),1)+RAND()) ->  | M193: =IF('Portada Libro'!$M$4="","",+K193*L193) ->  | N193: =IF('Portada Libro'!$M$4="","",1) -> 1 | O193: =IF('Portada Libro'!$M$4="","",CEILING(RANDBETWEEN(18,22),1)+RAND()) ->  | P193: =IF('Portada Libro'!$M$4="","",+N193*O193) ->  | Q193: =IF('Portada Libro'!$M$4="","",CEILING(RANDBETWEEN(8,12),1)/100) ->  | R193: =IF('Portada Libro'!$M$4="","",G193+J193+M193+P193-Q193*(G193+J193+M193+P193)) ->  | S193: =IF('Portada Libro'!$M$4="","",R193*$H$183) ->  | U193: =IF('Portada Libro'!$M$4="","",R193+S193+T193) -> 
C194: 2013-05-17 | D194: Abono en cuenta corriente por transferencia servicio transporte | U194: =U190 -> 
C195: 2013-05-18 | D195: Cheque pago pintura del local comercial | U195: =U193 -> 
C196: 2013-05-20 | D196: Honorarios asesoría fiscal (persona jurídica) | E196: =IF('Portada Libro'!$M$4="","",1) -> 1 | F196: =IF('Portada Libro'!$M$4="","",CEILING(RANDBETWEEN(300,400),10)) ->  | G196: =IF('Portada Libro'!$M$4="","",+E196*F196) ->  | J196: =IF('Portada Libro'!$M$4="","",+H196*I196) -> 0 | M196: =IF('Portada Libro'!$M$4="","",+K196*L196) -> 0 | P196: =IF('Portada Libro'!$M$4="","",+N196*O196) -> 0 | R196: =IF('Portada Libro'!$M$4="","",G196+J196+M196+P196-Q196*(G196+J196+M196+P196)) ->  | S196: =IF('Portada Libro'!$M$4="","",R196*$H$183) ->  | U196: =IF('Portada Libro'!$M$4="","",R196+S196+T196) -> 
C197: 2013-05-22 | D197: Cargo en cuenta corriente transferencia con comisión bancaria por honorarios asesoría fiscal | E197: =IF('Portada Libro'!$M$4="","",1) -> 1 | F197: =IF('Portada Libro'!$M$4="","",U196) ->  | G197: =IF('Portada Libro'!$M$4="","",+E197*F197) ->  | H197: =IF('Portada Libro'!$M$4="","",1) -> 1 | I197: =IF('Portada Libro'!$M$4="","",CEILING(RANDBETWEEN(3,6),1)) ->  | J197: =IF('Portada Libro'!$M$4="","",+H197*I197) ->  | M197: =IF('Portada Libro'!$M$4="","",+K197*L197) -> 0 | P197: =IF('Portada Libro'!$M$4="","",+N197*O197) -> 0 | R197: =IF('Portada Libro'!$M$4="","",G197+J197+M197+P197-Q197*(G197+J197+M197+P197)) ->  | U197: =IF('Portada Libro'!$M$4="","",R197+S197+T197) -> 
C198: 2013-05-23 | D198: Obsequios para clientes (llaveros) | E198: =IF('Portada Libro'!$M$4="","",CEILING(RANDBETWEEN(180,250),5)) ->  | F198: =IF('Portada Libro'!$M$4="","",CEILING(RANDBETWEEN(2,4),1)+RAND()) ->  | G198: =IF('Portada Libro'!$M$4="","",+E198*F198) ->  | J198: =IF('Portada Libro'!$M$4="","",+H198*I198) -> 0 | M198: =IF('Portada Libro'!$M$4="","",+K198*L198) -> 0 | P198: =IF('Portada Libro'!$M$4="","",+N198*O198) -> 0 | Q198: =IF('Portada Libro'!$M$4="","",CEILING(RANDBETWEEN(2,5),1)/100) ->  | R198: =IF('Portada Libro'!$M$4="","",G198+J198+M198+P198-Q198*(G198+J198+M198+P198)) ->  | S198: =IF('Portada Libro'!$M$4="","",R198*$H$183) ->  | U198: =IF('Portada Libro'!$M$4="","",R198+S198+T198) -> 
C199: 2013-05-23 | D199: Combustible Gas | E199: =IF('Portada Libro'!$M$4="","",CEILING(RANDBETWEEN(30,40),1)) ->  | F199: =IF('Portada Libro'!$M$4="","",0.05079) -> 0.05079 | G199: =IF('Portada Libro'!$M$4="","",+E199*F199) ->  | H199: =IF('Portada Libro'!$M$4="","",E199) ->  | I199: =IF('Portada Libro'!$M$4="","",0.00234) -> 0.00234 | J199: =IF('Portada Libro'!$M$4="","",+H199*I199) ->  | K199: =IF('Portada Libro'!$M$4="","",60) -> 60 | L199: =IF('Portada Libro'!$M$4="","",0.282082) -> 0.282082 | M199: =IF('Portada Libro'!$M$4="","",+K199*L199) -> 16.92492 | P199: =IF('Portada Libro'!$M$4="","",+N199*O199) -> 0 | R199: =IF('Portada Libro'!$M$4="","",G199+J199+M199+P199-Q199*(G199+J199+M199+P199)) ->  | S199: =IF('Portada Libro'!$M$4="","",R199*$H$183) ->  | U199: =IF('Portada Libro'!$M$4="","",R199+S199+T199) -> 
C200: 2013-05-25 | D200: Cargo en cuenta corriente combustible gas | U200: =U199 -> 
C201: 2013-05-30 | D201: Impuesto sobre vehículos de tracción mecánica | E201: =IF('Portada Libro'!$M$4="","",1) -> 1 | F201: =IF('Portada Libro'!$M$4="","",CEILING(RANDBETWEEN(115,125),1)+RAND()) ->  | G201: =IF('Portada Libro'!$M$4="","",+E201*F201) ->  | J201: =IF('Portada Libro'!$M$4="","",+H201*I201) -> 0 | M201: =IF('Portada Libro'!$M$4="","",+K201*L201) -> 0 | P201: =IF('Portada Libro'!$M$4="","",+N201*O201) -> 0 | R201: =IF('Portada Libro'!$M$4="","",G201+J201+M201+P201-Q201*(G201+J201+M201+P201)) ->  | U201: =IF('Portada Libro'!$M$4="","",R201+S201+T201) -> 
C202: 2013-05-31 | D202: Diferencia negativa en el arqueo de caja | G202: =IF('Portada Libro'!$M$4="","",220.42+RAND()) -> 
D208: TEMA 2 — CASO 1
C209: Existencias iniciales de mayo:
C210: Unidades = | E210: 320 | G210: Tipo IVA soportado = | H210: 0.21 | J210: Intereses de demora = | K210: 0.045
C211: Precio unitario = | E211: 19 | G211: Tipo IVA repercutido = | H211: 0.21
C212: Total Saldo = | E212: 6080
C214: Resumen operaciones mes de mayo:
C216: Fecha | D216: Operación | E216: Unidades | F216: Precio bruto | G216: Descuento comercial | H216: Vencimiento factura (I) | I216: Vencimiento factura (II) | J216: Deterioro crédito comercial | K216: Vencimiento renegociación
C217: 2013-05-08 | D217: Compra 1 | E217: 635 | F217: 17.6 | G217: 0.03 | H217: 2013-06-22
C218: 2013-05-11 | D218: Venta 1 | E218: 620 | F218: 23.8 | G218: 0.06 | H218: 2013-08-09 | J218: 2013-08-09 | K218: 2013-09-18
C219: 2013-05-18 | D219: Compra 2 | E219: 510 | F219: 17.9 | G219: 0.03 | H219: 2013-07-02
C220: 2013-05-21 | D220: Compra 3 | E220: 420 | F220: 17.4 | G220: 0.02 | H220: 2013-07-05 | I220: 2013-08-19
C221: 2013-05-27 | D221: Venta 2 | E221: 1070 | F221: 23.8 | G221: 0.06 | H221: 2013-08-25 | J221: 2013-08-25
D227: TEMA 2 — CASO 1
C228: Existencias iniciales de mayo:
C229: Unidades = | E229: =IF('Portada Libro'!$M$4="","",CEILING(RANDBETWEEN(100,500),5)) ->  | G229: Tipo IVA soportado = | H229: =IF('Portada Libro'!$M$4="","",21%) -> 0.21 | J229: Intereses de demora = | K229: =IF('Portada Libro'!$M$4="","",4.5%) -> 0.045
C230: Precio unitario = | E230: =IF('Portada Libro'!$M$4="","",CEILING(RANDBETWEEN(10,20),0.01)) ->  | G230: Tipo IVA repercutido = | H230: =IF('Portada Libro'!$M$4="","",21%) -> 0.21
C231: Total Saldo = | E231: =IF('Portada Libro'!$M$4="","",E229*E230) -> 
C233: Resumen operaciones mes de mayo:
C235: Fecha | D235: Operación | E235: Unidades | F235: Precio bruto | G235: Descuento comercial | H235: Vencimiento factura (I) | I235: Vencimiento factura (II) | J235: Deterioro crédito comercial | K235: Vencimiento renegociación
C236: 2013-05-08 | D236: Compra 1 | E236: =IF('Portada Libro'!$M$4="","",CEILING(RANDBETWEEN(400,1000),5)) ->  | F236: =IF('Portada Libro'!$M$4="","",ROUNDUP(E230*1.03,1)) ->  | G236: =IF('Portada Libro'!$M$4="","",CEILING(RANDBETWEEN(1,3),0.01)/100) ->  | H236: 2013-06-22
C237: 2013-05-11 | D237: Venta 1 | E237: =IF('Portada Libro'!$M$4="","",CEILING(RANDBETWEEN(0.5*(E229+E236),0.9*(E229+E236)),5)) ->  | F237: =IF('Portada Libro'!$M$4="","",ROUNDUP(E230*1.4,1)) ->  | G237: =IF('Portada Libro'!$M$4="","",CEILING(RANDBETWEEN(5,10),0.01)/100) ->  | H237: 2013-08-09 | J237: =H237 -> 2013-08-09 | K237: =H237+5+35 -> 2013-09-18
C238: 2013-05-18 | D238: Compra 2 | E238: =IF('Portada Libro'!$M$4="","",CEILING(RANDBETWEEN(400,1000),5)) ->  | F238: =IF('Portada Libro'!$M$4="","",ROUNDUP(E230*1.05,1)) ->  | G238: =IF('Portada Libro'!$M$4="","",CEILING(RANDBETWEEN(1,3),0.01)/100) ->  | H238: 2013-07-02
C239: 2013-05-21 | D239: Compra 3 | E239: =IF('Portada Libro'!$M$4="","",CEILING(RANDBETWEEN(400,1000),5)) ->  | F239: =IF('Portada Libro'!$M$4="","",ROUNDUP(E230*1.02,1)) ->  | G239: =IF('Portada Libro'!$M$4="","",CEILING(RANDBETWEEN(1,3),0.01)/100) ->  | H239: 2013-07-05 | I239: 2013-08-19
C240: 2013-05-27 | D240: Venta 2 | E240: =IF('Portada Libro'!$M$4="","",CEILING(RANDBETWEEN(0.5*(E229+E236-E237+E238+E239),0.9*(E229+E236-E237+E238+E239)),5)) ->  | F240: =IF('Portada Libro'!$M$4="","",ROUNDUP(E230*1.4,1)) ->  | G240: =IF('Portada Libro'!$M$4="","",CEILING(RANDBETWEEN(5,10),0.01)/100) ->  | H240: 2013-08-25 | J240: =H240 -> 2013-08-25
D246: TEMA 2 — CASO 2
C247: Existencias iniciales de mayo:
C248: Unidades = | E248: 340 | G248: Tipo IVA soportado = | H248: 0.21
C249: Precio unitario = | E249: 10 | G249: Tipo IVA repercutido = | H249: 0.21
C250: Total Saldo = | E250: 3400
C252: Resumen operaciones mes de mayo:
C254: Fecha | D254: Operación | E254: Unidades | F254: Precio bruto | G254: Descuento comercial | H254: Vencimiento factura (I) | I254: Vencimiento factura (II) | J254: Vencimiento efecto comercial | K254: Deterioro crédito comercial
C255: 2013-05-08 | D255: Compra 1 | E255: 780 | F255: 19.6 | G255: 0.03 | H255: 2013-06-22
C256: 2013-05-11 | D256: Venta 1 | E256: 850 | F256: 26.6 | G256: 0.09 | H256: 2013-08-09 | J256: 2013-08-09
C257: 2013-05-18 | D257: Compra 2 | E257: 590 | F257: 20 | G257: 0.01 | H257: 2013-07-02
C258: 2013-05-21 | D258: Compra 3 | E258: 795 | F258: 19.4 | G258: 0.03 | H258: 2013-07-05 | I258: 2013-08-19
C259: 2013-05-27 | D259: Venta 2 | E259: 1020 | F259: 26.6 | G259: 0.05 | H259: 2013-08-25 | K259: 2013-08-10
D265: TEMA 2 — CASO 2
C266: Existencias iniciales de mayo:
C267: Unidades = | E267: =IF('Portada Libro'!$M$4="","",CEILING(RANDBETWEEN(100,500),5)) ->  | G267: Tipo IVA soportado = | H267: =IF('Portada Libro'!$M$4="","",21%) -> 0.21
C268: Precio unitario = | E268: =IF('Portada Libro'!$M$4="","",CEILING(RANDBETWEEN(10,20),0.01)) ->  | G268: Tipo IVA repercutido = | H268: =IF('Portada Libro'!$M$4="","",21%) -> 0.21
C269: Total Saldo = | E269: =IF('Portada Libro'!$M$4="","",E267*E268) -> 
C271: Resumen operaciones mes de mayo:
C273: Fecha | D273: Operación | E273: Unidades | F273: Precio bruto | G273: Descuento comercial | H273: Vencimiento factura (I) | I273: Vencimiento factura (II) | J273: Vencimiento efecto comercial | K273: Deterioro crédito comercial
C274: 2013-05-08 | D274: Compra 1 | E274: =IF('Portada Libro'!$M$4="","",CEILING(RANDBETWEEN(400,1000),5)) ->  | F274: =IF('Portada Libro'!$M$4="","",ROUNDUP(E268*1.03,1)) ->  | G274: =IF('Portada Libro'!$M$4="","",CEILING(RANDBETWEEN(1,3),0.01)/100) ->  | H274: 2013-06-22
... 106 more rows

Sheet Mercaderías Nivel 1 (hidden)
B1: Haga un doble click sobre la imagen para ver esta Presentación | P1: ÍNDICE TEMA 1
H2: OPERACIONES COMERCIALES (MERCADERÍAS) — NIVEL 1
H6: A continuación, Usted debe llevar a cabo los siguientes pasos:
H8: A) Imprima los documentos (facturas) que le servirán para resolver el supuesto que seguidamente se le propone. Para ello, haga doble click sobre los diferentes botones de Compra-Venta Nivel 1.
H14: B) Imprima el enunciado del supuesto que se le propone y las plantillas para su resolución. Para ello, haga doble click sobre el botón de Enunciado-Plantillas Nivel 1.
H20: C) Imprima la solución del supuesto que se le propone. Para ello, haga doble click sobre el botón de Solución Nivel 1.

Sheet Enunciado Supuesto (N1) (hidden)
C3: El día 1 de mayo de 2013 la empresa Buena Visión S.A. tenía en su almacén | P3: ='Resumen Operaciones '!E4 -> 490 | R3: monturas de gafas
C4: de metal común valoradas en | I4: ='Resumen Operaciones '!E6 -> 6370 | J4: .
C6: Se trata de productos originarios de Estados Unidos que son comprados al único proveedor español que los
C7: importa denominado Ópticas Reunidas S.A. El IVA soportado por dicho producto está fijado en el | T7: ='Resumen Operaciones '!H4 -> 0.21 | U7: .
C9: La venta de estas monturas por parte de la empresa Buena Visión S.A. se realiza en el mercado español de los
C10: distribuidores de productos oftalmológicos. El IVA repercutido del producto está establecido en el | T10: ='Resumen Operaciones '!H5 -> 0.21 | U10: . El
C11: servicio de transporte y de seguro de las mercancías es prestado por la propia empresa vendedora.
C13: Durante el mes de mayo se realizaron las operaciones que seguidamente se exponen:
C15: Fecha | F15: Operación | H15: Unidades | J15: Precio bruto
C16: ='Resumen Operaciones '!C11 -> 2013-05-08 | F16: ='Resumen Operaciones '!D11 -> Compra 1 | H16: ='Resumen Operaciones '!E11 -> 590 | J16: ='Resumen Operaciones '!F11 -> 10.3
C17: ='Resumen Operaciones '!C12 -> 2013-05-11 | F17: ='Resumen Operaciones '!D12 -> Venta 1 | H17: ='Resumen Operaciones '!E12 -> 610 | J17: ='Resumen Operaciones '!F12 -> 14
C18: ='Resumen Operaciones '!C13 -> 2013-05-18 | F18: ='Resumen Operaciones '!D13 -> Compra 2 | H18: ='Resumen Operaciones '!E13 -> 675 | J18: ='Resumen Operaciones '!F13 -> 10.5
C19: ='Resumen Operaciones '!C14 -> 2013-05-21 | F19: ='Resumen Operaciones '!D14 -> Compra 3 | H19: ='Resumen Operaciones '!E14 -> 840 | J19: ='Resumen Operaciones '!F14 -> 10.2
C20: ='Resumen Operaciones '!C15 -> 2013-05-27 | F20: ='Resumen Operaciones '!D15 -> Venta 2 | H20: ='Resumen Operaciones '!E15 -> 1325 | J20: ='Resumen Operaciones '!F15 -> 14
C22: NOTA: Las magnitudes monetarias que se presentan en este supuesto no incluyen el IVA correspondiente.
C24: Teniendo presente los documentos que se le suministran en el presente supuesto, se pide:
D26: 1.- Contabilice las operaciones anteriores siguiendo el procedimiento de desdoblamiento en compras y
E27: ventas.

Sheet Libro Diario (N1) (hidden)
C3: DEBE | I3: HABER
C4: IMPORTES | D4: Nº CUENTA | E4: NOMBRE CUENTA | G4: Nº CUENTA | H4: NOMBRE CUENTA | I4: IMPORTES
E5: =IF(D5="","",VLOOKUP(D5,'Cuadro de Cuentas'!$B$3:$C$567,2,FALSE)) ->  | F5: =IF(G5="","","a") ->  | H5: =IF(G5="","",VLOOKUP(G5,'Cuadro de Cuentas'!$B$3:$C$567,2,FALSE)) -> 
E6: =IF(D6="","",VLOOKUP(D6,'Cuadro de Cuentas'!$B$3:$C$567,2,FALSE)) ->  | H6: =IF(G6="","",VLOOKUP(G6,'Cuadro de Cuentas'!$B$3:$C$567,2,FALSE)) -> 
E7: =IF(D7="","",VLOOKUP(D7,'Cuadro de Cuentas'!$B$3:$C$567,2,FALSE)) ->  | H7: =IF(G7="","",VLOOKUP(G7,'Cuadro de Cuentas'!$B$3:$C$567,2,FALSE)) -> 
E8: =IF(D8="","",VLOOKUP(D8,'Cuadro de Cuentas'!$B$3:$C$567,2,FALSE)) ->  | H8: =IF(G8="","",VLOOKUP(G8,'Cuadro de Cuentas'!$B$3:$C$567,2,FALSE)) -> 
E9: =IF(D9="","",VLOOKUP(D9,'Cuadro de Cuentas'!$B$3:$C$567,2,FALSE)) ->  | H9: =IF(G9="","",VLOOKUP(G9,'Cuadro de Cuentas'!$B$3:$C$567,2,FALSE)) -> 
E10: =IF(D10="","",VLOOKUP(D10,'Cuadro de Cuentas'!$B$3:$C$567,2,FALSE)) ->  | H10: =IF(G10="","",VLOOKUP(G10,'Cuadro de Cuentas'!$B$3:$C$567,2,FALSE)) -> 
E11: =IF(D11="","",VLOOKUP(D11,'Cuadro de Cuentas'!$B$3:$C$567,2,FALSE)) ->  | H11: =IF(G11="","",VLOOKUP(G11,'Cuadro de Cuentas'!$B$3:$C$567,2,FALSE)) -> 
E12: =IF(D12="","",VLOOKUP(D12,'Cuadro de Cuentas'!$B$3:$C$567,2,FALSE)) ->  | H12: =IF(G12="","",VLOOKUP(G12,'Cuadro de Cuentas'!$B$3:$C$567,2,FALSE)) -> 
E13: =IF(D13="","",VLOOKUP(D13,'Cuadro de Cuentas'!$B$3:$C$567,2,FALSE)) ->  | H13: =IF(G13="","",VLOOKUP(G13,'Cuadro de Cuentas'!$B$3:$C$567,2,FALSE)) -> 
E14: =IF(D14="","",VLOOKUP(D14,'Cuadro de Cuentas'!$B$3:$C$567,2,FALSE)) ->  | H14: =IF(G14="","",VLOOKUP(G14,'Cuadro de Cuentas'!$B$3:$C$567,2,FALSE)) -> 
E15: =IF(D15="","",VLOOKUP(D15,'Cuadro de Cuentas'!$B$3:$C$567,2,FALSE)) ->  | H15: =IF(G15="","",VLOOKUP(G15,'Cuadro de Cuentas'!$B$3:$C$567,2,FALSE)) -> 
E16: =IF(D16="","",VLOOKUP(D16,'Cuadro de Cuentas'!$B$3:$C$567,2,FALSE)) ->  | H16: =IF(G16="","",VLOOKUP(G16,'Cuadro de Cuentas'!$B$3:$C$567,2,FALSE)) -> 
E17: =IF(D17="","",VLOOKUP(D17,'Cuadro de Cuentas'!$B$3:$C$567,2,FALSE)) ->  | H17: =IF(G17="","",VLOOKUP(G17,'Cuadro de Cuentas'!$B$3:$C$567,2,FALSE)) -> 
E18: =IF(D18="","",VLOOKUP(D18,'Cuadro de Cuentas'!$B$3:$C$567,2,FALSE)) ->  | H18: =IF(G18="","",VLOOKUP(G18,'Cuadro de Cuentas'!$B$3:$C$567,2,FALSE)) -> 
E19: =IF(D19="","",VLOOKUP(D19,'Cuadro de Cuentas'!$B$3:$C$567,2,FALSE)) ->  | H19: =IF(G19="","",VLOOKUP(G19,'Cuadro de Cuentas'!$B$3:$C$567,2,FALSE)) -> 
E20: =IF(D20="","",VLOOKUP(D20,'Cuadro de Cuentas'!$B$3:$C$567,2,FALSE)) ->  | H20: =IF(G20="","",VLOOKUP(G20,'Cuadro de Cuentas'!$B$3:$C$567,2,FALSE)) -> 
E21: =IF(D21="","",VLOOKUP(D21,'Cuadro de Cuentas'!$B$3:$C$567,2,FALSE)) ->  | H21: =IF(G21="","",VLOOKUP(G21,'Cuadro de Cuentas'!$B$3:$C$567,2,FALSE)) -> 
E22: =IF(D22="","",VLOOKUP(D22,'Cuadro de Cuentas'!$B$3:$C$567,2,FALSE)) ->  | H22: =IF(G22="","",VLOOKUP(G22,'Cuadro de Cuentas'!$B$3:$C$567,2,FALSE)) -> 
E23: =IF(D23="","",VLOOKUP(D23,'Cuadro de Cuentas'!$B$3:$C$567,2,FALSE)) ->  | H23: =IF(G23="","",VLOOKUP(G23,'Cuadro de Cuentas'!$B$3:$C$567,2,FALSE)) -> 
E24: =IF(D24="","",VLOOKUP(D24,'Cuadro de Cuentas'!$B$3:$C$567,2,FALSE)) ->  | H24: =IF(G24="","",VLOOKUP(G24,'Cuadro de Cuentas'!$B$3:$C$567,2,FALSE)) -> 
E25: =IF(D25="","",VLOOKUP(D25,'Cuadro de Cuentas'!$B$3:$C$567,2,FALSE)) ->  | H25: =IF(G25="","",VLOOKUP(G25,'Cuadro de Cuentas'!$B$3:$C$567,2,FALSE)) -> 
E26: =IF(D26="","",VLOOKUP(D26,'Cuadro de Cuentas'!$B$3:$C$567,2,FALSE)) ->  | H26: =IF(G26="","",VLOOKUP(G26,'Cuadro de Cuentas'!$B$3:$C$567,2,FALSE)) -> 
E27: =IF(D27="","",VLOOKUP(D27,'Cuadro de Cuentas'!$B$3:$C$567,2,FALSE)) ->  | H27: =IF(G27="","",VLOOKUP(G27,'Cuadro de Cuentas'!$B$3:$C$567,2,FALSE)) -> 
E28: =IF(D28="","",VLOOKUP(D28,'Cuadro de Cuentas'!$B$3:$C$567,2,FALSE)) ->  | H28: =IF(G28="","",VLOOKUP(G28,'Cuadro de Cuentas'!$B$3:$C$567,2,FALSE)) -> 
E29: =IF(D29="","",VLOOKUP(D29,'Cuadro de Cuentas'!$B$3:$C$567,2,FALSE)) ->  | H29: =IF(G29="","",VLOOKUP(G29,'Cuadro de Cuentas'!$B$3:$C$567,2,FALSE)) -> 
E30: =IF(D30="","",VLOOKUP(D30,'Cuadro de Cuentas'!$B$3:$C$567,2,FALSE)) ->  | H30: =IF(G30="","",VLOOKUP(G30,'Cuadro de Cuentas'!$B$3:$C$567,2,FALSE)) -> 
E31: =IF(D31="","",VLOOKUP(D31,'Cuadro de Cuentas'!$B$3:$C$567,2,FALSE)) ->  | H31: =IF(G31="","",VLOOKUP(G31,'Cuadro de Cuentas'!$B$3:$C$567,2,FALSE)) -> 
E32: =IF(D32="","",VLOOKUP(D32,'Cuadro de Cuentas'!$B$3:$C$567,2,FALSE)) ->  | H32: =IF(G32="","",VLOOKUP(G32,'Cuadro de Cuentas'!$B$3:$C$567,2,FALSE)) -> 
E33: =IF(D33="","",VLOOKUP(D33,'Cuadro de Cuentas'!$B$3:$C$567,2,FALSE)) ->  | H33: =IF(G33="","",VLOOKUP(G33,'Cuadro de Cuentas'!$B$3:$C$567,2,FALSE)) -> 
E34: =IF(D34="","",VLOOKUP(D34,'Cuadro de Cuentas'!$B$3:$C$567,2,FALSE)) ->  | H34: =IF(G34="","",VLOOKUP(G34,'Cuadro de Cuentas'!$B$3:$C$567,2,FALSE)) -> 
E35: =IF(D35="","",VLOOKUP(D35,'Cuadro de Cuentas'!$B$3:$C$567,2,FALSE)) ->  | H35: =IF(G35="","",VLOOKUP(G35,'Cuadro de Cuentas'!$B$3:$C$567,2,FALSE)) -> 
E36: =IF(D36="","",VLOOKUP(D36,'Cuadro de Cuentas'!$B$3:$C$567,2,FALSE)) ->  | H36: =IF(G36="","",VLOOKUP(G36,'Cuadro de Cuentas'!$B$3:$C$567,2,FALSE)) -> 
E37: =IF(D37="","",VLOOKUP(D37,'Cuadro de Cuentas'!$B$3:$C$567,2,FALSE)) ->  | H37: =IF(G37="","",VLOOKUP(G37,'Cuadro de Cuentas'!$B$3:$C$567,2,FALSE)) -> 
E38: =IF(D38="","",VLOOKUP(D38,'Cuadro de Cuentas'!$B$3:$C$567,2,FALSE)) ->  | H38: =IF(G38="","",VLOOKUP(G38,'Cuadro de Cuentas'!$B$3:$C$567,2,FALSE)) -> 
E39: =IF(D39="","",VLOOKUP(D39,'Cuadro de Cuentas'!$B$3:$C$567,2,FALSE)) ->  | H39: =IF(G39="","",VLOOKUP(G39,'Cuadro de Cuentas'!$B$3:$C$567,2,FALSE)) -> 
E40: =IF(D40="","",VLOOKUP(D40,'Cuadro de Cuentas'!$B$3:$C$567,2,FALSE)) ->  | H40: =IF(G40="","",VLOOKUP(G40,'Cuadro de Cuentas'!$B$3:$C$567,2,FALSE)) -> 
E41: =IF(D41="","",VLOOKUP(D41,'Cuadro de Cuentas'!$B$3:$C$567,2,FALSE)) ->  | H41: =IF(G41="","",VLOOKUP(G41,'Cuadro de Cuentas'!$B$3:$C$567,2,FALSE)) -> 
E42: =IF(D42="","",VLOOKUP(D42,'Cuadro de Cuentas'!$B$3:$C$567,2,FALSE)) ->  | H42: =IF(G42="","",VLOOKUP(G42,'Cuadro de Cuentas'!$B$3:$C$567,2,FALSE)) -> 
E43: =IF(D43="","",VLOOKUP(D43,'Cuadro de Cuentas'!$B$3:$C$567,2,FALSE)) ->  | H43: =IF(G43="","",VLOOKUP(G43,'Cuadro de Cuentas'!$B$3:$C$567,2,FALSE)) -> 
E44: =IF(D44="","",VLOOKUP(D44,'Cuadro de Cuentas'!$B$3:$C$567,2,FALSE)) ->  | H44: =IF(G44="","",VLOOKUP(G44,'Cuadro de Cuentas'!$B$3:$C$567,2,FALSE)) -> 
E45: =IF(D45="","",VLOOKUP(D45,'Cuadro de Cuentas'!$B$3:$C$567,2,FALSE)) ->  | H45: =IF(G45="","",VLOOKUP(G45,'Cuadro de Cuentas'!$B$3:$C$567,2,FALSE)) -> 
E46: =IF(D46="","",VLOOKUP(D46,'Cuadro de Cuentas'!$B$3:$C$567,2,FALSE)) ->  | H46: =IF(G46="","",VLOOKUP(G46,'Cuadro de Cuentas'!$B$3:$C$567,2,FALSE)) -> 
E47: =IF(D47="","",VLOOKUP(D47,'Cuadro de Cuentas'!$B$3:$C$567,2,FALSE)) ->  | H47: =IF(G47="","",VLOOKUP(G47,'Cuadro de Cuentas'!$B$3:$C$567,2,FALSE)) -> 
E48: =IF(D48="","",VLOOKUP(D48,'Cuadro de Cuentas'!$B$3:$C$567,2,FALSE)) ->  | H48: =IF(G48="","",VLOOKUP(G48,'Cuadro de Cuentas'!$B$3:$C$567,2,FALSE)) -> 
E49: =IF(D49="","",VLOOKUP(D49,'Cuadro de Cuentas'!$B$3:$C$567,2,FALSE)) ->  | H49: =IF(G49="","",VLOOKUP(G49,'Cuadro de Cuentas'!$B$3:$C$567,2,FALSE)) -> 
C53: DEBE | I53: HABER
C54: IMPORTES | D54: Nº CUENTA | E54: NOMBRE CUENTA | G54: Nº CUENTA | H54: NOMBRE CUENTA | I54: IMPORTES
E55: =IF(D55="","",VLOOKUP(D55,'Cuadro de Cuentas'!$B$3:$C$567,2,FALSE)) ->  | F55: =IF(G55="","","a") ->  | H55: =IF(G55="","",VLOOKUP(G55,'Cuadro de Cuentas'!$B$3:$C$567,2,FALSE)) -> 
E56: =IF(D56="","",VLOOKUP(D56,'Cuadro de Cuentas'!$B$3:$C$567,2,FALSE)) ->  | H56: =IF(G56="","",VLOOKUP(G56,'Cuadro de Cuentas'!$B$3:$C$567,2,FALSE)) -> 
E57: =IF(D57="","",VLOOKUP(D57,'Cuadro de Cuentas'!$B$3:$C$567,2,FALSE)) ->  | H57: =IF(G57="","",VLOOKUP(G57,'Cuadro de Cuentas'!$B$3:$C$567,2,FALSE)) -> 
E58: =IF(D58="","",VLOOKUP(D58,'Cuadro de Cuentas'!$B$3:$C$567,2,FALSE)) ->  | H58: =IF(G58="","",VLOOKUP(G58,'Cuadro de Cuentas'!$B$3:$C$567,2,FALSE)) -> 
E59: =IF(D59="","",VLOOKUP(D59,'Cuadro de Cuentas'!$B$3:$C$567,2,FALSE)) ->  | H59: =IF(G59="","",VLOOKUP(G59,'Cuadro de Cuentas'!$B$3:$C$567,2,FALSE)) -> 
E60: =IF(D60="","",VLOOKUP(D60,'Cuadro de Cuentas'!$B$3:$C$567,2,FALSE)) ->  | H60: =IF(G60="","",VLOOKUP(G60,'Cuadro de Cuentas'!$B$3:$C$567,2,FALSE)) -> 
E61: =IF(D61="","",VLOOKUP(D61,'Cuadro de Cuentas'!$B$3:$C$567,2,FALSE)) ->  | H61: =IF(G61="","",VLOOKUP(G61,'Cuadro de Cuentas'!$B$3:$C$567,2,FALSE)) -> 
E62: =IF(D62="","",VLOOKUP(D62,'Cuadro de Cuentas'!$B$3:$C$567,2,FALSE)) ->  | H62: =IF(G62="","",VLOOKUP(G62,'Cuadro de Cuentas'!$B$3:$C$567,2,FALSE)) -> 
E63: =IF(D63="","",VLOOKUP(D63,'Cuadro de Cuentas'!$B$3:$C$567,2,FALSE)) ->  | H63: =IF(G63="","",VLOOKUP(G63,'Cuadro de Cuentas'!$B$3:$C$567,2,FALSE)) -> 
E64: =IF(D64="","",VLOOKUP(D64,'Cuadro de Cuentas'!$B$3:$C$567,2,FALSE)) ->  | H64: =IF(G64="","",VLOOKUP(G64,'Cuadro de Cuentas'!$B$3:$C$567,2,FALSE)) -> 
E65: =IF(D65="","",VLOOKUP(D65,'Cuadro de Cuentas'!$B$3:$C$567,2,FALSE)) ->  | H65: =IF(G65="","",VLOOKUP(G65,'Cuadro de Cuentas'!$B$3:$C$567,2,FALSE)) -> 
E66: =IF(D66="","",VLOOKUP(D66,'Cuadro de Cuentas'!$B$3:$C$567,2,FALSE)) ->  | H66: =IF(G66="","",VLOOKUP(G66,'Cuadro de Cuentas'!$B$3:$C$567,2,FALSE)) -> 
E67: =IF(D67="","",VLOOKUP(D67,'Cuadro de Cuentas'!$B$3:$C$567,2,FALSE)) ->  | H67: =IF(G67="","",VLOOKUP(G67,'Cuadro de Cuentas'!$B$3:$C$567,2,FALSE)) -> 
E68: =IF(D68="","",VLOOKUP(D68,'Cuadro de Cuentas'!$B$3:$C$567,2,FALSE)) ->  | H68: =IF(G68="","",VLOOKUP(G68,'Cuadro de Cuentas'!$B$3:$C$567,2,FALSE)) -> 
E69: =IF(D69="","",VLOOKUP(D69,'Cuadro de Cuentas'!$B$3:$C$567,2,FALSE)) ->  | H69: =IF(G69="","",VLOOKUP(G69,'Cuadro de Cuentas'!$B$3:$C$567,2,FALSE)) -> 
E70: =IF(D70="","",VLOOKUP(D70,'Cuadro de Cuentas'!$B$3:$C$567,2,FALSE)) ->  | H70: =IF(G70="","",VLOOKUP(G70,'Cuadro de Cuentas'!$B$3:$C$567,2,FALSE)) -> 
E71: =IF(D71="","",VLOOKUP(D71,'Cuadro de Cuentas'!$B$3:$C$567,2,FALSE)) ->  | H71: =IF(G71="","",VLOOKUP(G71,'Cuadro de Cuentas'!$B$3:$C$567,2,FALSE)) -> 
E72: =IF(D72="","",VLOOKUP(D72,'Cuadro de Cuentas'!$B$3:$C$567,2,FALSE)) ->  | H72: =IF(G72="","",VLOOKUP(G72,'Cuadro de Cuentas'!$B$3:$C$567,2,FALSE)) -> 
E73: =IF(D73="","",VLOOKUP(D73,'Cuadro de Cuentas'!$B$3:$C$567,2,FALSE)) ->  | H73: =IF(G73="","",VLOOKUP(G73,'Cuadro de Cuentas'!$B$3:$C$567,2,FALSE)) -> 
E74: =IF(D74="","",VLOOKUP(D74,'Cuadro de Cuentas'!$B$3:$C$567,2,FALSE)) ->  | H74: =IF(G74="","",VLOOKUP(G74,'Cuadro de Cuentas'!$B$3:$C$567,2,FALSE)) -> 
E75: =IF(D75="","",VLOOKUP(D75,'Cuadro de Cuentas'!$B$3:$C$567,2,FALSE)) ->  | H75: =IF(G75="","",VLOOKUP(G75,'Cuadro de Cuentas'!$B$3:$C$567,2,FALSE)) -> 
E76: =IF(D76="","",VLOOKUP(D76,'Cuadro de Cuentas'!$B$3:$C$567,2,FALSE)) ->  | H76: =IF(G76="","",VLOOKUP(G76,'Cuadro de Cuentas'!$B$3:$C$567,2,FALSE)) -> 
E77: =IF(D77="","",VLOOKUP(D77,'Cuadro de Cuentas'!$B$3:$C$567,2,FALSE)) ->  | H77: =IF(G77="","",VLOOKUP(G77,'Cuadro de Cuentas'!$B$3:$C$567,2,FALSE)) -> 
E78: =IF(D78="","",VLOOKUP(D78,'Cuadro de Cuentas'!$B$3:$C$567,2,FALSE)) ->  | H78: =IF(G78="","",VLOOKUP(G78,'Cuadro de Cuentas'!$B$3:$C$567,2,FALSE)) -> 
E79: =IF(D79="","",VLOOKUP(D79,'Cuadro de Cuentas'!$B$3:$C$567,2,FALSE)) ->  | H79: =IF(G79="","",VLOOKUP(G79,'Cuadro de Cuentas'!$B$3:$C$567,2,FALSE)) -> 
E80: =IF(D80="","",VLOOKUP(D80,'Cuadro de Cuentas'!$B$3:$C$567,2,FALSE)) ->  | H80: =IF(G80="","",VLOOKUP(G80,'Cuadro de Cuentas'!$B$3:$C$567,2,FALSE)) -> 
E81: =IF(D81="","",VLOOKUP(D81,'Cuadro de Cuentas'!$B$3:$C$567,2,FALSE)) ->  | H81: =IF(G81="","",VLOOKUP(G81,'Cuadro de Cuentas'!$B$3:$C$567,2,FALSE)) -> 
E82: =IF(D82="","",VLOOKUP(D82,'Cuadro de Cuentas'!$B$3:$C$567,2,FALSE)) ->  | H82: =IF(G82="","",VLOOKUP(G82,'Cuadro de Cuentas'!$B$3:$C$567,2,FALSE)) -> 
E83: =IF(D83="","",VLOOKUP(D83,'Cuadro de Cuentas'!$B$3:$C$567,2,FALSE)) ->  | H83: =IF(G83="","",VLOOKUP(G83,'Cuadro de Cuentas'!$B$3:$C$567,2,FALSE)) -> 
E84: =IF(D84="","",VLOOKUP(D84,'Cuadro de Cuentas'!$B$3:$C$567,2,FALSE)) ->  | H84: =IF(G84="","",VLOOKUP(G84,'Cuadro de Cuentas'!$B$3:$C$567,2,FALSE)) -> 
E85: =IF(D85="","",VLOOKUP(D85,'Cuadro de Cuentas'!$B$3:$C$567,2,FALSE)) ->  | H85: =IF(G85="","",VLOOKUP(G85,'Cuadro de Cuentas'!$B$3:$C$567,2,FALSE)) -> 
E86: =IF(D86="","",VLOOKUP(D86,'Cuadro de Cuentas'!$B$3:$C$567,2,FALSE)) ->  | H86: =IF(G86="","",VLOOKUP(G86,'Cuadro de Cuentas'!$B$3:$C$567,2,FALSE)) -> 
E87: =IF(D87="","",VLOOKUP(D87,'Cuadro de Cuentas'!$B$3:$C$567,2,FALSE)) ->  | H87: =IF(G87="","",VLOOKUP(G87,'Cuadro de Cuentas'!$B$3:$C$567,2,FALSE)) -> 
E88: =IF(D88="","",VLOOKUP(D88,'Cuadro de Cuentas'!$B$3:$C$567,2,FALSE)) ->  | H88: =IF(G88="","",VLOOKUP(G88,'Cuadro de Cuentas'!$B$3:$C$567,2,FALSE)) -> 
E89: =IF(D89="","",VLOOKUP(D89,'Cuadro de Cuentas'!$B$3:$C$567,2,FALSE)) ->  | H89: =IF(G89="","",VLOOKUP(G89,'Cuadro de Cuentas'!$B$3:$C$567,2,FALSE)) -> 
E90: =IF(D90="","",VLOOKUP(D90,'Cuadro de Cuentas'!$B$3:$C$567,2,FALSE)) ->  | H90: =IF(G90="","",VLOOKUP(G90,'Cuadro de Cuentas'!$B$3:$C$567,2,FALSE)) -> 
E91: =IF(D91="","",VLOOKUP(D91,'Cuadro de Cuentas'!$B$3:$C$567,2,FALSE)) ->  | H91: =IF(G91="","",VLOOKUP(G91,'Cuadro de Cuentas'!$B$3:$C$567,2,FALSE)) -> 
E92: =IF(D92="","",VLOOKUP(D92,'Cuadro de Cuentas'!$B$3:$C$567,2,FALSE)) ->  | H92: =IF(G92="","",VLOOKUP(G92,'Cuadro de Cuentas'!$B$3:$C$567,2,FALSE)) -> 
E93: =IF(D93="","",VLOOKUP(D93,'Cuadro de Cuentas'!$B$3:$C$567,2,FALSE)) ->  | H93: =IF(G93="","",VLOOKUP(G93,'Cuadro de Cuentas'!$B$3:$C$567,2,FALSE)) -> 
E94: =IF(D94="","",VLOOKUP(D94,'Cuadro de Cuentas'!$B$3:$C$567,2,FALSE)) ->  | H94: =IF(G94="","",VLOOKUP(G94,'Cuadro de Cuentas'!$B$3:$C$567,2,FALSE)) -> 
E95: =IF(D95="","",VLOOKUP(D95,'Cuadro de Cuentas'!$B$3:$C$567,2,FALSE)) ->  | H95: =IF(G95="","",VLOOKUP(G95,'Cuadro de Cuentas'!$B$3:$C$567,2,FALSE)) -> 
E96: =IF(D96="","",VLOOKUP(D96,'Cuadro de Cuentas'!$B$3:$C$567,2,FALSE)) ->  | H96: =IF(G96="","",VLOOKUP(G96,'Cuadro de Cuentas'!$B$3:$C$567,2,FALSE)) -> 
E97: =IF(D97="","",VLOOKUP(D97,'Cuadro de Cuentas'!$B$3:$C$567,2,FALSE)) ->  | H97: =IF(G97="","",VLOOKUP(G97,'Cuadro de Cuentas'!$B$3:$C$567,2,FALSE)) -> 
E98: =IF(D98="","",VLOOKUP(D98,'Cuadro de Cuentas'!$B$3:$C$567,2,FALSE)) ->  | H98: =IF(G98="","",VLOOKUP(G98,'Cuadro de Cuentas'!$B$3:$C$567,2,FALSE)) -> 
E99: =IF(D99="","",VLOOKUP(D99,'Cuadro de Cuentas'!$B$3:$C$567,2,FALSE)) ->  | H99: =IF(G99="","",VLOOKUP(G99,'Cuadro de Cuentas'!$B$3:$C$567,2,FALSE)) -> 

Sheet Solución Libro Diario (N1) (hidden)
C3: DEBE | I3: HABER
C4: IMPORTES | D4: Nº CUENTA | E4: NOMBRE CUENTA | F4: ='Factura Compra 1 (N1)'!L19 -> 2013-05-08 | G4: Nº CUENTA | H4: NOMBRE CUENTA | I4: IMPORTES
C5: ='Factura Compra 1 (N1)'!L60 -> 6077 | D5: 600 | E5: =IF(D5="","",VLOOKUP(D5,'Cuadro de Cuentas'!$B$3:$C$567,2,FALSE)) -> Compras de mercaderías | F5: =IF(G5="","","a") ->  | H5: =IF(G5="","",VLOOKUP(G5,'Cuadro de Cuentas'!$B$3:$C$567,2,FALSE)) -> 
C6: ='Factura Compra 1 (N1)'!L61 -> 1276.17 | D6: 472 | E6: =IF(D6="","",VLOOKUP(D6,'Cuadro de Cuentas'!$B$3:$C$567,2,FALSE)) -> Hacienda Pública, IVA soportado | F6: a | G6: 400 | H6: =IF(G6="","",VLOOKUP(G6,'Cuadro de Cuentas'!$B$3:$C$567,2,FALSE)) -> Proveedores | I6: ='Factura Compra 1 (N1)'!L62 -> 7353.17
E7: (COMPRA 1) | F7: ='Factura Venta 1 (N1)'!G18 -> 2013-05-11 | H7: =IF(G7="","",VLOOKUP(G7,'Cuadro de Cuentas'!$B$3:$C$567,2,FALSE)) -> 
C8: ='Factura Venta 1 (N1)'!G48 -> 10333.4 | D8: 430 | E8: =IF(D8="","",VLOOKUP(D8,'Cuadro de Cuentas'!$B$3:$C$567,2,FALSE)) -> Clientes | H8: =IF(G8="","",VLOOKUP(G8,'Cuadro de Cuentas'!$B$3:$C$567,2,FALSE)) -> 
E9: =IF(D9="","",VLOOKUP(D9,'Cuadro de Cuentas'!$B$3:$C$567,2,FALSE)) ->  | F9: a | G9: 700 | H9: =IF(G9="","",VLOOKUP(G9,'Cuadro de Cuentas'!$B$3:$C$567,2,FALSE)) -> Ventas de mercaderías | I9: ='Factura Venta 1 (N1)'!G46 -> 8540
E10: =IF(D10="","",VLOOKUP(D10,'Cuadro de Cuentas'!$B$3:$C$567,2,FALSE)) ->  | F10: a | G10: 477 | H10: =IF(G10="","",VLOOKUP(G10,'Cuadro de Cuentas'!$B$3:$C$567,2,FALSE)) -> Hacienda Pública, IVA repercutido | I10: ='Factura Venta 1 (N1)'!G47 -> 1793.4
E11: (VENTA 1) | F11: ='Factura Compra 2 (N1)'!L19 -> 2013-05-18 | H11: =IF(G11="","",VLOOKUP(G11,'Cuadro de Cuentas'!$B$3:$C$567,2,FALSE)) -> 
C12: ='Factura Compra 2 (N1)'!L60 -> 7087.5 | D12: 600 | E12: =IF(D12="","",VLOOKUP(D12,'Cuadro de Cuentas'!$B$3:$C$567,2,FALSE)) -> Compras de mercaderías | H12: =IF(G12="","",VLOOKUP(G12,'Cuadro de Cuentas'!$B$3:$C$567,2,FALSE)) -> 
C13: ='Factura Compra 2 (N1)'!L61 -> 1488.375 | D13: 472 | E13: =IF(D13="","",VLOOKUP(D13,'Cuadro de Cuentas'!$B$3:$C$567,2,FALSE)) -> Hacienda Pública, IVA soportado | F13: a | G13: 400 | H13: =IF(G13="","",VLOOKUP(G13,'Cuadro de Cuentas'!$B$3:$C$567,2,FALSE)) -> Proveedores | I13: ='Factura Compra 2 (N1)'!L62 -> 8575.875
E14: (COMPRA 2) | F14: ='Factura Compra 3 (N1)'!L19 -> 2013-05-21 | H14: =IF(G14="","",VLOOKUP(G14,'Cuadro de Cuentas'!$B$3:$C$567,2,FALSE)) -> 
C15: ='Factura Compra 3 (N1)'!L60 -> 8568 | D15: 600 | E15: =IF(D15="","",VLOOKUP(D15,'Cuadro de Cuentas'!$B$3:$C$567,2,FALSE)) -> Compras de mercaderías | H15: =IF(G15="","",VLOOKUP(G15,'Cuadro de Cuentas'!$B$3:$C$567,2,FALSE)) -> 
C16: ='Factura Compra 3 (N1)'!L61 -> 1799.28 | D16: 472 | E16: =IF(D16="","",VLOOKUP(D16,'Cuadro de Cuentas'!$B$3:$C$567,2,FALSE)) -> Hacienda Pública, IVA soportado | F16: a | G16: 400 | H16: =IF(G16="","",VLOOKUP(G16,'Cuadro de Cuentas'!$B$3:$C$567,2,FALSE)) -> Proveedores | I16: ='Factura Compra 3 (N1)'!L62 -> 10367.28
E17: (COMPRA 3) | F17: ='Factura Venta 2 (N1)'!G18 -> 2013-05-27 | H17: =IF(G17="","",VLOOKUP(G17,'Cuadro de Cuentas'!$B$3:$C$567,2,FALSE)) -> 
C18: ='Factura Venta 2 (N1)'!G48 -> 22445.5 | D18: 430 | E18: =IF(D18="","",VLOOKUP(D18,'Cuadro de Cuentas'!$B$3:$C$567,2,FALSE)) -> Clientes | F18: =IF(G18="","","a") ->  | H18: =IF(G18="","",VLOOKUP(G18,'Cuadro de Cuentas'!$B$3:$C$567,2,FALSE)) -> 
E19: =IF(D19="","",VLOOKUP(D19,'Cuadro de Cuentas'!$B$3:$C$567,2,FALSE)) ->  | F19: a | G19: 700 | H19: =IF(G19="","",VLOOKUP(G19,'Cuadro de Cuentas'!$B$3:$C$567,2,FALSE)) -> Ventas de mercaderías | I19: ='Factura Venta 2 (N1)'!G46 -> 18550
E20: =IF(D20="","",VLOOKUP(D20,'Cuadro de Cuentas'!$B$3:$C$567,2,FALSE)) ->  | F20: a | G20: 477 | H20: =IF(G20="","",VLOOKUP(G20,'Cuadro de Cuentas'!$B$3:$C$567,2,FALSE)) -> Hacienda Pública, IVA repercutido | I20: ='Factura Venta 2 (N1)'!G47 -> 3895.5
E21: (VENTA 2) | F21: ='Factura Compra 1 (N1)'!H69 -> 2013-06-22 | H21: =IF(G21="","",VLOOKUP(G21,'Cuadro de Cuentas'!$B$3:$C$567,2,FALSE)) -> 
C22: ='Factura Compra 1 (N1)'!L69 -> 7353.17 | D22: 400 | E22: =IF(D22="","",VLOOKUP(D22,'Cuadro de Cuentas'!$B$3:$C$567,2,FALSE)) -> Proveedores | H22: =IF(G22="","",VLOOKUP(G22,'Cuadro de Cuentas'!$B$3:$C$567,2,FALSE)) -> 
E23: =IF(D23="","",VLOOKUP(D23,'Cuadro de Cuentas'!$B$3:$C$567,2,FALSE)) ->  | F23: a | G23: 572 | H23: =IF(G23="","",VLOOKUP(G23,'Cuadro de Cuentas'!$B$3:$C$567,2,FALSE)) -> Bancos e instituciones de crédito c/c vista, euros | I23: =C22 -> 7353.17
E24: (LIQUIDACIÓN COMPRA 1) | F24: ='Factura Compra 2 (N1)'!H69 -> 2013-07-02 | H24: =IF(G24="","",VLOOKUP(G24,'Cuadro de Cuentas'!$B$3:$C$567,2,FALSE)) -> 
C25: ='Factura Compra 2 (N1)'!L69 -> 8575.875 | D25: 400 | E25: =IF(D25="","",VLOOKUP(D25,'Cuadro de Cuentas'!$B$3:$C$567,2,FALSE)) -> Proveedores | F25: =IF(G25="","","a") ->  | H25: =IF(G25="","",VLOOKUP(G25,'Cuadro de Cuentas'!$B$3:$C$567,2,FALSE)) -> 
E26: =IF(D26="","",VLOOKUP(D26,'Cuadro de Cuentas'!$B$3:$C$567,2,FALSE)) ->  | F26: =IF(G26="","","a") -> a | G26: 572 | H26: =IF(G26="","",VLOOKUP(G26,'Cuadro de Cuentas'!$B$3:$C$567,2,FALSE)) -> Bancos e instituciones de crédito c/c vista, euros | I26: =C25 -> 8575.875
E27: (LIQUIDACIÓN COMPRA 2) | F27: ='Factura Compra 3 (N1)'!H69 -> 2013-07-05 | H27: =IF(G27="","",VLOOKUP(G27,'Cuadro de Cuentas'!$B$3:$C$567,2,FALSE)) -> 
C28: ='Factura Compra 3 (N1)'!L69 -> 4146.912 | D28: 400 | E28: =IF(D28="","",VLOOKUP(D28,'Cuadro de Cuentas'!$B$3:$C$567,2,FALSE)) -> Proveedores | F28: =IF(G28="","","a") ->  | H28: =IF(G28="","",VLOOKUP(G28,'Cuadro de Cuentas'!$B$3:$C$567,2,FALSE)) -> 
E29: =IF(D29="","",VLOOKUP(D29,'Cuadro de Cuentas'!$B$3:$C$567,2,FALSE)) ->  | F29: =IF(G29="","","a") -> a | G29: 572 | H29: =IF(G29="","",VLOOKUP(G29,'Cuadro de Cuentas'!$B$3:$C$567,2,FALSE)) -> Bancos e instituciones de crédito c/c vista, euros | I29: =C28 -> 4146.912
E30: (1ª LIQUIDACIÓN COMPRA 3) | F30: ='Factura Venta 1 (N1)'!E56 -> 2013-08-09 | H30: =IF(G30="","",VLOOKUP(G30,'Cuadro de Cuentas'!$B$3:$C$567,2,FALSE)) -> 
C31: =I32 -> 10333.4 | D31: 572 | E31: =IF(D31="","",VLOOKUP(D31,'Cuadro de Cuentas'!$B$3:$C$567,2,FALSE)) -> Bancos e instituciones de crédito c/c vista, euros | H31: =IF(G31="","",VLOOKUP(G31,'Cuadro de Cuentas'!$B$3:$C$567,2,FALSE)) -> 
E32: =IF(D32="","",VLOOKUP(D32,'Cuadro de Cuentas'!$B$3:$C$567,2,FALSE)) ->  | F32: a | G32: 430 | H32: =IF(G32="","",VLOOKUP(G32,'Cuadro de Cuentas'!$B$3:$C$567,2,FALSE)) -> Clientes | I32: ='Factura Venta 1 (N1)'!G56 -> 10333.4
E33: (LIQUIDACIÓN VENTA 1) | F33: ='Factura Compra 3 (N1)'!H71 -> 2013-08-19 | H33: =IF(G33="","",VLOOKUP(G33,'Cuadro de Cuentas'!$B$3:$C$567,2,FALSE)) -> 
C34: ='Factura Compra 3 (N1)'!L71 -> 6220.368 | D34: 400 | E34: =IF(D34="","",VLOOKUP(D34,'Cuadro de Cuentas'!$B$3:$C$567,2,FALSE)) -> Proveedores | H34: =IF(G34="","",VLOOKUP(G34,'Cuadro de Cuentas'!$B$3:$C$567,2,FALSE)) -> 
E35: =IF(D35="","",VLOOKUP(D35,'Cuadro de Cuentas'!$B$3:$C$567,2,FALSE)) ->  | F35: a | G35: 572 | H35: =IF(G35="","",VLOOKUP(G35,'Cuadro de Cuentas'!$B$3:$C$567,2,FALSE)) -> Bancos e instituciones de crédito c/c vista, euros | I35: =+C34 -> 6220.368
E36: (2ª LIQUIDACIÓN COMPRA 3) | F36: ='Factura Venta 2 (N1)'!E56 -> 2013-08-25 | H36: =IF(G36="","",VLOOKUP(G36,'Cuadro de Cuentas'!$B$3:$C$567,2,FALSE)) -> 
C37: =I38 -> 22445.5 | D37: 572 | E37: =IF(D37="","",VLOOKUP(D37,'Cuadro de Cuentas'!$B$3:$C$567,2,FALSE)) -> Bancos e instituciones de crédito c/c vista, euros | H37: =IF(G37="","",VLOOKUP(G37,'Cuadro de Cuentas'!$B$3:$C$567,2,FALSE)) -> 
E38: =IF(D38="","",VLOOKUP(D38,'Cuadro de Cuentas'!$B$3:$C$567,2,FALSE)) ->  | F38: a | G38: 430 | H38: =IF(G38="","",VLOOKUP(G38,'Cuadro de Cuentas'!$B$3:$C$567,2,FALSE)) -> Clientes | I38: ='Factura Venta 2 (N1)'!G56 -> 22445.5
E39: (LIQUIDACIÓN VENTA 2) | H39: =IF(G39="","",VLOOKUP(G39,'Cuadro de Cuentas'!$B$3:$C$567,2,FALSE)) -> 
C40: =SUM(C5:C39) -> 118150.45 | E40: =IF(D40="","",VLOOKUP(D40,'Cuadro de Cuentas'!$B$3:$C$567,2,FALSE)) ->  | H40: =IF(G40="","",VLOOKUP(G40,'Cuadro de Cuentas'!$B$3:$C$567,2,FALSE)) ->  | I40: =SUM(I5:I39) -> 118150.45

Sheet Factura Compra 1 (N1) (hidden)
I5: ÓPTICAS REUNIDAS S.A.
I6: Dirección, España
I7: CIF:
C16: Nombre: | D16: Buena Visión S.A. | K16: Factura Nº.
C17: Dirección: | D17: España | K17: 1445
C19: CIF: | K19: Fecha: | L19: ='Enunciado Supuesto (N1)'!C16 -> 2013-05-08
C20: Ref:
C26: Cantidad | D26: Código | E26: Descripción | K26: Precio Unitario | L26: Valor
L27: =IF(D27<>"",D27*K27,"") -> 
C39: ='Enunciado Supuesto (N1)'!H16 -> 590 | E39: Monturas de gafas de metal común | K39: ='Enunciado Supuesto (N1)'!J16 -> 10.3 | L39: =C39*K39 -> 6077
L51: =IF(D51<>"",D51*K51,"") -> 
L52: =IF(D52<>"",D52*K52,"") -> 
K53: Subtotal | L53: =+SUM(L27:L52) -> 6077
D58: Customer Bank: | H58: Descuento Comercial | K58: 0 | L58: =K58*L53 -> 0
H59: Descuento por Pronto Pago | K59: 0 | L59: =K59*(L53-L58) -> 0
D60: IBAN: | J60: Total | L60: =L53-L58-L59 -> 6077
J61: IVA | K61: ='Enunciado Supuesto (N1)'!T7 -> 0.21 | L61: =K61*L60 -> 1276.17
D62: SWITF: | J62: TOTAL FACTURA | L62: =L60+L61 -> 7353.17
D67: Observaciones:
E69: Con vencimiento el | H69: =IF(K59<>0,L19+15,L19+45) -> 2013-06-22 | I69: Por importe de | L69: =L62 -> 7353.17

Sheet Factura Venta 1 (N1) (hidden)
D4: BUENA VISIÓN S.A.
D5: CIF:
C9: Cliente: | D9: ÓPTICAS MADRILEÑAS S.L.
C10: Dirección:
C11: Código Postal: | E11: Localidad - País: | F11: España
C12: Teléfono: | E12: Fax:
C13: E-mail: | E13: C.I.F:
F18: Fecha Factura: | G18: ='Enunciado Supuesto (N1)'!C17 -> 2013-05-11
F19: Número Factura: | G19: 2013-531
C24: Cantidad | D24: Código | E24: Concepto | F24: Precio/Unidad | G24: Importe
C32: ='Enunciado Supuesto (N1)'!H17 -> 610 | E32: Monturas de gafas de metal común | F32: ='Enunciado Supuesto (N1)'!J17 -> 14 | G32: =C32*F32 -> 8540
C44: Descuento: | D44: 0 | E44: sobre el importe bruto de la mercancía | G44: =D44*G32 -> 0
C45: Descuento por Pronto Pago: | D45: 0 | E45: sobre el importe neto de la mercancía | G45: =D45*(G32-G44) -> 0
C46: Subtotal: | G46: =SUM(G26:G42)-G44-G45 -> 8540
C47: IVA: | D47: ='Enunciado Supuesto (N1)'!T10 -> 0.21 | G47: =D47*G46 -> 1793.4
C48: Importe Total: | G48: =G46+G47 -> 10333.4
C53: FORMA DE PAGO
C56: Con vencimiento el | E56: =IF(D45<>0,G18+15,G18+90) -> 2013-08-09 | F56: por importe de | G56: =G48 -> 10333.4
C61: Dirección – C.P. Localidad – Tel.
C62: YYY@YYY.com - www.YYY.com

Sheet Factura Compra 2 (N1) (hidden)
I5: ÓPTICAS REUNIDAS S.A.
I6: Dirección, España
I7: CIF:
C16: Nombre: | D16: Buena Visión S.A. | K16: Factura Nº.
C17: Dirección: | D17: España | K17: 1734
C19: CIF: | K19: Fecha: | L19: ='Enunciado Supuesto (N1)'!C18 -> 2013-05-18
C20: Ref:
C26: Cantidad | D26: Código | E26: Descripción | K26: Precio Unitario | L26: Valor
L27: =IF(D27<>"",D27*K27,"") -> 
C39: ='Enunciado Supuesto (N1)'!H18 -> 675 | E39: Monturas de gafas de metal común | K39: ='Enunciado Supuesto (N1)'!J18 -> 10.5 | L39: =C39*K39 -> 7087.5
L51: =IF(D51<>"",D51*K51,"") -> 
L52: =IF(D52<>"",D52*K52,"") -> 
K53: Subtotal | L53: =+SUM(L27:L52) -> 7087.5
D58: Customer Bank: | H58: Descuento Comercial | K58: 0 | L58: =K58*L53 -> 0
H59: Descuento por Pronto Pago | K59: 0 | L59: =K59*(L53-L58) -> 0
D60: IBAN: | J60: Total | L60: =L53-L58-L59 -> 7087.5
J61: IVA | K61: ='Enunciado Supuesto (N1)'!T7 -> 0.21 | L61: =K61*L60 -> 1488.375
D62: SWITF: | J62: TOTAL FACTURA | L62: =L60+L61 -> 8575.875
D67: Observaciones:
E69: Con vencimiento el | H69: =IF(K59<>0,L19+15,L19+45) -> 2013-07-02 | I69: Por importe de | L69: =L62 -> 8575.875

Sheet Factura Compra 3 (N1) (hidden)
I5: ÓPTICAS REUNIDAS S.A.
I6: Dirección, España
I7: CIF:
C16: Nombre: | D16: Buena Visión S.A. | K16: Factura Nº.
C17: Dirección: | D17: España | K17: 1829
C19: CIF: | K19: Fecha: | L19: ='Enunciado Supuesto (N1)'!C19 -> 2013-05-21
C20: Ref:
C26: Cantidad | D26: Código | E26: Descripción | K26: Precio Unitario | L26: Valor
L27: =IF(D27<>"",D27*K27,"") -> 
C39: ='Enunciado Supuesto (N1)'!H19 -> 840 | E39: Monturas de gafas de metal común | K39: ='Enunciado Supuesto (N1)'!J19 -> 10.2 | L39: =C39*K39 -> 8568
L51: =IF(D51<>"",D51*K51,"") -> 
L52: =IF(D52<>"",D52*K52,"") -> 
K53: Subtotal | L53: =+SUM(L27:L52) -> 8568
D58: Customer Bank: | H58: Descuento Comercial | K58: 0 | L58: =K58*L53 -> 0
H59: Descuento por Pronto Pago | K59: 0 | L59: =K59*(L53-L58) -> 0
D60: IBAN: | J60: Total | L60: =L53-L58-L59 -> 8568
J61: IVA | K61: ='Enunciado Supuesto (N1)'!T7 -> 0.21 | L61: =K61*L60 -> 1799.28
D62: SWITF: | J62: TOTAL FACTURA | L62: =L60+L61 -> 10367.28
D67: Observaciones:
F69: Con vencimientos el | H69: =IF(K59<>0,L19+15,L19+45) -> 2013-07-05 | I69: Por importe de | L69: =IF(K59<>0,L62,40%*L62) -> 4146.912
F71: =IF(K59<>0,"","Con vencimientos el") -> Con vencimientos el | H71: =IF(K59<>0,"",L19+90) -> 2013-08-19 | I71: =IF(K59<>0,"","Por importe de") -> Por importe de | L71: =IF(K59<>0,"",60%*L62) -> 6220.368

Sheet Factura Venta 2 (N1) (hidden)
D4: BUENA VISIÓN S.A.
D5: CIF:
C9: Cliente: | D9: ÓPTICAS VALENCIANAS S.L.
C10: Dirección:
C11: Código Postal: | E11: Localidad - País: | F11: España
C12: Teléfono: | E12: Fax:
C13: E-mail: | E13: C.I.F:
F18: Fecha Factura: | G18: ='Enunciado Supuesto (N1)'!C20 -> 2013-05-27
F19: Número Factura: | G19: 2013-674
C24: Cantidad | D24: Código | E24: Concepto | F24: Precio/Unidad | G24: Importe
C32: ='Enunciado Supuesto (N1)'!H20 -> 1325 | E32: Monturas de gafas de metal común | F32: ='Enunciado Supuesto (N1)'!J20 -> 14 | G32: =C32*F32 -> 18550
C44: Descuento: | D44: 0 | E44: sobre el importe bruto de la mercancía | G44: =D44*G32 -> 0
C45: Descuento por Pronto Pago: | D45: 0 | E45: sobre el importe neto de la mercancía | G45: =D45*(G32-G44) -> 0
C46: Subtotal: | G46: =SUM(G26:G42)-G44-G45 -> 18550
C47: IVA: | D47: ='Enunciado Supuesto (N1)'!T10 -> 0.21 | G47: =D47*G46 -> 3895.5
C48: Importe Total: | G48: =G46+G47 -> 22445.5
C53: FORMA DE PAGO
C56: Con vencimiento el | E56: =IF(D45<>0,G18+15,G18+90) -> 2013-08-25 | F56: por importe de | G56: =G48 -> 22445.5
C61: Dirección – C.P. Localidad – Tel.
C62: YYY@YYY.com - www.YYY.com

Sheet Mercaderías Nivel 2 (hidden)
B1: Haga un doble click sobre la imagen para ver esta Presentación | P1: ÍNDICE TEMA 1
H2: OPERACIONES COMERCIALES (MERCADERÍAS) — NIVEL 2
H6: A continuación, Usted debe llevar a cabo los siguientes pasos:
H8: A) Imprima los documentos (facturas) que le servirán para resolver el supuesto que seguidamente se le propone. Para ello, haga doble click sobre los diferentes botones de Compra-Venta Nivel 2.
H14: B) Imprima el enunciado del supuesto que se le propone y las plantillas para su resolución. Para ello, haga doble click sobre el botón de Enunciado-Plantillas Nivel 2.
H20: C) Imprima la solución del supuesto que se le propone. Para ello, haga doble click sobre el botón de Solución Nivel 2.

Sheet Enunciado Supuesto (N2) (hidden)
C3: El día 1 de mayo de 2013 la empresa Buena Visión S.A. tenía en su almacén | P3: ='Resumen Operaciones '!E4 -> 490 | R3: monturas de gafas
C4: de metal común valoradas en | I4: ='Resumen Operaciones '!E6 -> 6370 | J4: .
C6: Se trata de productos originarios de Estados Unidos que son comprados al único proveedor español que los
C7: importa denominado Ópticas Reunidas S.A. El IVA soportado por dicho producto está fijado en el | T7: ='Resumen Operaciones '!H4 -> 0.21 | U7: .
C9: La venta de estas monturas por parte de la empresa Buena Visión S.A. se realiza en el mercado español de los
C10: distribuidores de productos oftalmológicos. El IVA repercutido del producto está establecido en el | T10: ='Resumen Operaciones '!H5 -> 0.21 | U10: . El
C11: servicio de transporte y de seguro de las mercancías es prestado por la propia empresa vendedora.
C13: Durante el mes de mayo se realizaron las operaciones que seguidamente se exponen:
C15: Fecha | F15: Operación | H15: Unidades | J15: Precio bruto | L15: Descuento comercial
C16: ='Resumen Operaciones '!C11 -> 2013-05-08 | F16: ='Resumen Operaciones '!D11 -> Compra 1 | H16: ='Resumen Operaciones '!E11 -> 590 | J16: ='Resumen Operaciones '!F11 -> 10.3 | L16: ='Resumen Operaciones '!G11 -> 0.02
C17: ='Resumen Operaciones '!C12 -> 2013-05-11 | F17: ='Resumen Operaciones '!D12 -> Venta 1 | H17: ='Resumen Operaciones '!E12 -> 610 | J17: ='Resumen Operaciones '!F12 -> 14 | L17: ='Resumen Operaciones '!G12 -> 0.09
C18: ='Resumen Operaciones '!C13 -> 2013-05-18 | F18: ='Resumen Operaciones '!D13 -> Compra 2 | H18: ='Resumen Operaciones '!E13 -> 675 | J18: ='Resumen Operaciones '!F13 -> 10.5 | L18: ='Resumen Operaciones '!G13 -> 0.03
C19: ='Resumen Operaciones '!C14 -> 2013-05-21 | F19: ='Resumen Operaciones '!D14 -> Compra 3 | H19: ='Resumen Operaciones '!E14 -> 840 | J19: ='Resumen Operaciones '!F14 -> 10.2 | L19: ='Resumen Operaciones '!G14 -> 0.01
C20: ='Resumen Operaciones '!C15 -> 2013-05-27 | F20: ='Resumen Operaciones '!D15 -> Venta 2 | H20: ='Resumen Operaciones '!E15 -> 1325 | J20: ='Resumen Operaciones '!F15 -> 14 | L20: ='Resumen Operaciones '!G15 -> 0.1
C22: NOTA: Las magnitudes monetarias que se presentan en este supuesto no incluyen el IVA correspondiente.
C24: Teniendo presente los documentos que se le suministran en el presente supuesto, se pide:
D26: 1.- Contabilice las operaciones anteriores siguiendo el procedimiento de desdoblamiento en compras y
E27: ventas.

Sheet Libro Diario (N2) (hidden)
C3: DEBE | I3: HABER
C4: IMPORTES | D4: Nº CUENTA | E4: NOMBRE CUENTA | G4: Nº CUENTA | H4: NOMBRE CUENTA | I4: IMPORTES
E5: =IF(D5="","",VLOOKUP(D5,'Cuadro de Cuentas'!$B$3:$C$567,2,FALSE)) ->  | F5: =IF(G5="","","a") ->  | H5: =IF(G5="","",VLOOKUP(G5,'Cuadro de Cuentas'!$B$3:$C$567,2,FALSE)) -> 
E6: =IF(D6="","",VLOOKUP(D6,'Cuadro de Cuentas'!$B$3:$C$567,2,FALSE)) ->  | H6: =IF(G6="","",VLOOKUP(G6,'Cuadro de Cuentas'!$B$3:$C$567,2,FALSE)) -> 
E7: =IF(D7="","",VLOOKUP(D7,'Cuadro de Cuentas'!$B$3:$C$567,2,FALSE)) ->  | H7: =IF(G7="","",VLOOKUP(G7,'Cuadro de Cuentas'!$B$3:$C$567,2,FALSE)) -> 
E8: =IF(D8="","",VLOOKUP(D8,'Cuadro de Cuentas'!$B$3:$C$567,2,FALSE)) ->  | H8: =IF(G8="","",VLOOKUP(G8,'Cuadro de Cuentas'!$B$3:$C$567,2,FALSE)) -> 
E9: =IF(D9="","",VLOOKUP(D9,'Cuadro de Cuentas'!$B$3:$C$567,2,FALSE)) ->  | H9: =IF(G9="","",VLOOKUP(G9,'Cuadro de Cuentas'!$B$3:$C$567,2,FALSE)) -> 
E10: =IF(D10="","",VLOOKUP(D10,'Cuadro de Cuentas'!$B$3:$C$567,2,FALSE)) ->  | H10: =IF(G10="","",VLOOKUP(G10,'Cuadro de Cuentas'!$B$3:$C$567,2,FALSE)) -> 
E11: =IF(D11="","",VLOOKUP(D11,'Cuadro de Cuentas'!$B$3:$C$567,2,FALSE)) ->  | H11: =IF(G11="","",VLOOKUP(G11,'Cuadro de Cuentas'!$B$3:$C$567,2,FALSE)) -> 
E12: =IF(D12="","",VLOOKUP(D12,'Cuadro de Cuentas'!$B$3:$C$567,2,FALSE)) ->  | H12: =IF(G12="","",VLOOKUP(G12,'Cuadro de Cuentas'!$B$3:$C$567,2,FALSE)) -> 
E13: =IF(D13="","",VLOOKUP(D13,'Cuadro de Cuentas'!$B$3:$C$567,2,FALSE)) ->  | H13: =IF(G13="","",VLOOKUP(G13,'Cuadro de Cuentas'!$B$3:$C$567,2,FALSE)) -> 
E14: =IF(D14="","",VLOOKUP(D14,'Cuadro de Cuentas'!$B$3:$C$567,2,FALSE)) ->  | H14: =IF(G14="","",VLOOKUP(G14,'Cuadro de Cuentas'!$B$3:$C$567,2,FALSE)) -> 
E15: =IF(D15="","",VLOOKUP(D15,'Cuadro de Cuentas'!$B$3:$C$567,2,FALSE)) ->  | H15: =IF(G15="","",VLOOKUP(G15,'Cuadro de Cuentas'!$B$3:$C$567,2,FALSE)) -> 
E16: =IF(D16="","",VLOOKUP(D16,'Cuadro de Cuentas'!$B$3:$C$567,2,FALSE)) ->  | H16: =IF(G16="","",VLOOKUP(G16,'Cuadro de Cuentas'!$B$3:$C$567,2,FALSE)) -> 
E17: =IF(D17="","",VLOOKUP(D17,'Cuadro de Cuentas'!$B$3:$C$567,2,FALSE)) ->  | H17: =IF(G17="","",VLOOKUP(G17,'Cuadro de Cuentas'!$B$3:$C$567,2,FALSE)) -> 
E18: =IF(D18="","",VLOOKUP(D18,'Cuadro de Cuentas'!$B$3:$C$567,2,FALSE)) ->  | H18: =IF(G18="","",VLOOKUP(G18,'Cuadro de Cuentas'!$B$3:$C$567,2,FALSE)) -> 
E19: =IF(D19="","",VLOOKUP(D19,'Cuadro de Cuentas'!$B$3:$C$567,2,FALSE)) ->  | H19: =IF(G19="","",VLOOKUP(G19,'Cuadro de Cuentas'!$B$3:$C$567,2,FALSE)) -> 
E20: =IF(D20="","",VLOOKUP(D20,'Cuadro de Cuentas'!$B$3:$C$567,2,FALSE)) ->  | H20: =IF(G20="","",VLOOKUP(G20,'Cuadro de Cuentas'!$B$3:$C$567,2,FALSE)) -> 
E21: =IF(D21="","",VLOOKUP(D21,'Cuadro de Cuentas'!$B$3:$C$567,2,FALSE)) ->  | H21: =IF(G21="","",VLOOKUP(G21,'Cuadro de Cuentas'!$B$3:$C$567,2,FALSE)) -> 
E22: =IF(D22="","",VLOOKUP(D22,'Cuadro de Cuentas'!$B$3:$C$567,2,FALSE)) ->  | H22: =IF(G22="","",VLOOKUP(G22,'Cuadro de Cuentas'!$B$3:$C$567,2,FALSE)) -> 
E23: =IF(D23="","",VLOOKUP(D23,'Cuadro de Cuentas'!$B$3:$C$567,2,FALSE)) ->  | H23: =IF(G23="","",VLOOKUP(G23,'Cuadro de Cuentas'!$B$3:$C$567,2,FALSE)) -> 
E24: =IF(D24="","",VLOOKUP(D24,'Cuadro de Cuentas'!$B$3:$C$567,2,FALSE)) ->  | H24: =IF(G24="","",VLOOKUP(G24,'Cuadro de Cuentas'!$B$3:$C$567,2,FALSE)) -> 
E25: =IF(D25="","",VLOOKUP(D25,'Cuadro de Cuentas'!$B$3:$C$567,2,FALSE)) ->  | H25: =IF(G25="","",VLOOKUP(G25,'Cuadro de Cuentas'!$B$3:$C$567,2,FALSE)) -> 
E26: =IF(D26="","",VLOOKUP(D26,'Cuadro de Cuentas'!$B$3:$C$567,2,FALSE)) ->  | H26: =IF(G26="","",VLOOKUP(G26,'Cuadro de Cuentas'!$B$3:$C$567,2,FALSE)) -> 
E27: =IF(D27="","",VLOOKUP(D27,'Cuadro de Cuentas'!$B$3:$C$567,2,FALSE)) ->  | H27: =IF(G27="","",VLOOKUP(G27,'Cuadro de Cuentas'!$B$3:$C$567,2,FALSE)) -> 
E28: =IF(D28="","",VLOOKUP(D28,'Cuadro de Cuentas'!$B$3:$C$567,2,FALSE)) ->  | H28: =IF(G28="","",VLOOKUP(G28,'Cuadro de Cuentas'!$B$3:$C$567,2,FALSE)) -> 
E29: =IF(D29="","",VLOOKUP(D29,'Cuadro de Cuentas'!$B$3:$C$567,2,FALSE)) ->  | H29: =IF(G29="","",VLOOKUP(G29,'Cuadro de Cuentas'!$B$3:$C$567,2,FALSE)) -> 
E30: =IF(D30="","",VLOOKUP(D30,'Cuadro de Cuentas'!$B$3:$C$567,2,FALSE)) ->  | H30: =IF(G30="","",VLOOKUP(G30,'Cuadro de Cuentas'!$B$3:$C$567,2,FALSE)) -> 
E31: =IF(D31="","",VLOOKUP(D31,'Cuadro de Cuentas'!$B$3:$C$567,2,FALSE)) ->  | H31: =IF(G31="","",VLOOKUP(G31,'Cuadro de Cuentas'!$B$3:$C$567,2,FALSE)) -> 
E32: =IF(D32="","",VLOOKUP(D32,'Cuadro de Cuentas'!$B$3:$C$567,2,FALSE)) ->  | H32: =IF(G32="","",VLOOKUP(G32,'Cuadro de Cuentas'!$B$3:$C$567,2,FALSE)) -> 
E33: =IF(D33="","",VLOOKUP(D33,'Cuadro de Cuentas'!$B$3:$C$567,2,FALSE)) ->  | H33: =IF(G33="","",VLOOKUP(G33,'Cuadro de Cuentas'!$B$3:$C$567,2,FALSE)) -> 
E34: =IF(D34="","",VLOOKUP(D34,'Cuadro de Cuentas'!$B$3:$C$567,2,FALSE)) ->  | H34: =IF(G34="","",VLOOKUP(G34,'Cuadro de Cuentas'!$B$3:$C$567,2,FALSE)) -> 
E35: =IF(D35="","",VLOOKUP(D35,'Cuadro de Cuentas'!$B$3:$C$567,2,FALSE)) ->  | H35: =IF(G35="","",VLOOKUP(G35,'Cuadro de Cuentas'!$B$3:$C$567,2,FALSE)) -> 
E36: =IF(D36="","",VLOOKUP(D36,'Cuadro de Cuentas'!$B$3:$C$567,2,FALSE)) ->  | H36: =IF(G36="","",VLOOKUP(G36,'Cuadro de Cuentas'!$B$3:$C$567,2,FALSE)) -> 
E37: =IF(D37="","",VLOOKUP(D37,'Cuadro de Cuentas'!$B$3:$C$567,2,FALSE)) ->  | H37: =IF(G37="","",VLOOKUP(G37,'Cuadro de Cuentas'!$B$3:$C$567,2,FALSE)) -> 
E38: =IF(D38="","",VLOOKUP(D38,'Cuadro de Cuentas'!$B$3:$C$567,2,FALSE)) ->  | H38: =IF(G38="","",VLOOKUP(G38,'Cuadro de Cuentas'!$B$3:$C$567,2,FALSE)) -> 
E39: =IF(D39="","",VLOOKUP(D39,'Cuadro de Cuentas'!$B$3:$C$567,2,FALSE)) ->  | H39: =IF(G39="","",VLOOKUP(G39,'Cuadro de Cuentas'!$B$3:$C$567,2,FALSE)) -> 
E40: =IF(D40="","",VLOOKUP(D40,'Cuadro de Cuentas'!$B$3:$C$567,2,FALSE)) ->  | H40: =IF(G40="","",VLOOKUP(G40,'Cuadro de Cuentas'!$B$3:$C$567,2,FALSE)) -> 
E41: =IF(D41="","",VLOOKUP(D41,'Cuadro de Cuentas'!$B$3:$C$567,2,FALSE)) ->  | H41: =IF(G41="","",VLOOKUP(G41,'Cuadro de Cuentas'!$B$3:$C$567,2,FALSE)) -> 
E42: =IF(D42="","",VLOOKUP(D42,'Cuadro de Cuentas'!$B$3:$C$567,2,FALSE)) ->  | H42: =IF(G42="","",VLOOKUP(G42,'Cuadro de Cuentas'!$B$3:$C$567,2,FALSE)) -> 
E43: =IF(D43="","",VLOOKUP(D43,'Cuadro de Cuentas'!$B$3:$C$567,2,FALSE)) ->  | H43: =IF(G43="","",VLOOKUP(G43,'Cuadro de Cuentas'!$B$3:$C$567,2,FALSE)) -> 
E44: =IF(D44="","",VLOOKUP(D44,'Cuadro de Cuentas'!$B$3:$C$567,2,FALSE)) ->  | H44: =IF(G44="","",VLOOKUP(G44,'Cuadro de Cuentas'!$B$3:$C$567,2,FALSE)) -> 
E45: =IF(D45="","",VLOOKUP(D45,'Cuadro de Cuentas'!$B$3:$C$567,2,FALSE)) ->  | H45: =IF(G45="","",VLOOKUP(G45,'Cuadro de Cuentas'!$B$3:$C$567,2,FALSE)) -> 
E46: =IF(D46="","",VLOOKUP(D46,'Cuadro de Cuentas'!$B$3:$C$567,2,FALSE)) ->  | H46: =IF(G46="","",VLOOKUP(G46,'Cuadro de Cuentas'!$B$3:$C$567,2,FALSE)) -> 
E47: =IF(D47="","",VLOOKUP(D47,'Cuadro de Cuentas'!$B$3:$C$567,2,FALSE)) ->  | H47: =IF(G47="","",VLOOKUP(G47,'Cuadro de Cuentas'!$B$3:$C$567,2,FALSE)) -> 
E48: =IF(D48="","",VLOOKUP(D48,'Cuadro de Cuentas'!$B$3:$C$567,2,FALSE)) ->  | H48: =IF(G48="","",VLOOKUP(G48,'Cuadro de Cuentas'!$B$3:$C$567,2,FALSE)) -> 
E49: =IF(D49="","",VLOOKUP(D49,'Cuadro de Cuentas'!$B$3:$C$567,2,FALSE)) ->  | H49: =IF(G49="","",VLOOKUP(G49,'Cuadro de Cuentas'!$B$3:$C$567,2,FALSE)) -> 
C53: DEBE | I53: HABER
C54: IMPORTES | D54: Nº CUENTA | E54: NOMBRE CUENTA | G54: Nº CUENTA | H54: NOMBRE CUENTA | I54: IMPORTES
E55: =IF(D55="","",VLOOKUP(D55,'Cuadro de Cuentas'!$B$3:$C$567,2,FALSE)) ->  | F55: =IF(G55="","","a") ->  | H55: =IF(G55="","",VLOOKUP(G55,'Cuadro de Cuentas'!$B$3:$C$567,2,FALSE)) -> 
E56: =IF(D56="","",VLOOKUP(D56,'Cuadro de Cuentas'!$B$3:$C$567,2,FALSE)) ->  | H56: =IF(G56="","",VLOOKUP(G56,'Cuadro de Cuentas'!$B$3:$C$567,2,FALSE)) -> 
E57: =IF(D57="","",VLOOKUP(D57,'Cuadro de Cuentas'!$B$3:$C$567,2,FALSE)) ->  | H57: =IF(G57="","",VLOOKUP(G57,'Cuadro de Cuentas'!$B$3:$C$567,2,FALSE)) -> 
E58: =IF(D58="","",VLOOKUP(D58,'Cuadro de Cuentas'!$B$3:$C$567,2,FALSE)) ->  | H58: =IF(G58="","",VLOOKUP(G58,'Cuadro de Cuentas'!$B$3:$C$567,2,FALSE)) -> 
E59: =IF(D59="","",VLOOKUP(D59,'Cuadro de Cuentas'!$B$3:$C$567,2,FALSE)) ->  | H59: =IF(G59="","",VLOOKUP(G59,'Cuadro de Cuentas'!$B$3:$C$567,2,FALSE)) -> 
E60: =IF(D60="","",VLOOKUP(D60,'Cuadro de Cuentas'!$B$3:$C$567,2,FALSE)) ->  | H60: =IF(G60="","",VLOOKUP(G60,'Cuadro de Cuentas'!$B$3:$C$567,2,FALSE)) -> 
E61: =IF(D61="","",VLOOKUP(D61,'Cuadro de Cuentas'!$B$3:$C$567,2,FALSE)) ->  | H61: =IF(G61="","",VLOOKUP(G61,'Cuadro de Cuentas'!$B$3:$C$567,2,FALSE)) -> 
E62: =IF(D62="","",VLOOKUP(D62,'Cuadro de Cuentas'!$B$3:$C$567,2,FALSE)) ->  | H62: =IF(G62="","",VLOOKUP(G62,'Cuadro de Cuentas'!$B$3:$C$567,2,FALSE)) -> 
E63: =IF(D63="","",VLOOKUP(D63,'Cuadro de Cuentas'!$B$3:$C$567,2,FALSE)) ->  | H63: =IF(G63="","",VLOOKUP(G63,'Cuadro de Cuentas'!$B$3:$C$567,2,FALSE)) -> 
E64: =IF(D64="","",VLOOKUP(D64,'Cuadro de Cuentas'!$B$3:$C$567,2,FALSE)) ->  | H64: =IF(G64="","",VLOOKUP(G64,'Cuadro de Cuentas'!$B$3:$C$567,2,FALSE)) -> 
E65: =IF(D65="","",VLOOKUP(D65,'Cuadro de Cuentas'!$B$3:$C$567,2,FALSE)) ->  | H65: =IF(G65="","",VLOOKUP(G65,'Cuadro de Cuentas'!$B$3:$C$567,2,FALSE)) -> 
E66: =IF(D66="","",VLOOKUP(D66,'Cuadro de Cuentas'!$B$3:$C$567,2,FALSE)) ->  | H66: =IF(G66="","",VLOOKUP(G66,'Cuadro de Cuentas'!$B$3:$C$567,2,FALSE)) -> 
E67: =IF(D67="","",VLOOKUP(D67,'Cuadro de Cuentas'!$B$3:$C$567,2,FALSE)) ->  | H67: =IF(G67="","",VLOOKUP(G67,'Cuadro de Cuentas'!$B$3:$C$567,2,FALSE)) -> 
E68: =IF(D68="","",VLOOKUP(D68,'Cuadro de Cuentas'!$B$3:$C$567,2,FALSE)) ->  | H68: =IF(G68="","",VLOOKUP(G68,'Cuadro de Cuentas'!$B$3:$C$567,2,FALSE)) -> 
E69: =IF(D69="","",VLOOKUP(D69,'Cuadro de Cuentas'!$B$3:$C$567,2,FALSE)) ->  | H69: =IF(G69="","",VLOOKUP(G69,'Cuadro de Cuentas'!$B$3:$C$567,2,FALSE)) -> 
E70: =IF(D70="","",VLOOKUP(D70,'Cuadro de Cuentas'!$B$3:$C$567,2,FALSE)) ->  | H70: =IF(G70="","",VLOOKUP(G70,'Cuadro de Cuentas'!$B$3:$C$567,2,FALSE)) -> 
E71: =IF(D71="","",VLOOKUP(D71,'Cuadro de Cuentas'!$B$3:$C$567,2,FALSE)) ->  | H71: =IF(G71="","",VLOOKUP(G71,'Cuadro de Cuentas'!$B$3:$C$567,2,FALSE)) -> 
E72: =IF(D72="","",VLOOKUP(D72,'Cuadro de Cuentas'!$B$3:$C$567,2,FALSE)) ->  | H72: =IF(G72="","",VLOOKUP(G72,'Cuadro de Cuentas'!$B$3:$C$567,2,FALSE)) -> 
E73: =IF(D73="","",VLOOKUP(D73,'Cuadro de Cuentas'!$B$3:$C$567,2,FALSE)) ->  | H73: =IF(G73="","",VLOOKUP(G73,'Cuadro de Cuentas'!$B$3:$C$567,2,FALSE)) -> 
E74: =IF(D74="","",VLOOKUP(D74,'Cuadro de Cuentas'!$B$3:$C$567,2,FALSE)) ->  | H74: =IF(G74="","",VLOOKUP(G74,'Cuadro de Cuentas'!$B$3:$C$567,2,FALSE)) -> 
E75: =IF(D75="","",VLOOKUP(D75,'Cuadro de Cuentas'!$B$3:$C$567,2,FALSE)) ->  | H75: =IF(G75="","",VLOOKUP(G75,'Cuadro de Cuentas'!$B$3:$C$567,2,FALSE)) -> 
E76: =IF(D76="","",VLOOKUP(D76,'Cuadro de Cuentas'!$B$3:$C$567,2,FALSE)) ->  | H76: =IF(G76="","",VLOOKUP(G76,'Cuadro de Cuentas'!$B$3:$C$567,2,FALSE)) -> 
E77: =IF(D77="","",VLOOKUP(D77,'Cuadro de Cuentas'!$B$3:$C$567,2,FALSE)) ->  | H77: =IF(G77="","",VLOOKUP(G77,'Cuadro de Cuentas'!$B$3:$C$567,2,FALSE)) -> 
E78: =IF(D78="","",VLOOKUP(D78,'Cuadro de Cuentas'!$B$3:$C$567,2,FALSE)) ->  | H78: =IF(G78="","",VLOOKUP(G78,'Cuadro de Cuentas'!$B$3:$C$567,2,FALSE)) -> 
E79: =IF(D79="","",VLOOKUP(D79,'Cuadro de Cuentas'!$B$3:$C$567,2,FALSE)) ->  | H79: =IF(G79="","",VLOOKUP(G79,'Cuadro de Cuentas'!$B$3:$C$567,2,FALSE)) -> 
E80: =IF(D80="","",VLOOKUP(D80,'Cuadro de Cuentas'!$B$3:$C$567,2,FALSE)) ->  | H80: =IF(G80="","",VLOOKUP(G80,'Cuadro de Cuentas'!$B$3:$C$567,2,FALSE)) -> 
E81: =IF(D81="","",VLOOKUP(D81,'Cuadro de Cuentas'!$B$3:$C$567,2,FALSE)) ->  | H81: =IF(G81="","",VLOOKUP(G81,'Cuadro de Cuentas'!$B$3:$C$567,2,FALSE)) -> 
E82: =IF(D82="","",VLOOKUP(D82,'Cuadro de Cuentas'!$B$3:$C$567,2,FALSE)) ->  | H82: =IF(G82="","",VLOOKUP(G82,'Cuadro de Cuentas'!$B$3:$C$567,2,FALSE)) -> 
E83: =IF(D83="","",VLOOKUP(D83,'Cuadro de Cuentas'!$B$3:$C$567,2,FALSE)) ->  | H83: =IF(G83="","",VLOOKUP(G83,'Cuadro de Cuentas'!$B$3:$C$567,2,FALSE)) -> 
E84: =IF(D84="","",VLOOKUP(D84,'Cuadro de Cuentas'!$B$3:$C$567,2,FALSE)) ->  | H84: =IF(G84="","",VLOOKUP(G84,'Cuadro de Cuentas'!$B$3:$C$567,2,FALSE)) -> 
E85: =IF(D85="","",VLOOKUP(D85,'Cuadro de Cuentas'!$B$3:$C$567,2,FALSE)) ->  | H85: =IF(G85="","",VLOOKUP(G85,'Cuadro de Cuentas'!$B$3:$C$567,2,FALSE)) -> 
E86: =IF(D86="","",VLOOKUP(D86,'Cuadro de Cuentas'!$B$3:$C$567,2,FALSE)) ->  | H86: =IF(G86="","",VLOOKUP(G86,'Cuadro de Cuentas'!$B$3:$C$567,2,FALSE)) -> 
E87: =IF(D87="","",VLOOKUP(D87,'Cuadro de Cuentas'!$B$3:$C$567,2,FALSE)) ->  | H87: =IF(G87="","",VLOOKUP(G87,'Cuadro de Cuentas'!$B$3:$C$567,2,FALSE)) -> 
E88: =IF(D88="","",VLOOKUP(D88,'Cuadro de Cuentas'!$B$3:$C$567,2,FALSE)) ->  | H88: =IF(G88="","",VLOOKUP(G88,'Cuadro de Cuentas'!$B$3:$C$567,2,FALSE)) -> 
E89: =IF(D89="","",VLOOKUP(D89,'Cuadro de Cuentas'!$B$3:$C$567,2,FALSE)) ->  | H89: =IF(G89="","",VLOOKUP(G89,'Cuadro de Cuentas'!$B$3:$C$567,2,FALSE)) -> 
E90: =IF(D90="","",VLOOKUP(D90,'Cuadro de Cuentas'!$B$3:$C$567,2,FALSE)) ->  | H90: =IF(G90="","",VLOOKUP(G90,'Cuadro de Cuentas'!$B$3:$C$567,2,FALSE)) -> 
E91: =IF(D91="","",VLOOKUP(D91,'Cuadro de Cuentas'!$B$3:$C$567,2,FALSE)) ->  | H91: =IF(G91="","",VLOOKUP(G91,'Cuadro de Cuentas'!$B$3:$C$567,2,FALSE)) -> 
E92: =IF(D92="","",VLOOKUP(D92,'Cuadro de Cuentas'!$B$3:$C$567,2,FALSE)) ->  | H92: =IF(G92="","",VLOOKUP(G92,'Cuadro de Cuentas'!$B$3:$C$567,2,FALSE)) -> 
E93: =IF(D93="","",VLOOKUP(D93,'Cuadro de Cuentas'!$B$3:$C$567,2,FALSE)) ->  | H93: =IF(G93="","",VLOOKUP(G93,'Cuadro de Cuentas'!$B$3:$C$567,2,FALSE)) -> 
E94: =IF(D94="","",VLOOKUP(D94,'Cuadro de Cuentas'!$B$3:$C$567,2,FALSE)) ->  | H94: =IF(G94="","",VLOOKUP(G94,'Cuadro de Cuentas'!$B$3:$C$567,2,FALSE)) -> 
E95: =IF(D95="","",VLOOKUP(D95,'Cuadro de Cuentas'!$B$3:$C$567,2,FALSE)) ->  | H95: =IF(G95="","",VLOOKUP(G95,'Cuadro de Cuentas'!$B$3:$C$567,2,FALSE)) -> 
E96: =IF(D96="","",VLOOKUP(D96,'Cuadro de Cuentas'!$B$3:$C$567,2,FALSE)) ->  | H96: =IF(G96="","",VLOOKUP(G96,'Cuadro de Cuentas'!$B$3:$C$567,2,FALSE)) -> 
E97: =IF(D97="","",VLOOKUP(D97,'Cuadro de Cuentas'!$B$3:$C$567,2,FALSE)) ->  | H97: =IF(G97="","",VLOOKUP(G97,'Cuadro de Cuentas'!$B$3:$C$567,2,FALSE)) -> 
E98: =IF(D98="","",VLOOKUP(D98,'Cuadro de Cuentas'!$B$3:$C$567,2,FALSE)) ->  | H98: =IF(G98="","",VLOOKUP(G98,'Cuadro de Cuentas'!$B$3:$C$567,2,FALSE)) -> 
E99: =IF(D99="","",VLOOKUP(D99,'Cuadro de Cuentas'!$B$3:$C$567,2,FALSE)) ->  | H99: =IF(G99="","",VLOOKUP(G99,'Cuadro de Cuentas'!$B$3:$C$567,2,FALSE)) -> 

Sheet Solución Libro Diario (N2) (hidden)
C3: DEBE | I3: HABER
C4: IMPORTES | D4: Nº CUENTA | E4: NOMBRE CUENTA | F4: ='Factura Compra 1 (N2)'!L19 -> 2013-05-08 | G4: Nº CUENTA | H4: NOMBRE CUENTA | I4: IMPORTES
C5: ='Factura Compra 1 (N2)'!L60 -> 5955.46 | D5: 600 | E5: =IF(D5="","",VLOOKUP(D5,'Cuadro de Cuentas'!$B$3:$C$567,2,FALSE)) -> Compras de mercaderías | F5: =IF(G5="","","a") ->  | H5: =IF(G5="","",VLOOKUP(G5,'Cuadro de Cuentas'!$B$3:$C$567,2,FALSE)) -> 
C6: ='Factura Compra 1 (N2)'!L61 -> 1250.6466 | D6: 472 | E6: =IF(D6="","",VLOOKUP(D6,'Cuadro de Cuentas'!$B$3:$C$567,2,FALSE)) -> Hacienda Pública, IVA soportado | F6: a | G6: 400 | H6: =IF(G6="","",VLOOKUP(G6,'Cuadro de Cuentas'!$B$3:$C$567,2,FALSE)) -> Proveedores | I6: ='Factura Compra 1 (N2)'!L62 -> 7206.1066
E7: (COMPRA 1) | F7: ='Factura Venta 1 (N2)'!G18 -> 2013-05-11 | H7: =IF(G7="","",VLOOKUP(G7,'Cuadro de Cuentas'!$B$3:$C$567,2,FALSE)) -> 
C8: ='Factura Venta 1 (N2)'!G48 -> 9403.394 | D8: 430 | E8: =IF(D8="","",VLOOKUP(D8,'Cuadro de Cuentas'!$B$3:$C$567,2,FALSE)) -> Clientes | H8: =IF(G8="","",VLOOKUP(G8,'Cuadro de Cuentas'!$B$3:$C$567,2,FALSE)) -> 
E9: =IF(D9="","",VLOOKUP(D9,'Cuadro de Cuentas'!$B$3:$C$567,2,FALSE)) ->  | F9: a | G9: 700 | H9: =IF(G9="","",VLOOKUP(G9,'Cuadro de Cuentas'!$B$3:$C$567,2,FALSE)) -> Ventas de mercaderías | I9: ='Factura Venta 1 (N2)'!G46 -> 7771.4
E10: =IF(D10="","",VLOOKUP(D10,'Cuadro de Cuentas'!$B$3:$C$567,2,FALSE)) ->  | F10: a | G10: 477 | H10: =IF(G10="","",VLOOKUP(G10,'Cuadro de Cuentas'!$B$3:$C$567,2,FALSE)) -> Hacienda Pública, IVA repercutido | I10: ='Factura Venta 1 (N2)'!G47 -> 1631.994
E11: (VENTA 1) | F11: ='Factura Compra 2 (N2)'!L19 -> 2013-05-18 | H11: =IF(G11="","",VLOOKUP(G11,'Cuadro de Cuentas'!$B$3:$C$567,2,FALSE)) -> 
C12: ='Factura Compra 2 (N2)'!L60 -> 6874.875 | D12: 600 | E12: =IF(D12="","",VLOOKUP(D12,'Cuadro de Cuentas'!$B$3:$C$567,2,FALSE)) -> Compras de mercaderías | H12: =IF(G12="","",VLOOKUP(G12,'Cuadro de Cuentas'!$B$3:$C$567,2,FALSE)) -> 
C13: ='Factura Compra 2 (N2)'!L61 -> 1443.72375 | D13: 472 | E13: =IF(D13="","",VLOOKUP(D13,'Cuadro de Cuentas'!$B$3:$C$567,2,FALSE)) -> Hacienda Pública, IVA soportado | F13: a | G13: 400 | H13: =IF(G13="","",VLOOKUP(G13,'Cuadro de Cuentas'!$B$3:$C$567,2,FALSE)) -> Proveedores | I13: ='Factura Compra 2 (N2)'!L62 -> 8318.59875
E14: (COMPRA 2) | F14: ='Factura Compra 3 (N2)'!L19 -> 2013-05-21 | H14: =IF(G14="","",VLOOKUP(G14,'Cuadro de Cuentas'!$B$3:$C$567,2,FALSE)) -> 
C15: ='Factura Compra 3 (N2)'!L60 -> 8482.32 | D15: 600 | E15: =IF(D15="","",VLOOKUP(D15,'Cuadro de Cuentas'!$B$3:$C$567,2,FALSE)) -> Compras de mercaderías | H15: =IF(G15="","",VLOOKUP(G15,'Cuadro de Cuentas'!$B$3:$C$567,2,FALSE)) -> 
C16: ='Factura Compra 3 (N2)'!L61 -> 1781.2872 | D16: 472 | E16: =IF(D16="","",VLOOKUP(D16,'Cuadro de Cuentas'!$B$3:$C$567,2,FALSE)) -> Hacienda Pública, IVA soportado | F16: a | G16: 400 | H16: =IF(G16="","",VLOOKUP(G16,'Cuadro de Cuentas'!$B$3:$C$567,2,FALSE)) -> Proveedores | I16: ='Factura Compra 3 (N2)'!L62 -> 10263.6072
E17: (COMPRA 3) | F17: ='Factura Venta 2 (N2)'!G18 -> 2013-05-27 | H17: =IF(G17="","",VLOOKUP(G17,'Cuadro de Cuentas'!$B$3:$C$567,2,FALSE)) -> 
C18: ='Factura Venta 2 (N2)'!G48 -> 20200.95 | D18: 430 | E18: =IF(D18="","",VLOOKUP(D18,'Cuadro de Cuentas'!$B$3:$C$567,2,FALSE)) -> Clientes | F18: =IF(G18="","","a") ->  | H18: =IF(G18="","",VLOOKUP(G18,'Cuadro de Cuentas'!$B$3:$C$567,2,FALSE)) -> 
E19: =IF(D19="","",VLOOKUP(D19,'Cuadro de Cuentas'!$B$3:$C$567,2,FALSE)) ->  | F19: a | G19: 700 | H19: =IF(G19="","",VLOOKUP(G19,'Cuadro de Cuentas'!$B$3:$C$567,2,FALSE)) -> Ventas de mercaderías | I19: ='Factura Venta 2 (N2)'!G46 -> 16695
E20: =IF(D20="","",VLOOKUP(D20,'Cuadro de Cuentas'!$B$3:$C$567,2,FALSE)) ->  | F20: a | G20: 477 | H20: =IF(G20="","",VLOOKUP(G20,'Cuadro de Cuentas'!$B$3:$C$567,2,FALSE)) -> Hacienda Pública, IVA repercutido | I20: ='Factura Venta 2 (N2)'!G47 -> 3505.95
E21: (VENTA 2) | F21: ='Factura Compra 1 (N2)'!H69 -> 2013-06-22 | H21: =IF(G21="","",VLOOKUP(G21,'Cuadro de Cuentas'!$B$3:$C$567,2,FALSE)) -> 
C22: ='Factura Compra 1 (N2)'!L69 -> 7206.1066 | D22: 400 | E22: =IF(D22="","",VLOOKUP(D22,'Cuadro de Cuentas'!$B$3:$C$567,2,FALSE)) -> Proveedores | H22: =IF(G22="","",VLOOKUP(G22,'Cuadro de Cuentas'!$B$3:$C$567,2,FALSE)) -> 
E23: =IF(D23="","",VLOOKUP(D23,'Cuadro de Cuentas'!$B$3:$C$567,2,FALSE)) ->  | F23: a | G23: 572 | H23: =IF(G23="","",VLOOKUP(G23,'Cuadro de Cuentas'!$B$3:$C$567,2,FALSE)) -> Bancos e instituciones de crédito c/c vista, euros | I23: =C22 -> 7206.1066
E24: (LIQUIDACIÓN COMPRA 1) | F24: ='Factura Compra 2 (N2)'!H69 -> 2013-07-02 | H24: =IF(G24="","",VLOOKUP(G24,'Cuadro de Cuentas'!$B$3:$C$567,2,FALSE)) -> 
C25: ='Factura Compra 2 (N2)'!L69 -> 8318.59875 | D25: 400 | E25: =IF(D25="","",VLOOKUP(D25,'Cuadro de Cuentas'!$B$3:$C$567,2,FALSE)) -> Proveedores | F25: =IF(G25="","","a") ->  | H25: =IF(G25="","",VLOOKUP(G25,'Cuadro de Cuentas'!$B$3:$C$567,2,FALSE)) -> 
E26: =IF(D26="","",VLOOKUP(D26,'Cuadro de Cuentas'!$B$3:$C$567,2,FALSE)) ->  | F26: =IF(G26="","","a") -> a | G26: 572 | H26: =IF(G26="","",VLOOKUP(G26,'Cuadro de Cuentas'!$B$3:$C$567,2,FALSE)) -> Bancos e instituciones de crédito c/c vista, euros | I26: =C25 -> 8318.59875
E27: (LIQUIDACIÓN COMPRA 2) | F27: ='Factura Compra 3 (N2)'!H69 -> 2013-07-05 | H27: =IF(G27="","",VLOOKUP(G27,'Cuadro de Cuentas'!$B$3:$C$567,2,FALSE)) -> 
C28: ='Factura Compra 3 (N2)'!L69 -> 4105.44288 | D28: 400 | E28: =IF(D28="","",VLOOKUP(D28,'Cuadro de Cuentas'!$B$3:$C$567,2,FALSE)) -> Proveedores | F28: =IF(G28="","","a") ->  | H28: =IF(G28="","",VLOOKUP(G28,'Cuadro de Cuentas'!$B$3:$C$567,2,FALSE)) -> 
E29: =IF(D29="","",VLOOKUP(D29,'Cuadro de Cuentas'!$B$3:$C$567,2,FALSE)) ->  | F29: =IF(G29="","","a") -> a | G29: 572 | H29: =IF(G29="","",VLOOKUP(G29,'Cuadro de Cuentas'!$B$3:$C$567,2,FALSE)) -> Bancos e instituciones de crédito c/c vista, euros | I29: =C28 -> 4105.44288
E30: (1ª LIQUIDACIÓN COMPRA 3) | F30: ='Factura Venta 1 (N2)'!E56 -> 2013-08-09 | H30: =IF(G30="","",VLOOKUP(G30,'Cuadro de Cuentas'!$B$3:$C$567,2,FALSE)) -> 
C31: =I32 -> 9403.394 | D31: 572 | E31: =IF(D31="","",VLOOKUP(D31,'Cuadro de Cuentas'!$B$3:$C$567,2,FALSE)) -> Bancos e instituciones de crédito c/c vista, euros | H31: =IF(G31="","",VLOOKUP(G31,'Cuadro de Cuentas'!$B$3:$C$567,2,FALSE)) -> 
E32: =IF(D32="","",VLOOKUP(D32,'Cuadro de Cuentas'!$B$3:$C$567,2,FALSE)) ->  | F32: a | G32: 430 | H32: =IF(G32="","",VLOOKUP(G32,'Cuadro de Cuentas'!$B$3:$C$567,2,FALSE)) -> Clientes | I32: ='Factura Venta 1 (N2)'!G56 -> 9403.394
E33: (LIQUIDACIÓN VENTA 1) | F33: ='Factura Compra 3 (N2)'!H71 -> 2013-08-19 | H33: =IF(G33="","",VLOOKUP(G33,'Cuadro de Cuentas'!$B$3:$C$567,2,FALSE)) -> 
C34: ='Factura Compra 3 (N2)'!L71 -> 6158.16432 | D34: 400 | E34: =IF(D34="","",VLOOKUP(D34,'Cuadro de Cuentas'!$B$3:$C$567,2,FALSE)) -> Proveedores | H34: =IF(G34="","",VLOOKUP(G34,'Cuadro de Cuentas'!$B$3:$C$567,2,FALSE)) -> 
E35: =IF(D35="","",VLOOKUP(D35,'Cuadro de Cuentas'!$B$3:$C$567,2,FALSE)) ->  | F35: a | G35: 572 | H35: =IF(G35="","",VLOOKUP(G35,'Cuadro de Cuentas'!$B$3:$C$567,2,FALSE)) -> Bancos e instituciones de crédito c/c vista, euros | I35: =+C34 -> 6158.16432
E36: (2ª LIQUIDACIÓN COMPRA 3) | F36: ='Factura Venta 2 (N2)'!E56 -> 2013-08-25 | H36: =IF(G36="","",VLOOKUP(G36,'Cuadro de Cuentas'!$B$3:$C$567,2,FALSE)) -> 
C37: =I38 -> 20200.95 | D37: 572 | E37: =IF(D37="","",VLOOKUP(D37,'Cuadro de Cuentas'!$B$3:$C$567,2,FALSE)) -> Bancos e instituciones de crédito c/c vista, euros | H37: =IF(G37="","",VLOOKUP(G37,'Cuadro de Cuentas'!$B$3:$C$567,2,FALSE)) -> 
E38: =IF(D38="","",VLOOKUP(D38,'Cuadro de Cuentas'!$B$3:$C$567,2,FALSE)) ->  | F38: a | G38: 430 | H38: =IF(G38="","",VLOOKUP(G38,'Cuadro de Cuentas'!$B$3:$C$567,2,FALSE)) -> Clientes | I38: ='Factura Venta 2 (N2)'!G56 -> 20200.95
E39: (LIQUIDACIÓN VENTA 2) | H39: =IF(G39="","",VLOOKUP(G39,'Cuadro de Cuentas'!$B$3:$C$567,2,FALSE)) -> 
C40: =SUM(C5:C39) -> 110785.3131 | E40: =IF(D40="","",VLOOKUP(D40,'Cuadro de Cuentas'!$B$3:$C$567,2,FALSE)) ->  | H40: =IF(G40="","",VLOOKUP(G40,'Cuadro de Cuentas'!$B$3:$C$567,2,FALSE)) ->  | I40: =SUM(I5:I39) -> 110785.3131

Sheet Factura Compra 1 (N2) (hidden)
I5: ÓPTICAS REUNIDAS S.A.
I6: Dirección, España
I7: CIF:
C16: Nombre: | D16: Buena Visión S.A. | K16: Factura Nº.
C17: Dirección: | D17: España | K17: 1445
C19: CIF: | K19: Fecha: | L19: ='Enunciado Supuesto (N2)'!C16 -> 2013-05-08
C20: Ref:
C26: Cantidad | D26: Código | E26: Descripción | K26: Precio Unitario | L26: Valor
L27: =IF(D27<>"",D27*K27,"") -> 
C39: ='Enunciado Supuesto (N2)'!H16 -> 590 | E39: Monturas de gafas de metal común | K39: ='Enunciado Supuesto (N2)'!J16 -> 10.3 | L39: =C39*K39 -> 6077
L51: =IF(D51<>"",D51*K51,"") -> 
L52: =IF(D52<>"",D52*K52,"") -> 
K53: Subtotal | L53: =+SUM(L27:L52) -> 6077
D58: Customer Bank: | H58: Descuento Comercial | K58: ='Enunciado Supuesto (N2)'!L16 -> 0.02 | L58: =K58*L53 -> 121.54
H59: Descuento por Pronto Pago | K59: 0 | L59: =K59*(L53-L58) -> 0
D60: IBAN: | J60: Total | L60: =L53-L58-L59 -> 5955.46
J61: IVA | K61: ='Enunciado Supuesto (N2)'!T7 -> 0.21 | L61: =K61*L60 -> 1250.6466
D62: SWITF: | J62: TOTAL FACTURA | L62: =L60+L61 -> 7206.1066
D67: Observaciones:
E69: Con vencimiento el | H69: =IF(K59<>0,L19+15,L19+45) -> 2013-06-22 | I69: Por importe de | L69: =L62 -> 7206.1066

Sheet Factura Venta 1 (N2) (hidden)
D4: BUENA VISIÓN S.A.
D5: CIF:
C9: Cliente: | D9: ÓPTICAS MADRILEÑAS S.L.
C10: Dirección:
C11: Código Postal: | E11: Localidad - País: | F11: España
C12: Teléfono: | E12: Fax:
C13: E-mail: | E13: C.I.F:
F18: Fecha Factura: | G18: ='Enunciado Supuesto (N2)'!C17 -> 2013-05-11
F19: Número Factura: | G19: 2013-531
C24: Cantidad | D24: Código | E24: Concepto | F24: Precio/Unidad | G24: Importe
C32: ='Enunciado Supuesto (N2)'!H17 -> 610 | E32: Monturas de gafas de metal común | F32: ='Enunciado Supuesto (N2)'!J17 -> 14 | G32: =C32*F32 -> 8540
C44: Descuento: | D44: ='Enunciado Supuesto (N2)'!L17 -> 0.09 | E44: sobre el importe bruto de la mercancía | G44: =D44*G32 -> 768.6
C45: Descuento por Pronto Pago: | D45: 0 | E45: sobre el importe neto de la mercancía | G45: =D45*(G32-G44) -> 0
C46: Subtotal: | G46: =SUM(G26:G42)-G44-G45 -> 7771.4
C47: IVA: | D47: ='Enunciado Supuesto (N2)'!T10 -> 0.21 | G47: =D47*G46 -> 1631.994
C48: Importe Total: | G48: =G46+G47 -> 9403.394
C53: FORMA DE PAGO
C56: Con vencimiento el | E56: =IF(D45<>0,G18+15,G18+90) -> 2013-08-09 | F56: por importe de | G56: =G48 -> 9403.394
C61: Dirección – C.P. Localidad – Tel.
C62: YYY@YYY.com - www.YYY.com

Sheet Factura Compra 2 (N2) (hidden)
I5: ÓPTICAS REUNIDAS S.A.
I6: Dirección, España
I7: CIF:
C16: Nombre: | D16: Buena Visión S.A. | K16: Factura Nº.
C17: Dirección: | D17: España | K17: 1734
C19: CIF: | K19: Fecha: | L19: ='Enunciado Supuesto (N2)'!C18 -> 2013-05-18
C20: Ref:
C26: Cantidad | D26: Código | E26: Descripción | K26: Precio Unitario | L26: Valor
L27: =IF(D27<>"",D27*K27,"") -> 
C39: ='Enunciado Supuesto (N2)'!H18 -> 675 | E39: Monturas de gafas de metal común | K39: ='Enunciado Supuesto (N2)'!J18 -> 10.5 | L39: =C39*K39 -> 7087.5
L51: =IF(D51<>"",D51*K51,"") -> 
L52: =IF(D52<>"",D52*K52,"") -> 
K53: Subtotal | L53: =+SUM(L27:L52) -> 7087.5
D58: Customer Bank: | H58: Descuento Comercial | K58: ='Enunciado Supuesto (N2)'!L18 -> 0.03 | L58: =K58*L53 -> 212.625
H59: Descuento por Pronto Pago | K59: 0 | L59: =K59*(L53-L58) -> 0
D60: IBAN: | J60: Total | L60: =L53-L58-L59 -> 6874.875
J61: IVA | K61: ='Enunciado Supuesto (N2)'!T7 -> 0.21 | L61: =K61*L60 -> 1443.72375
D62: SWITF: | J62: TOTAL FACTURA | L62: =L60+L61 -> 8318.59875
D67: Observaciones:
E69: Con vencimiento el | H69: =IF(K59<>0,L19+15,L19+45) -> 2013-07-02 | I69: Por importe de | L69: =L62 -> 8318.59875

Sheet Factura Compra 3 (N2) (hidden)
I5: ÓPTICAS REUNIDAS S.A.
I6: Dirección, España
I7: CIF:
C16: Nombre: | D16: Buena Visión S.A. | K16: Factura Nº.
C17: Dirección: | D17: España | K17: 1829
C19: CIF: | K19: Fecha: | L19: ='Enunciado Supuesto (N2)'!C19 -> 2013-05-21
C20: Ref:
C26: Cantidad | D26: Código | E26: Descripción | K26: Precio Unitario | L26: Valor
L27: =IF(D27<>"",D27*K27,"") -> 
C39: ='Enunciado Supuesto (N2)'!H19 -> 840 | E39: Monturas de gafas de metal común | K39: ='Enunciado Supuesto (N2)'!J19 -> 10.2 | L39: =C39*K39 -> 8568
L51: =IF(D51<>"",D51*K51,"") -> 
L52: =IF(D52<>"",D52*K52,"") -> 
K53: Subtotal | L53: =+SUM(L27:L52) -> 8568
D58: Customer Bank: | H58: Descuento Comercial | K58: ='Enunciado Supuesto (N2)'!L19 -> 0.01 | L58: =K58*L53 -> 85.68
H59: Descuento por Pronto Pago | K59: 0 | L59: =K59*(L53-L58) -> 0
D60: IBAN: | J60: Total | L60: =L53-L58-L59 -> 8482.32
J61: IVA | K61: ='Enunciado Supuesto (N2)'!T7 -> 0.21 | L61: =K61*L60 -> 1781.2872
D62: SWITF: | J62: TOTAL FACTURA | L62: =L60+L61 -> 10263.6072
D67: Observaciones:
F69: Con vencimientos el | H69: =IF(K59<>0,L19+15,L19+45) -> 2013-07-05 | I69: Por importe de | L69: =IF(K59<>0,L62,40%*L62) -> 4105.44288
F71: =IF(K59<>0,"","Con vencimientos el") -> Con vencimientos el | H71: =IF(K59<>0,"",L19+90) -> 2013-08-19 | I71: =IF(K59<>0,"","Por importe de") -> Por importe de | L71: =IF(K59<>0,"",60%*L62) -> 6158.16432

Sheet Factura Venta 2 (N2) (hidden)
D4: BUENA VISIÓN S.A.
D5: CIF:
C9: Cliente: | D9: ÓPTICAS VALENCIANAS S.L.
C10: Dirección:
C11: Código Postal: | E11: Localidad - País: | F11: España
C12: Teléfono: | E12: Fax:
C13: E-mail: | E13: C.I.F:
F18: Fecha Factura: | G18: ='Enunciado Supuesto (N2)'!C20 -> 2013-05-27
F19: Número Factura: | G19: 2013-674
C24: Cantidad | D24: Código | E24: Concepto | F24: Precio/Unidad | G24: Importe
C32: ='Enunciado Supuesto (N2)'!H20 -> 1325 | E32: Monturas de gafas de metal común | F32: ='Enunciado Supuesto (N2)'!J20 -> 14 | G32: =C32*F32 -> 18550
C44: Descuento: | D44: ='Enunciado Supuesto (N2)'!L20 -> 0.1 | E44: sobre el importe bruto de la mercancía | G44: =D44*G32 -> 1855
C45: Descuento por Pronto Pago: | D45: 0 | E45: sobre el importe neto de la mercancía | G45: =D45*(G32-G44) -> 0
C46: Subtotal: | G46: =SUM(G26:G42)-G44-G45 -> 16695
C47: IVA: | D47: ='Enunciado Supuesto (N2)'!T10 -> 0.21 | G47: =D47*G46 -> 3505.95
C48: Importe Total: | G48: =G46+G47 -> 20200.95
C53: FORMA DE PAGO
C56: Con vencimiento el | E56: =IF(D45<>0,G18+15,G18+90) -> 2013-08-25 | F56: por importe de | G56: =G48 -> 20200.95
C61: Dirección – C.P. Localidad – Tel.
C62: YYY@YYY.com - www.YYY.com

Sheet Mercaderías Nivel 3 (hidden)
B1: Haga un doble click sobre la imagen para ver esta Presentación | P1: ÍNDICE TEMA 1
H2: OPERACIONES COMERCIALES (MERCADERÍAS) — NIVEL 3
H6: A continuación, Usted debe llevar a cabo los siguientes pasos:
H8: A) Imprima los documentos (facturas) que le servirán para resolver el supuesto que seguidamente se le propone. Para ello, haga doble click sobre los diferentes botones de Compra-Venta Nivel 3.
H14: B) Imprima el enunciado del supuesto que se le propone y las plantillas para su resolución. Para ello, haga doble click sobre el botón de Enunciado-Plantillas Nivel 3.
H20: C) Imprima la solución del supuesto que se le propone. Para ello, haga doble click sobre el botón de Solución Nivel 3.

Sheet Enunciado Supuesto (N3) (hidden)
C3: El día 1 de mayo de 2013 la empresa Buena Visión S.A. tenía en su almacén | P3: ='Resumen Operaciones '!E4 -> 490 | R3: monturas de gafas
C4: de metal común valoradas en | I4: ='Resumen Operaciones '!E6 -> 6370 | J4: .
C6: Se trata de productos originarios de Estados Unidos que son comprados al único proveedor español que los
C7: importa denominado Ópticas Reunidas S.A. El IVA soportado por dicho producto está fijado en el | T7: ='Resumen Operaciones '!H4 -> 0.21 | U7: .
C9: La venta de estas monturas por parte de la empresa Buena Visión S.A. se realiza en el mercado español de los
C10: distribuidores de productos oftalmológicos. El IVA repercutido del producto está establecido en el | T10: ='Resumen Operaciones '!H5 -> 0.21 | U10: . El
C11: servicio de transporte y de seguro de las mercancías es prestado por la propia empresa vendedora.
C13: Durante el mes de mayo se realizaron las operaciones que seguidamente se exponen:
C15: Fecha | F15: Operación | H15: Unidades | J15: Precio bruto | L15: Descuento comercial | N15: Descuento por pronto pago
C16: ='Resumen Operaciones '!C11 -> 2013-05-08 | F16: ='Resumen Operaciones '!D11 -> Compra 1 | H16: ='Resumen Operaciones '!E11 -> 590 | J16: ='Resumen Operaciones '!F11 -> 10.3 | L16: ='Resumen Operaciones '!G11 -> 0.02 | N16: ='Resumen Operaciones '!H11 -> 0.03
C17: ='Resumen Operaciones '!C12 -> 2013-05-11 | F17: ='Resumen Operaciones '!D12 -> Venta 1 | H17: ='Resumen Operaciones '!E12 -> 610 | J17: ='Resumen Operaciones '!F12 -> 14 | L17: ='Resumen Operaciones '!G12 -> 0.09 | N17: ='Resumen Operaciones '!H12 -> 0.04
C18: ='Resumen Operaciones '!C13 -> 2013-05-18 | F18: ='Resumen Operaciones '!D13 -> Compra 2 | H18: ='Resumen Operaciones '!E13 -> 675 | J18: ='Resumen Operaciones '!F13 -> 10.5 | L18: ='Resumen Operaciones '!G13 -> 0.03 | N18: ='Resumen Operaciones '!H13 -> 0.02
C19: ='Resumen Operaciones '!C14 -> 2013-05-21 | F19: ='Resumen Operaciones '!D14 -> Compra 3 | H19: ='Resumen Operaciones '!E14 -> 840 | J19: ='Resumen Operaciones '!F14 -> 10.2 | L19: ='Resumen Operaciones '!G14 -> 0.01 | N19: ='Resumen Operaciones '!H14 -> 0
C20: ='Resumen Operaciones '!C15 -> 2013-05-27 | F20: ='Resumen Operaciones '!D15 -> Venta 2 | H20: ='Resumen Operaciones '!E15 -> 1325 | J20: ='Resumen Operaciones '!F15 -> 14 | L20: ='Resumen Operaciones '!G15 -> 0.1 | N20: ='Resumen Operaciones '!H15 -> 0.03
C22: NOTA: Las magnitudes monetarias que se presentan en este supuesto no incluyen el IVA correspondiente.
C24: Teniendo presente los documentos que se le suministran en el presente supuesto, se pide:
D26: 1.- Contabilice las operaciones anteriores siguiendo el procedimiento de desdoblamiento en compras y
E27: ventas.

Sheet Libro Diario (N3) (hidden)
C3: DEBE | I3: HABER
C4: IMPORTES | D4: Nº CUENTA | E4: NOMBRE CUENTA | G4: Nº CUENTA | H4: NOMBRE CUENTA | I4: IMPORTES
E5: =IF(D5="","",VLOOKUP(D5,'Cuadro de Cuentas'!$B$3:$C$567,2,FALSE)) ->  | F5: =IF(G5="","","a") ->  | H5: =IF(G5="","",VLOOKUP(G5,'Cuadro de Cuentas'!$B$3:$C$567,2,FALSE)) -> 
E6: =IF(D6="","",VLOOKUP(D6,'Cuadro de Cuentas'!$B$3:$C$567,2,FALSE)) ->  | H6: =IF(G6="","",VLOOKUP(G6,'Cuadro de Cuentas'!$B$3:$C$567,2,FALSE)) -> 
E7: =IF(D7="","",VLOOKUP(D7,'Cuadro de Cuentas'!$B$3:$C$567,2,FALSE)) ->  | H7: =IF(G7="","",VLOOKUP(G7,'Cuadro de Cuentas'!$B$3:$C$567,2,FALSE)) -> 
E8: =IF(D8="","",VLOOKUP(D8,'Cuadro de Cuentas'!$B$3:$C$567,2,FALSE)) ->  | H8: =IF(G8="","",VLOOKUP(G8,'Cuadro de Cuentas'!$B$3:$C$567,2,FALSE)) -> 
E9: =IF(D9="","",VLOOKUP(D9,'Cuadro de Cuentas'!$B$3:$C$567,2,FALSE)) ->  | H9: =IF(G9="","",VLOOKUP(G9,'Cuadro de Cuentas'!$B$3:$C$567,2,FALSE)) -> 
E10: =IF(D10="","",VLOOKUP(D10,'Cuadro de Cuentas'!$B$3:$C$567,2,FALSE)) ->  | H10: =IF(G10="","",VLOOKUP(G10,'Cuadro de Cuentas'!$B$3:$C$567,2,FALSE)) -> 
E11: =IF(D11="","",VLOOKUP(D11,'Cuadro de Cuentas'!$B$3:$C$567,2,FALSE)) ->  | H11: =IF(G11="","",VLOOKUP(G11,'Cuadro de Cuentas'!$B$3:$C$567,2,FALSE)) -> 
E12: =IF(D12="","",VLOOKUP(D12,'Cuadro de Cuentas'!$B$3:$C$567,2,FALSE)) ->  | H12: =IF(G12="","",VLOOKUP(G12,'Cuadro de Cuentas'!$B$3:$C$567,2,FALSE)) -> 
E13: =IF(D13="","",VLOOKUP(D13,'Cuadro de Cuentas'!$B$3:$C$567,2,FALSE)) ->  | H13: =IF(G13="","",VLOOKUP(G13,'Cuadro de Cuentas'!$B$3:$C$567,2,FALSE)) -> 
E14: =IF(D14="","",VLOOKUP(D14,'Cuadro de Cuentas'!$B$3:$C$567,2,FALSE)) ->  | H14: =IF(G14="","",VLOOKUP(G14,'Cuadro de Cuentas'!$B$3:$C$567,2,FALSE)) -> 
E15: =IF(D15="","",VLOOKUP(D15,'Cuadro de Cuentas'!$B$3:$C$567,2,FALSE)) ->  | H15: =IF(G15="","",VLOOKUP(G15,'Cuadro de Cuentas'!$B$3:$C$567,2,FALSE)) -> 
E16: =IF(D16="","",VLOOKUP(D16,'Cuadro de Cuentas'!$B$3:$C$567,2,FALSE)) ->  | H16: =IF(G16="","",VLOOKUP(G16,'Cuadro de Cuentas'!$B$3:$C$567,2,FALSE)) -> 
E17: =IF(D17="","",VLOOKUP(D17,'Cuadro de Cuentas'!$B$3:$C$567,2,FALSE)) ->  | H17: =IF(G17="","",VLOOKUP(G17,'Cuadro de Cuentas'!$B$3:$C$567,2,FALSE)) -> 
E18: =IF(D18="","",VLOOKUP(D18,'Cuadro de Cuentas'!$B$3:$C$567,2,FALSE)) ->  | H18: =IF(G18="","",VLOOKUP(G18,'Cuadro de Cuentas'!$B$3:$C$567,2,FALSE)) -> 
E19: =IF(D19="","",VLOOKUP(D19,'Cuadro de Cuentas'!$B$3:$C$567,2,FALSE)) ->  | H19: =IF(G19="","",VLOOKUP(G19,'Cuadro de Cuentas'!$B$3:$C$567,2,FALSE)) -> 
E20: =IF(D20="","",VLOOKUP(D20,'Cuadro de Cuentas'!$B$3:$C$567,2,FALSE)) ->  | H20: =IF(G20="","",VLOOKUP(G20,'Cuadro de Cuentas'!$B$3:$C$567,2,FALSE)) -> 
E21: =IF(D21="","",VLOOKUP(D21,'Cuadro de Cuentas'!$B$3:$C$567,2,FALSE)) ->  | H21: =IF(G21="","",VLOOKUP(G21,'Cuadro de Cuentas'!$B$3:$C$567,2,FALSE)) -> 
E22: =IF(D22="","",VLOOKUP(D22,'Cuadro de Cuentas'!$B$3:$C$567,2,FALSE)) ->  | H22: =IF(G22="","",VLOOKUP(G22,'Cuadro de Cuentas'!$B$3:$C$567,2,FALSE)) -> 
E23: =IF(D23="","",VLOOKUP(D23,'Cuadro de Cuentas'!$B$3:$C$567,2,FALSE)) ->  | H23: =IF(G23="","",VLOOKUP(G23,'Cuadro de Cuentas'!$B$3:$C$567,2,FALSE)) -> 
E24: =IF(D24="","",VLOOKUP(D24,'Cuadro de Cuentas'!$B$3:$C$567,2,FALSE)) ->  | H24: =IF(G24="","",VLOOKUP(G24,'Cuadro de Cuentas'!$B$3:$C$567,2,FALSE)) -> 
E25: =IF(D25="","",VLOOKUP(D25,'Cuadro de Cuentas'!$B$3:$C$567,2,FALSE)) ->  | H25: =IF(G25="","",VLOOKUP(G25,'Cuadro de Cuentas'!$B$3:$C$567,2,FALSE)) -> 
E26: =IF(D26="","",VLOOKUP(D26,'Cuadro de Cuentas'!$B$3:$C$567,2,FALSE)) ->  | H26: =IF(G26="","",VLOOKUP(G26,'Cuadro de Cuentas'!$B$3:$C$567,2,FALSE)) -> 
E27: =IF(D27="","",VLOOKUP(D27,'Cuadro de Cuentas'!$B$3:$C$567,2,FALSE)) ->  | H27: =IF(G27="","",VLOOKUP(G27,'Cuadro de Cuentas'!$B$3:$C$567,2,FALSE)) -> 
E28: =IF(D28="","",VLOOKUP(D28,'Cuadro de Cuentas'!$B$3:$C$567,2,FALSE)) ->  | H28: =IF(G28="","",VLOOKUP(G28,'Cuadro de Cuentas'!$B$3:$C$567,2,FALSE)) -> 
E29: =IF(D29="","",VLOOKUP(D29,'Cuadro de Cuentas'!$B$3:$C$567,2,FALSE)) ->  | H29: =IF(G29="","",VLOOKUP(G29,'Cuadro de Cuentas'!$B$3:$C$567,2,FALSE)) -> 
E30: =IF(D30="","",VLOOKUP(D30,'Cuadro de Cuentas'!$B$3:$C$567,2,FALSE)) ->  | H30: =IF(G30="","",VLOOKUP(G30,'Cuadro de Cuentas'!$B$3:$C$567,2,FALSE)) -> 
E31: =IF(D31="","",VLOOKUP(D31,'Cuadro de Cuentas'!$B$3:$C$567,2,FALSE)) ->  | H31: =IF(G31="","",VLOOKUP(G31,'Cuadro de Cuentas'!$B$3:$C$567,2,FALSE)) -> 
E32: =IF(D32="","",VLOOKUP(D32,'Cuadro de Cuentas'!$B$3:$C$567,2,FALSE)) ->  | H32: =IF(G32="","",VLOOKUP(G32,'Cuadro de Cuentas'!$B$3:$C$567,2,FALSE)) -> 
E33: =IF(D33="","",VLOOKUP(D33,'Cuadro de Cuentas'!$B$3:$C$567,2,FALSE)) ->  | H33: =IF(G33="","",VLOOKUP(G33,'Cuadro de Cuentas'!$B$3:$C$567,2,FALSE)) -> 
E34: =IF(D34="","",VLOOKUP(D34,'Cuadro de Cuentas'!$B$3:$C$567,2,FALSE)) ->  | H34: =IF(G34="","",VLOOKUP(G34,'Cuadro de Cuentas'!$B$3:$C$567,2,FALSE)) -> 
E35: =IF(D35="","",VLOOKUP(D35,'Cuadro de Cuentas'!$B$3:$C$567,2,FALSE)) ->  | H35: =IF(G35="","",VLOOKUP(G35,'Cuadro de Cuentas'!$B$3:$C$567,2,FALSE)) -> 
E36: =IF(D36="","",VLOOKUP(D36,'Cuadro de Cuentas'!$B$3:$C$567,2,FALSE)) ->  | H36: =IF(G36="","",VLOOKUP(G36,'Cuadro de Cuentas'!$B$3:$C$567,2,FALSE)) -> 
E37: =IF(D37="","",VLOOKUP(D37,'Cuadro de Cuentas'!$B$3:$C$567,2,FALSE)) ->  | H37: =IF(G37="","",VLOOKUP(G37,'Cuadro de Cuentas'!$B$3:$C$567,2,FALSE)) -> 
E38: =IF(D38="","",VLOOKUP(D38,'Cuadro de Cuentas'!$B$3:$C$567,2,FALSE)) ->  | H38: =IF(G38="","",VLOOKUP(G38,'Cuadro de Cuentas'!$B$3:$C$567,2,FALSE)) -> 
E39: =IF(D39="","",VLOOKUP(D39,'Cuadro de Cuentas'!$B$3:$C$567,2,FALSE)) ->  | H39: =IF(G39="","",VLOOKUP(G39,'Cuadro de Cuentas'!$B$3:$C$567,2,FALSE)) -> 
E40: =IF(D40="","",VLOOKUP(D40,'Cuadro de Cuentas'!$B$3:$C$567,2,FALSE)) ->  | H40: =IF(G40="","",VLOOKUP(G40,'Cuadro de Cuentas'!$B$3:$C$567,2,FALSE)) -> 
E41: =IF(D41="","",VLOOKUP(D41,'Cuadro de Cuentas'!$B$3:$C$567,2,FALSE)) ->  | H41: =IF(G41="","",VLOOKUP(G41,'Cuadro de Cuentas'!$B$3:$C$567,2,FALSE)) -> 
E42: =IF(D42="","",VLOOKUP(D42,'Cuadro de Cuentas'!$B$3:$C$567,2,FALSE)) ->  | H42: =IF(G42="","",VLOOKUP(G42,'Cuadro de Cuentas'!$B$3:$C$567,2,FALSE)) -> 
E43: =IF(D43="","",VLOOKUP(D43,'Cuadro de Cuentas'!$B$3:$C$567,2,FALSE)) ->  | H43: =IF(G43="","",VLOOKUP(G43,'Cuadro de Cuentas'!$B$3:$C$567,2,FALSE)) -> 
E44: =IF(D44="","",VLOOKUP(D44,'Cuadro de Cuentas'!$B$3:$C$567,2,FALSE)) ->  | H44: =IF(G44="","",VLOOKUP(G44,'Cuadro de Cuentas'!$B$3:$C$567,2,FALSE)) -> 
E45: =IF(D45="","",VLOOKUP(D45,'Cuadro de Cuentas'!$B$3:$C$567,2,FALSE)) ->  | H45: =IF(G45="","",VLOOKUP(G45,'Cuadro de Cuentas'!$B$3:$C$567,2,FALSE)) -> 
E46: =IF(D46="","",VLOOKUP(D46,'Cuadro de Cuentas'!$B$3:$C$567,2,FALSE)) ->  | H46: =IF(G46="","",VLOOKUP(G46,'Cuadro de Cuentas'!$B$3:$C$567,2,FALSE)) -> 
E47: =IF(D47="","",VLOOKUP(D47,'Cuadro de Cuentas'!$B$3:$C$567,2,FALSE)) ->  | H47: =IF(G47="","",VLOOKUP(G47,'Cuadro de Cuentas'!$B$3:$C$567,2,FALSE)) -> 
E48: =IF(D48="","",VLOOKUP(D48,'Cuadro de Cuentas'!$B$3:$C$567,2,FALSE)) ->  | H48: =IF(G48="","",VLOOKUP(G48,'Cuadro de Cuentas'!$B$3:$C$567,2,FALSE)) -> 
E49: =IF(D49="","",VLOOKUP(D49,'Cuadro de Cuentas'!$B$3:$C$567,2,FALSE)) ->  | H49: =IF(G49="","",VLOOKUP(G49,'Cuadro de Cuentas'!$B$3:$C$567,2,FALSE)) -> 
C53: DEBE | I53: HABER
C54: IMPORTES | D54: Nº CUENTA | E54: NOMBRE CUENTA | G54: Nº CUENTA | H54: NOMBRE CUENTA | I54: IMPORTES
E55: =IF(D55="","",VLOOKUP(D55,'Cuadro de Cuentas'!$B$3:$C$567,2,FALSE)) ->  | F55: =IF(G55="","","a") ->  | H55: =IF(G55="","",VLOOKUP(G55,'Cuadro de Cuentas'!$B$3:$C$567,2,FALSE)) -> 
E56: =IF(D56="","",VLOOKUP(D56,'Cuadro de Cuentas'!$B$3:$C$567,2,FALSE)) ->  | H56: =IF(G56="","",VLOOKUP(G56,'Cuadro de Cuentas'!$B$3:$C$567,2,FALSE)) -> 
E57: =IF(D57="","",VLOOKUP(D57,'Cuadro de Cuentas'!$B$3:$C$567,2,FALSE)) ->  | H57: =IF(G57="","",VLOOKUP(G57,'Cuadro de Cuentas'!$B$3:$C$567,2,FALSE)) -> 
E58: =IF(D58="","",VLOOKUP(D58,'Cuadro de Cuentas'!$B$3:$C$567,2,FALSE)) ->  | H58: =IF(G58="","",VLOOKUP(G58,'Cuadro de Cuentas'!$B$3:$C$567,2,FALSE)) -> 
E59: =IF(D59="","",VLOOKUP(D59,'Cuadro de Cuentas'!$B$3:$C$567,2,FALSE)) ->  | H59: =IF(G59="","",VLOOKUP(G59,'Cuadro de Cuentas'!$B$3:$C$567,2,FALSE)) -> 
E60: =IF(D60="","",VLOOKUP(D60,'Cuadro de Cuentas'!$B$3:$C$567,2,FALSE)) ->  | H60: =IF(G60="","",VLOOKUP(G60,'Cuadro de Cuentas'!$B$3:$C$567,2,FALSE)) -> 
E61: =IF(D61="","",VLOOKUP(D61,'Cuadro de Cuentas'!$B$3:$C$567,2,FALSE)) ->  | H61: =IF(G61="","",VLOOKUP(G61,'Cuadro de Cuentas'!$B$3:$C$567,2,FALSE)) -> 
E62: =IF(D62="","",VLOOKUP(D62,'Cuadro de Cuentas'!$B$3:$C$567,2,FALSE)) ->  | H62: =IF(G62="","",VLOOKUP(G62,'Cuadro de Cuentas'!$B$3:$C$567,2,FALSE)) -> 
E63: =IF(D63="","",VLOOKUP(D63,'Cuadro de Cuentas'!$B$3:$C$567,2,FALSE)) ->  | H63: =IF(G63="","",VLOOKUP(G63,'Cuadro de Cuentas'!$B$3:$C$567,2,FALSE)) -> 
E64: =IF(D64="","",VLOOKUP(D64,'Cuadro de Cuentas'!$B$3:$C$567,2,FALSE)) ->  | H64: =IF(G64="","",VLOOKUP(G64,'Cuadro de Cuentas'!$B$3:$C$567,2,FALSE)) -> 
E65: =IF(D65="","",VLOOKUP(D65,'Cuadro de Cuentas'!$B$3:$C$567,2,FALSE)) ->  | H65: =IF(G65="","",VLOOKUP(G65,'Cuadro de Cuentas'!$B$3:$C$567,2,FALSE)) -> 
E66: =IF(D66="","",VLOOKUP(D66,'Cuadro de Cuentas'!$B$3:$C$567,2,FALSE)) ->  | H66: =IF(G66="","",VLOOKUP(G66,'Cuadro de Cuentas'!$B$3:$C$567,2,FALSE)) -> 
E67: =IF(D67="","",VLOOKUP(D67,'Cuadro de Cuentas'!$B$3:$C$567,2,FALSE)) ->  | H67: =IF(G67="","",VLOOKUP(G67,'Cuadro de Cuentas'!$B$3:$C$567,2,FALSE)) -> 
E68: =IF(D68="","",VLOOKUP(D68,'Cuadro de Cuentas'!$B$3:$C$567,2,FALSE)) ->  | H68: =IF(G68="","",VLOOKUP(G68,'Cuadro de Cuentas'!$B$3:$C$567,2,FALSE)) -> 
E69: =IF(D69="","",VLOOKUP(D69,'Cuadro de Cuentas'!$B$3:$C$567,2,FALSE)) ->  | H69: =IF(G69="","",VLOOKUP(G69,'Cuadro de Cuentas'!$B$3:$C$567,2,FALSE)) -> 
E70: =IF(D70="","",VLOOKUP(D70,'Cuadro de Cuentas'!$B$3:$C$567,2,FALSE)) ->  | H70: =IF(G70="","",VLOOKUP(G70,'Cuadro de Cuentas'!$B$3:$C$567,2,FALSE)) -> 
E71: =IF(D71="","",VLOOKUP(D71,'Cuadro de Cuentas'!$B$3:$C$567,2,FALSE)) ->  | H71: =IF(G71="","",VLOOKUP(G71,'Cuadro de Cuentas'!$B$3:$C$567,2,FALSE)) -> 
E72: =IF(D72="","",VLOOKUP(D72,'Cuadro de Cuentas'!$B$3:$C$567,2,FALSE)) ->  | H72: =IF(G72="","",VLOOKUP(G72,'Cuadro de Cuentas'!$B$3:$C$567,2,FALSE)) -> 
E73: =IF(D73="","",VLOOKUP(D73,'Cuadro de Cuentas'!$B$3:$C$567,2,FALSE)) ->  | H73: =IF(G73="","",VLOOKUP(G73,'Cuadro de Cuentas'!$B$3:$C$567,2,FALSE)) -> 
E74: =IF(D74="","",VLOOKUP(D74,'Cuadro de Cuentas'!$B$3:$C$567,2,FALSE)) ->  | H74: =IF(G74="","",VLOOKUP(G74,'Cuadro de Cuentas'!$B$3:$C$567,2,FALSE)) -> 
E75: =IF(D75="","",VLOOKUP(D75,'Cuadro de Cuentas'!$B$3:$C$567,2,FALSE)) ->  | H75: =IF(G75="","",VLOOKUP(G75,'Cuadro de Cuentas'!$B$3:$C$567,2,FALSE)) -> 
E76: =IF(D76="","",VLOOKUP(D76,'Cuadro de Cuentas'!$B$3:$C$567,2,FALSE)) ->  | H76: =IF(G76="","",VLOOKUP(G76,'Cuadro de Cuentas'!$B$3:$C$567,2,FALSE)) -> 
E77: =IF(D77="","",VLOOKUP(D77,'Cuadro de Cuentas'!$B$3:$C$567,2,FALSE)) ->  | H77: =IF(G77="","",VLOOKUP(G77,'Cuadro de Cuentas'!$B$3:$C$567,2,FALSE)) -> 
E78: =IF(D78="","",VLOOKUP(D78,'Cuadro de Cuentas'!$B$3:$C$567,2,FALSE)) ->  | H78: =IF(G78="","",VLOOKUP(G78,'Cuadro de Cuentas'!$B$3:$C$567,2,FALSE)) -> 
E79: =IF(D79="","",VLOOKUP(D79,'Cuadro de Cuentas'!$B$3:$C$567,2,FALSE)) ->  | H79: =IF(G79="","",VLOOKUP(G79,'Cuadro de Cuentas'!$B$3:$C$567,2,FALSE)) -> 
E80: =IF(D80="","",VLOOKUP(D80,'Cuadro de Cuentas'!$B$3:$C$567,2,FALSE)) ->  | H80: =IF(G80="","",VLOOKUP(G80,'Cuadro de Cuentas'!$B$3:$C$567,2,FALSE)) -> 
E81: =IF(D81="","",VLOOKUP(D81,'Cuadro de Cuentas'!$B$3:$C$567,2,FALSE)) ->  | H81: =IF(G81="","",VLOOKUP(G81,'Cuadro de Cuentas'!$B$3:$C$567,2,FALSE)) -> 
E82: =IF(D82="","",VLOOKUP(D82,'Cuadro de Cuentas'!$B$3:$C$567,2,FALSE)) ->  | H82: =IF(G82="","",VLOOKUP(G82,'Cuadro de Cuentas'!$B$3:$C$567,2,FALSE)) -> 
E83: =IF(D83="","",VLOOKUP(D83,'Cuadro de Cuentas'!$B$3:$C$567,2,FALSE)) ->  | H83: =IF(G83="","",VLOOKUP(G83,'Cuadro de Cuentas'!$B$3:$C$567,2,FALSE)) -> 
E84: =IF(D84="","",VLOOKUP(D84,'Cuadro de Cuentas'!$B$3:$C$567,2,FALSE)) ->  | H84: =IF(G84="","",VLOOKUP(G84,'Cuadro de Cuentas'!$B$3:$C$567,2,FALSE)) -> 
E85: =IF(D85="","",VLOOKUP(D85,'Cuadro de Cuentas'!$B$3:$C$567,2,FALSE)) ->  | H85: =IF(G85="","",VLOOKUP(G85,'Cuadro de Cuentas'!$B$3:$C$567,2,FALSE)) -> 
E86: =IF(D86="","",VLOOKUP(D86,'Cuadro de Cuentas'!$B$3:$C$567,2,FALSE)) ->  | H86: =IF(G86="","",VLOOKUP(G86,'Cuadro de Cuentas'!$B$3:$C$567,2,FALSE)) -> 
E87: =IF(D87="","",VLOOKUP(D87,'Cuadro de Cuentas'!$B$3:$C$567,2,FALSE)) ->  | H87: =IF(G87="","",VLOOKUP(G87,'Cuadro de Cuentas'!$B$3:$C$567,2,FALSE)) -> 
E88: =IF(D88="","",VLOOKUP(D88,'Cuadro de Cuentas'!$B$3:$C$567,2,FALSE)) ->  | H88: =IF(G88="","",VLOOKUP(G88,'Cuadro de Cuentas'!$B$3:$C$567,2,FALSE)) -> 
E89: =IF(D89="","",VLOOKUP(D89,'Cuadro de Cuentas'!$B$3:$C$567,2,FALSE)) ->  | H89: =IF(G89="","",VLOOKUP(G89,'Cuadro de Cuentas'!$B$3:$C$567,2,FALSE)) -> 
E90: =IF(D90="","",VLOOKUP(D90,'Cuadro de Cuentas'!$B$3:$C$567,2,FALSE)) ->  | H90: =IF(G90="","",VLOOKUP(G90,'Cuadro de Cuentas'!$B$3:$C$567,2,FALSE)) -> 
E91: =IF(D91="","",VLOOKUP(D91,'Cuadro de Cuentas'!$B$3:$C$567,2,FALSE)) ->  | H91: =IF(G91="","",VLOOKUP(G91,'Cuadro de Cuentas'!$B$3:$C$567,2,FALSE)) -> 
E92: =IF(D92="","",VLOOKUP(D92,'Cuadro de Cuentas'!$B$3:$C$567,2,FALSE)) ->  | H92: =IF(G92="","",VLOOKUP(G92,'Cuadro de Cuentas'!$B$3:$C$567,2,FALSE)) -> 
E93: =IF(D93="","",VLOOKUP(D93,'Cuadro de Cuentas'!$B$3:$C$567,2,FALSE)) ->  | H93: =IF(G93="","",VLOOKUP(G93,'Cuadro de Cuentas'!$B$3:$C$567,2,FALSE)) -> 
E94: =IF(D94="","",VLOOKUP(D94,'Cuadro de Cuentas'!$B$3:$C$567,2,FALSE)) ->  | H94: =IF(G94="","",VLOOKUP(G94,'Cuadro de Cuentas'!$B$3:$C$567,2,FALSE)) -> 
E95: =IF(D95="","",VLOOKUP(D95,'Cuadro de Cuentas'!$B$3:$C$567,2,FALSE)) ->  | H95: =IF(G95="","",VLOOKUP(G95,'Cuadro de Cuentas'!$B$3:$C$567,2,FALSE)) -> 
E96: =IF(D96="","",VLOOKUP(D96,'Cuadro de Cuentas'!$B$3:$C$567,2,FALSE)) ->  | H96: =IF(G96="","",VLOOKUP(G96,'Cuadro de Cuentas'!$B$3:$C$567,2,FALSE)) -> 
E97: =IF(D97="","",VLOOKUP(D97,'Cuadro de Cuentas'!$B$3:$C$567,2,FALSE)) ->  | H97: =IF(G97="","",VLOOKUP(G97,'Cuadro de Cuentas'!$B$3:$C$567,2,FALSE)) -> 
E98: =IF(D98="","",VLOOKUP(D98,'Cuadro de Cuentas'!$B$3:$C$567,2,FALSE)) ->  | H98: =IF(G98="","",VLOOKUP(G98,'Cuadro de Cuentas'!$B$3:$C$567,2,FALSE)) -> 
E99: =IF(D99="","",VLOOKUP(D99,'Cuadro de Cuentas'!$B$3:$C$567,2,FALSE)) ->  | H99: =IF(G99="","",VLOOKUP(G99,'Cuadro de Cuentas'!$B$3:$C$567,2,FALSE)) -> 

Sheet Solución Libro Diario (N3) (hidden)
C3: DEBE | I3: HABER
C4: IMPORTES | D4: Nº CUENTA | E4: NOMBRE CUENTA | F4: ='Factura Compra 1 (N3)'!L19 -> 2013-05-08 | G4: Nº CUENTA | H4: NOMBRE CUENTA | I4: IMPORTES
C5: ='Factura Compra 1 (N3)'!L60 -> 5776.7962 | D5: 600 | E5: =IF(D5="","",VLOOKUP(D5,'Cuadro de Cuentas'!$B$3:$C$567,2,FALSE)) -> Compras de mercaderías | F5: =IF(G5="","","a") ->  | H5: =IF(G5="","",VLOOKUP(G5,'Cuadro de Cuentas'!$B$3:$C$567,2,FALSE)) -> 
C6: ='Factura Compra 1 (N3)'!L61 -> 1213.127202 | D6: 472 | E6: =IF(D6="","",VLOOKUP(D6,'Cuadro de Cuentas'!$B$3:$C$567,2,FALSE)) -> Hacienda Pública, IVA soportado | F6: a | G6: 400 | H6: =IF(G6="","",VLOOKUP(G6,'Cuadro de Cuentas'!$B$3:$C$567,2,FALSE)) -> Proveedores | I6: ='Factura Compra 1 (N3)'!L62 -> 6989.923402
E7: (COMPRA 1) | F7: ='Factura Venta 1 (N3)'!G18 -> 2013-05-11 | H7: =IF(G7="","",VLOOKUP(G7,'Cuadro de Cuentas'!$B$3:$C$567,2,FALSE)) -> 
C8: ='Factura Venta 1 (N3)'!G48 -> 9027.25824 | D8: 430 | E8: =IF(D8="","",VLOOKUP(D8,'Cuadro de Cuentas'!$B$3:$C$567,2,FALSE)) -> Clientes | H8: =IF(G8="","",VLOOKUP(G8,'Cuadro de Cuentas'!$B$3:$C$567,2,FALSE)) -> 
E9: =IF(D9="","",VLOOKUP(D9,'Cuadro de Cuentas'!$B$3:$C$567,2,FALSE)) ->  | F9: a | G9: 700 | H9: =IF(G9="","",VLOOKUP(G9,'Cuadro de Cuentas'!$B$3:$C$567,2,FALSE)) -> Ventas de mercaderías | I9: ='Factura Venta 1 (N3)'!G46 -> 7460.544
E10: =IF(D10="","",VLOOKUP(D10,'Cuadro de Cuentas'!$B$3:$C$567,2,FALSE)) ->  | F10: a | G10: 477 | H10: =IF(G10="","",VLOOKUP(G10,'Cuadro de Cuentas'!$B$3:$C$567,2,FALSE)) -> Hacienda Pública, IVA repercutido | I10: ='Factura Venta 1 (N3)'!G47 -> 1566.71424
E11: (VENTA 1) | F11: ='Factura Compra 2 (N3)'!L19 -> 2013-05-18 | H11: =IF(G11="","",VLOOKUP(G11,'Cuadro de Cuentas'!$B$3:$C$567,2,FALSE)) -> 
C12: ='Factura Compra 2 (N3)'!L60 -> 6737.3775 | D12: 600 | E12: =IF(D12="","",VLOOKUP(D12,'Cuadro de Cuentas'!$B$3:$C$567,2,FALSE)) -> Compras de mercaderías | H12: =IF(G12="","",VLOOKUP(G12,'Cuadro de Cuentas'!$B$3:$C$567,2,FALSE)) -> 
C13: ='Factura Compra 2 (N3)'!L61 -> 1414.849275 | D13: 472 | E13: =IF(D13="","",VLOOKUP(D13,'Cuadro de Cuentas'!$B$3:$C$567,2,FALSE)) -> Hacienda Pública, IVA soportado | F13: a | G13: 400 | H13: =IF(G13="","",VLOOKUP(G13,'Cuadro de Cuentas'!$B$3:$C$567,2,FALSE)) -> Proveedores | I13: ='Factura Compra 2 (N3)'!L62 -> 8152.226775
E14: (COMPRA 2) | F14: ='Factura Compra 3 (N3)'!L19 -> 2013-05-21 | H14: =IF(G14="","",VLOOKUP(G14,'Cuadro de Cuentas'!$B$3:$C$567,2,FALSE)) -> 
C15: ='Factura Compra 3 (N3)'!L60 -> 8482.32 | D15: 600 | E15: =IF(D15="","",VLOOKUP(D15,'Cuadro de Cuentas'!$B$3:$C$567,2,FALSE)) -> Compras de mercaderías | H15: =IF(G15="","",VLOOKUP(G15,'Cuadro de Cuentas'!$B$3:$C$567,2,FALSE)) -> 
C16: ='Factura Compra 3 (N3)'!L61 -> 1781.2872 | D16: 472 | E16: =IF(D16="","",VLOOKUP(D16,'Cuadro de Cuentas'!$B$3:$C$567,2,FALSE)) -> Hacienda Pública, IVA soportado | F16: a | G16: 400 | H16: =IF(G16="","",VLOOKUP(G16,'Cuadro de Cuentas'!$B$3:$C$567,2,FALSE)) -> Proveedores | I16: ='Factura Compra 3 (N3)'!L62 -> 10263.6072
E17: (COMPRA 3) | F17: ='Factura Compra 1 (N3)'!H69 -> 2013-05-23 | H17: =IF(G17="","",VLOOKUP(G17,'Cuadro de Cuentas'!$B$3:$C$567,2,FALSE)) -> 
C18: ='Factura Compra 1 (N3)'!L69 -> 6989.923402 | D18: 400 | E18: =IF(D18="","",VLOOKUP(D18,'Cuadro de Cuentas'!$B$3:$C$567,2,FALSE)) -> Proveedores | H18: =IF(G18="","",VLOOKUP(G18,'Cuadro de Cuentas'!$B$3:$C$567,2,FALSE)) -> 
E19: =IF(D19="","",VLOOKUP(D19,'Cuadro de Cuentas'!$B$3:$C$567,2,FALSE)) ->  | F19: a | G19: 572 | H19: =IF(G19="","",VLOOKUP(G19,'Cuadro de Cuentas'!$B$3:$C$567,2,FALSE)) -> Bancos e instituciones de crédito c/c vista, euros | I19: =C18 -> 6989.923402
E20: (LIQUIDACIÓN COMPRA 1) | F20: ='Factura Venta 1 (N3)'!E56 -> 2013-05-26 | H20: =IF(G20="","",VLOOKUP(G20,'Cuadro de Cuentas'!$B$3:$C$567,2,FALSE)) -> 
C21: =I22 -> 9027.25824 | D21: 572 | E21: =IF(D21="","",VLOOKUP(D21,'Cuadro de Cuentas'!$B$3:$C$567,2,FALSE)) -> Bancos e instituciones de crédito c/c vista, euros | H21: =IF(G21="","",VLOOKUP(G21,'Cuadro de Cuentas'!$B$3:$C$567,2,FALSE)) -> 
F22: a | G22: 430 | H22: =IF(G22="","",VLOOKUP(G22,'Cuadro de Cuentas'!$B$3:$C$567,2,FALSE)) -> Clientes | I22: ='Factura Venta 1 (N3)'!G56 -> 9027.25824
E23: (LIQUIDACIÓN VENTA 1) | F23: ='Factura Venta 2 (N3)'!G18 -> 2013-05-27 | H23: =IF(G23="","",VLOOKUP(G23,'Cuadro de Cuentas'!$B$3:$C$567,2,FALSE)) -> 
C24: ='Factura Venta 2 (N3)'!G48 -> 19594.9215 | D24: 430 | E24: =IF(D24="","",VLOOKUP(D24,'Cuadro de Cuentas'!$B$3:$C$567,2,FALSE)) -> Clientes | F24: =IF(G24="","","a") ->  | H24: =IF(G24="","",VLOOKUP(G24,'Cuadro de Cuentas'!$B$3:$C$567,2,FALSE)) -> 
E25: =IF(D25="","",VLOOKUP(D25,'Cuadro de Cuentas'!$B$3:$C$567,2,FALSE)) ->  | F25: a | G25: 700 | H25: =IF(G25="","",VLOOKUP(G25,'Cuadro de Cuentas'!$B$3:$C$567,2,FALSE)) -> Ventas de mercaderías | I25: ='Factura Venta 2 (N3)'!G46 -> 16194.15
E26: =IF(D26="","",VLOOKUP(D26,'Cuadro de Cuentas'!$B$3:$C$567,2,FALSE)) ->  | F26: a | G26: 477 | H26: =IF(G26="","",VLOOKUP(G26,'Cuadro de Cuentas'!$B$3:$C$567,2,FALSE)) -> Hacienda Pública, IVA repercutido | I26: ='Factura Venta 2 (N3)'!G47 -> 3400.7715
E27: (VENTA 2) | F27: ='Factura Compra 2 (N3)'!H69 -> 2013-06-02 | H27: =IF(G27="","",VLOOKUP(G27,'Cuadro de Cuentas'!$B$3:$C$567,2,FALSE)) -> 
C28: ='Factura Compra 2 (N3)'!L69 -> 8152.226775 | D28: 400 | E28: =IF(D28="","",VLOOKUP(D28,'Cuadro de Cuentas'!$B$3:$C$567,2,FALSE)) -> Proveedores | H28: =IF(G28="","",VLOOKUP(G28,'Cuadro de Cuentas'!$B$3:$C$567,2,FALSE)) -> 
E29: =IF(D29="","",VLOOKUP(D29,'Cuadro de Cuentas'!$B$3:$C$567,2,FALSE)) ->  | F29: a | G29: 572 | H29: =IF(G29="","",VLOOKUP(G29,'Cuadro de Cuentas'!$B$3:$C$567,2,FALSE)) -> Bancos e instituciones de crédito c/c vista, euros | I29: =C28 -> 8152.226775
E30: (LIQUIDACIÓN COMPRA 2) | F30: ='Factura Venta 2 (N3)'!E56 -> 2013-06-11 | H30: =IF(G30="","",VLOOKUP(G30,'Cuadro de Cuentas'!$B$3:$C$567,2,FALSE)) -> 
C31: =I32 -> 19594.9215 | D31: 572 | E31: =IF(D31="","",VLOOKUP(D31,'Cuadro de Cuentas'!$B$3:$C$567,2,FALSE)) -> Bancos e instituciones de crédito c/c vista, euros | F31: =IF(G31="","","a") ->  | H31: =IF(G31="","",VLOOKUP(G31,'Cuadro de Cuentas'!$B$3:$C$567,2,FALSE)) -> 
E32: =IF(D32="","",VLOOKUP(D32,'Cuadro de Cuentas'!$B$3:$C$567,2,FALSE)) ->  | F32: =IF(G32="","","a") -> a | G32: 430 | H32: =IF(G32="","",VLOOKUP(G32,'Cuadro de Cuentas'!$B$3:$C$567,2,FALSE)) -> Clientes | I32: ='Factura Venta 2 (N3)'!G56 -> 19594.9215
E33: (LIQUIDACIÓN VENTA 2) | F33: ='Factura Compra 3 (N3)'!H69 -> 2013-07-05 | H33: =IF(G33="","",VLOOKUP(G33,'Cuadro de Cuentas'!$B$3:$C$567,2,FALSE)) -> 
C34: ='Factura Compra 3 (N3)'!L69 -> 4105.44288 | D34: 400 | E34: =IF(D34="","",VLOOKUP(D34,'Cuadro de Cuentas'!$B$3:$C$567,2,FALSE)) -> Proveedores | F34: =IF(G34="","","a") ->  | H34: =IF(G34="","",VLOOKUP(G34,'Cuadro de Cuentas'!$B$3:$C$567,2,FALSE)) -> 
E35: =IF(D35="","",VLOOKUP(D35,'Cuadro de Cuentas'!$B$3:$C$567,2,FALSE)) ->  | F35: =IF(G35="","","a") -> a | G35: 572 | H35: =IF(G35="","",VLOOKUP(G35,'Cuadro de Cuentas'!$B$3:$C$567,2,FALSE)) -> Bancos e instituciones de crédito c/c vista, euros | I35: =C34 -> 4105.44288
E36: (1ª LIQUIDACIÓN COMPRA 3) | F36: ='Factura Compra 3 (N3)'!H71 -> 2013-08-19 | H36: =IF(G36="","",VLOOKUP(G36,'Cuadro de Cuentas'!$B$3:$C$567,2,FALSE)) -> 
C37: ='Factura Compra 3 (N3)'!L71 -> 6158.16432 | D37: 400 | E37: =IF(D37="","",VLOOKUP(D37,'Cuadro de Cuentas'!$B$3:$C$567,2,FALSE)) -> Proveedores | H37: =IF(G37="","",VLOOKUP(G37,'Cuadro de Cuentas'!$B$3:$C$567,2,FALSE)) -> 
E38: =IF(D38="","",VLOOKUP(D38,'Cuadro de Cuentas'!$B$3:$C$567,2,FALSE)) ->  | F38: a | G38: 572 | H38: =IF(G38="","",VLOOKUP(G38,'Cuadro de Cuentas'!$B$3:$C$567,2,FALSE)) -> Bancos e instituciones de crédito c/c vista, euros | I38: =+C37 -> 6158.16432
E39: (2ª LIQUIDACIÓN COMPRA 3) | H39: =IF(G39="","",VLOOKUP(G39,'Cuadro de Cuentas'!$B$3:$C$567,2,FALSE)) -> 
C40: =SUM(C5:C39) -> 108055.8742 | E40: =IF(D40="","",VLOOKUP(D40,'Cuadro de Cuentas'!$B$3:$C$567,2,FALSE)) ->  | H40: =IF(G40="","",VLOOKUP(G40,'Cuadro de Cuentas'!$B$3:$C$567,2,FALSE)) ->  | I40: =SUM(I5:I39) -> 108055.8742

Sheet Factura Compra 1 (N3) (hidden)
I5: ÓPTICAS REUNIDAS S.A.
I6: Dirección, España
I7: CIF:
C16: Nombre: | D16: Buena Visión S.A. | K16: Factura Nº.
C17: Dirección: | D17: España | K17: 1445
C19: CIF: | K19: Fecha: | L19: ='Enunciado Supuesto (N3)'!C16 -> 2013-05-08
C20: Ref:
C26: Cantidad | D26: Código | E26: Descripción | K26: Precio Unitario | L26: Valor
L27: =IF(D27<>"",D27*K27,"") -> 
C39: ='Enunciado Supuesto (N3)'!H16 -> 590 | E39: Monturas de gafas de metal común | K39: ='Enunciado Supuesto (N3)'!J16 -> 10.3 | L39: =C39*K39 -> 6077
L51: =IF(D51<>"",D51*K51,"") -> 
L52: =IF(D52<>"",D52*K52,"") -> 
K53: Subtotal | L53: =+SUM(L27:L52) -> 6077
D58: Customer Bank: | H58: Descuento Comercial | K58: ='Enunciado Supuesto (N3)'!L16 -> 0.02 | L58: =K58*L53 -> 121.54
H59: Descuento por Pronto Pago | K59: ='Enunciado Supuesto (N3)'!N16 -> 0.03 | L59: =K59*(L53-L58) -> 178.6638
D60: IBAN: | J60: Total | L60: =L53-L58-L59 -> 5776.7962
J61: IVA | K61: ='Enunciado Supuesto (N3)'!T7 -> 0.21 | L61: =K61*L60 -> 1213.127202
D62: SWITF: | J62: TOTAL FACTURA | L62: =L60+L61 -> 6989.923402
D67: Observaciones:
E69: Con vencimiento el | H69: =IF(K59<>0,L19+15,L19+45) -> 2013-05-23 | I69: Por importe de | L69: =L62 -> 6989.923402

Sheet Factura Venta 1 (N3) (hidden)
D4: BUENA VISIÓN S.A.
D5: CIF:
C9: Cliente: | D9: ÓPTICAS MADRILEÑAS S.L.
C10: Dirección:
C11: Código Postal: | E11: Localidad - País: | F11: España
C12: Teléfono: | E12: Fax:
C13: E-mail: | E13: C.I.F:
F18: Fecha Factura: | G18: ='Enunciado Supuesto (N3)'!C17 -> 2013-05-11
F19: Número Factura: | G19: 2013-531
C24: Cantidad | D24: Código | E24: Concepto | F24: Precio/Unidad | G24: Importe
C32: ='Enunciado Supuesto (N3)'!H17 -> 610 | E32: Monturas de gafas de metal común | F32: ='Enunciado Supuesto (N3)'!J17 -> 14 | G32: =C32*F32 -> 8540
C44: Descuento: | D44: ='Enunciado Supuesto (N3)'!L17 -> 0.09 | E44: sobre el importe bruto de la mercancía | G44: =D44*G32 -> 768.6
C45: Descuento por Pronto Pago: | D45: ='Enunciado Supuesto (N3)'!N17 -> 0.04 | E45: sobre el importe neto de la mercancía | G45: =D45*(G32-G44) -> 310.856
C46: Subtotal: | G46: =SUM(G26:G42)-G44-G45 -> 7460.544
C47: IVA: | D47: ='Enunciado Supuesto (N3)'!T10 -> 0.21 | G47: =D47*G46 -> 1566.71424
C48: Importe Total: | G48: =G46+G47 -> 9027.25824
C53: FORMA DE PAGO
C56: Con vencimiento el | E56: =IF(D45<>0,G18+15,G18+90) -> 2013-05-26 | F56: por importe de | G56: =G48 -> 9027.25824
C61: Dirección – C.P. Localidad – Tel.
C62: YYY@YYY.com - www.YYY.com

Sheet Factura Compra 2 (N3) (hidden)
I5: ÓPTICAS REUNIDAS S.A.
I6: Dirección, España
I7: CIF:
C16: Nombre: | D16: Buena Visión S.A. | K16: Factura Nº.
C17: Dirección: | D17: España | K17: 1734
C19: CIF: | K19: Fecha: | L19: ='Enunciado Supuesto (N3)'!C18 -> 2013-05-18
C20: Ref:
C26: Cantidad | D26: Código | E26: Descripción | K26: Precio Unitario | L26: Valor
L27: =IF(D27<>"",D27*K27,"") -> 
C39: ='Enunciado Supuesto (N3)'!H18 -> 675 | E39: Monturas de gafas de metal común | K39: ='Enunciado Supuesto (N3)'!J18 -> 10.5 | L39: =C39*K39 -> 7087.5
L51: =IF(D51<>"",D51*K51,"") -> 
L52: =IF(D52<>"",D52*K52,"") -> 
K53: Subtotal | L53: =+SUM(L27:L52) -> 7087.5
D58: Customer Bank: | H58: Descuento Comercial | K58: ='Enunciado Supuesto (N3)'!L18 -> 0.03 | L58: =K58*L53 -> 212.625
H59: Descuento por Pronto Pago | K59: ='Enunciado Supuesto (N3)'!N18 -> 0.02 | L59: =K59*(L53-L58) -> 137.4975
D60: IBAN: | J60: Total | L60: =L53-L58-L59 -> 6737.3775
J61: IVA | K61: ='Enunciado Supuesto (N3)'!T7 -> 0.21 | L61: =K61*L60 -> 1414.849275
D62: SWITF: | J62: TOTAL FACTURA | L62: =L60+L61 -> 8152.226775
D67: Observaciones:
E69: Con vencimiento el | H69: =IF(K59<>0,L19+15,L19+45) -> 2013-06-02 | I69: Por importe de | L69: =L62 -> 8152.226775

Sheet Factura Compra 3 (N3) (hidden)
I5: ÓPTICAS REUNIDAS S.A.
I6: Dirección, España
I7: CIF:
C16: Nombre: | D16: Buena Visión S.A. | K16: Factura Nº.
C17: Dirección: | D17: España | K17: 1829
C19: CIF: | K19: Fecha: | L19: ='Enunciado Supuesto (N3)'!C19 -> 2013-05-21
C20: Ref:
C26: Cantidad | D26: Código | E26: Descripción | K26: Precio Unitario | L26: Valor
L27: =IF(D27<>"",D27*K27,"") -> 
C39: ='Enunciado Supuesto (N3)'!H19 -> 840 | E39: Monturas de gafas de metal común | K39: ='Enunciado Supuesto (N3)'!J19 -> 10.2 | L39: =C39*K39 -> 8568
L51: =IF(D51<>"",D51*K51,"") -> 
L52: =IF(D52<>"",D52*K52,"") -> 
K53: Subtotal | L53: =+SUM(L27:L52) -> 8568
D58: Customer Bank: | H58: Descuento Comercial | K58: ='Enunciado Supuesto (N3)'!L19 -> 0.01 | L58: =K58*L53 -> 85.68
H59: Descuento por Pronto Pago | K59: ='Enunciado Supuesto (N3)'!N19 -> 0 | L59: =K59*(L53-L58) -> 0
D60: IBAN: | J60: Total | L60: =L53-L58-L59 -> 8482.32
J61: IVA | K61: ='Enunciado Supuesto (N3)'!T7 -> 0.21 | L61: =K61*L60 -> 1781.2872
D62: SWITF: | J62: TOTAL FACTURA | L62: =L60+L61 -> 10263.6072
D67: Observaciones:
F69: Con vencimientos el | H69: =IF(K59<>0,L19+15,L19+45) -> 2013-07-05 | I69: Por importe de | L69: =IF(K59<>0,L62,40%*L62) -> 4105.44288
F71: =IF(K59<>0,"","Con vencimientos el") -> Con vencimientos el | H71: =IF(K59<>0,"",L19+90) -> 2013-08-19 | I71: =IF(K59<>0,"","Por importe de") -> Por importe de | L71: =IF(K59<>0,"",60%*L62) -> 6158.16432

Sheet Factura Venta 2 (N3) (hidden)
D4: BUENA VISIÓN S.A.
D5: CIF:
C9: Cliente: | D9: ÓPTICAS VALENCIANAS S.L.
C10: Dirección:
C11: Código Postal: | E11: Localidad - País: | F11: España
C12: Teléfono: | E12: Fax:
C13: E-mail: | E13: C.I.F:
F18: Fecha Factura: | G18: ='Enunciado Supuesto (N3)'!C20 -> 2013-05-27
F19: Número Factura: | G19: 2013-674
C24: Cantidad | D24: Código | E24: Concepto | F24: Precio/Unidad | G24: Importe
C32: ='Enunciado Supuesto (N3)'!H20 -> 1325 | E32: Monturas de gafas de metal común | F32: ='Enunciado Supuesto (N3)'!J20 -> 14 | G32: =C32*F32 -> 18550
C44: Descuento: | D44: ='Enunciado Supuesto (N3)'!L20 -> 0.1 | E44: sobre el importe bruto de la mercancía | G44: =D44*G32 -> 1855
C45: Descuento por Pronto Pago: | D45: ='Enunciado Supuesto (N3)'!N20 -> 0.03 | E45: sobre el importe neto de la mercancía | G45: =D45*(G32-G44) -> 500.85
C46: Subtotal: | G46: =SUM(G26:G42)-G44-G45 -> 16194.15
C47: IVA: | D47: ='Enunciado Supuesto (N3)'!T10 -> 0.21 | G47: =D47*G46 -> 3400.7715
C48: Importe Total: | G48: =G46+G47 -> 19594.9215
C53: FORMA DE PAGO
C56: Con vencimiento el | E56: =IF(D45<>0,G18+15,G18+90) -> 2013-06-11 | F56: por importe de | G56: =G48 -> 19594.9215
C61: Dirección – C.P. Localidad – Tel.
C62: YYY@YYY.com - www.YYY.com

Sheet Mercaderías Nivel 4 (hidden)
B1: Haga un doble click sobre la imagen para ver esta Presentación | P1: ÍNDICE TEMA 1
H2: OPERACIONES COMERCIALES (MERCADERÍAS) — NIVEL 4
H6: A continuación, Usted debe llevar a cabo los siguientes pasos:
H8: A) Imprima los documentos (facturas) que le servirán para resolver el supuesto que seguidamente se le propone. Para ello, haga doble click sobre el botón de Documentos Nivel 4.
H14: B) Imprima el enunciado del supuesto que se le propone y las plantillas para su resolución. Para ello, haga doble click sobre el botón de Enunciado-Plantillas Nivel 4.
H20: C) Imprima la solución del supuesto que se le propone. Para ello, haga doble click sobre el botón de Solución Nivel 4.

Sheet Enunciado Supuesto (N4) (hidden)
C3: El día 1 de mayo de 2013 la empresa Buena Visión S.A. tenía en su almacén | P3: ='Resumen Operaciones '!E4 -> 490 | R3: monturas de gafas
C4: de metal común valoradas en | I4: ='Resumen Operaciones '!E6 -> 6370 | J4: , clasificadas en la partida TARIC 9003.19.00.10.
C6: Se trata de productos originarios de Estados Unidos que son comprados a un único proveedor estadounidense
C7: denominado Star Mounts Company. Dichos productos tienen unos derechos de arancel aplicables del 2,20 %,
C8: además de la existencia sobre las importaciones de un derecho adicional para los Estados Unidos del 15 %. El
C9: IVA soportado de este producto está fijado en el | K9: ='Resumen Operaciones '!H4 -> 0.21 | L9: .
C11: Las actividades vinculadas al proceso de importación de estos productos son realizadas íntegramente por una
C12: empresa española especializada en transportes internacionales denominada Transportes USA S.L. En concreto,
C13: esta empresa transportista se encarga de prestarnos el servicio de transporte desde el almacén del proveedor
C14: hasta nuestro almacén con el correspondiente aseguramiento de la mercancía. Asimismo, dicha empresa se
C15: encarga de realizar los trámites aduaneros correspondientes, haciéndonos llegar el llamado Documento Único
C16: Aduanero (DUA) para su liquidación o pago en las entidades financieras autorizadas a este respecto. En concreto,
C17: la correspondiente liquidación del DUA se efectúa antes de retirar las mercancías del depósito aduanero.
C19: La venta de estas monturas por parte de la empresa Buena Visión S.A. se realiza en el mercado español de los
C20: distribuidores de productos oftalmológicos. El IVA repercutido de este producto está establecido en el | T20: ='Resumen Operaciones '!H5 -> 0.21 | U20: .
C21: El servicio de transporte y de seguro de las mercancías es prestado por la propia empresa vendedora.
C23: Durante el mes de mayo se realizaron las operaciones que seguidamente se exponen:
C25: Fecha | F25: Operación | H25: Unidades | J25: Precio bruto | L25: Descuento comercial | N25: Descuento por pronto pago | P25: Transporte | R25: Seguro mercancía (Exento de IVA) | T25: Aranceles de Aduanas
C26: ='Resumen Operaciones '!C11 -> 2013-05-08 | F26: ='Resumen Operaciones '!D11 -> Compra 1 | H26: ='Resumen Operaciones '!E11 -> 590 | J26: ='Resumen Operaciones '!F11 -> 10.3 | L26: ='Resumen Operaciones '!G11 -> 0.02 | N26: ='Resumen Operaciones '!H11 -> 0.03 | P26: ='Resumen Operaciones '!I11 -> 298 | R26: ='Resumen Operaciones '!J11 -> 60 | T26: ='Liquidación Aranceles C1 (N4)'!C30+'Liquidación Aranceles C1 (N4)'!C31 -> 993.6089464
C27: ='Resumen Operaciones '!C12 -> 2013-05-11 | F27: ='Resumen Operaciones '!D12 -> Venta 1 | H27: ='Resumen Operaciones '!E12 -> 610 | J27: ='Resumen Operaciones '!F12 -> 14 | L27: ='Resumen Operaciones '!G12 -> 0.09 | N27: ='Resumen Operaciones '!H12 -> 0.04 | P27: ='Resumen Operaciones '!I12 -> 389 | R27: ='Resumen Operaciones '!J12 -> 78 | T27: 0
C28: ='Resumen Operaciones '!C13 -> 2013-05-18 | F28: ='Resumen Operaciones '!D13 -> Compra 2 | H28: ='Resumen Operaciones '!E13 -> 675 | J28: ='Resumen Operaciones '!F13 -> 10.5 | L28: ='Resumen Operaciones '!G13 -> 0.03 | N28: ='Resumen Operaciones '!H13 -> 0.02 | P28: ='Resumen Operaciones '!I13 -> 344 | R28: ='Resumen Operaciones '!J13 -> 69 | T28: ='Liquidación Aranceles C2 (N4)'!C30+'Liquidación Aranceles C2 (N4)'!C31 -> 1158.82893
C29: ='Resumen Operaciones '!C14 -> 2013-05-21 | F29: ='Resumen Operaciones '!D14 -> Compra 3 | H29: ='Resumen Operaciones '!E14 -> 840 | J29: ='Resumen Operaciones '!F14 -> 10.2 | L29: ='Resumen Operaciones '!G14 -> 0.01 | N29: ='Resumen Operaciones '!H14 -> 0 | P29: ='Resumen Operaciones '!I14 -> 425 | R29: ='Resumen Operaciones '!J14 -> 85 | T29: ='Liquidación Aranceles C3 (N4)'!C30+'Liquidación Aranceles C3 (N4)'!C31 -> 1458.95904
C30: ='Resumen Operaciones '!C15 -> 2013-05-27 | F30: ='Resumen Operaciones '!D15 -> Venta 2 | H30: ='Resumen Operaciones '!E15 -> 1325 | J30: ='Resumen Operaciones '!F15 -> 14 | L30: ='Resumen Operaciones '!G15 -> 0.1 | N30: ='Resumen Operaciones '!H15 -> 0.03 | P30: ='Resumen Operaciones '!I15 -> 835 | R30: ='Resumen Operaciones '!J15 -> 167 | T30: 0
C32: NOTA: Las magnitudes monetarias que se presentan en este supuesto no incluyen el IVA correspondiente.
C34: Teniendo presente los documentos que se le suministran en el presente supuesto, se pide:
D36: 1.- Confeccione la ficha de almacén según los criterios siguientes:
E37: a.- Criterio de valoración de las salidas por FIFO (First In First Out).
E38: b.- Criterio de valoración de las salidas por PMP (Precio Medio Ponderado).
D40: 2.- Calcule el resultado de las ventas de mercaderías del mes de mayo por el criterio de valoración FIFO.
D42: 3.- Contabilice las operaciones anteriores siguiendo el procedimiento de desdoblamiento en compras y
E43: ventas.

Sheet Ficha Almacén y Rdo. (N4) (hidden)
C3: Existencias iniciales de mayo:
C4: Unidades =
C5: Precio unitario =
C6: Total Saldo =
C8: Resumen operaciones mes de mayo:
C10: Fecha | D10: Operación | E10: Unidades | F10: Precio bruto | G10: Descuento comercial | H10: Descuento por pronto pago | I10: Transporte | J10: Seguro mercancía | K10: Aranceles de Aduanas
C11: ='Sol. Ficha Almacén y Rdo. (N4)'!C11 -> 2013-05-08 | D11: Compra 1
C12: ='Sol. Ficha Almacén y Rdo. (N4)'!C12 -> 2013-05-11 | D12: Venta 1
C13: ='Sol. Ficha Almacén y Rdo. (N4)'!C13 -> 2013-05-18 | D13: Compra 2
C14: ='Sol. Ficha Almacén y Rdo. (N4)'!C14 -> 2013-05-21 | D14: Compra 3
C15: ='Sol. Ficha Almacén y Rdo. (N4)'!C15 -> 2013-05-27 | D15: Venta 2
C17: Almacén mes de mayo (PMP):
E19: Entradas | H19: Salidas | K19: Saldos
C20: Fecha | D20: Operación | E20: Unidades | F20: Precio unitario | G20: Valor | H20: Unidades | I20: Precio unitario | J20: Valor | K20: Unidades | L20: Precio unitario | M20: Valor
C21: 2013-05-01 | D21: Saldo inicial
C22: =+'Ficha Almacén y Rdo. (N4)'!C11 -> 2013-05-08 | D22: Compra 1
C25: =+'Ficha Almacén y Rdo. (N4)'!C12 -> 2013-05-11 | D25: Venta 1
C26: =+'Ficha Almacén y Rdo. (N4)'!C13 -> 2013-05-18 | D26: Compra 2
C29: =+'Ficha Almacén y Rdo. (N4)'!C14 -> 2013-05-21 | D29: Compra 3
C32: =+'Ficha Almacén y Rdo. (N4)'!C15 -> 2013-05-27 | D32: Venta 2
C34: Almacén mes de mayo (FIFO):
E36: Entradas | H36: Salidas | K36: Saldos
C37: Fecha | D37: Operación | E37: Unidades | F37: Precio unitario | G37: Valor | H37: Unidades | I37: Precio unitario | J37: Valor | K37: Unidades | L37: Precio unitario | M37: Valor
C38: 2013-05-01 | D38: Saldo inicial
C39: ='Ficha Almacén y Rdo. (N4)'!C11 -> 2013-05-08 | D39: Compra 1
C42: ='Ficha Almacén y Rdo. (N4)'!C12 -> 2013-05-11 | D42: Venta 1
C45: ='Ficha Almacén y Rdo. (N4)'!C13 -> 2013-05-18 | D45: Compra 2
C49: ='Ficha Almacén y Rdo. (N4)'!C14 -> 2013-05-21 | D49: Compra 3
C54: ='Ficha Almacén y Rdo. (N4)'!C15 -> 2013-05-27 | D54: Venta 2
D60: Resultado de las ventas de mercaderías del mes de mayo por el criterio de valoración FIFO
C62: Ventas netas - Coste de ventas = | H62: =

Sheet Sol. Ficha Almacén y Rdo. (N4) (hidden)
C3: Existencias iniciales de mayo:
C4: Unidades = | E4: ='Resumen Operaciones '!E4 -> 490
C5: Precio unitario = | E5: ='Resumen Operaciones '!E5 -> 13
C6: Total Saldo = | E6: ='Resumen Operaciones '!E6 -> 6370
C8: Resumen operaciones mes de mayo:
C10: Fecha | D10: Operación | E10: Unidades | F10: Precio bruto | G10: Descuento comercial | H10: Descuento por pronto pago | I10: Transporte | J10: Seguro mercancía | K10: Aranceles de Aduanas
C11: ='Resumen Operaciones '!C11 -> 2013-05-08 | D11: ='Resumen Operaciones '!D11 -> Compra 1 | E11: ='Resumen Operaciones '!E11 -> 590 | F11: ='Resumen Operaciones '!F11 -> 10.3 | G11: ='Resumen Operaciones '!G11 -> 0.02 | H11: ='Resumen Operaciones '!H11 -> 0.03 | I11: ='Resumen Operaciones '!I11 -> 298 | J11: ='Resumen Operaciones '!J11 -> 60 | K11: ='Enunciado Supuesto (N4)'!T26 -> 993.6089464
C12: ='Resumen Operaciones '!C12 -> 2013-05-11 | D12: ='Resumen Operaciones '!D12 -> Venta 1 | E12: ='Resumen Operaciones '!E12 -> 610 | F12: ='Resumen Operaciones '!F12 -> 14 | G12: ='Resumen Operaciones '!G12 -> 0.09 | H12: ='Resumen Operaciones '!H12 -> 0.04 | I12: ='Resumen Operaciones '!I12 -> 389 | J12: ='Resumen Operaciones '!J12 -> 78 | K12: ='Enunciado Supuesto (N4)'!T27 -> 0
C13: ='Resumen Operaciones '!C13 -> 2013-05-18 | D13: ='Resumen Operaciones '!D13 -> Compra 2 | E13: ='Resumen Operaciones '!E13 -> 675 | F13: ='Resumen Operaciones '!F13 -> 10.5 | G13: ='Resumen Operaciones '!G13 -> 0.03 | H13: ='Resumen Operaciones '!H13 -> 0.02 | I13: ='Resumen Operaciones '!I13 -> 344 | J13: ='Resumen Operaciones '!J13 -> 69 | K13: ='Enunciado Supuesto (N4)'!T28 -> 1158.82893
C14: ='Resumen Operaciones '!C14 -> 2013-05-21 | D14: ='Resumen Operaciones '!D14 -> Compra 3 | E14: ='Resumen Operaciones '!E14 -> 840 | F14: ='Resumen Operaciones '!F14 -> 10.2 | G14: ='Resumen Operaciones '!G14 -> 0.01 | H14: ='Resumen Operaciones '!H14 -> 0 | I14: ='Resumen Operaciones '!I14 -> 425 | J14: ='Resumen Operaciones '!J14 -> 85 | K14: ='Enunciado Supuesto (N4)'!T29 -> 1458.95904
C15: ='Resumen Operaciones '!C15 -> 2013-05-27 | D15: ='Resumen Operaciones '!D15 -> Venta 2 | E15: ='Resumen Operaciones '!E15 -> 1325 | F15: ='Resumen Operaciones '!F15 -> 14 | G15: ='Resumen Operaciones '!G15 -> 0.1 | H15: ='Resumen Operaciones '!H15 -> 0.03 | I15: ='Resumen Operaciones '!I15 -> 835 | J15: ='Resumen Operaciones '!J15 -> 167 | K15: ='Enunciado Supuesto (N4)'!T30 -> 0
C17: Almacén mes de mayo (PMP):
E19: Entradas | H19: Salidas | K19: Saldos
C20: Fecha | D20: Operación | E20: Unidades | F20: Precio unitario | G20: Valor | H20: Unidades | I20: Precio unitario | J20: Valor | K20: Unidades | L20: Precio unitario | M20: Valor
C21: 2013-05-01 | D21: Saldo inicial | K21: =IF('Portada Libro'!M4="","",'Sol. Ficha Almacén y Rdo. (N4)'!E4) -> 490 | L21: =IF('Portada Libro'!M4="","",'Sol. Ficha Almacén y Rdo. (N4)'!E5) -> 13 | M21: =IF('Portada Libro'!M4="","",K21*L21) -> 6370
C22: =+'Sol. Ficha Almacén y Rdo. (N4)'!C11 -> 2013-05-08 | D22: Compra 1 | E22: =IF('Portada Libro'!M4="","",'Sol. Ficha Almacén y Rdo. (N4)'!E11) -> 590 | F22: =IF('Portada Libro'!M4="","",G22/E22) -> 12.08204262 | G22: =IF('Portada Libro'!M4="","",'Sol. Ficha Almacén y Rdo. (N4)'!E11*'Sol. Ficha Almacén y Rdo. (N4)'!F11*(1-'Sol. Ficha Almacén y Rdo. (N4)'!G11)*(1-H11)+'Sol. Ficha Almacén y Rdo. (N4)'!I11+'Sol. Ficha Almacén y Rdo. (N4)'!J11+'Sol. Ficha Almacén y Rdo. (N4)'!K11) -> 7128.405146 | K22: =IF('Portada Libro'!M4="","",K21) -> 490 | M22: =IF('Portada Libro'!M4="","",M21) -> 6370
K23: =IF('Portada Libro'!M4="","",E22) -> 590 | M23: =IF('Portada Libro'!M4="","",G22) -> 7128.405146
K24: =IF('Portada Libro'!M4="","",K22+K23) -> 1080 | L24: =IF('Portada Libro'!M4="","",M24/K24) -> 12.49852328 | M24: =IF('Portada Libro'!M4="","",M22+M23) -> 13498.40515
C25: =+'Sol. Ficha Almacén y Rdo. (N4)'!C12 -> 2013-05-11 | D25: Venta 1 | H25: =IF('Portada Libro'!M4="","",'Sol. Ficha Almacén y Rdo. (N4)'!E12) -> 610 | I25: =IF('Portada Libro'!M4="","",L24) -> 12.49852328 | J25: =IF('Portada Libro'!M4="","",H25*I25) -> 7624.099203 | K25: =IF('Portada Libro'!M4="","",K24-H25) -> 470 | L25: =IF('Portada Libro'!M4="","",L24) -> 12.49852328 | M25: =IF('Portada Libro'!M4="","",M24-J25) -> 5874.305943
C26: =+'Sol. Ficha Almacén y Rdo. (N4)'!C13 -> 2013-05-18 | D26: Compra 2 | E26: =IF('Portada Libro'!M4="","",'Sol. Ficha Almacén y Rdo. (N4)'!E13) -> 675 | F26: =IF('Portada Libro'!M4="","",G26/E26) -> 12.30993545 | G26: =IF('Portada Libro'!M4="","",'Sol. Ficha Almacén y Rdo. (N4)'!E13*'Sol. Ficha Almacén y Rdo. (N4)'!F13*(1-'Sol. Ficha Almacén y Rdo. (N4)'!G13)*(1-H13)+'Sol. Ficha Almacén y Rdo. (N4)'!I13+'Sol. Ficha Almacén y Rdo. (N4)'!J13+'Sol. Ficha Almacén y Rdo. (N4)'!K13) -> 8309.20643 | K26: =IF('Portada Libro'!M4="","",K25) -> 470 | M26: =IF('Portada Libro'!M4="","",M25) -> 5874.305943
K27: =IF('Portada Libro'!M4="","",E26) -> 675 | M27: =IF('Portada Libro'!M4="","",G26) -> 8309.20643
K28: =IF('Portada Libro'!M4="","",K26+K27) -> 1145 | L28: =IF('Portada Libro'!M4="","",M28/K28) -> 12.38734705 | M28: =IF('Portada Libro'!M4="","",M26+M27) -> 14183.51237
C29: =+'Sol. Ficha Almacén y Rdo. (N4)'!C14 -> 2013-05-21 | D29: Compra 3 | E29: =IF('Portada Libro'!M4="","",'Sol. Ficha Almacén y Rdo. (N4)'!E14) -> 840 | F29: =IF('Portada Libro'!M4="","",G29/E29) -> 12.44199886 | G29: =IF('Portada Libro'!M4="","",'Sol. Ficha Almacén y Rdo. (N4)'!E14*'Sol. Ficha Almacén y Rdo. (N4)'!F14*(1-'Sol. Ficha Almacén y Rdo. (N4)'!G14)*(1-H14)+'Sol. Ficha Almacén y Rdo. (N4)'!I14+'Sol. Ficha Almacén y Rdo. (N4)'!J14+'Sol. Ficha Almacén y Rdo. (N4)'!K14) -> 10451.27904 | K29: =IF('Portada Libro'!M4="","",K28) -> 1145 | M29: =IF('Portada Libro'!M4="","",M28) -> 14183.51237
K30: =IF('Portada Libro'!M4="","",E29) -> 840 | M30: =IF('Portada Libro'!M4="","",G29) -> 10451.27904
K31: =IF('Portada Libro'!M4="","",K29+K30) -> 1985 | L31: =IF('Portada Libro'!M4="","",M31/K31) -> 12.41047426 | M31: =IF('Portada Libro'!M4="","",M29+M30) -> 24634.79141
C32: =+'Sol. Ficha Almacén y Rdo. (N4)'!C15 -> 2013-05-27 | D32: Venta 2 | H32: =IF('Portada Libro'!M4="","",'Sol. Ficha Almacén y Rdo. (N4)'!E15) -> 1325 | I32: =IF('Portada Libro'!M4="","",L31) -> 12.41047426 | J32: =IF('Portada Libro'!M4="","",H32*I32) -> 16443.8784 | K32: =IF('Portada Libro'!M4="","",K31-H32) -> 660 | L32: =IF('Portada Libro'!M4="","",L31) -> 12.41047426 | M32: =IF('Portada Libro'!M4="","",M31-J32) -> 8190.913014
C34: Almacén mes de mayo (FIFO):
E36: Entradas | H36: Salidas | K36: Saldos
C37: Fecha | D37: Operación | E37: Unidades | F37: Precio unitario | G37: Valor | H37: Unidades | I37: Precio unitario | J37: Valor | K37: Unidades | L37: Precio unitario | M37: Valor
C38: 2013-05-01 | D38: Saldo inicial | K38: =IF('Portada Libro'!M4="","",'Sol. Ficha Almacén y Rdo. (N4)'!E4) -> 490 | L38: =IF('Portada Libro'!M4="","",'Sol. Ficha Almacén y Rdo. (N4)'!E5) -> 13 | M38: =IF('Portada Libro'!M4="","",K38*L38) -> 6370
C39: ='Sol. Ficha Almacén y Rdo. (N4)'!C11 -> 2013-05-08 | D39: Compra 1 | E39: =IF('Portada Libro'!M4="","",'Sol. Ficha Almacén y Rdo. (N4)'!E11) -> 590 | F39: =IF('Portada Libro'!M4="","",G39/E39) -> 12.08204262 | G39: =IF('Portada Libro'!M4="","",'Sol. Ficha Almacén y Rdo. (N4)'!E11*'Sol. Ficha Almacén y Rdo. (N4)'!F11*(1-'Sol. Ficha Almacén y Rdo. (N4)'!G11)*(1-H11)+'Sol. Ficha Almacén y Rdo. (N4)'!I11+'Sol. Ficha Almacén y Rdo. (N4)'!J11+'Sol. Ficha Almacén y Rdo. (N4)'!K11) -> 7128.405146 | K39: =IF('Portada Libro'!M4="","",K38) -> 490 | L39: =IF('Portada Libro'!M4="","",L38) -> 13 | M39: =IF('Portada Libro'!M4="","",M38) -> 6370
K40: =IF('Portada Libro'!M4="","",E39) -> 590 | L40: =IF('Portada Libro'!M4="","",F39) -> 12.08204262 | M40: =IF('Portada Libro'!M4="","",G39) -> 7128.405146
K41: =IF('Portada Libro'!M4="","",K39+K40) -> 1080 | M41: =IF('Portada Libro'!M4="","",M39+M40) -> 13498.40515
C42: ='Sol. Ficha Almacén y Rdo. (N4)'!C12 -> 2013-05-11 | D42: Venta 1 | H42: =IF('Portada Libro'!M4="","",IF(H44>=K39,K39,H44)) -> 490 | I42: =IF('Portada Libro'!M4="","",L39) -> 13 | J42: =IF('Portada Libro'!M4="","",H42*I42) -> 6370 | K42: =IF('Portada Libro'!M4="","",K39-H42) -> 0 | L42: =IF('Portada Libro'!M4="","",L39) -> 13 | M42: =IF('Portada Libro'!M4="","",K42*L42) -> 0
H43: =IF('Portada Libro'!M4="","",H44-H42) -> 120 | I43: =IF('Portada Libro'!M4="","",L40) -> 12.08204262 | J43: =IF('Portada Libro'!M4="","",H43*I43) -> 1449.845115 | K43: =IF('Portada Libro'!M4="","",K40-H43) -> 470 | L43: =IF('Portada Libro'!M4="","",L40) -> 12.08204262 | M43: =IF('Portada Libro'!M4="","",K43*L43) -> 5678.560032
H44: =IF('Portada Libro'!M4="","",'Sol. Ficha Almacén y Rdo. (N4)'!E12) -> 610 | J44: =IF('Portada Libro'!M4="","",J42+J43) -> 7819.845115 | K44: =IF('Portada Libro'!M4="","",K42+K43) -> 470 | M44: =IF('Portada Libro'!M4="","",M42+M43) -> 5678.560032
C45: ='Sol. Ficha Almacén y Rdo. (N4)'!C13 -> 2013-05-18 | D45: Compra 2 | E45: =IF('Portada Libro'!M4="","",'Sol. Ficha Almacén y Rdo. (N4)'!E13) -> 675 | F45: =IF('Portada Libro'!M4="","",G45/E45) -> 12.30993545 | G45: =IF('Portada Libro'!M4="","",'Sol. Ficha Almacén y Rdo. (N4)'!E13*'Sol. Ficha Almacén y Rdo. (N4)'!F13*(1-'Sol. Ficha Almacén y Rdo. (N4)'!G13)*(1-H13)+'Sol. Ficha Almacén y Rdo. (N4)'!I13+'Sol. Ficha Almacén y Rdo. (N4)'!J13+'Sol. Ficha Almacén y Rdo. (N4)'!K13) -> 8309.20643 | K45: =IF('Portada Libro'!M4="","",K42) -> 0 | L45: =IF('Portada Libro'!M4="","",L42) -> 13 | M45: =IF('Portada Libro'!M4="","",M42) -> 0
K46: =IF('Portada Libro'!M4="","",K43) -> 470 | L46: =IF('Portada Libro'!M4="","",L43) -> 12.08204262 | M46: =IF('Portada Libro'!M4="","",M43) -> 5678.560032
K47: =IF('Portada Libro'!M4="","",E45) -> 675 | L47: =IF('Portada Libro'!M4="","",F45) -> 12.30993545 | M47: =IF('Portada Libro'!M4="","",G45) -> 8309.20643
K48: =IF('Portada Libro'!M4="","",SUM(K45:K47)) -> 1145 | M48: =IF('Portada Libro'!M4="","",SUM(M45:M47)) -> 13987.76646
C49: ='Sol. Ficha Almacén y Rdo. (N4)'!C14 -> 2013-05-21 | D49: Compra 3 | E49: =IF('Portada Libro'!M4="","",'Sol. Ficha Almacén y Rdo. (N4)'!E14) -> 840 | F49: =IF('Portada Libro'!M4="","",G49/E49) -> 12.44199886 | G49: =IF('Portada Libro'!M4="","",'Sol. Ficha Almacén y Rdo. (N4)'!E14*'Sol. Ficha Almacén y Rdo. (N4)'!F14*(1-'Sol. Ficha Almacén y Rdo. (N4)'!G14)*(1-H14)+'Sol. Ficha Almacén y Rdo. (N4)'!I14+'Sol. Ficha Almacén y Rdo. (N4)'!J14+'Sol. Ficha Almacén y Rdo. (N4)'!K14) -> 10451.27904 | K49: =IF('Portada Libro'!M4="","",K45) -> 0 | L49: =IF('Portada Libro'!M4="","",L45) -> 13 | M49: =IF('Portada Libro'!M4="","",M45) -> 0
K50: =IF('Portada Libro'!M4="","",K46) -> 470 | L50: =IF('Portada Libro'!M4="","",L46) -> 12.08204262 | M50: =IF('Portada Libro'!M4="","",M46) -> 5678.560032
K51: =IF('Portada Libro'!M4="","",K47) -> 675 | L51: =IF('Portada Libro'!M4="","",L47) -> 12.30993545 | M51: =IF('Portada Libro'!M4="","",M47) -> 8309.20643
K52: =IF('Portada Libro'!M4="","",E49) -> 840 | L52: =IF('Portada Libro'!M4="","",F49) -> 12.44199886 | M52: =IF('Portada Libro'!M4="","",G49) -> 10451.27904
K53: =IF('Portada Libro'!M4="","",SUM(K49:K52)) -> 1985 | M53: =IF('Portada Libro'!M4="","",SUM(M49:M52)) -> 24439.0455
C54: ='Sol. Ficha Almacén y Rdo. (N4)'!C15 -> 2013-05-27 | D54: Venta 2 | H54: =IF('Portada Libro'!M4="","",MIN(K49,H58)) -> 0 | I54: =IF('Portada Libro'!M4="","",L49) -> 13 | J54: =IF('Portada Libro'!M4="","",IF(I54="","",H54*I54)) -> 0 | K54: =IF('Portada Libro'!M4="","",K49-H54) -> 0 | L54: =IF('Portada Libro'!M4="","",L49) -> 13 | M54: =IF('Portada Libro'!M4="","",K54*L54) -> 0
H55: =IF('Portada Libro'!M4="","",MIN(K50,H58-H54)) -> 470 | I55: =IF('Portada Libro'!M4="","",L50) -> 12.08204262 | J55: =IF('Portada Libro'!M4="","",IF(I55="","",H55*I55)) -> 5678.560032 | K55: =IF('Portada Libro'!M4="","",K50-H55) -> 0 | L55: =IF('Portada Libro'!M4="","",L50) -> 12.08204262 | M55: =IF('Portada Libro'!M4="","",K55*L55) -> 0
H56: =IF('Portada Libro'!M4="","",MIN(K51,H58-H54-H55)) -> 675 | I56: =IF('Portada Libro'!M4="","",L51) -> 12.30993545 | J56: =IF('Portada Libro'!M4="","",IF(I56="","",H56*I56)) -> 8309.20643 | K56: =IF('Portada Libro'!M4="","",K51-H56) -> 0 | L56: =IF('Portada Libro'!M4="","",L51) -> 12.30993545 | M56: =IF('Portada Libro'!M4="","",K56*L56) -> 0
H57: =IF('Portada Libro'!M4="","",MIN(K52,H58-H54-H55-H56)) -> 180 | I57: =IF('Portada Libro'!M4="","",L52) -> 12.44199886 | J57: =IF('Portada Libro'!M4="","",IF(I57="","",H57*I57)) -> 2239.559794 | K57: =IF('Portada Libro'!M4="","",K52-H57) -> 660 | L57: =IF('Portada Libro'!M4="","",L52) -> 12.44199886 | M57: =IF('Portada Libro'!M4="","",K57*L57) -> 8211.719246
H58: =IF('Portada Libro'!M4="","",'Sol. Ficha Almacén y Rdo. (N4)'!E15) -> 1325 | J58: =IF('Portada Libro'!M4="","",SUM(J54:J57)) -> 16227.32626 | K58: =IF('Portada Libro'!M4="","",SUM(K54:K57)) -> 660 | M58: =IF('Portada Libro'!M4="","",SUM(M54:M57)) -> 8211.719246
D60: Resultado de las ventas de mercaderías del mes de mayo por el criterio de valoración FIFO
C62: Ventas netas - Coste de ventas = | F62: ='Factura Venta 1 (N4)'!G28-'Factura Venta 1 (N4)'!G44-'Factura Venta 1 (N4)'!G45+'Factura Venta 2 (N4)'!G28-'Factura Venta 2 (N4)'!G44-'Factura Venta 2 (N4)'!G45 -> 23654.694 | G62: =-(G39+G45+G49+M38-M58) -> -24047.17137 | H62: = | I62: =F62+G62 -> -392.4773707

Sheet Libro Diario (N4) (hidden)
C3: DEBE | I3: HABER
C4: IMPORTES | D4: Nº CUENTA | E4: NOMBRE CUENTA | G4: Nº CUENTA | H4: NOMBRE CUENTA | I4: IMPORTES
E5: =IF(D5="","",VLOOKUP(D5,'Cuadro de Cuentas'!$B$3:$C$567,2,FALSE)) ->  | F5: =IF(G5="","","a") ->  | H5: =IF(G5="","",VLOOKUP(G5,'Cuadro de Cuentas'!$B$3:$C$567,2,FALSE)) -> 
E6: =IF(D6="","",VLOOKUP(D6,'Cuadro de Cuentas'!$B$3:$C$567,2,FALSE)) ->  | H6: =IF(G6="","",VLOOKUP(G6,'Cuadro de Cuentas'!$B$3:$C$567,2,FALSE)) -> 
E7: =IF(D7="","",VLOOKUP(D7,'Cuadro de Cuentas'!$B$3:$C$567,2,FALSE)) ->  | H7: =IF(G7="","",VLOOKUP(G7,'Cuadro de Cuentas'!$B$3:$C$567,2,FALSE)) -> 
E8: =IF(D8="","",VLOOKUP(D8,'Cuadro de Cuentas'!$B$3:$C$567,2,FALSE)) ->  | H8: =IF(G8="","",VLOOKUP(G8,'Cuadro de Cuentas'!$B$3:$C$567,2,FALSE)) -> 
E9: =IF(D9="","",VLOOKUP(D9,'Cuadro de Cuentas'!$B$3:$C$567,2,FALSE)) ->  | H9: =IF(G9="","",VLOOKUP(G9,'Cuadro de Cuentas'!$B$3:$C$567,2,FALSE)) -> 
E10: =IF(D10="","",VLOOKUP(D10,'Cuadro de Cuentas'!$B$3:$C$567,2,FALSE)) ->  | H10: =IF(G10="","",VLOOKUP(G10,'Cuadro de Cuentas'!$B$3:$C$567,2,FALSE)) -> 
E11: =IF(D11="","",VLOOKUP(D11,'Cuadro de Cuentas'!$B$3:$C$567,2,FALSE)) ->  | H11: =IF(G11="","",VLOOKUP(G11,'Cuadro de Cuentas'!$B$3:$C$567,2,FALSE)) -> 
E12: =IF(D12="","",VLOOKUP(D12,'Cuadro de Cuentas'!$B$3:$C$567,2,FALSE)) ->  | H12: =IF(G12="","",VLOOKUP(G12,'Cuadro de Cuentas'!$B$3:$C$567,2,FALSE)) -> 
E13: =IF(D13="","",VLOOKUP(D13,'Cuadro de Cuentas'!$B$3:$C$567,2,FALSE)) ->  | H13: =IF(G13="","",VLOOKUP(G13,'Cuadro de Cuentas'!$B$3:$C$567,2,FALSE)) -> 
E14: =IF(D14="","",VLOOKUP(D14,'Cuadro de Cuentas'!$B$3:$C$567,2,FALSE)) ->  | H14: =IF(G14="","",VLOOKUP(G14,'Cuadro de Cuentas'!$B$3:$C$567,2,FALSE)) -> 
E15: =IF(D15="","",VLOOKUP(D15,'Cuadro de Cuentas'!$B$3:$C$567,2,FALSE)) ->  | H15: =IF(G15="","",VLOOKUP(G15,'Cuadro de Cuentas'!$B$3:$C$567,2,FALSE)) -> 
E16: =IF(D16="","",VLOOKUP(D16,'Cuadro de Cuentas'!$B$3:$C$567,2,FALSE)) ->  | H16: =IF(G16="","",VLOOKUP(G16,'Cuadro de Cuentas'!$B$3:$C$567,2,FALSE)) -> 
E17: =IF(D17="","",VLOOKUP(D17,'Cuadro de Cuentas'!$B$3:$C$567,2,FALSE)) ->  | H17: =IF(G17="","",VLOOKUP(G17,'Cuadro de Cuentas'!$B$3:$C$567,2,FALSE)) -> 
E18: =IF(D18="","",VLOOKUP(D18,'Cuadro de Cuentas'!$B$3:$C$567,2,FALSE)) ->  | H18: =IF(G18="","",VLOOKUP(G18,'Cuadro de Cuentas'!$B$3:$C$567,2,FALSE)) -> 
E19: =IF(D19="","",VLOOKUP(D19,'Cuadro de Cuentas'!$B$3:$C$567,2,FALSE)) ->  | H19: =IF(G19="","",VLOOKUP(G19,'Cuadro de Cuentas'!$B$3:$C$567,2,FALSE)) -> 
E20: =IF(D20="","",VLOOKUP(D20,'Cuadro de Cuentas'!$B$3:$C$567,2,FALSE)) ->  | H20: =IF(G20="","",VLOOKUP(G20,'Cuadro de Cuentas'!$B$3:$C$567,2,FALSE)) -> 
E21: =IF(D21="","",VLOOKUP(D21,'Cuadro de Cuentas'!$B$3:$C$567,2,FALSE)) ->  | H21: =IF(G21="","",VLOOKUP(G21,'Cuadro de Cuentas'!$B$3:$C$567,2,FALSE)) -> 
E22: =IF(D22="","",VLOOKUP(D22,'Cuadro de Cuentas'!$B$3:$C$567,2,FALSE)) ->  | H22: =IF(G22="","",VLOOKUP(G22,'Cuadro de Cuentas'!$B$3:$C$567,2,FALSE)) -> 
E23: =IF(D23="","",VLOOKUP(D23,'Cuadro de Cuentas'!$B$3:$C$567,2,FALSE)) ->  | H23: =IF(G23="","",VLOOKUP(G23,'Cuadro de Cuentas'!$B$3:$C$567,2,FALSE)) -> 
E24: =IF(D24="","",VLOOKUP(D24,'Cuadro de Cuentas'!$B$3:$C$567,2,FALSE)) ->  | H24: =IF(G24="","",VLOOKUP(G24,'Cuadro de Cuentas'!$B$3:$C$567,2,FALSE)) -> 
E25: =IF(D25="","",VLOOKUP(D25,'Cuadro de Cuentas'!$B$3:$C$567,2,FALSE)) ->  | H25: =IF(G25="","",VLOOKUP(G25,'Cuadro de Cuentas'!$B$3:$C$567,2,FALSE)) -> 
E26: =IF(D26="","",VLOOKUP(D26,'Cuadro de Cuentas'!$B$3:$C$567,2,FALSE)) ->  | H26: =IF(G26="","",VLOOKUP(G26,'Cuadro de Cuentas'!$B$3:$C$567,2,FALSE)) -> 
E27: =IF(D27="","",VLOOKUP(D27,'Cuadro de Cuentas'!$B$3:$C$567,2,FALSE)) ->  | H27: =IF(G27="","",VLOOKUP(G27,'Cuadro de Cuentas'!$B$3:$C$567,2,FALSE)) -> 
E28: =IF(D28="","",VLOOKUP(D28,'Cuadro de Cuentas'!$B$3:$C$567,2,FALSE)) ->  | H28: =IF(G28="","",VLOOKUP(G28,'Cuadro de Cuentas'!$B$3:$C$567,2,FALSE)) -> 
E29: =IF(D29="","",VLOOKUP(D29,'Cuadro de Cuentas'!$B$3:$C$567,2,FALSE)) ->  | H29: =IF(G29="","",VLOOKUP(G29,'Cuadro de Cuentas'!$B$3:$C$567,2,FALSE)) -> 
E30: =IF(D30="","",VLOOKUP(D30,'Cuadro de Cuentas'!$B$3:$C$567,2,FALSE)) ->  | H30: =IF(G30="","",VLOOKUP(G30,'Cuadro de Cuentas'!$B$3:$C$567,2,FALSE)) -> 
E31: =IF(D31="","",VLOOKUP(D31,'Cuadro de Cuentas'!$B$3:$C$567,2,FALSE)) ->  | H31: =IF(G31="","",VLOOKUP(G31,'Cuadro de Cuentas'!$B$3:$C$567,2,FALSE)) -> 
E32: =IF(D32="","",VLOOKUP(D32,'Cuadro de Cuentas'!$B$3:$C$567,2,FALSE)) ->  | H32: =IF(G32="","",VLOOKUP(G32,'Cuadro de Cuentas'!$B$3:$C$567,2,FALSE)) -> 
E33: =IF(D33="","",VLOOKUP(D33,'Cuadro de Cuentas'!$B$3:$C$567,2,FALSE)) ->  | H33: =IF(G33="","",VLOOKUP(G33,'Cuadro de Cuentas'!$B$3:$C$567,2,FALSE)) -> 
E34: =IF(D34="","",VLOOKUP(D34,'Cuadro de Cuentas'!$B$3:$C$567,2,FALSE)) ->  | H34: =IF(G34="","",VLOOKUP(G34,'Cuadro de Cuentas'!$B$3:$C$567,2,FALSE)) -> 
E35: =IF(D35="","",VLOOKUP(D35,'Cuadro de Cuentas'!$B$3:$C$567,2,FALSE)) ->  | H35: =IF(G35="","",VLOOKUP(G35,'Cuadro de Cuentas'!$B$3:$C$567,2,FALSE)) -> 
E36: =IF(D36="","",VLOOKUP(D36,'Cuadro de Cuentas'!$B$3:$C$567,2,FALSE)) ->  | H36: =IF(G36="","",VLOOKUP(G36,'Cuadro de Cuentas'!$B$3:$C$567,2,FALSE)) -> 
E37: =IF(D37="","",VLOOKUP(D37,'Cuadro de Cuentas'!$B$3:$C$567,2,FALSE)) ->  | H37: =IF(G37="","",VLOOKUP(G37,'Cuadro de Cuentas'!$B$3:$C$567,2,FALSE)) -> 
E38: =IF(D38="","",VLOOKUP(D38,'Cuadro de Cuentas'!$B$3:$C$567,2,FALSE)) ->  | H38: =IF(G38="","",VLOOKUP(G38,'Cuadro de Cuentas'!$B$3:$C$567,2,FALSE)) -> 
E39: =IF(D39="","",VLOOKUP(D39,'Cuadro de Cuentas'!$B$3:$C$567,2,FALSE)) ->  | H39: =IF(G39="","",VLOOKUP(G39,'Cuadro de Cuentas'!$B$3:$C$567,2,FALSE)) -> 
E40: =IF(D40="","",VLOOKUP(D40,'Cuadro de Cuentas'!$B$3:$C$567,2,FALSE)) ->  | H40: =IF(G40="","",VLOOKUP(G40,'Cuadro de Cuentas'!$B$3:$C$567,2,FALSE)) -> 
E41: =IF(D41="","",VLOOKUP(D41,'Cuadro de Cuentas'!$B$3:$C$567,2,FALSE)) ->  | H41: =IF(G41="","",VLOOKUP(G41,'Cuadro de Cuentas'!$B$3:$C$567,2,FALSE)) -> 
E42: =IF(D42="","",VLOOKUP(D42,'Cuadro de Cuentas'!$B$3:$C$567,2,FALSE)) ->  | H42: =IF(G42="","",VLOOKUP(G42,'Cuadro de Cuentas'!$B$3:$C$567,2,FALSE)) -> 
E43: =IF(D43="","",VLOOKUP(D43,'Cuadro de Cuentas'!$B$3:$C$567,2,FALSE)) ->  | H43: =IF(G43="","",VLOOKUP(G43,'Cuadro de Cuentas'!$B$3:$C$567,2,FALSE)) -> 
E44: =IF(D44="","",VLOOKUP(D44,'Cuadro de Cuentas'!$B$3:$C$567,2,FALSE)) ->  | H44: =IF(G44="","",VLOOKUP(G44,'Cuadro de Cuentas'!$B$3:$C$567,2,FALSE)) -> 
E45: =IF(D45="","",VLOOKUP(D45,'Cuadro de Cuentas'!$B$3:$C$567,2,FALSE)) ->  | H45: =IF(G45="","",VLOOKUP(G45,'Cuadro de Cuentas'!$B$3:$C$567,2,FALSE)) -> 
E46: =IF(D46="","",VLOOKUP(D46,'Cuadro de Cuentas'!$B$3:$C$567,2,FALSE)) ->  | H46: =IF(G46="","",VLOOKUP(G46,'Cuadro de Cuentas'!$B$3:$C$567,2,FALSE)) -> 
E47: =IF(D47="","",VLOOKUP(D47,'Cuadro de Cuentas'!$B$3:$C$567,2,FALSE)) ->  | H47: =IF(G47="","",VLOOKUP(G47,'Cuadro de Cuentas'!$B$3:$C$567,2,FALSE)) -> 
E48: =IF(D48="","",VLOOKUP(D48,'Cuadro de Cuentas'!$B$3:$C$567,2,FALSE)) ->  | H48: =IF(G48="","",VLOOKUP(G48,'Cuadro de Cuentas'!$B$3:$C$567,2,FALSE)) -> 
E49: =IF(D49="","",VLOOKUP(D49,'Cuadro de Cuentas'!$B$3:$C$567,2,FALSE)) ->  | H49: =IF(G49="","",VLOOKUP(G49,'Cuadro de Cuentas'!$B$3:$C$567,2,FALSE)) -> 
C53: DEBE | I53: HABER
C54: IMPORTES | D54: Nº CUENTA | E54: NOMBRE CUENTA | G54: Nº CUENTA | H54: NOMBRE CUENTA | I54: IMPORTES
E55: =IF(D55="","",VLOOKUP(D55,'Cuadro de Cuentas'!$B$3:$C$567,2,FALSE)) ->  | F55: =IF(G55="","","a") ->  | H55: =IF(G55="","",VLOOKUP(G55,'Cuadro de Cuentas'!$B$3:$C$567,2,FALSE)) -> 
E56: =IF(D56="","",VLOOKUP(D56,'Cuadro de Cuentas'!$B$3:$C$567,2,FALSE)) ->  | H56: =IF(G56="","",VLOOKUP(G56,'Cuadro de Cuentas'!$B$3:$C$567,2,FALSE)) -> 
E57: =IF(D57="","",VLOOKUP(D57,'Cuadro de Cuentas'!$B$3:$C$567,2,FALSE)) ->  | H57: =IF(G57="","",VLOOKUP(G57,'Cuadro de Cuentas'!$B$3:$C$567,2,FALSE)) -> 
E58: =IF(D58="","",VLOOKUP(D58,'Cuadro de Cuentas'!$B$3:$C$567,2,FALSE)) ->  | H58: =IF(G58="","",VLOOKUP(G58,'Cuadro de Cuentas'!$B$3:$C$567,2,FALSE)) -> 
E59: =IF(D59="","",VLOOKUP(D59,'Cuadro de Cuentas'!$B$3:$C$567,2,FALSE)) ->  | H59: =IF(G59="","",VLOOKUP(G59,'Cuadro de Cuentas'!$B$3:$C$567,2,FALSE)) -> 
E60: =IF(D60="","",VLOOKUP(D60,'Cuadro de Cuentas'!$B$3:$C$567,2,FALSE)) ->  | H60: =IF(G60="","",VLOOKUP(G60,'Cuadro de Cuentas'!$B$3:$C$567,2,FALSE)) -> 
E61: =IF(D61="","",VLOOKUP(D61,'Cuadro de Cuentas'!$B$3:$C$567,2,FALSE)) ->  | H61: =IF(G61="","",VLOOKUP(G61,'Cuadro de Cuentas'!$B$3:$C$567,2,FALSE)) -> 
E62: =IF(D62="","",VLOOKUP(D62,'Cuadro de Cuentas'!$B$3:$C$567,2,FALSE)) ->  | H62: =IF(G62="","",VLOOKUP(G62,'Cuadro de Cuentas'!$B$3:$C$567,2,FALSE)) -> 
E63: =IF(D63="","",VLOOKUP(D63,'Cuadro de Cuentas'!$B$3:$C$567,2,FALSE)) ->  | H63: =IF(G63="","",VLOOKUP(G63,'Cuadro de Cuentas'!$B$3:$C$567,2,FALSE)) -> 
E64: =IF(D64="","",VLOOKUP(D64,'Cuadro de Cuentas'!$B$3:$C$567,2,FALSE)) ->  | H64: =IF(G64="","",VLOOKUP(G64,'Cuadro de Cuentas'!$B$3:$C$567,2,FALSE)) -> 
E65: =IF(D65="","",VLOOKUP(D65,'Cuadro de Cuentas'!$B$3:$C$567,2,FALSE)) ->  | H65: =IF(G65="","",VLOOKUP(G65,'Cuadro de Cuentas'!$B$3:$C$567,2,FALSE)) -> 
E66: =IF(D66="","",VLOOKUP(D66,'Cuadro de Cuentas'!$B$3:$C$567,2,FALSE)) ->  | H66: =IF(G66="","",VLOOKUP(G66,'Cuadro de Cuentas'!$B$3:$C$567,2,FALSE)) -> 
E67: =IF(D67="","",VLOOKUP(D67,'Cuadro de Cuentas'!$B$3:$C$567,2,FALSE)) ->  | H67: =IF(G67="","",VLOOKUP(G67,'Cuadro de Cuentas'!$B$3:$C$567,2,FALSE)) -> 
E68: =IF(D68="","",VLOOKUP(D68,'Cuadro de Cuentas'!$B$3:$C$567,2,FALSE)) ->  | H68: =IF(G68="","",VLOOKUP(G68,'Cuadro de Cuentas'!$B$3:$C$567,2,FALSE)) -> 
E69: =IF(D69="","",VLOOKUP(D69,'Cuadro de Cuentas'!$B$3:$C$567,2,FALSE)) ->  | H69: =IF(G69="","",VLOOKUP(G69,'Cuadro de Cuentas'!$B$3:$C$567,2,FALSE)) -> 
E70: =IF(D70="","",VLOOKUP(D70,'Cuadro de Cuentas'!$B$3:$C$567,2,FALSE)) ->  | H70: =IF(G70="","",VLOOKUP(G70,'Cuadro de Cuentas'!$B$3:$C$567,2,FALSE)) -> 
E71: =IF(D71="","",VLOOKUP(D71,'Cuadro de Cuentas'!$B$3:$C$567,2,FALSE)) ->  | H71: =IF(G71="","",VLOOKUP(G71,'Cuadro de Cuentas'!$B$3:$C$567,2,FALSE)) -> 
E72: =IF(D72="","",VLOOKUP(D72,'Cuadro de Cuentas'!$B$3:$C$567,2,FALSE)) ->  | H72: =IF(G72="","",VLOOKUP(G72,'Cuadro de Cuentas'!$B$3:$C$567,2,FALSE)) -> 
E73: =IF(D73="","",VLOOKUP(D73,'Cuadro de Cuentas'!$B$3:$C$567,2,FALSE)) ->  | H73: =IF(G73="","",VLOOKUP(G73,'Cuadro de Cuentas'!$B$3:$C$567,2,FALSE)) -> 
E74: =IF(D74="","",VLOOKUP(D74,'Cuadro de Cuentas'!$B$3:$C$567,2,FALSE)) ->  | H74: =IF(G74="","",VLOOKUP(G74,'Cuadro de Cuentas'!$B$3:$C$567,2,FALSE)) -> 
E75: =IF(D75="","",VLOOKUP(D75,'Cuadro de Cuentas'!$B$3:$C$567,2,FALSE)) ->  | H75: =IF(G75="","",VLOOKUP(G75,'Cuadro de Cuentas'!$B$3:$C$567,2,FALSE)) -> 
E76: =IF(D76="","",VLOOKUP(D76,'Cuadro de Cuentas'!$B$3:$C$567,2,FALSE)) ->  | H76: =IF(G76="","",VLOOKUP(G76,'Cuadro de Cuentas'!$B$3:$C$567,2,FALSE)) -> 
E77: =IF(D77="","",VLOOKUP(D77,'Cuadro de Cuentas'!$B$3:$C$567,2,FALSE)) ->  | H77: =IF(G77="","",VLOOKUP(G77,'Cuadro de Cuentas'!$B$3:$C$567,2,FALSE)) -> 
E78: =IF(D78="","",VLOOKUP(D78,'Cuadro de Cuentas'!$B$3:$C$567,2,FALSE)) ->  | H78: =IF(G78="","",VLOOKUP(G78,'Cuadro de Cuentas'!$B$3:$C$567,2,FALSE)) -> 
E79: =IF(D79="","",VLOOKUP(D79,'Cuadro de Cuentas'!$B$3:$C$567,2,FALSE)) ->  | H79: =IF(G79="","",VLOOKUP(G79,'Cuadro de Cuentas'!$B$3:$C$567,2,FALSE)) -> 
E80: =IF(D80="","",VLOOKUP(D80,'Cuadro de Cuentas'!$B$3:$C$567,2,FALSE)) ->  | H80: =IF(G80="","",VLOOKUP(G80,'Cuadro de Cuentas'!$B$3:$C$567,2,FALSE)) -> 
E81: =IF(D81="","",VLOOKUP(D81,'Cuadro de Cuentas'!$B$3:$C$567,2,FALSE)) ->  | H81: =IF(G81="","",VLOOKUP(G81,'Cuadro de Cuentas'!$B$3:$C$567,2,FALSE)) -> 
E82: =IF(D82="","",VLOOKUP(D82,'Cuadro de Cuentas'!$B$3:$C$567,2,FALSE)) ->  | H82: =IF(G82="","",VLOOKUP(G82,'Cuadro de Cuentas'!$B$3:$C$567,2,FALSE)) -> 
E83: =IF(D83="","",VLOOKUP(D83,'Cuadro de Cuentas'!$B$3:$C$567,2,FALSE)) ->  | H83: =IF(G83="","",VLOOKUP(G83,'Cuadro de Cuentas'!$B$3:$C$567,2,FALSE)) -> 
E84: =IF(D84="","",VLOOKUP(D84,'Cuadro de Cuentas'!$B$3:$C$567,2,FALSE)) ->  | H84: =IF(G84="","",VLOOKUP(G84,'Cuadro de Cuentas'!$B$3:$C$567,2,FALSE)) -> 
E85: =IF(D85="","",VLOOKUP(D85,'Cuadro de Cuentas'!$B$3:$C$567,2,FALSE)) ->  | H85: =IF(G85="","",VLOOKUP(G85,'Cuadro de Cuentas'!$B$3:$C$567,2,FALSE)) -> 
E86: =IF(D86="","",VLOOKUP(D86,'Cuadro de Cuentas'!$B$3:$C$567,2,FALSE)) ->  | H86: =IF(G86="","",VLOOKUP(G86,'Cuadro de Cuentas'!$B$3:$C$567,2,FALSE)) -> 
E87: =IF(D87="","",VLOOKUP(D87,'Cuadro de Cuentas'!$B$3:$C$567,2,FALSE)) ->  | H87: =IF(G87="","",VLOOKUP(G87,'Cuadro de Cuentas'!$B$3:$C$567,2,FALSE)) -> 
E88: =IF(D88="","",VLOOKUP(D88,'Cuadro de Cuentas'!$B$3:$C$567,2,FALSE)) ->  | H88: =IF(G88="","",VLOOKUP(G88,'Cuadro de Cuentas'!$B$3:$C$567,2,FALSE)) -> 
E89: =IF(D89="","",VLOOKUP(D89,'Cuadro de Cuentas'!$B$3:$C$567,2,FALSE)) ->  | H89: =IF(G89="","",VLOOKUP(G89,'Cuadro de Cuentas'!$B$3:$C$567,2,FALSE)) -> 
E90: =IF(D90="","",VLOOKUP(D90,'Cuadro de Cuentas'!$B$3:$C$567,2,FALSE)) ->  | H90: =IF(G90="","",VLOOKUP(G90,'Cuadro de Cuentas'!$B$3:$C$567,2,FALSE)) -> 
E91: =IF(D91="","",VLOOKUP(D91,'Cuadro de Cuentas'!$B$3:$C$567,2,FALSE)) ->  | H91: =IF(G91="","",VLOOKUP(G91,'Cuadro de Cuentas'!$B$3:$C$567,2,FALSE)) -> 
E92: =IF(D92="","",VLOOKUP(D92,'Cuadro de Cuentas'!$B$3:$C$567,2,FALSE)) ->  | H92: =IF(G92="","",VLOOKUP(G92,'Cuadro de Cuentas'!$B$3:$C$567,2,FALSE)) -> 
E93: =IF(D93="","",VLOOKUP(D93,'Cuadro de Cuentas'!$B$3:$C$567,2,FALSE)) ->  | H93: =IF(G93="","",VLOOKUP(G93,'Cuadro de Cuentas'!$B$3:$C$567,2,FALSE)) -> 
E94: =IF(D94="","",VLOOKUP(D94,'Cuadro de Cuentas'!$B$3:$C$567,2,FALSE)) ->  | H94: =IF(G94="","",VLOOKUP(G94,'Cuadro de Cuentas'!$B$3:$C$567,2,FALSE)) -> 
E95: =IF(D95="","",VLOOKUP(D95,'Cuadro de Cuentas'!$B$3:$C$567,2,FALSE)) ->  | H95: =IF(G95="","",VLOOKUP(G95,'Cuadro de Cuentas'!$B$3:$C$567,2,FALSE)) -> 
E96: =IF(D96="","",VLOOKUP(D96,'Cuadro de Cuentas'!$B$3:$C$567,2,FALSE)) ->  | H96: =IF(G96="","",VLOOKUP(G96,'Cuadro de Cuentas'!$B$3:$C$567,2,FALSE)) -> 
E97: =IF(D97="","",VLOOKUP(D97,'Cuadro de Cuentas'!$B$3:$C$567,2,FALSE)) ->  | H97: =IF(G97="","",VLOOKUP(G97,'Cuadro de Cuentas'!$B$3:$C$567,2,FALSE)) -> 
E98: =IF(D98="","",VLOOKUP(D98,'Cuadro de Cuentas'!$B$3:$C$567,2,FALSE)) ->  | H98: =IF(G98="","",VLOOKUP(G98,'Cuadro de Cuentas'!$B$3:$C$567,2,FALSE)) -> 
E99: =IF(D99="","",VLOOKUP(D99,'Cuadro de Cuentas'!$B$3:$C$567,2,FALSE)) ->  | H99: =IF(G99="","",VLOOKUP(G99,'Cuadro de Cuentas'!$B$3:$C$567,2,FALSE)) -> 

Sheet Solución Libro Diario (N4) (hidden)
C3: DEBE | I3: HABER
C4: IMPORTES | D4: Nº CUENTA | E4: NOMBRE CUENTA | F4: ='Liquidación Aranceles C1 (N4)'!C28 -> 2013-05-06 | G4: Nº CUENTA | H4: NOMBRE CUENTA | I4: IMPORTES
C5: ='Liquidación Aranceles C1 (N4)'!C30+'Liquidación Aranceles C1 (N4)'!C31 -> 993.6089464 | D5: 6001 | E5: =IF(D5="","",VLOOKUP(D5,'Cuadro de Cuentas'!$B$3:$C$567,2,FALSE)) -> Compras de mercaderías en tránsito | F5: =IF(G5="","","a") ->  | H5: =IF(G5="","",VLOOKUP(G5,'Cuadro de Cuentas'!$B$3:$C$567,2,FALSE)) -> 
C6: ='Liquidación Aranceles C1 (N4)'!C32 -> 1421.785081 | D6: 472 | E6: =IF(D6="","",VLOOKUP(D6,'Cuadro de Cuentas'!$B$3:$C$567,2,FALSE)) -> Hacienda Pública, IVA soportado | F6: =IF(G6="","","a") -> a | G6: 572 | H6: =IF(G6="","",VLOOKUP(G6,'Cuadro de Cuentas'!$B$3:$C$567,2,FALSE)) -> Bancos e instituciones de crédito c/c vista, euros | I6: ='Liquidación Aranceles C1 (N4)'!C33 -> 2415.394027
E7: (COMPRA 1) | F7: ='Factura Compra 1 (N4)'!L19 -> 2013-05-08
C8: =+'Factura Compra 1 (N4)'!L62+'Factura Transportista C1 (N4)'!H28+'Factura Transportista C1 (N4)'!G30+'Liquidación Aranceles C1 (N4)'!C30+'Liquidación Aranceles C1 (N4)'!C31 -> 7128.405146 | D8: 600 | E8: =IF(D8="","",VLOOKUP(D8,'Cuadro de Cuentas'!$B$3:$C$567,2,FALSE)) -> Compras de mercaderías | F8: =IF(G8="","","a") ->  | H8: =IF(G8="","",VLOOKUP(G8,'Cuadro de Cuentas'!$B$3:$C$567,2,FALSE)) -> 
C9: ='Factura Transportista C1 (N4)'!H34 -> 62.58 | D9: 472 | E9: =IF(D9="","",VLOOKUP(D9,'Cuadro de Cuentas'!$B$3:$C$567,2,FALSE)) -> Hacienda Pública, IVA soportado | F9: a | G9: 6001 | H9: =IF(G9="","",VLOOKUP(G9,'Cuadro de Cuentas'!$B$3:$C$567,2,FALSE)) -> Compras de mercaderías en tránsito | I9: =C5 -> 993.6089464
F10: a | G10: 400 | H10: =IF(G10="","",VLOOKUP(G10,'Cuadro de Cuentas'!$B$3:$C$567,2,FALSE)) -> Proveedores | I10: =+'Factura Compra 1 (N4)'!L62 -> 5776.7962
E11: =IF(D11="","",VLOOKUP(D11,'Cuadro de Cuentas'!$B$3:$C$567,2,FALSE)) ->  | F11: a | G11: 410 | H11: =IF(G11="","",VLOOKUP(G11,'Cuadro de Cuentas'!$B$3:$C$567,2,FALSE)) -> Acreedores por prestaciones de servicios | I11: =+'Factura Transportista C1 (N4)'!H35 -> 420.58
E12: (COMPRA 1) | F12: ='Factura Venta 1 (N4)'!G18 -> 2013-05-11 | H12: =IF(G12="","",VLOOKUP(G12,'Cuadro de Cuentas'!$B$3:$C$567,2,FALSE)) -> 
C13: =+'Factura Venta 1 (N4)'!G48 -> 9575.94824 | D13: 430 | E13: =IF(D13="","",VLOOKUP(D13,'Cuadro de Cuentas'!$B$3:$C$567,2,FALSE)) -> Clientes | H13: =IF(G13="","",VLOOKUP(G13,'Cuadro de Cuentas'!$B$3:$C$567,2,FALSE)) -> 
E14: =IF(D14="","",VLOOKUP(D14,'Cuadro de Cuentas'!$B$3:$C$567,2,FALSE)) ->  | F14: a | G14: 700 | H14: =IF(G14="","",VLOOKUP(G14,'Cuadro de Cuentas'!$B$3:$C$567,2,FALSE)) -> Ventas de mercaderías | I14: =+'Factura Venta 1 (N4)'!G28-'Factura Venta 1 (N4)'!G44-'Factura Venta 1 (N4)'!G45 -> 7460.544
E15: =IF(D15="","",VLOOKUP(D15,'Cuadro de Cuentas'!$B$3:$C$567,2,FALSE)) ->  | F15: a | G15: 759 | H15: =IF(G15="","",VLOOKUP(G15,'Cuadro de Cuentas'!$B$3:$C$567,2,FALSE)) -> Ingresos por servicios diversos | I15: =+'Factura Venta 1 (N4)'!G30+'Factura Venta 1 (N4)'!G32 -> 467
E16: =IF(D16="","",VLOOKUP(D16,'Cuadro de Cuentas'!$B$3:$C$567,2,FALSE)) ->  | F16: a | G16: 477 | H16: =IF(G16="","",VLOOKUP(G16,'Cuadro de Cuentas'!$B$3:$C$567,2,FALSE)) -> Hacienda Pública, IVA repercutido | I16: =+'Factura Venta 1 (N4)'!G47 -> 1648.40424
E17: (VENTA 1) | F17: ='Factura Transportista C1 (N4)'!D38 -> 2013-05-14 | H17: =IF(G17="","",VLOOKUP(G17,'Cuadro de Cuentas'!$B$3:$C$567,2,FALSE)) -> 
C18: =+'Factura Transportista C1 (N4)'!H38 -> 420.58 | D18: 410 | E18: =IF(D18="","",VLOOKUP(D18,'Cuadro de Cuentas'!$B$3:$C$567,2,FALSE)) -> Acreedores por prestaciones de servicios | H18: =IF(G18="","",VLOOKUP(G18,'Cuadro de Cuentas'!$B$3:$C$567,2,FALSE)) -> 
E19: =IF(D19="","",VLOOKUP(D19,'Cuadro de Cuentas'!$B$3:$C$567,2,FALSE)) ->  | F19: a | G19: 572 | H19: =IF(G19="","",VLOOKUP(G19,'Cuadro de Cuentas'!$B$3:$C$567,2,FALSE)) -> Bancos e instituciones de crédito c/c vista, euros | I19: =+C18 -> 420.58
E20: (LIQUIDACIÓN TRANSPORTE COMPRA 1) | F20: ='Liquidación Aranceles C2 (N4)'!C28 -> 2013-05-16 | H20: =IF(G20="","",VLOOKUP(G20,'Cuadro de Cuentas'!$B$3:$C$567,2,FALSE)) -> 
C21: ='Liquidación Aranceles C2 (N4)'!C30+'Liquidación Aranceles C2 (N4)'!C31 -> 1158.82893 | D21: 6001 | E21: =IF(D21="","",VLOOKUP(D21,'Cuadro de Cuentas'!$B$3:$C$567,2,FALSE)) -> Compras de mercaderías en tránsito | F21: =IF(G21="","","a") -> 
C22: ='Liquidación Aranceles C2 (N4)'!C32 -> 1658.20335 | D22: 472 | E22: =IF(D22="","",VLOOKUP(D22,'Cuadro de Cuentas'!$B$3:$C$567,2,FALSE)) -> Hacienda Pública, IVA soportado | F22: =IF(G22="","","a") -> a | G22: 572 | H22: =IF(G22="","",VLOOKUP(G22,'Cuadro de Cuentas'!$B$3:$C$567,2,FALSE)) -> Bancos e instituciones de crédito c/c vista, euros | I22: ='Liquidación Aranceles C2 (N4)'!C33 -> 2817.03228
E23: (COMPRA 2) | F23: ='Factura Compra 2 (N4)'!L19 -> 2013-05-18
C24: ='Factura Compra 2 (N4)'!L62+'Factura Transportista C2 (N4)'!H28+'Factura Transportista C2 (N4)'!G30+'Liquidación Aranceles C2 (N4)'!C30+'Liquidación Aranceles C2 (N4)'!C31 -> 8309.20643 | D24: 600 | E24: =IF(D24="","",VLOOKUP(D24,'Cuadro de Cuentas'!$B$3:$C$567,2,FALSE)) -> Compras de mercaderías | H24: =IF(G24="","",VLOOKUP(G24,'Cuadro de Cuentas'!$B$3:$C$567,2,FALSE)) -> 
C25: ='Factura Transportista C2 (N4)'!H34 -> 72.24 | D25: 472 | E25: =IF(D25="","",VLOOKUP(D25,'Cuadro de Cuentas'!$B$3:$C$567,2,FALSE)) -> Hacienda Pública, IVA soportado | F25: a | G25: 6001 | H25: =IF(G25="","",VLOOKUP(G25,'Cuadro de Cuentas'!$B$3:$C$567,2,FALSE)) -> Compras de mercaderías en tránsito | I25: =C21 -> 1158.82893
E26: =IF(D26="","",VLOOKUP(D26,'Cuadro de Cuentas'!$B$3:$C$567,2,FALSE)) ->  | F26: a | G26: 400 | H26: =IF(G26="","",VLOOKUP(G26,'Cuadro de Cuentas'!$B$3:$C$567,2,FALSE)) -> Proveedores | I26: ='Factura Compra 2 (N4)'!L62 -> 6737.3775
E27: =IF(D27="","",VLOOKUP(D27,'Cuadro de Cuentas'!$B$3:$C$567,2,FALSE)) ->  | F27: a | G27: 410 | H27: =IF(G27="","",VLOOKUP(G27,'Cuadro de Cuentas'!$B$3:$C$567,2,FALSE)) -> Acreedores por prestaciones de servicios | I27: ='Factura Transportista C2 (N4)'!H35 -> 485.24
E28: (COMPRA 2) | F28: ='Liquidación Aranceles C3 (N4)'!C28 -> 2013-05-19 | H28: =IF(G28="","",VLOOKUP(G28,'Cuadro de Cuentas'!$B$3:$C$567,2,FALSE)) -> 
C29: ='Liquidación Aranceles C3 (N4)'!C30+'Liquidación Aranceles C3 (N4)'!C31 -> 1458.95904 | D29: 6001 | E29: =IF(D29="","",VLOOKUP(D29,'Cuadro de Cuentas'!$B$3:$C$567,2,FALSE)) -> Compras de mercaderías en tránsito | F29: =IF(G29="","","a") ->  | H29: =IF(G29="","",VLOOKUP(G29,'Cuadro de Cuentas'!$B$3:$C$567,2,FALSE)) -> 
C30: ='Liquidación Aranceles C3 (N4)'!C32 -> 2087.668598 | D30: 472 | E30: =IF(D30="","",VLOOKUP(D30,'Cuadro de Cuentas'!$B$3:$C$567,2,FALSE)) -> Hacienda Pública, IVA soportado | F30: =IF(G30="","","a") -> a | G30: 572 | H30: =IF(G30="","",VLOOKUP(G30,'Cuadro de Cuentas'!$B$3:$C$567,2,FALSE)) -> Bancos e instituciones de crédito c/c vista, euros | I30: ='Liquidación Aranceles C3 (N4)'!C33 -> 3546.627638
E31: (COMPRA 3) | F31: ='Factura Compra 3 (N4)'!L19 -> 2013-05-21 | H31: =IF(G31="","",VLOOKUP(G31,'Cuadro de Cuentas'!$B$3:$C$567,2,FALSE)) -> 
C32: =+'Factura Compra 3 (N4)'!L62+'Factura Transportista C3 (N4)'!H28+'Factura Transportista C3 (N4)'!G30+'Liquidación Aranceles C3 (N4)'!C30+'Liquidación Aranceles C3 (N4)'!C31 -> 10451.27904 | D32: 600 | E32: =IF(D32="","",VLOOKUP(D32,'Cuadro de Cuentas'!$B$3:$C$567,2,FALSE)) -> Compras de mercaderías | H32: =IF(G32="","",VLOOKUP(G32,'Cuadro de Cuentas'!$B$3:$C$567,2,FALSE)) -> 
C33: ='Factura Transportista C3 (N4)'!H34 -> 89.25 | D33: 472 | E33: =IF(D33="","",VLOOKUP(D33,'Cuadro de Cuentas'!$B$3:$C$567,2,FALSE)) -> Hacienda Pública, IVA soportado | F33: a | G33: 6001 | H33: =IF(G33="","",VLOOKUP(G33,'Cuadro de Cuentas'!$B$3:$C$567,2,FALSE)) -> Compras de mercaderías en tránsito | I33: =C29 -> 1458.95904
E34: =IF(D34="","",VLOOKUP(D34,'Cuadro de Cuentas'!$B$3:$C$567,2,FALSE)) ->  | F34: a | G34: 400 | H34: =IF(G34="","",VLOOKUP(G34,'Cuadro de Cuentas'!$B$3:$C$567,2,FALSE)) -> Proveedores | I34: ='Factura Compra 3 (N4)'!L62 -> 8482.32
E35: =IF(D35="","",VLOOKUP(D35,'Cuadro de Cuentas'!$B$3:$C$567,2,FALSE)) ->  | F35: a | G35: 410 | H35: =IF(G35="","",VLOOKUP(G35,'Cuadro de Cuentas'!$B$3:$C$567,2,FALSE)) -> Acreedores por prestaciones de servicios | I35: ='Factura Transportista C3 (N4)'!H35 -> 599.25
E36: (COMPRA 3) | F36: ='Factura Compra 1 (N4)'!H69 -> 2013-05-23 | H36: =IF(G36="","",VLOOKUP(G36,'Cuadro de Cuentas'!$B$3:$C$567,2,FALSE)) -> 
C37: =+'Factura Compra 1 (N4)'!L69 -> 5776.7962 | D37: 400 | E37: =IF(D37="","",VLOOKUP(D37,'Cuadro de Cuentas'!$B$3:$C$567,2,FALSE)) -> Proveedores | H37: =IF(G37="","",VLOOKUP(G37,'Cuadro de Cuentas'!$B$3:$C$567,2,FALSE)) -> 
E38: =IF(D38="","",VLOOKUP(D38,'Cuadro de Cuentas'!$B$3:$C$567,2,FALSE)) ->  | F38: a | G38: 572 | H38: =IF(G38="","",VLOOKUP(G38,'Cuadro de Cuentas'!$B$3:$C$567,2,FALSE)) -> Bancos e instituciones de crédito c/c vista, euros | I38: =+C37 -> 5776.7962
E39: (LIQUIDACIÓN COMPRA 1) | F39: ='Factura Transportista C2 (N4)'!D38 -> 2013-05-24 | H39: =IF(G39="","",VLOOKUP(G39,'Cuadro de Cuentas'!$B$3:$C$567,2,FALSE)) -> 
C40: =+'Factura Transportista C2 (N4)'!H38 -> 485.24 | D40: 410 | E40: =IF(D40="","",VLOOKUP(D40,'Cuadro de Cuentas'!$B$3:$C$567,2,FALSE)) -> Acreedores por prestaciones de servicios | H40: =IF(G40="","",VLOOKUP(G40,'Cuadro de Cuentas'!$B$3:$C$567,2,FALSE)) -> 
E41: =IF(D41="","",VLOOKUP(D41,'Cuadro de Cuentas'!$B$3:$C$567,2,FALSE)) ->  | F41: a | G41: 572 | H41: =IF(G41="","",VLOOKUP(G41,'Cuadro de Cuentas'!$B$3:$C$567,2,FALSE)) -> Bancos e instituciones de crédito c/c vista, euros | I41: =+C40 -> 485.24
E42: (LIQUIDACIÓN TRANSPORTE COMPRA 2) | F42: ='Factura Venta 1 (N4)'!E56 -> 2013-05-26 | H42: =IF(G42="","",VLOOKUP(G42,'Cuadro de Cuentas'!$B$3:$C$567,2,FALSE)) -> 
C43: =I44 -> 9575.94824 | D43: 572 | E43: =IF(D43="","",VLOOKUP(D43,'Cuadro de Cuentas'!$B$3:$C$567,2,FALSE)) -> Bancos e instituciones de crédito c/c vista, euros | H43: =IF(G43="","",VLOOKUP(G43,'Cuadro de Cuentas'!$B$3:$C$567,2,FALSE)) -> 
E44: =IF(D44="","",VLOOKUP(D44,'Cuadro de Cuentas'!$B$3:$C$567,2,FALSE)) ->  | F44: a | G44: 430 | H44: =IF(G44="","",VLOOKUP(G44,'Cuadro de Cuentas'!$B$3:$C$567,2,FALSE)) -> Clientes | I44: ='Factura Venta 1 (N4)'!G56 -> 9575.94824
E45: (LIQUIDACIÓN VENTA 1) | F45: 2013-05-27 | H45: =IF(G45="","",VLOOKUP(G45,'Cuadro de Cuentas'!$B$3:$C$567,2,FALSE)) -> 
C46: =+'Factura Transportista C3 (N4)'!H38 -> 599.25 | D46: 410 | E46: =IF(D46="","",VLOOKUP(D46,'Cuadro de Cuentas'!$B$3:$C$567,2,FALSE)) -> Acreedores por prestaciones de servicios | H46: =IF(G46="","",VLOOKUP(G46,'Cuadro de Cuentas'!$B$3:$C$567,2,FALSE)) -> 
E47: =IF(D47="","",VLOOKUP(D47,'Cuadro de Cuentas'!$B$3:$C$567,2,FALSE)) ->  | F47: a | G47: 572 | H47: =IF(G47="","",VLOOKUP(G47,'Cuadro de Cuentas'!$B$3:$C$567,2,FALSE)) -> Bancos e instituciones de crédito c/c vista, euros | I47: =+C46 -> 599.25
E48: (LIQUIDACIÓN TRANSPORTE COMPRA 3) | F48: ='Factura Venta 2 (N4)'!G18 -> 2013-05-27 | H48: =IF(G48="","",VLOOKUP(G48,'Cuadro de Cuentas'!$B$3:$C$567,2,FALSE)) -> 
C49: ='Factura Venta 2 (N4)'!G48 -> 20772.2715 | D49: 430 | E49: =IF(D49="","",VLOOKUP(D49,'Cuadro de Cuentas'!$B$3:$C$567,2,FALSE)) -> Clientes | F49: =IF(G49="","","a") ->  | H49: =IF(G49="","",VLOOKUP(G49,'Cuadro de Cuentas'!$B$3:$C$567,2,FALSE)) -> 
E50: =IF(D50="","",VLOOKUP(D50,'Cuadro de Cuentas'!$B$3:$C$567,2,FALSE)) ->  | F50: a | G50: 700 | H50: =IF(G50="","",VLOOKUP(G50,'Cuadro de Cuentas'!$B$3:$C$567,2,FALSE)) -> Ventas de mercaderías | I50: ='Factura Venta 2 (N4)'!G28-'Factura Venta 2 (N4)'!G44-'Factura Venta 2 (N4)'!G45 -> 16194.15
E51: =IF(D51="","",VLOOKUP(D51,'Cuadro de Cuentas'!$B$3:$C$567,2,FALSE)) ->  | F51: a | G51: 759 | H51: =IF(G51="","",VLOOKUP(G51,'Cuadro de Cuentas'!$B$3:$C$567,2,FALSE)) -> Ingresos por servicios diversos | I51: ='Factura Venta 2 (N4)'!G30+'Factura Venta 2 (N4)'!G32 -> 1002
E52: =IF(D52="","",VLOOKUP(D52,'Cuadro de Cuentas'!$B$3:$C$567,2,FALSE)) ->  | F52: a | G52: 477 | H52: =IF(G52="","",VLOOKUP(G52,'Cuadro de Cuentas'!$B$3:$C$567,2,FALSE)) -> Hacienda Pública, IVA repercutido | I52: =+'Factura Venta 2 (N4)'!G47 -> 3576.1215
E53: (VENTA 2) | F53: ='Factura Compra 2 (N4)'!H69 -> 2013-06-02 | H53: =IF(G53="","",VLOOKUP(G53,'Cuadro de Cuentas'!$B$3:$C$567,2,FALSE)) -> 
C54: ='Factura Compra 2 (N4)'!L69 -> 6737.3775 | D54: 400 | E54: =IF(D54="","",VLOOKUP(D54,'Cuadro de Cuentas'!$B$3:$C$567,2,FALSE)) -> Proveedores | H54: =IF(G54="","",VLOOKUP(G54,'Cuadro de Cuentas'!$B$3:$C$567,2,FALSE)) -> 
E55: =IF(D55="","",VLOOKUP(D55,'Cuadro de Cuentas'!$B$3:$C$567,2,FALSE)) ->  | F55: a | G55: 572 | H55: =IF(G55="","",VLOOKUP(G55,'Cuadro de Cuentas'!$B$3:$C$567,2,FALSE)) -> Bancos e instituciones de crédito c/c vista, euros | I55: =C54 -> 6737.3775
E56: (LIQUIDACIÓN COMPRA 2) | F56: ='Factura Venta 2 (N4)'!E56 -> 2013-06-11 | H56: =IF(G56="","",VLOOKUP(G56,'Cuadro de Cuentas'!$B$3:$C$567,2,FALSE)) -> 
C57: =I58 -> 20772.2715 | D57: 572 | E57: =IF(D57="","",VLOOKUP(D57,'Cuadro de Cuentas'!$B$3:$C$567,2,FALSE)) -> Bancos e instituciones de crédito c/c vista, euros | H57: =IF(G57="","",VLOOKUP(G57,'Cuadro de Cuentas'!$B$3:$C$567,2,FALSE)) -> 
E58: =IF(D58="","",VLOOKUP(D58,'Cuadro de Cuentas'!$B$3:$C$567,2,FALSE)) ->  | F58: a | G58: 430 | H58: =IF(G58="","",VLOOKUP(G58,'Cuadro de Cuentas'!$B$3:$C$567,2,FALSE)) -> Clientes | I58: ='Factura Venta 2 (N4)'!G56 -> 20772.2715
E59: (LIQUIDACIÓN VENTA 2) | F59: ='Factura Compra 3 (N4)'!H69 -> 2013-07-05 | H59: =IF(G59="","",VLOOKUP(G59,'Cuadro de Cuentas'!$B$3:$C$567,2,FALSE)) -> 
C60: ='Factura Compra 3 (N4)'!L69 -> 3392.928 | D60: 400 | E60: =IF(D60="","",VLOOKUP(D60,'Cuadro de Cuentas'!$B$3:$C$567,2,FALSE)) -> Proveedores | H60: =IF(G60="","",VLOOKUP(G60,'Cuadro de Cuentas'!$B$3:$C$567,2,FALSE)) -> 
E61: =IF(D61="","",VLOOKUP(D61,'Cuadro de Cuentas'!$B$3:$C$567,2,FALSE)) ->  | F61: a | G61: 572 | H61: =IF(G61="","",VLOOKUP(G61,'Cuadro de Cuentas'!$B$3:$C$567,2,FALSE)) -> Bancos e instituciones de crédito c/c vista, euros | I61: =+C60 -> 3392.928
E62: (1er PAGO COMPRA 3) | F62: ='Factura Compra 3 (N4)'!H71 -> 2013-08-19 | H62: =IF(G62="","",VLOOKUP(G62,'Cuadro de Cuentas'!$B$3:$C$567,2,FALSE)) -> 
C63: ='Factura Compra 3 (N4)'!L71 -> 5089.392 | D63: 400 | E63: =IF(D63="","",VLOOKUP(D63,'Cuadro de Cuentas'!$B$3:$C$567,2,FALSE)) -> Proveedores | H63: =IF(G63="","",VLOOKUP(G63,'Cuadro de Cuentas'!$B$3:$C$567,2,FALSE)) -> 
E64: =IF(D64="","",VLOOKUP(D64,'Cuadro de Cuentas'!$B$3:$C$567,2,FALSE)) ->  | F64: a | G64: 572 | H64: =IF(G64="","",VLOOKUP(G64,'Cuadro de Cuentas'!$B$3:$C$567,2,FALSE)) -> Bancos e instituciones de crédito c/c vista, euros | I64: =+C63 -> 5089.392
E65: (2º PAGO COMPRA 3) | H65: =IF(G65="","",VLOOKUP(G65,'Cuadro de Cuentas'!$B$3:$C$567,2,FALSE)) -> 
C66: =SUM(C5:C65) -> 118090.0177 | E66: =IF(D66="","",VLOOKUP(D66,'Cuadro de Cuentas'!$B$3:$C$567,2,FALSE)) ->  | H66: =IF(G66="","",VLOOKUP(G66,'Cuadro de Cuentas'!$B$3:$C$567,2,FALSE)) ->  | I66: =SUM(I5:I65) -> 118090.0177

Sheet Factura Compra 1 (N4) (hidden)
I5: Star Mounts Company
I6: Direction, USA
I7: CIF:
C16: Name: | D16: Buena Visión S.A. | K16: Invoice No.
C17: Direction: | D17: Spain | K17: A-002890
C19: CIF: | K19: Date: | L19: ='Sol. Ficha Almacén y Rdo. (N4)'!C11 -> 2013-05-08
C20: Ref:
C26: Quantity | D26: Item | E26: Description | K26: Unit Price | L26: Extended Price
L27: =IF(D27<>"",D27*K27,"") -> 
C39: ='Sol. Ficha Almacén y Rdo. (N4)'!E11 -> 590 | E39: Monturas de gafas de metal común / Mounts of glasses of common metal (TARIC 9003.19.00.10) | K39: ='Sol. Ficha Almacén y Rdo. (N4)'!F11 -> 10.3 | L39: =C39*K39 -> 6077
L51: =IF(D51<>"",D51*K51,"") -> 
L52: =IF(D52<>"",D52*K52,"") -> 
K53: Subtotal | L53: =+SUM(L27:L52) -> 6077
E58: Customer Bank: | J58: Discount | K58: ='Sol. Ficha Almacén y Rdo. (N4)'!G11 -> 0.02 | L58: =K58*L53 -> 121.54 | N58: Arancel = | O58: =L62*2.2% -> 127.0895164
I59: Cash Discount | K59: ='Sol. Ficha Almacén y Rdo. (N4)'!H11 -> 0.03 | L59: =K59*(L53-L58) -> 178.6638 | N59: Derecho adicional = | O59: =L62*15% -> 866.51943
D60: 3 | E60: IBAN: | J60: Total | L60: =L53-L58-L59 -> 5776.7962 | N60: IVA (21%) = | O60: =(L62+O58+O59)*21% -> 1421.785081
J61: Total Tax | L61: =K61*L60 -> 0 | N61: Total a pagar = | O61: =O58+O59+O60 -> 2415.394027
E62: SWITF: | J62: TOTAL DOCUMENT | L62: =L60+L61 -> 5776.7962
D67: Observations:
E69: Con vencimientos el / Expiring on: | H69: =IF(K59<>0,L19+15,L19+45) -> 2013-05-23 | I69: Por importe de / To the value of: | L69: =IF(K59<>0,L62,40%*L62) -> 5776.7962
E71: =IF(K59<>0,"","Con vencimientos el / Expiring on:") ->  | H71: =IF(K59<>0,"",L19+90) ->  | I71: =IF(K59<>0,"","Por importe de / To the value of:") ->  | L71: =IF(K59<>0,"",60%*L62) -> 

Sheet Factura Transportista C1 (N4) (hidden)
E3: TRANSPORTES USA S.L.
E4: Dirección
E5: C.P. Localidad, Spain
E6: Teléfono/Fax:
E7: CIF:
C10: FACTURA / INVOICE.: | D10: M13-00871 | E10: REF.: | G10: FECHA / DATE: | H10: ='Sol. Ficha Almacén y Rdo. (N4)'!C11-24 -> 2013-04-14
C12: To:
C13: Buena Visión S.A., | D13: CIF: , Dirección, | G13: C.P., Localidad, | H13: Spain
C15: Envío / Shipment:
C16: Destinatario / Consignee: Mercancía / Cargo:
C17: Bultos / Packages:
C18: Peso / Weight:
C19: Dimensiones / Dimensions:
C20: Recogida / Collection: | G20: FECHA/DATE: | H20: =H10 -> 2013-04-14
C21: Entrega / Delivery: | G21: FECHA/DATE: | H21: ='Sol. Ficha Almacén y Rdo. (N4)'!C11 -> 2013-05-08
C24: DESCRIPCION / DESCRIPTION | G24: NO SUJETO A IVA / NO SUBJECT TO VAT | H24: SUJETO A IVA / SUBJECT TO VAT
C28: Servicio Transporte Mercancía (Compra 1) | H28: ='Sol. Ficha Almacén y Rdo. (N4)'!I11 -> 298
C30: Seguro Transporte Mercancía (Compra 1) | G30: ='Sol. Ficha Almacén y Rdo. (N4)'!J11 -> 60
C33: BASE IMPONIBLE / TAXABLE BASE: | G33: =SUM(G26:G32) -> 60 | H33: =SUM(H26:H32) -> 298
C34: IVA / VAT (21%): | H34: =H33*21% -> 62.58
C35: TOTAL (EUR): | H35: =G33+H33+H34 -> 420.58
C38: Con vencimientos el / Expiring on: | D38: =H10+30 -> 2013-05-14 | G38: Por importe de / To the value of: | H38: =H35 -> 420.58
C40: Servicio / Service: | F40: BANK:
C41: Tiempo de tránsito / Transit time (days): | F41: ACCOUNT Nº: IBAN: ES78 2100 4145 91 2200077652 No incluido/Not included: SWIFT: CAIXESBBXXX
F42: IBAN:
C43: No incluido / Not included: | F43: SWIFT:

Sheet Liquidación Aranceles C1 (N4) (hidden)
B23: Liquidación Documento Único Administrativo (DUA)
B26: Cargo en Cuenta Corriente a favor de la Agencia Tributaria
B28: Fecha Valor: | C28: ='Sol. Ficha Almacén y Rdo. (N4)'!C11-2 -> 2013-05-06
B30: ='Factura Compra 1 (N4)'!N58 -> Arancel = | C30: ='Factura Compra 1 (N4)'!O58 -> 127.0895164
B31: ='Factura Compra 1 (N4)'!N59 -> Derecho adicional = | C31: ='Factura Compra 1 (N4)'!O59 -> 866.51943
B32: ='Factura Compra 1 (N4)'!N60 -> IVA (21%) = | C32: ='Factura Compra 1 (N4)'!O60 -> 1421.785081
B33: ='Factura Compra 1 (N4)'!N61 -> Total a pagar = | C33: ='Factura Compra 1 (N4)'!O61 -> 2415.394027

Sheet Factura Venta 1 (N4) (hidden)
D4: BUENA VISIÓN S.A.
D5: CIF:
C9: Cliente: | D9: ÓPTICAS MADRILEÑAS S.L.
C10: Dirección:
C11: Código Postal: | E11: Localidad - País: | F11: España
C12: Teléfono: | E12: Fax:
C13: E-mail: | E13: C.I.F:
F18: Fecha Factura: | G18: ='Sol. Ficha Almacén y Rdo. (N4)'!C12 -> 2013-05-11
F19: Número Factura: | G19: 2013-531
C24: Cantidad | D24: Código | E24: Concepto | F24: Precio/Unidad | G24: Importe
C28: ='Sol. Ficha Almacén y Rdo. (N4)'!E12 -> 610 | E28: Monturas de gafas de metal común | F28: ='Sol. Ficha Almacén y Rdo. (N4)'!F12 -> 14 | G28: =C28*F28 -> 8540
C30: 1 | E30: Servicio de transporte de la mercancía | G30: ='Sol. Ficha Almacén y Rdo. (N4)'!I12 -> 389
C32: 1 | E32: Seguro de transporte de la mercancía | G32: ='Sol. Ficha Almacén y Rdo. (N4)'!J12 -> 78
C44: Descuento: | D44: ='Sol. Ficha Almacén y Rdo. (N4)'!G12 -> 0.09 | E44: sobre el importe bruto de la mercancía | G44: =D44*G28 -> 768.6
C45: Descuento por Pronto Pago: | D45: ='Sol. Ficha Almacén y Rdo. (N4)'!H12 -> 0.04 | E45: sobre el importe neto de la mercancía | G45: =D45*(G28-G44) -> 310.856
C46: Subtotal: | G46: =SUM(G26:G42)-G44-G45 -> 7927.544
C47: IVA: | D47: ='Resumen Operaciones '!H5 -> 0.21 | E47: El seguro de transporte de la mercancía está exento de IVA | G47: =D47*(G46-G32) -> 1648.40424
C48: Importe Total: | G48: =G46+G47 -> 9575.94824
C53: FORMA DE PAGO
C56: Con vencimiento el | E56: =IF(D45<>0,G18+15,G18+90) -> 2013-05-26 | F56: por importe de | G56: =G48 -> 9575.94824
C61: Dirección – C.P. Localidad – Tel.
C62: YYY@YYY.com - www.YYY.com

Sheet Factura Compra 2 (N4) (hidden)
I5: Star Mounts Company
I6: Direction, USA
I7: CIF:
C16: Name: | D16: Buena Visión S.A. | K16: Invoice No.
C17: Direction: | D17: Spain | K17: A-003468
C19: CIF: | K19: Date: | L19: ='Sol. Ficha Almacén y Rdo. (N4)'!C13 -> 2013-05-18
C20: Ref:
C26: Quantity | D26: Item | E26: Description | K26: Unit Price | L26: Extended Price
L27: =IF(D27<>"",D27*K27,"") -> 
C39: ='Sol. Ficha Almacén y Rdo. (N4)'!E13 -> 675 | E39: Monturas de gafas de metal común / Mounts of glasses of common metal (TARIC 9003.19.00.10) | K39: ='Sol. Ficha Almacén y Rdo. (N4)'!F13 -> 10.5 | L39: =C39*K39 -> 7087.5
L51: =IF(D51<>"",D51*K51,"") -> 
L52: =IF(D52<>"",D52*K52,"") -> 
K53: Subtotal | L53: =+SUM(L27:L52) -> 7087.5
E58: Customer Bank: | J58: Discount | K58: ='Sol. Ficha Almacén y Rdo. (N4)'!G13 -> 0.03 | L58: =K58*L53 -> 212.625 | N58: Arancel = | O58: =L62*2.2% -> 148.222305
I59: Cash Discount | K59: ='Sol. Ficha Almacén y Rdo. (N4)'!H13 -> 0.02 | L59: =K59*(L53-L58) -> 137.4975 | N59: Derecho adicional = | O59: =L62*15% -> 1010.606625
D60: 3 | E60: IBAN: | J60: Total | L60: =L53-L58-L59 -> 6737.3775 | N60: IVA (21%) = | O60: =(L62+O58+O59)*21% -> 1658.20335
J61: Total Tax | L61: =K61*L60 -> 0 | N61: Total a pagar = | O61: =O58+O59+O60 -> 2817.03228
E62: SWITF: | J62: TOTAL DOCUMENT | L62: =L60+L61 -> 6737.3775
D67: Observations:
E69: Con vencimientos el / Expiring on: | H69: =IF(K59<>0,L19+15,L19+45) -> 2013-06-02 | I69: Por importe de / To the value of: | L69: =IF(K59<>0,L62,40%*L62) -> 6737.3775
E71: =IF(K59<>0,"","Con vencimientos el / Expiring on:") ->  | H71: =IF(K59<>0,"",L19+90) ->  | I71: =IF(K59<>0,"","Por importe de / To the value of:") ->  | L71: =IF(K59<>0,"",60%*L62) -> 

Sheet Factura Transportista C2 (N4) (hidden)
E3: TRANSPORTES USA S.L.
E4: Dirección
E5: C.P. Localidad, Spain
E6: Teléfono/Fax:
E7: CIF:
C10: FACTURA / INVOICE.: | D10: M13-01032 | E10: REF.: | G10: FECHA / DATE: | H10: ='Sol. Ficha Almacén y Rdo. (N4)'!C13-24 -> 2013-04-24
C12: To:
C13: Buena Visión S.A., | D13: CIF: , Dirección, | G13: C.P., Localidad, | H13: Spain
C15: Envío / Shipment:
C16: Destinatario / Consignee: Mercancía / Cargo:
C17: Bultos / Packages:
C18: Peso / Weight:
C19: Dimensiones / Dimensions:
C20: Recogida / Collection: | G20: FECHA/DATE: | H20: =H10 -> 2013-04-24
C21: Entrega / Delivery: | G21: FECHA/DATE: | H21: ='Sol. Ficha Almacén y Rdo. (N4)'!C13 -> 2013-05-18
C24: DESCRIPCION / DESCRIPTION | G24: NO SUJETO A IVA / NO SUBJECT TO VAT | H24: SUJETO A IVA / SUBJECT TO VAT
C28: Servicio Transporte Mercancía (Compra 2) | H28: ='Sol. Ficha Almacén y Rdo. (N4)'!I13 -> 344
C30: Seguro Transporte Mercancía (Compra 2) | G30: ='Sol. Ficha Almacén y Rdo. (N4)'!J13 -> 69
C33: BASE IMPONIBLE / TAXABLE BASE: | G33: =SUM(G26:G32) -> 69 | H33: =SUM(H26:H32) -> 344
C34: IVA / VAT (21%): | H34: =H33*21% -> 72.24
C35: TOTAL (EUR): | H35: =G33+H33+H34 -> 485.24
C38: Con vencimientos el / Expiring on: | D38: =H10+30 -> 2013-05-24 | G38: Por importe de / To the value of: | H38: =H35 -> 485.24
C40: Servicio / Service: | F40: BANK:
C41: Tiempo de tránsito / Transit time (days): | F41: ACCOUNT Nº: IBAN: ES78 2100 4145 91 2200077652 No incluido/Not included: SWIFT: CAIXESBBXXX
F42: IBAN:
C43: No incluido / Not included: | F43: SWIFT:

Sheet Liquidación Aranceles C2 (N4) (hidden)
B23: Liquidación Documento Único Administrativo (DUA)
B26: Cargo en Cuenta Corriente a favor de la Agencia Tributaria
B28: Fecha Valor: | C28: ='Sol. Ficha Almacén y Rdo. (N4)'!C13-2 -> 2013-05-16
B30: ='Factura Compra 1 (N4)'!N58 -> Arancel = | C30: ='Factura Compra 2 (N4)'!O58 -> 148.222305
B31: ='Factura Compra 1 (N4)'!N59 -> Derecho adicional = | C31: ='Factura Compra 2 (N4)'!O59 -> 1010.606625
B32: ='Factura Compra 1 (N4)'!N60 -> IVA (21%) = | C32: ='Factura Compra 2 (N4)'!O60 -> 1658.20335
B33: ='Factura Compra 1 (N4)'!N61 -> Total a pagar = | C33: ='Factura Compra 2 (N4)'!O61 -> 2817.03228

Sheet Factura Compra 3 (N4) (hidden)
I5: Star Mounts Company
I6: Direction, USA
I7: CIF:
C16: Name: | D16: Buena Visión S.A. | K16: Invoice No.
C17: Direction: | D17: Spain | K17: A-003604
C19: CIF: | K19: Date: | L19: ='Sol. Ficha Almacén y Rdo. (N4)'!C14 -> 2013-05-21
C20: Ref:
C26: Quantity | D26: Item | E26: Description | K26: Unit Price | L26: Extended Price
L27: =IF(D27<>"",D27*K27,"") -> 
C39: ='Sol. Ficha Almacén y Rdo. (N4)'!E14 -> 840 | E39: Monturas de gafas de metal común / Mounts of glasses of common metal (TARIC 9003.19.00.10) | K39: ='Sol. Ficha Almacén y Rdo. (N4)'!F14 -> 10.2 | L39: =C39*K39 -> 8568
L51: =IF(D51<>"",D51*K51,"") -> 
L52: =IF(D52<>"",D52*K52,"") -> 
K53: Subtotal | L53: =+SUM(L27:L52) -> 8568
E58: Customer Bank: | J58: Discount | K58: ='Sol. Ficha Almacén y Rdo. (N4)'!G14 -> 0.01 | L58: =K58*L53 -> 85.68 | N58: Arancel = | O58: =L62*2.2% -> 186.61104
I59: Cash Discount | K59: ='Sol. Ficha Almacén y Rdo. (N4)'!H14 -> 0 | L59: =K59*(L53-L58) -> 0 | N59: Derecho adicional = | O59: =L62*15% -> 1272.348
D60: 3 | E60: IBAN: | J60: Total | L60: =L53-L58-L59 -> 8482.32 | N60: IVA (21%) = | O60: =(L62+O58+O59)*21% -> 2087.668598
J61: Total Tax | L61: =K61*L60 -> 0 | N61: Total a pagar = | O61: =O58+O59+O60 -> 3546.627638
E62: SWITF: | J62: TOTAL DOCUMENT | L62: =L60+L61 -> 8482.32
D67: Observations:
E69: Con vencimientos el / Expiring on: | H69: =IF(K59<>0,L19+15,L19+45) -> 2013-07-05 | I69: Por importe de / To the value of: | L69: =IF(K59<>0,L62,40%*L62) -> 3392.928
E71: =IF(K59<>0,"","Con vencimientos el / Expiring on:") -> Con vencimientos el / Expiring on: | H71: =IF(K59<>0,"",L19+90) -> 2013-08-19 | I71: =IF(K59<>0,"","Por importe de / To the value of:") -> Por importe de / To the value of: | L71: =IF(K59<>0,"",60%*L62) -> 5089.392

Sheet Factura Transportista C3 (N4) (hidden)
E3: TRANSPORTES USA S.L.
E4: Dirección
E5: C.P. Localidad, Spain
E6: Teléfono/Fax:
E7: CIF:
C10: FACTURA / INVOICE.: | D10: M13-01107 | E10: REF.: | G10: FECHA / DATE: | H10: ='Sol. Ficha Almacén y Rdo. (N4)'!C14-24 -> 2013-04-27
C12: To:
C13: Buena Visión S.A., | D13: CIF: , Dirección, | G13: C.P., Localidad, | H13: Spain
C15: Envío / Shipment:
C16: Destinatario / Consignee: Mercancía / Cargo:
C17: Bultos / Packages:
C18: Peso / Weight:
C19: Dimensiones / Dimensions:
C20: Recogida / Collection: | G20: FECHA/DATE: | H20: =H10 -> 2013-04-27
C21: Entrega / Delivery: | G21: FECHA/DATE: | H21: ='Sol. Ficha Almacén y Rdo. (N4)'!C14 -> 2013-05-21
C24: DESCRIPCION / DESCRIPTION | G24: NO SUJETO A IVA / NO SUBJECT TO VAT | H24: SUJETO A IVA / SUBJECT TO VAT
C28: Servicio Transporte Mercancía (Compra 3) | H28: ='Sol. Ficha Almacén y Rdo. (N4)'!I14 -> 425
C30: Seguro Transporte Mercancía (Compra 3) | G30: ='Sol. Ficha Almacén y Rdo. (N4)'!J14 -> 85
C33: BASE IMPONIBLE / TAXABLE BASE: | G33: =SUM(G26:G32) -> 85 | H33: =SUM(H26:H32) -> 425
C34: IVA / VAT (21%): | H34: =H33*21% -> 89.25
C35: TOTAL (EUR): | H35: =G33+H33+H34 -> 599.25
C38: Con vencimientos el / Expiring on: | D38: =H10+30 -> 2013-05-27 | G38: Por importe de / To the value of: | H38: =H35 -> 599.25
C40: Servicio / Service: | F40: BANK:
C41: Tiempo de tránsito / Transit time (days): | F41: ACCOUNT Nº: IBAN: ES78 2100 4145 91 2200077652 No incluido/Not included: SWIFT: CAIXESBBXXX
F42: IBAN:
C43: No incluido / Not included: | F43: SWIFT:

Sheet Liquidación Aranceles C3 (N4) (hidden)
B23: Liquidación Documento Único Administrativo (DUA)
B26: Cargo en Cuenta Corriente a favor de la Agencia Tributaria
B28: Fecha Valor: | C28: ='Sol. Ficha Almacén y Rdo. (N4)'!C14-2 -> 2013-05-19
B30: ='Factura Compra 1 (N4)'!N58 -> Arancel = | C30: ='Factura Compra 3 (N4)'!O58 -> 186.61104
B31: ='Factura Compra 1 (N4)'!N59 -> Derecho adicional = | C31: ='Factura Compra 3 (N4)'!O59 -> 1272.348
B32: ='Factura Compra 1 (N4)'!N60 -> IVA (21%) = | C32: ='Factura Compra 3 (N4)'!O60 -> 2087.668598
B33: ='Factura Compra 1 (N4)'!N61 -> Total a pagar = | C33: ='Factura Compra 3 (N4)'!O61 -> 3546.627638

Sheet Factura Venta 2 (N4) (hidden)
D4: BUENA VISIÓN S.A.
D5: CIF:
C9: Cliente: | D9: ÓPTICAS VALENCIANAS S.L.
C10: Dirección:
C11: Código Postal: | E11: Localidad - País: | F11: España
C12: Teléfono: | E12: Fax:
C13: E-mail: | E13: C.I.F:
F18: Fecha Factura: | G18: ='Sol. Ficha Almacén y Rdo. (N4)'!C15 -> 2013-05-27
F19: Número Factura: | G19: 2013-674
C24: Cantidad | D24: Código | E24: Concepto | F24: Precio/Unidad | G24: Importe
C28: ='Sol. Ficha Almacén y Rdo. (N4)'!E15 -> 1325 | E28: Monturas de gafas de metal común | F28: ='Sol. Ficha Almacén y Rdo. (N4)'!F15 -> 14 | G28: =C28*F28 -> 18550
C30: 1 | E30: Servicio de transporte de la mercancía | G30: ='Sol. Ficha Almacén y Rdo. (N4)'!I15 -> 835
C32: 1 | E32: Seguro de transporte de la mercancía | G32: ='Sol. Ficha Almacén y Rdo. (N4)'!J15 -> 167
C44: Descuento: | D44: ='Sol. Ficha Almacén y Rdo. (N4)'!G15 -> 0.1 | E44: sobre el importe bruto de la mercancía | G44: =D44*G28 -> 1855
C45: Descuento por Pronto Pago: | D45: ='Sol. Ficha Almacén y Rdo. (N4)'!H15 -> 0.03 | E45: sobre el importe neto de la mercancía | G45: =D45*(G28-G44) -> 500.85
C46: Subtotal: | G46: =SUM(G26:G42)-G44-G45 -> 17196.15
C47: IVA: | D47: ='Resumen Operaciones '!H5 -> 0.21 | E47: El seguro de transporte de la mercancía está exento de IVA | G47: =D47*(G46-G32) -> 3576.1215
C48: Importe Total: | G48: =G46+G47 -> 20772.2715
C53: FORMA DE PAGO
C56: Con vencimiento el | E56: =IF(D45<>0,G18+15,G18+90) -> 2013-06-11 | F56: por importe de | G56: =G48 -> 20772.2715
C61: Dirección – C.P. Localidad – Tel.
C62: YYY@YYY.com - www.YYY.com

Sheet Mercaderías Nivel 5 (hidden)
B1: Haga un doble click sobre la imagen para ver esta Presentación | P1: ÍNDICE TEMA 1
H2: OPERACIONES COMERCIALES (MERCADERÍAS) — NIVEL 5
H6: A continuación, Usted debe llevar a cabo los siguientes pasos:
H8: A) Imprima los documentos (facturas) que le servirán para resolver el supuesto que seguidamente se le propone. Para ello, haga doble click sobre el botón de Documentos Nivel 5.
H14: B) Imprima el enunciado del supuesto que se le propone y las plantillas para su resolución. Para ello, haga doble click sobre el botón de Enunciado-Plantillas Nivel 5.
H20: C) Imprima la solución del supuesto que se le propone. Para ello, haga doble click sobre el botón de Solución Nivel 5.

Sheet Enunciado Supuesto (N5) (hidden)
C3: El día 1 de mayo de 2013 la empresa Buena Visión S.A. tenía en su almacén | P3: ='Sol. Ficha Almacén y Rdo. (N5)'!E4 -> 490 | R3: monturas de gafas
C4: de metal común valoradas en | I4: ='Sol. Ficha Almacén y Rdo. (N5)'!E6 -> 6370 | J4: , clasificadas en la partida TARIC 9003.19.00.10.
C6: Se trata de productos originarios de Estados Unidos que son comprados a un único proveedor estadounidense
C7: denominado Star Mounts Company. Dichos productos tienen unos derechos de arancel aplicables del 2,20 %,
C8: además de la existencia sobre las importaciones de un derecho adicional para los Estados Unidos del 15 %. El
C9: IVA soportado de este producto está fijado en el 21 %.
C11: Las actividades vinculadas al proceso de importación de estos productos son realizadas íntegramente por una
C12: empresa española especializada en transportes internacionales denominada Transportes USA S.L. En concreto,
C13: esta empresa transportista se encarga de prestarnos el servicio de transporte desde el almacén del proveedor
C14: hasta nuestro almacén con el correspondiente aseguramiento de la mercancía. Asimismo, dicha empresa se
C15: encarga de realizar los trámites aduaneros correspondientes, haciéndonos llegar el llamado Documento Único
C16: Aduanero (DUA) para su liquidación o pago en las entidades financieras autorizadas a este respecto. En concreto,
C17: la correspondiente liquidación del DUA se efectúa antes de retirar las mercancías del depósito aduanero.
C19: La venta de estas monturas por parte de la empresa Buena Visión S.A. se realiza en el mercado español de los
C20: distribuidores de productos oftalmológicos. El IVA repercutido de este producto está establecido en el 21 %. El
C21: servicio de transporte y de seguro de las mercancías es prestado por una empresa transportista denominada
C22: Transcargo Levante S.L.
C24: Durante el mes de mayo se realizaron las operaciones que seguidamente se exponen:
C26: Fecha | F26: Operación | H26: Unidades | J26: Precio bruto | L26: Descuento comercial | N26: Descuento por pronto pago | P26: Transporte | R26: Seguro mercancía (Exento de IVA) | T26: Aranceles de Aduanas
C27: ='Resumen Operaciones '!C11 -> 2013-05-08 | F27: ='Resumen Operaciones '!D11 -> Compra 1 | H27: ='Resumen Operaciones '!E11 -> 590 | J27: ='Resumen Operaciones '!F11 -> 10.3 | L27: ='Resumen Operaciones '!G11 -> 0.02 | N27: ='Resumen Operaciones '!H11 -> 0.03 | P27: ='Resumen Operaciones '!I11 -> 298 | R27: ='Resumen Operaciones '!J11 -> 60 | T27: ='Liquidación Aranceles C1 (N5)'!C30+'Liquidación Aranceles C1 (N5)'!C31 -> 993.6089464
C28: ='Resumen Operaciones '!C12 -> 2013-05-11 | F28: ='Resumen Operaciones '!D12 -> Venta 1 | H28: ='Resumen Operaciones '!E12 -> 610 | J28: ='Resumen Operaciones '!F12 -> 14 | L28: ='Resumen Operaciones '!G12 -> 0.09 | N28: ='Resumen Operaciones '!H12 -> 0.04 | P28: ='Resumen Operaciones '!I12 -> 389 | R28: ='Resumen Operaciones '!J12 -> 78 | T28: ='Resumen Operaciones '!K12 -> 0
C29: ='Resumen Operaciones '!C13 -> 2013-05-18 | F29: ='Resumen Operaciones '!D13 -> Compra 2 | H29: ='Resumen Operaciones '!E13 -> 675 | J29: ='Resumen Operaciones '!F13 -> 10.5 | L29: ='Resumen Operaciones '!G13 -> 0.03 | N29: ='Resumen Operaciones '!H13 -> 0.02 | P29: ='Resumen Operaciones '!I13 -> 344 | R29: ='Resumen Operaciones '!J13 -> 69 | T29: ='Liquidación Aranceles C2 (N5)'!C30+'Liquidación Aranceles C2 (N5)'!C31 -> 1158.82893
C30: ='Resumen Operaciones '!C14 -> 2013-05-21 | F30: ='Resumen Operaciones '!D14 -> Compra 3 | H30: ='Resumen Operaciones '!E14 -> 840 | J30: ='Resumen Operaciones '!F14 -> 10.2 | L30: ='Resumen Operaciones '!G14 -> 0.01 | N30: ='Resumen Operaciones '!H14 -> 0 | P30: ='Resumen Operaciones '!I14 -> 425 | R30: ='Resumen Operaciones '!J14 -> 85 | T30: ='Liquidación Aranceles C3 (N5)'!C30+'Liquidación Aranceles C3 (N5)'!C31 -> 1458.95904
C31: ='Resumen Operaciones '!C15 -> 2013-05-27 | F31: ='Resumen Operaciones '!D15 -> Venta 2 | H31: ='Resumen Operaciones '!E15 -> 1325 | J31: ='Resumen Operaciones '!F15 -> 14 | L31: ='Resumen Operaciones '!G15 -> 0.1 | N31: ='Resumen Operaciones '!H15 -> 0.03 | P31: ='Resumen Operaciones '!I15 -> 835 | R31: ='Resumen Operaciones '!J15 -> 167 | T31: ='Resumen Operaciones '!K15 -> 0
C33: NOTA: Las magnitudes monetarias que se presentan en este supuesto no incluyen el IVA correspondiente.
C35: Teniendo presente los documentos que se le suministran en el presente supuesto, se pide:
D37: 1.- Confeccione la ficha de almacén según los criterios siguientes:
E38: a.- Criterio de valoración de las salidas por FIFO (First In First Out).
E39: b.- Criterio de valoración de las salidas por PMP (Precio Medio Ponderado).
D41: 2.- Calcule el resultado de las ventas de mercaderías del mes de mayo por el criterio de valoración PMP.
D43: 3.- Contabilice las operaciones anteriores siguiendo el procedimiento de desdoblamiento en compras y
E44: ventas.

Sheet Ficha Almacén y Rdo. (N5) (hidden)
C3: Existencias iniciales de mayo:
C4: Unidades =
C5: Precio unitario =
C6: Total Saldo =
C8: Resumen operaciones mes de mayo:
C10: Fecha | D10: Operación | E10: Unidades | F10: Precio bruto | G10: Descuento comercial | H10: Descuento por pronto pago | I10: Transporte | J10: Seguro mercancía | K10: Aranceles de Aduanas
C11: ='Sol. Ficha Almacén y Rdo. (N4)'!C11 -> 2013-05-08 | D11: Compra 1
C12: ='Sol. Ficha Almacén y Rdo. (N4)'!C12 -> 2013-05-11 | D12: Venta 1
C13: ='Sol. Ficha Almacén y Rdo. (N4)'!C13 -> 2013-05-18 | D13: Compra 2
C14: ='Sol. Ficha Almacén y Rdo. (N4)'!C14 -> 2013-05-21 | D14: Compra 3
C15: ='Sol. Ficha Almacén y Rdo. (N4)'!C15 -> 2013-05-27 | D15: Venta 2
C17: Almacén mes de mayo (PMP):
E19: Entradas | H19: Salidas | K19: Saldos
C20: Fecha | D20: Operación | E20: Unidades | F20: Precio unitario | G20: Valor | H20: Unidades | I20: Precio unitario | J20: Valor | K20: Unidades | L20: Precio unitario | M20: Valor
C21: 2013-05-01 | D21: Saldo inicial
C22: =+'Ficha Almacén y Rdo. (N4)'!C11 -> 2013-05-08 | D22: Compra 1
C25: =+'Ficha Almacén y Rdo. (N4)'!C12 -> 2013-05-11 | D25: Venta 1
C26: =+'Ficha Almacén y Rdo. (N4)'!C13 -> 2013-05-18 | D26: Compra 2
C29: =+'Ficha Almacén y Rdo. (N4)'!C14 -> 2013-05-21 | D29: Compra 3
C32: =+'Ficha Almacén y Rdo. (N4)'!C15 -> 2013-05-27 | D32: Venta 2
C34: Almacén mes de mayo (FIFO):
E36: Entradas | H36: Salidas | K36: Saldos
C37: Fecha | D37: Operación | E37: Unidades | F37: Precio unitario | G37: Valor | H37: Unidades | I37: Precio unitario | J37: Valor | K37: Unidades | L37: Precio unitario | M37: Valor
C38: 2013-05-01 | D38: Saldo inicial
C39: ='Ficha Almacén y Rdo. (N4)'!C11 -> 2013-05-08 | D39: Compra 1
C42: ='Ficha Almacén y Rdo. (N4)'!C12 -> 2013-05-11 | D42: Venta 1
C45: ='Ficha Almacén y Rdo. (N4)'!C13 -> 2013-05-18 | D45: Compra 2
C49: ='Ficha Almacén y Rdo. (N4)'!C14 -> 2013-05-21 | D49: Compra 3
C54: ='Ficha Almacén y Rdo. (N4)'!C15 -> 2013-05-27 | D54: Venta 2
D60: Resultado de las ventas de mercaderías del mes de mayo por el criterio de valoración FIFO
C62: Ventas netas - Coste de ventas = | H62: =

Sheet Sol. Ficha Almacén y Rdo. (N5) (hidden)
C3: Existencias iniciales de mayo:
C4: Unidades = | E4: ='Resumen Operaciones '!E4 -> 490
C5: Precio unitario = | E5: ='Resumen Operaciones '!E5 -> 13
C6: Total Saldo = | E6: ='Resumen Operaciones '!E6 -> 6370
C8: Resumen operaciones mes de mayo:
C10: Fecha | D10: Operación | E10: Unidades | F10: Precio bruto | G10: Descuento comercial | H10: Descuento por pronto pago | I10: Transporte | J10: Seguro mercancía | K10: Aranceles de Aduanas
C11: ='Resumen Operaciones '!C11 -> 2013-05-08 | D11: ='Resumen Operaciones '!D11 -> Compra 1 | E11: ='Resumen Operaciones '!E11 -> 590 | F11: ='Resumen Operaciones '!F11 -> 10.3 | G11: ='Resumen Operaciones '!G11 -> 0.02 | H11: ='Resumen Operaciones '!H11 -> 0.03 | I11: ='Resumen Operaciones '!I11 -> 298 | J11: ='Resumen Operaciones '!J11 -> 60 | K11: ='Enunciado Supuesto (N5)'!T27 -> 993.6089464
C12: ='Resumen Operaciones '!C12 -> 2013-05-11 | D12: ='Resumen Operaciones '!D12 -> Venta 1 | E12: ='Resumen Operaciones '!E12 -> 610 | F12: ='Resumen Operaciones '!F12 -> 14 | G12: ='Resumen Operaciones '!G12 -> 0.09 | H12: ='Resumen Operaciones '!H12 -> 0.04 | I12: ='Resumen Operaciones '!I12 -> 389 | J12: ='Resumen Operaciones '!J12 -> 78 | K12: ='Resumen Operaciones '!K12 -> 0
C13: ='Resumen Operaciones '!C13 -> 2013-05-18 | D13: ='Resumen Operaciones '!D13 -> Compra 2 | E13: ='Resumen Operaciones '!E13 -> 675 | F13: ='Resumen Operaciones '!F13 -> 10.5 | G13: ='Resumen Operaciones '!G13 -> 0.03 | H13: ='Resumen Operaciones '!H13 -> 0.02 | I13: ='Resumen Operaciones '!I13 -> 344 | J13: ='Resumen Operaciones '!J13 -> 69 | K13: ='Enunciado Supuesto (N5)'!T29 -> 1158.82893
C14: ='Resumen Operaciones '!C14 -> 2013-05-21 | D14: ='Resumen Operaciones '!D14 -> Compra 3 | E14: ='Resumen Operaciones '!E14 -> 840 | F14: ='Resumen Operaciones '!F14 -> 10.2 | G14: ='Resumen Operaciones '!G14 -> 0.01 | H14: ='Resumen Operaciones '!H14 -> 0 | I14: ='Resumen Operaciones '!I14 -> 425 | J14: ='Resumen Operaciones '!J14 -> 85 | K14: ='Enunciado Supuesto (N5)'!T30 -> 1458.95904
C15: ='Resumen Operaciones '!C15 -> 2013-05-27 | D15: ='Resumen Operaciones '!D15 -> Venta 2 | E15: ='Resumen Operaciones '!E15 -> 1325 | F15: ='Resumen Operaciones '!F15 -> 14 | G15: ='Resumen Operaciones '!G15 -> 0.1 | H15: ='Resumen Operaciones '!H15 -> 0.03 | I15: ='Resumen Operaciones '!I15 -> 835 | J15: ='Resumen Operaciones '!J15 -> 167 | K15: ='Resumen Operaciones '!K15 -> 0
C17: Almacén mes de mayo (PMP):
E19: Entradas | H19: Salidas | K19: Saldos
C20: Fecha | D20: Operación | E20: Unidades | F20: Precio unitario | G20: Valor | H20: Unidades | I20: Precio unitario | J20: Valor | K20: Unidades | L20: Precio unitario | M20: Valor
C21: 2013-05-01 | D21: Saldo inicial | K21: =IF('Portada Libro'!M4="","",'Sol. Ficha Almacén y Rdo. (N5)'!E4) -> 490 | L21: =IF('Portada Libro'!M4="","",'Sol. Ficha Almacén y Rdo. (N5)'!E5) -> 13 | M21: =IF('Portada Libro'!M4="","",K21*L21) -> 6370
C22: =+'Sol. Ficha Almacén y Rdo. (N5)'!C11 -> 2013-05-08 | D22: Compra 1 | E22: =IF('Portada Libro'!M4="","",'Sol. Ficha Almacén y Rdo. (N5)'!E11) -> 590 | F22: =IF('Portada Libro'!M4="","",G22/E22) -> 12.08204262 | G22: =IF('Portada Libro'!M4="","",'Sol. Ficha Almacén y Rdo. (N5)'!E11*'Sol. Ficha Almacén y Rdo. (N5)'!F11*(1-'Sol. Ficha Almacén y Rdo. (N5)'!G11)*(1-H11)+'Sol. Ficha Almacén y Rdo. (N5)'!I11+'Sol. Ficha Almacén y Rdo. (N5)'!J11+'Sol. Ficha Almacén y Rdo. (N5)'!K11) -> 7128.405146 | K22: =IF('Portada Libro'!M4="","",K21) -> 490 | M22: =IF('Portada Libro'!M4="","",M21) -> 6370
K23: =IF('Portada Libro'!M4="","",E22) -> 590 | M23: =IF('Portada Libro'!M4="","",G22) -> 7128.405146
K24: =IF('Portada Libro'!M4="","",K22+K23) -> 1080 | L24: =IF('Portada Libro'!M4="","",M24/K24) -> 12.49852328 | M24: =IF('Portada Libro'!M4="","",M22+M23) -> 13498.40515
C25: =+'Sol. Ficha Almacén y Rdo. (N5)'!C12 -> 2013-05-11 | D25: Venta 1 | H25: =IF('Portada Libro'!M4="","",'Sol. Ficha Almacén y Rdo. (N5)'!E12) -> 610 | I25: =IF('Portada Libro'!M4="","",L24) -> 12.49852328 | J25: =IF('Portada Libro'!M4="","",H25*I25) -> 7624.099203 | K25: =IF('Portada Libro'!M4="","",K24-H25) -> 470 | L25: =IF('Portada Libro'!M4="","",L24) -> 12.49852328 | M25: =IF('Portada Libro'!M4="","",M24-J25) -> 5874.305943
C26: =+'Sol. Ficha Almacén y Rdo. (N5)'!C13 -> 2013-05-18 | D26: Compra 2 | E26: =IF('Portada Libro'!M4="","",'Sol. Ficha Almacén y Rdo. (N5)'!E13) -> 675 | F26: =IF('Portada Libro'!M4="","",G26/E26) -> 12.30993545 | G26: =IF('Portada Libro'!M4="","",'Sol. Ficha Almacén y Rdo. (N5)'!E13*'Sol. Ficha Almacén y Rdo. (N5)'!F13*(1-'Sol. Ficha Almacén y Rdo. (N5)'!G13)*(1-H13)+'Sol. Ficha Almacén y Rdo. (N5)'!I13+'Sol. Ficha Almacén y Rdo. (N5)'!J13+'Sol. Ficha Almacén y Rdo. (N5)'!K13) -> 8309.20643 | K26: =IF('Portada Libro'!M4="","",K25) -> 470 | M26: =IF('Portada Libro'!M4="","",M25) -> 5874.305943
K27: =IF('Portada Libro'!M4="","",E26) -> 675 | M27: =IF('Portada Libro'!M4="","",G26) -> 8309.20643
K28: =IF('Portada Libro'!M4="","",K26+K27) -> 1145 | L28: =IF('Portada Libro'!M4="","",M28/K28) -> 12.38734705 | M28: =IF('Portada Libro'!M4="","",M26+M27) -> 14183.51237
C29: =+'Sol. Ficha Almacén y Rdo. (N5)'!C14 -> 2013-05-21 | D29: Compra 3 | E29: =IF('Portada Libro'!M4="","",'Sol. Ficha Almacén y Rdo. (N5)'!E14) -> 840 | F29: =IF('Portada Libro'!M4="","",G29/E29) -> 12.44199886 | G29: =IF('Portada Libro'!M4="","",'Sol. Ficha Almacén y Rdo. (N5)'!E14*'Sol. Ficha Almacén y Rdo. (N5)'!F14*(1-'Sol. Ficha Almacén y Rdo. (N5)'!G14)*(1-H14)+'Sol. Ficha Almacén y Rdo. (N5)'!I14+'Sol. Ficha Almacén y Rdo. (N5)'!J14+'Sol. Ficha Almacén y Rdo. (N5)'!K14) -> 10451.27904 | K29: =IF('Portada Libro'!M4="","",K28) -> 1145 | M29: =IF('Portada Libro'!M4="","",M28) -> 14183.51237
K30: =IF('Portada Libro'!M4="","",E29) -> 840 | M30: =IF('Portada Libro'!M4="","",G29) -> 10451.27904
K31: =IF('Portada Libro'!M4="","",K29+K30) -> 1985 | L31: =IF('Portada Libro'!M4="","",M31/K31) -> 12.41047426 | M31: =IF('Portada Libro'!M4="","",M29+M30) -> 24634.79141
C32: =+'Sol. Ficha Almacén y Rdo. (N5)'!C15 -> 2013-05-27 | D32: Venta 2 | H32: =IF('Portada Libro'!M4="","",'Sol. Ficha Almacén y Rdo. (N5)'!E15) -> 1325 | I32: =IF('Portada Libro'!M4="","",L31) -> 12.41047426 | J32: =IF('Portada Libro'!M4="","",H32*I32) -> 16443.8784 | K32: =IF('Portada Libro'!M4="","",K31-H32) -> 660 | L32: =IF('Portada Libro'!M4="","",L31) -> 12.41047426 | M32: =IF('Portada Libro'!M4="","",M31-J32) -> 8190.913014
C34: Almacén mes de mayo (FIFO):
E36: Entradas | H36: Salidas | K36: Saldos
C37: Fecha | D37: Operación | E37: Unidades | F37: Precio unitario | G37: Valor | H37: Unidades | I37: Precio unitario | J37: Valor | K37: Unidades | L37: Precio unitario | M37: Valor
C38: 2013-05-01 | D38: Saldo inicial | K38: =IF('Portada Libro'!M4="","",'Sol. Ficha Almacén y Rdo. (N5)'!E4) -> 490 | L38: =IF('Portada Libro'!M4="","",'Sol. Ficha Almacén y Rdo. (N5)'!E5) -> 13 | M38: =IF('Portada Libro'!M4="","",K38*L38) -> 6370
C39: ='Sol. Ficha Almacén y Rdo. (N5)'!C11 -> 2013-05-08 | D39: Compra 1 | E39: =IF('Portada Libro'!M4="","",'Sol. Ficha Almacén y Rdo. (N5)'!E11) -> 590 | F39: =IF('Portada Libro'!M4="","",G39/E39) -> 12.08204262 | G39: =IF('Portada Libro'!M4="","",'Sol. Ficha Almacén y Rdo. (N5)'!E11*'Sol. Ficha Almacén y Rdo. (N5)'!F11*(1-'Sol. Ficha Almacén y Rdo. (N5)'!G11)*(1-H11)+'Sol. Ficha Almacén y Rdo. (N5)'!I11+'Sol. Ficha Almacén y Rdo. (N5)'!J11+'Sol. Ficha Almacén y Rdo. (N5)'!K11) -> 7128.405146 | K39: =IF('Portada Libro'!M4="","",K38) -> 490 | L39: =IF('Portada Libro'!M4="","",L38) -> 13 | M39: =IF('Portada Libro'!M4="","",M38) -> 6370
K40: =IF('Portada Libro'!M4="","",E39) -> 590 | L40: =IF('Portada Libro'!M4="","",F39) -> 12.08204262 | M40: =IF('Portada Libro'!M4="","",G39) -> 7128.405146
K41: =IF('Portada Libro'!M4="","",K39+K40) -> 1080 | M41: =IF('Portada Libro'!M4="","",M39+M40) -> 13498.40515
C42: ='Sol. Ficha Almacén y Rdo. (N5)'!C12 -> 2013-05-11 | D42: Venta 1 | H42: =IF('Portada Libro'!M4="","",IF(H44>=K39,K39,H44)) -> 490 | I42: =IF('Portada Libro'!M4="","",L39) -> 13 | J42: =IF('Portada Libro'!M4="","",H42*I42) -> 6370 | K42: =IF('Portada Libro'!M4="","",K39-H42) -> 0 | L42: =IF('Portada Libro'!M4="","",L39) -> 13 | M42: =IF('Portada Libro'!M4="","",K42*L42) -> 0
H43: =IF('Portada Libro'!M4="","",H44-H42) -> 120 | I43: =IF('Portada Libro'!M4="","",L40) -> 12.08204262 | J43: =IF('Portada Libro'!M4="","",H43*I43) -> 1449.845115 | K43: =IF('Portada Libro'!M4="","",K40-H43) -> 470 | L43: =IF('Portada Libro'!M4="","",L40) -> 12.08204262 | M43: =IF('Portada Libro'!M4="","",K43*L43) -> 5678.560032
H44: =IF('Portada Libro'!M4="","",'Sol. Ficha Almacén y Rdo. (N5)'!E12) -> 610 | J44: =IF('Portada Libro'!M4="","",J42+J43) -> 7819.845115 | K44: =IF('Portada Libro'!M4="","",K42+K43) -> 470 | M44: =IF('Portada Libro'!M4="","",M42+M43) -> 5678.560032
C45: ='Sol. Ficha Almacén y Rdo. (N5)'!C13 -> 2013-05-18 | D45: Compra 2 | E45: =IF('Portada Libro'!M4="","",'Sol. Ficha Almacén y Rdo. (N5)'!E13) -> 675 | F45: =IF('Portada Libro'!M4="","",G45/E45) -> 12.30993545 | G45: =IF('Portada Libro'!M4="","",'Sol. Ficha Almacén y Rdo. (N5)'!E13*'Sol. Ficha Almacén y Rdo. (N5)'!F13*(1-'Sol. Ficha Almacén y Rdo. (N5)'!G13)*(1-H13)+'Sol. Ficha Almacén y Rdo. (N5)'!I13+'Sol. Ficha Almacén y Rdo. (N5)'!J13+'Sol. Ficha Almacén y Rdo. (N5)'!K13) -> 8309.20643 | K45: =IF('Portada Libro'!M4="","",K42) -> 0 | L45: =IF('Portada Libro'!M4="","",L42) -> 13 | M45: =IF('Portada Libro'!M4="","",M42) -> 0
K46: =IF('Portada Libro'!M4="","",K43) -> 470 | L46: =IF('Portada Libro'!M4="","",L43) -> 12.08204262 | M46: =IF('Portada Libro'!M4="","",M43) -> 5678.560032
K47: =IF('Portada Libro'!M4="","",E45) -> 675 | L47: =IF('Portada Libro'!M4="","",F45) -> 12.30993545 | M47: =IF('Portada Libro'!M4="","",G45) -> 8309.20643
K48: =IF('Portada Libro'!M4="","",SUM(K45:K47)) -> 1145 | M48: =IF('Portada Libro'!M4="","",SUM(M45:M47)) -> 13987.76646
C49: ='Sol. Ficha Almacén y Rdo. (N5)'!C14 -> 2013-05-21 | D49: Compra 3 | E49: =IF('Portada Libro'!M4="","",'Sol. Ficha Almacén y Rdo. (N5)'!E14) -> 840 | F49: =IF('Portada Libro'!M4="","",G49/E49) -> 12.44199886 | G49: =IF('Portada Libro'!M4="","",'Sol. Ficha Almacén y Rdo. (N5)'!E14*'Sol. Ficha Almacén y Rdo. (N5)'!F14*(1-'Sol. Ficha Almacén y Rdo. (N5)'!G14)*(1-H14)+'Sol. Ficha Almacén y Rdo. (N5)'!I14+'Sol. Ficha Almacén y Rdo. (N5)'!J14+'Sol. Ficha Almacén y Rdo. (N5)'!K14) -> 10451.27904 | K49: =IF('Portada Libro'!M4="","",K45) -> 0 | L49: =IF('Portada Libro'!M4="","",L45) -> 13 | M49: =IF('Portada Libro'!M4="","",M45) -> 0
K50: =IF('Portada Libro'!M4="","",K46) -> 470 | L50: =IF('Portada Libro'!M4="","",L46) -> 12.08204262 | M50: =IF('Portada Libro'!M4="","",M46) -> 5678.560032
K51: =IF('Portada Libro'!M4="","",K47) -> 675 | L51: =IF('Portada Libro'!M4="","",L47) -> 12.30993545 | M51: =IF('Portada Libro'!M4="","",M47) -> 8309.20643
K52: =IF('Portada Libro'!M4="","",E49) -> 840 | L52: =IF('Portada Libro'!M4="","",F49) -> 12.44199886 | M52: =IF('Portada Libro'!M4="","",G49) -> 10451.27904
K53: =IF('Portada Libro'!M4="","",SUM(K49:K52)) -> 1985 | M53: =IF('Portada Libro'!M4="","",SUM(M49:M52)) -> 24439.0455
C54: ='Sol. Ficha Almacén y Rdo. (N5)'!C15 -> 2013-05-27 | D54: Venta 2 | H54: =IF('Portada Libro'!M4="","",MIN(K49,H58)) -> 0 | I54: =IF('Portada Libro'!M4="","",L49) -> 13 | J54: =IF('Portada Libro'!M4="","",IF(I54="","",H54*I54)) -> 0 | K54: =IF('Portada Libro'!M4="","",K49-H54) -> 0 | L54: =IF('Portada Libro'!M4="","",L49) -> 13 | M54: =IF('Portada Libro'!M4="","",K54*L54) -> 0
H55: =IF('Portada Libro'!M4="","",MIN(K50,H58-H54)) -> 470 | I55: =IF('Portada Libro'!M4="","",L50) -> 12.08204262 | J55: =IF('Portada Libro'!M4="","",IF(I55="","",H55*I55)) -> 5678.560032 | K55: =IF('Portada Libro'!M4="","",K50-H55) -> 0 | L55: =IF('Portada Libro'!M4="","",L50) -> 12.08204262 | M55: =IF('Portada Libro'!M4="","",K55*L55) -> 0
H56: =IF('Portada Libro'!M4="","",MIN(K51,H58-H54-H55)) -> 675 | I56: =IF('Portada Libro'!M4="","",L51) -> 12.30993545 | J56: =IF('Portada Libro'!M4="","",IF(I56="","",H56*I56)) -> 8309.20643 | K56: =IF('Portada Libro'!M4="","",K51-H56) -> 0 | L56: =IF('Portada Libro'!M4="","",L51) -> 12.30993545 | M56: =IF('Portada Libro'!M4="","",K56*L56) -> 0
H57: =IF('Portada Libro'!M4="","",MIN(K52,H58-H54-H55-H56)) -> 180 | I57: =IF('Portada Libro'!M4="","",L52) -> 12.44199886 | J57: =IF('Portada Libro'!M4="","",IF(I57="","",H57*I57)) -> 2239.559794 | K57: =IF('Portada Libro'!M4="","",K52-H57) -> 660 | L57: =IF('Portada Libro'!M4="","",L52) -> 12.44199886 | M57: =IF('Portada Libro'!M4="","",K57*L57) -> 8211.719246
H58: =IF('Portada Libro'!M4="","",'Sol. Ficha Almacén y Rdo. (N5)'!E15) -> 1325 | J58: =IF('Portada Libro'!M4="","",SUM(J54:J57)) -> 16227.32626 | K58: =IF('Portada Libro'!M4="","",SUM(K54:K57)) -> 660 | M58: =IF('Portada Libro'!M4="","",SUM(M54:M57)) -> 8211.719246
D60: Resultado de las ventas de mercaderías del mes de mayo por el criterio de valoración PMP
C62: Ventas netas - Coste de ventas = | F62: ='Factura Venta 1 (N5)'!G28-'Factura Venta 1 (N5)'!G44-'Factura Venta 1 (N5)'!G45+'Factura Venta 2 (N5)'!G28-'Factura Venta 2 (N5)'!G44-'Factura Venta 2 (N5)'!G45 -> 23654.694 | G62: =-(G22+G26+G29+M21-M32) -> -24067.9776 | H62: = | I62: =F62+G62 -> -413.2836024

Sheet Libro Diario (N5) (hidden)
C3: DEBE | I3: HABER
C4: IMPORTES | D4: Nº CUENTA | E4: NOMBRE CUENTA | G4: Nº CUENTA | H4: NOMBRE CUENTA | I4: IMPORTES
E5: =IF(D5="","",VLOOKUP(D5,'Cuadro de Cuentas'!$B$3:$C$567,2,FALSE)) ->  | F5: =IF(G5="","","a") ->  | H5: =IF(G5="","",VLOOKUP(G5,'Cuadro de Cuentas'!$B$3:$C$567,2,FALSE)) -> 
E6: =IF(D6="","",VLOOKUP(D6,'Cuadro de Cuentas'!$B$3:$C$567,2,FALSE)) ->  | H6: =IF(G6="","",VLOOKUP(G6,'Cuadro de Cuentas'!$B$3:$C$567,2,FALSE)) -> 
E7: =IF(D7="","",VLOOKUP(D7,'Cuadro de Cuentas'!$B$3:$C$567,2,FALSE)) ->  | H7: =IF(G7="","",VLOOKUP(G7,'Cuadro de Cuentas'!$B$3:$C$567,2,FALSE)) -> 
E8: =IF(D8="","",VLOOKUP(D8,'Cuadro de Cuentas'!$B$3:$C$567,2,FALSE)) ->  | H8: =IF(G8="","",VLOOKUP(G8,'Cuadro de Cuentas'!$B$3:$C$567,2,FALSE)) -> 
E9: =IF(D9="","",VLOOKUP(D9,'Cuadro de Cuentas'!$B$3:$C$567,2,FALSE)) ->  | H9: =IF(G9="","",VLOOKUP(G9,'Cuadro de Cuentas'!$B$3:$C$567,2,FALSE)) -> 
E10: =IF(D10="","",VLOOKUP(D10,'Cuadro de Cuentas'!$B$3:$C$567,2,FALSE)) ->  | H10: =IF(G10="","",VLOOKUP(G10,'Cuadro de Cuentas'!$B$3:$C$567,2,FALSE)) -> 
E11: =IF(D11="","",VLOOKUP(D11,'Cuadro de Cuentas'!$B$3:$C$567,2,FALSE)) ->  | H11: =IF(G11="","",VLOOKUP(G11,'Cuadro de Cuentas'!$B$3:$C$567,2,FALSE)) -> 
E12: =IF(D12="","",VLOOKUP(D12,'Cuadro de Cuentas'!$B$3:$C$567,2,FALSE)) ->  | H12: =IF(G12="","",VLOOKUP(G12,'Cuadro de Cuentas'!$B$3:$C$567,2,FALSE)) -> 
E13: =IF(D13="","",VLOOKUP(D13,'Cuadro de Cuentas'!$B$3:$C$567,2,FALSE)) ->  | H13: =IF(G13="","",VLOOKUP(G13,'Cuadro de Cuentas'!$B$3:$C$567,2,FALSE)) -> 
E14: =IF(D14="","",VLOOKUP(D14,'Cuadro de Cuentas'!$B$3:$C$567,2,FALSE)) ->  | H14: =IF(G14="","",VLOOKUP(G14,'Cuadro de Cuentas'!$B$3:$C$567,2,FALSE)) -> 
E15: =IF(D15="","",VLOOKUP(D15,'Cuadro de Cuentas'!$B$3:$C$567,2,FALSE)) ->  | H15: =IF(G15="","",VLOOKUP(G15,'Cuadro de Cuentas'!$B$3:$C$567,2,FALSE)) -> 
E16: =IF(D16="","",VLOOKUP(D16,'Cuadro de Cuentas'!$B$3:$C$567,2,FALSE)) ->  | H16: =IF(G16="","",VLOOKUP(G16,'Cuadro de Cuentas'!$B$3:$C$567,2,FALSE)) -> 
E17: =IF(D17="","",VLOOKUP(D17,'Cuadro de Cuentas'!$B$3:$C$567,2,FALSE)) ->  | H17: =IF(G17="","",VLOOKUP(G17,'Cuadro de Cuentas'!$B$3:$C$567,2,FALSE)) -> 
E18: =IF(D18="","",VLOOKUP(D18,'Cuadro de Cuentas'!$B$3:$C$567,2,FALSE)) ->  | H18: =IF(G18="","",VLOOKUP(G18,'Cuadro de Cuentas'!$B$3:$C$567,2,FALSE)) -> 
E19: =IF(D19="","",VLOOKUP(D19,'Cuadro de Cuentas'!$B$3:$C$567,2,FALSE)) ->  | H19: =IF(G19="","",VLOOKUP(G19,'Cuadro de Cuentas'!$B$3:$C$567,2,FALSE)) -> 
E20: =IF(D20="","",VLOOKUP(D20,'Cuadro de Cuentas'!$B$3:$C$567,2,FALSE)) ->  | H20: =IF(G20="","",VLOOKUP(G20,'Cuadro de Cuentas'!$B$3:$C$567,2,FALSE)) -> 
E21: =IF(D21="","",VLOOKUP(D21,'Cuadro de Cuentas'!$B$3:$C$567,2,FALSE)) ->  | H21: =IF(G21="","",VLOOKUP(G21,'Cuadro de Cuentas'!$B$3:$C$567,2,FALSE)) -> 
E22: =IF(D22="","",VLOOKUP(D22,'Cuadro de Cuentas'!$B$3:$C$567,2,FALSE)) ->  | H22: =IF(G22="","",VLOOKUP(G22,'Cuadro de Cuentas'!$B$3:$C$567,2,FALSE)) -> 
E23: =IF(D23="","",VLOOKUP(D23,'Cuadro de Cuentas'!$B$3:$C$567,2,FALSE)) ->  | H23: =IF(G23="","",VLOOKUP(G23,'Cuadro de Cuentas'!$B$3:$C$567,2,FALSE)) -> 
E24: =IF(D24="","",VLOOKUP(D24,'Cuadro de Cuentas'!$B$3:$C$567,2,FALSE)) ->  | H24: =IF(G24="","",VLOOKUP(G24,'Cuadro de Cuentas'!$B$3:$C$567,2,FALSE)) -> 
E25: =IF(D25="","",VLOOKUP(D25,'Cuadro de Cuentas'!$B$3:$C$567,2,FALSE)) ->  | H25: =IF(G25="","",VLOOKUP(G25,'Cuadro de Cuentas'!$B$3:$C$567,2,FALSE)) -> 
E26: =IF(D26="","",VLOOKUP(D26,'Cuadro de Cuentas'!$B$3:$C$567,2,FALSE)) ->  | H26: =IF(G26="","",VLOOKUP(G26,'Cuadro de Cuentas'!$B$3:$C$567,2,FALSE)) -> 
E27: =IF(D27="","",VLOOKUP(D27,'Cuadro de Cuentas'!$B$3:$C$567,2,FALSE)) ->  | H27: =IF(G27="","",VLOOKUP(G27,'Cuadro de Cuentas'!$B$3:$C$567,2,FALSE)) -> 
E28: =IF(D28="","",VLOOKUP(D28,'Cuadro de Cuentas'!$B$3:$C$567,2,FALSE)) ->  | H28: =IF(G28="","",VLOOKUP(G28,'Cuadro de Cuentas'!$B$3:$C$567,2,FALSE)) -> 
E29: =IF(D29="","",VLOOKUP(D29,'Cuadro de Cuentas'!$B$3:$C$567,2,FALSE)) ->  | H29: =IF(G29="","",VLOOKUP(G29,'Cuadro de Cuentas'!$B$3:$C$567,2,FALSE)) -> 
E30: =IF(D30="","",VLOOKUP(D30,'Cuadro de Cuentas'!$B$3:$C$567,2,FALSE)) ->  | H30: =IF(G30="","",VLOOKUP(G30,'Cuadro de Cuentas'!$B$3:$C$567,2,FALSE)) -> 
E31: =IF(D31="","",VLOOKUP(D31,'Cuadro de Cuentas'!$B$3:$C$567,2,FALSE)) ->  | H31: =IF(G31="","",VLOOKUP(G31,'Cuadro de Cuentas'!$B$3:$C$567,2,FALSE)) -> 
E32: =IF(D32="","",VLOOKUP(D32,'Cuadro de Cuentas'!$B$3:$C$567,2,FALSE)) ->  | H32: =IF(G32="","",VLOOKUP(G32,'Cuadro de Cuentas'!$B$3:$C$567,2,FALSE)) -> 
E33: =IF(D33="","",VLOOKUP(D33,'Cuadro de Cuentas'!$B$3:$C$567,2,FALSE)) ->  | H33: =IF(G33="","",VLOOKUP(G33,'Cuadro de Cuentas'!$B$3:$C$567,2,FALSE)) -> 
E34: =IF(D34="","",VLOOKUP(D34,'Cuadro de Cuentas'!$B$3:$C$567,2,FALSE)) ->  | H34: =IF(G34="","",VLOOKUP(G34,'Cuadro de Cuentas'!$B$3:$C$567,2,FALSE)) -> 
E35: =IF(D35="","",VLOOKUP(D35,'Cuadro de Cuentas'!$B$3:$C$567,2,FALSE)) ->  | H35: =IF(G35="","",VLOOKUP(G35,'Cuadro de Cuentas'!$B$3:$C$567,2,FALSE)) -> 
E36: =IF(D36="","",VLOOKUP(D36,'Cuadro de Cuentas'!$B$3:$C$567,2,FALSE)) ->  | H36: =IF(G36="","",VLOOKUP(G36,'Cuadro de Cuentas'!$B$3:$C$567,2,FALSE)) -> 
E37: =IF(D37="","",VLOOKUP(D37,'Cuadro de Cuentas'!$B$3:$C$567,2,FALSE)) ->  | H37: =IF(G37="","",VLOOKUP(G37,'Cuadro de Cuentas'!$B$3:$C$567,2,FALSE)) -> 
E38: =IF(D38="","",VLOOKUP(D38,'Cuadro de Cuentas'!$B$3:$C$567,2,FALSE)) ->  | H38: =IF(G38="","",VLOOKUP(G38,'Cuadro de Cuentas'!$B$3:$C$567,2,FALSE)) -> 
E39: =IF(D39="","",VLOOKUP(D39,'Cuadro de Cuentas'!$B$3:$C$567,2,FALSE)) ->  | H39: =IF(G39="","",VLOOKUP(G39,'Cuadro de Cuentas'!$B$3:$C$567,2,FALSE)) -> 
E40: =IF(D40="","",VLOOKUP(D40,'Cuadro de Cuentas'!$B$3:$C$567,2,FALSE)) ->  | H40: =IF(G40="","",VLOOKUP(G40,'Cuadro de Cuentas'!$B$3:$C$567,2,FALSE)) -> 
E41: =IF(D41="","",VLOOKUP(D41,'Cuadro de Cuentas'!$B$3:$C$567,2,FALSE)) ->  | H41: =IF(G41="","",VLOOKUP(G41,'Cuadro de Cuentas'!$B$3:$C$567,2,FALSE)) -> 
E42: =IF(D42="","",VLOOKUP(D42,'Cuadro de Cuentas'!$B$3:$C$567,2,FALSE)) ->  | H42: =IF(G42="","",VLOOKUP(G42,'Cuadro de Cuentas'!$B$3:$C$567,2,FALSE)) -> 
E43: =IF(D43="","",VLOOKUP(D43,'Cuadro de Cuentas'!$B$3:$C$567,2,FALSE)) ->  | H43: =IF(G43="","",VLOOKUP(G43,'Cuadro de Cuentas'!$B$3:$C$567,2,FALSE)) -> 
E44: =IF(D44="","",VLOOKUP(D44,'Cuadro de Cuentas'!$B$3:$C$567,2,FALSE)) ->  | H44: =IF(G44="","",VLOOKUP(G44,'Cuadro de Cuentas'!$B$3:$C$567,2,FALSE)) -> 
E45: =IF(D45="","",VLOOKUP(D45,'Cuadro de Cuentas'!$B$3:$C$567,2,FALSE)) ->  | H45: =IF(G45="","",VLOOKUP(G45,'Cuadro de Cuentas'!$B$3:$C$567,2,FALSE)) -> 
E46: =IF(D46="","",VLOOKUP(D46,'Cuadro de Cuentas'!$B$3:$C$567,2,FALSE)) ->  | H46: =IF(G46="","",VLOOKUP(G46,'Cuadro de Cuentas'!$B$3:$C$567,2,FALSE)) -> 
E47: =IF(D47="","",VLOOKUP(D47,'Cuadro de Cuentas'!$B$3:$C$567,2,FALSE)) ->  | H47: =IF(G47="","",VLOOKUP(G47,'Cuadro de Cuentas'!$B$3:$C$567,2,FALSE)) -> 
E48: =IF(D48="","",VLOOKUP(D48,'Cuadro de Cuentas'!$B$3:$C$567,2,FALSE)) ->  | H48: =IF(G48="","",VLOOKUP(G48,'Cuadro de Cuentas'!$B$3:$C$567,2,FALSE)) -> 
E49: =IF(D49="","",VLOOKUP(D49,'Cuadro de Cuentas'!$B$3:$C$567,2,FALSE)) ->  | H49: =IF(G49="","",VLOOKUP(G49,'Cuadro de Cuentas'!$B$3:$C$567,2,FALSE)) -> 
C53: DEBE | I53: HABER
C54: IMPORTES | D54: Nº CUENTA | E54: NOMBRE CUENTA | G54: Nº CUENTA | H54: NOMBRE CUENTA | I54: IMPORTES
E55: =IF(D55="","",VLOOKUP(D55,'Cuadro de Cuentas'!$B$3:$C$567,2,FALSE)) ->  | F55: =IF(G55="","","a") ->  | H55: =IF(G55="","",VLOOKUP(G55,'Cuadro de Cuentas'!$B$3:$C$567,2,FALSE)) -> 
E56: =IF(D56="","",VLOOKUP(D56,'Cuadro de Cuentas'!$B$3:$C$567,2,FALSE)) ->  | H56: =IF(G56="","",VLOOKUP(G56,'Cuadro de Cuentas'!$B$3:$C$567,2,FALSE)) -> 
E57: =IF(D57="","",VLOOKUP(D57,'Cuadro de Cuentas'!$B$3:$C$567,2,FALSE)) ->  | H57: =IF(G57="","",VLOOKUP(G57,'Cuadro de Cuentas'!$B$3:$C$567,2,FALSE)) -> 
E58: =IF(D58="","",VLOOKUP(D58,'Cuadro de Cuentas'!$B$3:$C$567,2,FALSE)) ->  | H58: =IF(G58="","",VLOOKUP(G58,'Cuadro de Cuentas'!$B$3:$C$567,2,FALSE)) -> 
E59: =IF(D59="","",VLOOKUP(D59,'Cuadro de Cuentas'!$B$3:$C$567,2,FALSE)) ->  | H59: =IF(G59="","",VLOOKUP(G59,'Cuadro de Cuentas'!$B$3:$C$567,2,FALSE)) -> 
E60: =IF(D60="","",VLOOKUP(D60,'Cuadro de Cuentas'!$B$3:$C$567,2,FALSE)) ->  | H60: =IF(G60="","",VLOOKUP(G60,'Cuadro de Cuentas'!$B$3:$C$567,2,FALSE)) -> 
E61: =IF(D61="","",VLOOKUP(D61,'Cuadro de Cuentas'!$B$3:$C$567,2,FALSE)) ->  | H61: =IF(G61="","",VLOOKUP(G61,'Cuadro de Cuentas'!$B$3:$C$567,2,FALSE)) -> 
E62: =IF(D62="","",VLOOKUP(D62,'Cuadro de Cuentas'!$B$3:$C$567,2,FALSE)) ->  | H62: =IF(G62="","",VLOOKUP(G62,'Cuadro de Cuentas'!$B$3:$C$567,2,FALSE)) -> 
E63: =IF(D63="","",VLOOKUP(D63,'Cuadro de Cuentas'!$B$3:$C$567,2,FALSE)) ->  | H63: =IF(G63="","",VLOOKUP(G63,'Cuadro de Cuentas'!$B$3:$C$567,2,FALSE)) -> 
E64: =IF(D64="","",VLOOKUP(D64,'Cuadro de Cuentas'!$B$3:$C$567,2,FALSE)) ->  | H64: =IF(G64="","",VLOOKUP(G64,'Cuadro de Cuentas'!$B$3:$C$567,2,FALSE)) -> 
E65: =IF(D65="","",VLOOKUP(D65,'Cuadro de Cuentas'!$B$3:$C$567,2,FALSE)) ->  | H65: =IF(G65="","",VLOOKUP(G65,'Cuadro de Cuentas'!$B$3:$C$567,2,FALSE)) -> 
E66: =IF(D66="","",VLOOKUP(D66,'Cuadro de Cuentas'!$B$3:$C$567,2,FALSE)) ->  | H66: =IF(G66="","",VLOOKUP(G66,'Cuadro de Cuentas'!$B$3:$C$567,2,FALSE)) -> 
E67: =IF(D67="","",VLOOKUP(D67,'Cuadro de Cuentas'!$B$3:$C$567,2,FALSE)) ->  | H67: =IF(G67="","",VLOOKUP(G67,'Cuadro de Cuentas'!$B$3:$C$567,2,FALSE)) -> 
E68: =IF(D68="","",VLOOKUP(D68,'Cuadro de Cuentas'!$B$3:$C$567,2,FALSE)) ->  | H68: =IF(G68="","",VLOOKUP(G68,'Cuadro de Cuentas'!$B$3:$C$567,2,FALSE)) -> 
E69: =IF(D69="","",VLOOKUP(D69,'Cuadro de Cuentas'!$B$3:$C$567,2,FALSE)) ->  | H69: =IF(G69="","",VLOOKUP(G69,'Cuadro de Cuentas'!$B$3:$C$567,2,FALSE)) -> 
E70: =IF(D70="","",VLOOKUP(D70,'Cuadro de Cuentas'!$B$3:$C$567,2,FALSE)) ->  | H70: =IF(G70="","",VLOOKUP(G70,'Cuadro de Cuentas'!$B$3:$C$567,2,FALSE)) -> 
E71: =IF(D71="","",VLOOKUP(D71,'Cuadro de Cuentas'!$B$3:$C$567,2,FALSE)) ->  | H71: =IF(G71="","",VLOOKUP(G71,'Cuadro de Cuentas'!$B$3:$C$567,2,FALSE)) -> 
E72: =IF(D72="","",VLOOKUP(D72,'Cuadro de Cuentas'!$B$3:$C$567,2,FALSE)) ->  | H72: =IF(G72="","",VLOOKUP(G72,'Cuadro de Cuentas'!$B$3:$C$567,2,FALSE)) -> 
E73: =IF(D73="","",VLOOKUP(D73,'Cuadro de Cuentas'!$B$3:$C$567,2,FALSE)) ->  | H73: =IF(G73="","",VLOOKUP(G73,'Cuadro de Cuentas'!$B$3:$C$567,2,FALSE)) -> 
E74: =IF(D74="","",VLOOKUP(D74,'Cuadro de Cuentas'!$B$3:$C$567,2,FALSE)) ->  | H74: =IF(G74="","",VLOOKUP(G74,'Cuadro de Cuentas'!$B$3:$C$567,2,FALSE)) -> 
E75: =IF(D75="","",VLOOKUP(D75,'Cuadro de Cuentas'!$B$3:$C$567,2,FALSE)) ->  | H75: =IF(G75="","",VLOOKUP(G75,'Cuadro de Cuentas'!$B$3:$C$567,2,FALSE)) -> 
E76: =IF(D76="","",VLOOKUP(D76,'Cuadro de Cuentas'!$B$3:$C$567,2,FALSE)) ->  | H76: =IF(G76="","",VLOOKUP(G76,'Cuadro de Cuentas'!$B$3:$C$567,2,FALSE)) -> 
E77: =IF(D77="","",VLOOKUP(D77,'Cuadro de Cuentas'!$B$3:$C$567,2,FALSE)) ->  | H77: =IF(G77="","",VLOOKUP(G77,'Cuadro de Cuentas'!$B$3:$C$567,2,FALSE)) -> 
E78: =IF(D78="","",VLOOKUP(D78,'Cuadro de Cuentas'!$B$3:$C$567,2,FALSE)) ->  | H78: =IF(G78="","",VLOOKUP(G78,'Cuadro de Cuentas'!$B$3:$C$567,2,FALSE)) -> 
E79: =IF(D79="","",VLOOKUP(D79,'Cuadro de Cuentas'!$B$3:$C$567,2,FALSE)) ->  | H79: =IF(G79="","",VLOOKUP(G79,'Cuadro de Cuentas'!$B$3:$C$567,2,FALSE)) -> 
E80: =IF(D80="","",VLOOKUP(D80,'Cuadro de Cuentas'!$B$3:$C$567,2,FALSE)) ->  | H80: =IF(G80="","",VLOOKUP(G80,'Cuadro de Cuentas'!$B$3:$C$567,2,FALSE)) -> 
E81: =IF(D81="","",VLOOKUP(D81,'Cuadro de Cuentas'!$B$3:$C$567,2,FALSE)) ->  | H81: =IF(G81="","",VLOOKUP(G81,'Cuadro de Cuentas'!$B$3:$C$567,2,FALSE)) -> 
E82: =IF(D82="","",VLOOKUP(D82,'Cuadro de Cuentas'!$B$3:$C$567,2,FALSE)) ->  | H82: =IF(G82="","",VLOOKUP(G82,'Cuadro de Cuentas'!$B$3:$C$567,2,FALSE)) -> 
E83: =IF(D83="","",VLOOKUP(D83,'Cuadro de Cuentas'!$B$3:$C$567,2,FALSE)) ->  | H83: =IF(G83="","",VLOOKUP(G83,'Cuadro de Cuentas'!$B$3:$C$567,2,FALSE)) -> 
E84: =IF(D84="","",VLOOKUP(D84,'Cuadro de Cuentas'!$B$3:$C$567,2,FALSE)) ->  | H84: =IF(G84="","",VLOOKUP(G84,'Cuadro de Cuentas'!$B$3:$C$567,2,FALSE)) -> 
E85: =IF(D85="","",VLOOKUP(D85,'Cuadro de Cuentas'!$B$3:$C$567,2,FALSE)) ->  | H85: =IF(G85="","",VLOOKUP(G85,'Cuadro de Cuentas'!$B$3:$C$567,2,FALSE)) -> 
E86: =IF(D86="","",VLOOKUP(D86,'Cuadro de Cuentas'!$B$3:$C$567,2,FALSE)) ->  | H86: =IF(G86="","",VLOOKUP(G86,'Cuadro de Cuentas'!$B$3:$C$567,2,FALSE)) -> 
E87: =IF(D87="","",VLOOKUP(D87,'Cuadro de Cuentas'!$B$3:$C$567,2,FALSE)) ->  | H87: =IF(G87="","",VLOOKUP(G87,'Cuadro de Cuentas'!$B$3:$C$567,2,FALSE)) -> 
E88: =IF(D88="","",VLOOKUP(D88,'Cuadro de Cuentas'!$B$3:$C$567,2,FALSE)) ->  | H88: =IF(G88="","",VLOOKUP(G88,'Cuadro de Cuentas'!$B$3:$C$567,2,FALSE)) -> 
E89: =IF(D89="","",VLOOKUP(D89,'Cuadro de Cuentas'!$B$3:$C$567,2,FALSE)) ->  | H89: =IF(G89="","",VLOOKUP(G89,'Cuadro de Cuentas'!$B$3:$C$567,2,FALSE)) -> 
E90: =IF(D90="","",VLOOKUP(D90,'Cuadro de Cuentas'!$B$3:$C$567,2,FALSE)) ->  | H90: =IF(G90="","",VLOOKUP(G90,'Cuadro de Cuentas'!$B$3:$C$567,2,FALSE)) -> 
E91: =IF(D91="","",VLOOKUP(D91,'Cuadro de Cuentas'!$B$3:$C$567,2,FALSE)) ->  | H91: =IF(G91="","",VLOOKUP(G91,'Cuadro de Cuentas'!$B$3:$C$567,2,FALSE)) -> 
E92: =IF(D92="","",VLOOKUP(D92,'Cuadro de Cuentas'!$B$3:$C$567,2,FALSE)) ->  | H92: =IF(G92="","",VLOOKUP(G92,'Cuadro de Cuentas'!$B$3:$C$567,2,FALSE)) -> 
E93: =IF(D93="","",VLOOKUP(D93,'Cuadro de Cuentas'!$B$3:$C$567,2,FALSE)) ->  | H93: =IF(G93="","",VLOOKUP(G93,'Cuadro de Cuentas'!$B$3:$C$567,2,FALSE)) -> 
E94: =IF(D94="","",VLOOKUP(D94,'Cuadro de Cuentas'!$B$3:$C$567,2,FALSE)) ->  | H94: =IF(G94="","",VLOOKUP(G94,'Cuadro de Cuentas'!$B$3:$C$567,2,FALSE)) -> 
E95: =IF(D95="","",VLOOKUP(D95,'Cuadro de Cuentas'!$B$3:$C$567,2,FALSE)) ->  | H95: =IF(G95="","",VLOOKUP(G95,'Cuadro de Cuentas'!$B$3:$C$567,2,FALSE)) -> 
E96: =IF(D96="","",VLOOKUP(D96,'Cuadro de Cuentas'!$B$3:$C$567,2,FALSE)) ->  | H96: =IF(G96="","",VLOOKUP(G96,'Cuadro de Cuentas'!$B$3:$C$567,2,FALSE)) -> 
E97: =IF(D97="","",VLOOKUP(D97,'Cuadro de Cuentas'!$B$3:$C$567,2,FALSE)) ->  | H97: =IF(G97="","",VLOOKUP(G97,'Cuadro de Cuentas'!$B$3:$C$567,2,FALSE)) -> 
E98: =IF(D98="","",VLOOKUP(D98,'Cuadro de Cuentas'!$B$3:$C$567,2,FALSE)) ->  | H98: =IF(G98="","",VLOOKUP(G98,'Cuadro de Cuentas'!$B$3:$C$567,2,FALSE)) -> 
E99: =IF(D99="","",VLOOKUP(D99,'Cuadro de Cuentas'!$B$3:$C$567,2,FALSE)) ->  | H99: =IF(G99="","",VLOOKUP(G99,'Cuadro de Cuentas'!$B$3:$C$567,2,FALSE)) -> 
C103: DEBE | I103: HABER
C104: IMPORTES | D104: Nº CUENTA | E104: NOMBRE CUENTA | G104: Nº CUENTA | H104: NOMBRE CUENTA | I104: IMPORTES
E105: =IF(D105="","",VLOOKUP(D105,'Cuadro de Cuentas'!$B$3:$C$567,2,FALSE)) ->  | F105: =IF(G105="","","a") ->  | H105: =IF(G105="","",VLOOKUP(G105,'Cuadro de Cuentas'!$B$3:$C$567,2,FALSE)) -> 
E106: =IF(D106="","",VLOOKUP(D106,'Cuadro de Cuentas'!$B$3:$C$567,2,FALSE)) ->  | H106: =IF(G106="","",VLOOKUP(G106,'Cuadro de Cuentas'!$B$3:$C$567,2,FALSE)) -> 
E107: =IF(D107="","",VLOOKUP(D107,'Cuadro de Cuentas'!$B$3:$C$567,2,FALSE)) ->  | H107: =IF(G107="","",VLOOKUP(G107,'Cuadro de Cuentas'!$B$3:$C$567,2,FALSE)) -> 
E108: =IF(D108="","",VLOOKUP(D108,'Cuadro de Cuentas'!$B$3:$C$567,2,FALSE)) ->  | H108: =IF(G108="","",VLOOKUP(G108,'Cuadro de Cuentas'!$B$3:$C$567,2,FALSE)) -> 
E109: =IF(D109="","",VLOOKUP(D109,'Cuadro de Cuentas'!$B$3:$C$567,2,FALSE)) ->  | H109: =IF(G109="","",VLOOKUP(G109,'Cuadro de Cuentas'!$B$3:$C$567,2,FALSE)) -> 
E110: =IF(D110="","",VLOOKUP(D110,'Cuadro de Cuentas'!$B$3:$C$567,2,FALSE)) ->  | H110: =IF(G110="","",VLOOKUP(G110,'Cuadro de Cuentas'!$B$3:$C$567,2,FALSE)) -> 
E111: =IF(D111="","",VLOOKUP(D111,'Cuadro de Cuentas'!$B$3:$C$567,2,FALSE)) ->  | H111: =IF(G111="","",VLOOKUP(G111,'Cuadro de Cuentas'!$B$3:$C$567,2,FALSE)) -> 
E112: =IF(D112="","",VLOOKUP(D112,'Cuadro de Cuentas'!$B$3:$C$567,2,FALSE)) ->  | H112: =IF(G112="","",VLOOKUP(G112,'Cuadro de Cuentas'!$B$3:$C$567,2,FALSE)) -> 
E113: =IF(D113="","",VLOOKUP(D113,'Cuadro de Cuentas'!$B$3:$C$567,2,FALSE)) ->  | H113: =IF(G113="","",VLOOKUP(G113,'Cuadro de Cuentas'!$B$3:$C$567,2,FALSE)) -> 
E114: =IF(D114="","",VLOOKUP(D114,'Cuadro de Cuentas'!$B$3:$C$567,2,FALSE)) ->  | H114: =IF(G114="","",VLOOKUP(G114,'Cuadro de Cuentas'!$B$3:$C$567,2,FALSE)) -> 
E115: =IF(D115="","",VLOOKUP(D115,'Cuadro de Cuentas'!$B$3:$C$567,2,FALSE)) ->  | H115: =IF(G115="","",VLOOKUP(G115,'Cuadro de Cuentas'!$B$3:$C$567,2,FALSE)) -> 
E116: =IF(D116="","",VLOOKUP(D116,'Cuadro de Cuentas'!$B$3:$C$567,2,FALSE)) ->  | H116: =IF(G116="","",VLOOKUP(G116,'Cuadro de Cuentas'!$B$3:$C$567,2,FALSE)) -> 
E117: =IF(D117="","",VLOOKUP(D117,'Cuadro de Cuentas'!$B$3:$C$567,2,FALSE)) ->  | H117: =IF(G117="","",VLOOKUP(G117,'Cuadro de Cuentas'!$B$3:$C$567,2,FALSE)) -> 
E118: =IF(D118="","",VLOOKUP(D118,'Cuadro de Cuentas'!$B$3:$C$567,2,FALSE)) ->  | H118: =IF(G118="","",VLOOKUP(G118,'Cuadro de Cuentas'!$B$3:$C$567,2,FALSE)) -> 
E119: =IF(D119="","",VLOOKUP(D119,'Cuadro de Cuentas'!$B$3:$C$567,2,FALSE)) ->  | H119: =IF(G119="","",VLOOKUP(G119,'Cuadro de Cuentas'!$B$3:$C$567,2,FALSE)) -> 
E120: =IF(D120="","",VLOOKUP(D120,'Cuadro de Cuentas'!$B$3:$C$567,2,FALSE)) ->  | H120: =IF(G120="","",VLOOKUP(G120,'Cuadro de Cuentas'!$B$3:$C$567,2,FALSE)) -> 
E121: =IF(D121="","",VLOOKUP(D121,'Cuadro de Cuentas'!$B$3:$C$567,2,FALSE)) ->  | H121: =IF(G121="","",VLOOKUP(G121,'Cuadro de Cuentas'!$B$3:$C$567,2,FALSE)) -> 
E122: =IF(D122="","",VLOOKUP(D122,'Cuadro de Cuentas'!$B$3:$C$567,2,FALSE)) ->  | H122: =IF(G122="","",VLOOKUP(G122,'Cuadro de Cuentas'!$B$3:$C$567,2,FALSE)) -> 
E123: =IF(D123="","",VLOOKUP(D123,'Cuadro de Cuentas'!$B$3:$C$567,2,FALSE)) ->  | H123: =IF(G123="","",VLOOKUP(G123,'Cuadro de Cuentas'!$B$3:$C$567,2,FALSE)) -> 
E124: =IF(D124="","",VLOOKUP(D124,'Cuadro de Cuentas'!$B$3:$C$567,2,FALSE)) ->  | H124: =IF(G124="","",VLOOKUP(G124,'Cuadro de Cuentas'!$B$3:$C$567,2,FALSE)) -> 
E125: =IF(D125="","",VLOOKUP(D125,'Cuadro de Cuentas'!$B$3:$C$567,2,FALSE)) ->  | H125: =IF(G125="","",VLOOKUP(G125,'Cuadro de Cuentas'!$B$3:$C$567,2,FALSE)) -> 
E126: =IF(D126="","",VLOOKUP(D126,'Cuadro de Cuentas'!$B$3:$C$567,2,FALSE)) ->  | H126: =IF(G126="","",VLOOKUP(G126,'Cuadro de Cuentas'!$B$3:$C$567,2,FALSE)) -> 
E127: =IF(D127="","",VLOOKUP(D127,'Cuadro de Cuentas'!$B$3:$C$567,2,FALSE)) ->  | H127: =IF(G127="","",VLOOKUP(G127,'Cuadro de Cuentas'!$B$3:$C$567,2,FALSE)) -> 
E128: =IF(D128="","",VLOOKUP(D128,'Cuadro de Cuentas'!$B$3:$C$567,2,FALSE)) ->  | H128: =IF(G128="","",VLOOKUP(G128,'Cuadro de Cuentas'!$B$3:$C$567,2,FALSE)) -> 
E129: =IF(D129="","",VLOOKUP(D129,'Cuadro de Cuentas'!$B$3:$C$567,2,FALSE)) ->  | H129: =IF(G129="","",VLOOKUP(G129,'Cuadro de Cuentas'!$B$3:$C$567,2,FALSE)) -> 
E130: =IF(D130="","",VLOOKUP(D130,'Cuadro de Cuentas'!$B$3:$C$567,2,FALSE)) ->  | H130: =IF(G130="","",VLOOKUP(G130,'Cuadro de Cuentas'!$B$3:$C$567,2,FALSE)) -> 
E131: =IF(D131="","",VLOOKUP(D131,'Cuadro de Cuentas'!$B$3:$C$567,2,FALSE)) ->  | H131: =IF(G131="","",VLOOKUP(G131,'Cuadro de Cuentas'!$B$3:$C$567,2,FALSE)) -> 
E132: =IF(D132="","",VLOOKUP(D132,'Cuadro de Cuentas'!$B$3:$C$567,2,FALSE)) ->  | H132: =IF(G132="","",VLOOKUP(G132,'Cuadro de Cuentas'!$B$3:$C$567,2,FALSE)) -> 
E133: =IF(D133="","",VLOOKUP(D133,'Cuadro de Cuentas'!$B$3:$C$567,2,FALSE)) ->  | H133: =IF(G133="","",VLOOKUP(G133,'Cuadro de Cuentas'!$B$3:$C$567,2,FALSE)) -> 
E134: =IF(D134="","",VLOOKUP(D134,'Cuadro de Cuentas'!$B$3:$C$567,2,FALSE)) ->  | H134: =IF(G134="","",VLOOKUP(G134,'Cuadro de Cuentas'!$B$3:$C$567,2,FALSE)) -> 
E135: =IF(D135="","",VLOOKUP(D135,'Cuadro de Cuentas'!$B$3:$C$567,2,FALSE)) ->  | H135: =IF(G135="","",VLOOKUP(G135,'Cuadro de Cuentas'!$B$3:$C$567,2,FALSE)) -> 
E136: =IF(D136="","",VLOOKUP(D136,'Cuadro de Cuentas'!$B$3:$C$567,2,FALSE)) ->  | H136: =IF(G136="","",VLOOKUP(G136,'Cuadro de Cuentas'!$B$3:$C$567,2,FALSE)) -> 
E137: =IF(D137="","",VLOOKUP(D137,'Cuadro de Cuentas'!$B$3:$C$567,2,FALSE)) ->  | H137: =IF(G137="","",VLOOKUP(G137,'Cuadro de Cuentas'!$B$3:$C$567,2,FALSE)) -> 
E138: =IF(D138="","",VLOOKUP(D138,'Cuadro de Cuentas'!$B$3:$C$567,2,FALSE)) ->  | H138: =IF(G138="","",VLOOKUP(G138,'Cuadro de Cuentas'!$B$3:$C$567,2,FALSE)) -> 
E139: =IF(D139="","",VLOOKUP(D139,'Cuadro de Cuentas'!$B$3:$C$567,2,FALSE)) ->  | H139: =IF(G139="","",VLOOKUP(G139,'Cuadro de Cuentas'!$B$3:$C$567,2,FALSE)) -> 
E140: =IF(D140="","",VLOOKUP(D140,'Cuadro de Cuentas'!$B$3:$C$567,2,FALSE)) ->  | H140: =IF(G140="","",VLOOKUP(G140,'Cuadro de Cuentas'!$B$3:$C$567,2,FALSE)) -> 
E141: =IF(D141="","",VLOOKUP(D141,'Cuadro de Cuentas'!$B$3:$C$567,2,FALSE)) ->  | H141: =IF(G141="","",VLOOKUP(G141,'Cuadro de Cuentas'!$B$3:$C$567,2,FALSE)) -> 
E142: =IF(D142="","",VLOOKUP(D142,'Cuadro de Cuentas'!$B$3:$C$567,2,FALSE)) ->  | H142: =IF(G142="","",VLOOKUP(G142,'Cuadro de Cuentas'!$B$3:$C$567,2,FALSE)) -> 
E143: =IF(D143="","",VLOOKUP(D143,'Cuadro de Cuentas'!$B$3:$C$567,2,FALSE)) ->  | H143: =IF(G143="","",VLOOKUP(G143,'Cuadro de Cuentas'!$B$3:$C$567,2,FALSE)) -> 
E144: =IF(D144="","",VLOOKUP(D144,'Cuadro de Cuentas'!$B$3:$C$567,2,FALSE)) ->  | H144: =IF(G144="","",VLOOKUP(G144,'Cuadro de Cuentas'!$B$3:$C$567,2,FALSE)) -> 
E145: =IF(D145="","",VLOOKUP(D145,'Cuadro de Cuentas'!$B$3:$C$567,2,FALSE)) ->  | H145: =IF(G145="","",VLOOKUP(G145,'Cuadro de Cuentas'!$B$3:$C$567,2,FALSE)) -> 
E146: =IF(D146="","",VLOOKUP(D146,'Cuadro de Cuentas'!$B$3:$C$567,2,FALSE)) ->  | H146: =IF(G146="","",VLOOKUP(G146,'Cuadro de Cuentas'!$B$3:$C$567,2,FALSE)) -> 
E147: =IF(D147="","",VLOOKUP(D147,'Cuadro de Cuentas'!$B$3:$C$567,2,FALSE)) ->  | H147: =IF(G147="","",VLOOKUP(G147,'Cuadro de Cuentas'!$B$3:$C$567,2,FALSE)) -> 
E148: =IF(D148="","",VLOOKUP(D148,'Cuadro de Cuentas'!$B$3:$C$567,2,FALSE)) ->  | H148: =IF(G148="","",VLOOKUP(G148,'Cuadro de Cuentas'!$B$3:$C$567,2,FALSE)) -> 
E149: =IF(D149="","",VLOOKUP(D149,'Cuadro de Cuentas'!$B$3:$C$567,2,FALSE)) ->  | H149: =IF(G149="","",VLOOKUP(G149,'Cuadro de Cuentas'!$B$3:$C$567,2,FALSE)) -> 

Sheet Solución Libro Diario (N5) (hidden)
C3: DEBE | I3: HABER
C4: IMPORTES | D4: Nº CUENTA | E4: NOMBRE CUENTA | F4: ='Liquidación Aranceles C1 (N5)'!C28 -> 2013-05-06 | G4: Nº CUENTA | H4: NOMBRE CUENTA | I4: IMPORTES
C5: ='Liquidación Aranceles C1 (N5)'!C30+'Liquidación Aranceles C1 (N5)'!C31 -> 993.6089464 | D5: 6001 | E5: =IF(D5="","",VLOOKUP(D5,'Cuadro de Cuentas'!$B$3:$C$567,2,FALSE)) -> Compras de mercaderías en tránsito | F5: =IF(G5="","","a") ->  | H5: =IF(G5="","",VLOOKUP(G5,'Cuadro de Cuentas'!$B$3:$C$567,2,FALSE)) -> 
C6: ='Liquidación Aranceles C1 (N5)'!C32 -> 1421.785081 | D6: 472 | E6: =IF(D6="","",VLOOKUP(D6,'Cuadro de Cuentas'!$B$3:$C$567,2,FALSE)) -> Hacienda Pública, IVA soportado | F6: =IF(G6="","","a") -> a | G6: 572 | H6: =IF(G6="","",VLOOKUP(G6,'Cuadro de Cuentas'!$B$3:$C$567,2,FALSE)) -> Bancos e instituciones de crédito c/c vista, euros | I6: ='Liquidación Aranceles C1 (N5)'!C33 -> 2415.394027
E7: (COMPRA 1) | F7: ='Factura Compra 1 (N5)'!L19 -> 2013-05-08
C8: =+'Factura Compra 1 (N5)'!L62+'Factura Transportista C1 (N5)'!H28+'Factura Transportista C1 (N5)'!G30+'Liquidación Aranceles C1 (N5)'!C30+'Liquidación Aranceles C1 (N5)'!C31 -> 7128.405146 | D8: 600 | E8: =IF(D8="","",VLOOKUP(D8,'Cuadro de Cuentas'!$B$3:$C$567,2,FALSE)) -> Compras de mercaderías | F8: =IF(G8="","","a") ->  | H8: =IF(G8="","",VLOOKUP(G8,'Cuadro de Cuentas'!$B$3:$C$567,2,FALSE)) -> 
C9: ='Factura Transportista C1 (N5)'!H34 -> 62.58 | D9: 472 | E9: =IF(D9="","",VLOOKUP(D9,'Cuadro de Cuentas'!$B$3:$C$567,2,FALSE)) -> Hacienda Pública, IVA soportado | F9: a | G9: 6001 | H9: =IF(G9="","",VLOOKUP(G9,'Cuadro de Cuentas'!$B$3:$C$567,2,FALSE)) -> Compras de mercaderías en tránsito | I9: =C5 -> 993.6089464
F10: a | G10: 400 | H10: =IF(G10="","",VLOOKUP(G10,'Cuadro de Cuentas'!$B$3:$C$567,2,FALSE)) -> Proveedores | I10: =+'Factura Compra 1 (N5)'!L62 -> 5776.7962
E11: =IF(D11="","",VLOOKUP(D11,'Cuadro de Cuentas'!$B$3:$C$567,2,FALSE)) ->  | F11: a | G11: 410 | H11: =IF(G11="","",VLOOKUP(G11,'Cuadro de Cuentas'!$B$3:$C$567,2,FALSE)) -> Acreedores por prestaciones de servicios | I11: =+'Factura Transportista C1 (N5)'!H35 -> 420.58
E12: (COMPRA 1) | F12: ='Factura Venta 1 (N5)'!G18 -> 2013-05-11 | H12: =IF(G12="","",VLOOKUP(G12,'Cuadro de Cuentas'!$B$3:$C$567,2,FALSE)) -> 
C13: =+'Factura Venta 1 (N5)'!G48 -> 9575.94824 | D13: 430 | E13: =IF(D13="","",VLOOKUP(D13,'Cuadro de Cuentas'!$B$3:$C$567,2,FALSE)) -> Clientes | H13: =IF(G13="","",VLOOKUP(G13,'Cuadro de Cuentas'!$B$3:$C$567,2,FALSE)) -> 
E14: =IF(D14="","",VLOOKUP(D14,'Cuadro de Cuentas'!$B$3:$C$567,2,FALSE)) ->  | F14: a | G14: 700 | H14: =IF(G14="","",VLOOKUP(G14,'Cuadro de Cuentas'!$B$3:$C$567,2,FALSE)) -> Ventas de mercaderías | I14: =+'Factura Venta 1 (N5)'!G28-'Factura Venta 1 (N5)'!G44-'Factura Venta 1 (N5)'!G45 -> 7460.544
E15: =IF(D15="","",VLOOKUP(D15,'Cuadro de Cuentas'!$B$3:$C$567,2,FALSE)) ->  | F15: a | G15: 759 | H15: =IF(G15="","",VLOOKUP(G15,'Cuadro de Cuentas'!$B$3:$C$567,2,FALSE)) -> Ingresos por servicios diversos | I15: =+'Factura Venta 1 (N5)'!G30+'Factura Venta 1 (N5)'!G32 -> 467
E16: =IF(D16="","",VLOOKUP(D16,'Cuadro de Cuentas'!$B$3:$C$567,2,FALSE)) ->  | F16: a | G16: 477 | H16: =IF(G16="","",VLOOKUP(G16,'Cuadro de Cuentas'!$B$3:$C$567,2,FALSE)) -> Hacienda Pública, IVA repercutido | I16: =+'Factura Venta 1 (N5)'!G47 -> 1648.40424
E17: (VENTA 1) | F17: ='Factura Transportista V1 (N5)'!L19 -> 2013-05-13 | H17: =IF(G17="","",VLOOKUP(G17,'Cuadro de Cuentas'!$B$3:$C$567,2,FALSE)) -> 
C18: ='Factura Transportista V1 (N5)'!K53+'Factura Transportista V1 (N5)'!L53 -> 467 | D18: 624 | E18: =IF(D18="","",VLOOKUP(D18,'Cuadro de Cuentas'!$B$3:$C$567,2,FALSE)) -> Transportes | H18: =IF(G18="","",VLOOKUP(G18,'Cuadro de Cuentas'!$B$3:$C$567,2,FALSE)) -> 
C19: ='Factura Transportista V1 (N5)'!L54 -> 81.69 | D19: 472 | E19: =IF(D19="","",VLOOKUP(D19,'Cuadro de Cuentas'!$B$3:$C$567,2,FALSE)) -> Hacienda Pública, IVA soportado | F19: a | G19: 410 | H19: =IF(G19="","",VLOOKUP(G19,'Cuadro de Cuentas'!$B$3:$C$567,2,FALSE)) -> Acreedores por prestaciones de servicios | I19: ='Factura Transportista V1 (N5)'!L55 -> 548.69
E20: (TRANSPORTE VENTA 1) | F20: ='Factura Transportista C1 (N5)'!D38 -> 2013-05-14 | H20: =IF(G20="","",VLOOKUP(G20,'Cuadro de Cuentas'!$B$3:$C$567,2,FALSE)) -> 
C21: =+'Factura Transportista C1 (N5)'!H38 -> 420.58 | D21: 410 | E21: =IF(D21="","",VLOOKUP(D21,'Cuadro de Cuentas'!$B$3:$C$567,2,FALSE)) -> Acreedores por prestaciones de servicios | H21: =IF(G21="","",VLOOKUP(G21,'Cuadro de Cuentas'!$B$3:$C$567,2,FALSE)) -> 
E22: =IF(D22="","",VLOOKUP(D22,'Cuadro de Cuentas'!$B$3:$C$567,2,FALSE)) ->  | F22: a | G22: 572 | H22: =IF(G22="","",VLOOKUP(G22,'Cuadro de Cuentas'!$B$3:$C$567,2,FALSE)) -> Bancos e instituciones de crédito c/c vista, euros | I22: =+C21 -> 420.58
E23: (LIQUIDACIÓN TRANSPORTE COMPRA 1) | F23: ='Liquidación Aranceles C2 (N5)'!C28 -> 2013-05-16 | H23: =IF(G23="","",VLOOKUP(G23,'Cuadro de Cuentas'!$B$3:$C$567,2,FALSE)) -> 
C24: ='Liquidación Aranceles C2 (N5)'!C30+'Liquidación Aranceles C2 (N5)'!C31 -> 1158.82893 | D24: 6001 | E24: =IF(D24="","",VLOOKUP(D24,'Cuadro de Cuentas'!$B$3:$C$567,2,FALSE)) -> Compras de mercaderías en tránsito | F24: =IF(G24="","","a") -> 
C25: ='Liquidación Aranceles C2 (N5)'!C32 -> 1658.20335 | D25: 472 | E25: =IF(D25="","",VLOOKUP(D25,'Cuadro de Cuentas'!$B$3:$C$567,2,FALSE)) -> Hacienda Pública, IVA soportado | F25: =IF(G25="","","a") -> a | G25: 572 | H25: =IF(G25="","",VLOOKUP(G25,'Cuadro de Cuentas'!$B$3:$C$567,2,FALSE)) -> Bancos e instituciones de crédito c/c vista, euros | I25: ='Liquidación Aranceles C2 (N5)'!C33 -> 2817.03228
E26: (COMPRA 2) | F26: ='Factura Compra 2 (N5)'!L19 -> 2013-05-18
C27: ='Factura Compra 2 (N5)'!L62+'Factura Transportista C2 (N5)'!H28+'Factura Transportista C2 (N5)'!G30+'Liquidación Aranceles C2 (N5)'!C30+'Liquidación Aranceles C2 (N5)'!C31 -> 8309.20643 | D27: 600 | E27: =IF(D27="","",VLOOKUP(D27,'Cuadro de Cuentas'!$B$3:$C$567,2,FALSE)) -> Compras de mercaderías | H27: =IF(G27="","",VLOOKUP(G27,'Cuadro de Cuentas'!$B$3:$C$567,2,FALSE)) -> 
C28: ='Factura Transportista C2 (N5)'!H34 -> 72.24 | D28: 472 | E28: =IF(D28="","",VLOOKUP(D28,'Cuadro de Cuentas'!$B$3:$C$567,2,FALSE)) -> Hacienda Pública, IVA soportado | F28: a | G28: 6001 | H28: =IF(G28="","",VLOOKUP(G28,'Cuadro de Cuentas'!$B$3:$C$567,2,FALSE)) -> Compras de mercaderías en tránsito | I28: =C24 -> 1158.82893
E29: =IF(D29="","",VLOOKUP(D29,'Cuadro de Cuentas'!$B$3:$C$567,2,FALSE)) ->  | F29: a | G29: 400 | H29: =IF(G29="","",VLOOKUP(G29,'Cuadro de Cuentas'!$B$3:$C$567,2,FALSE)) -> Proveedores | I29: ='Factura Compra 2 (N5)'!L62 -> 6737.3775
E30: =IF(D30="","",VLOOKUP(D30,'Cuadro de Cuentas'!$B$3:$C$567,2,FALSE)) ->  | F30: a | G30: 410 | H30: =IF(G30="","",VLOOKUP(G30,'Cuadro de Cuentas'!$B$3:$C$567,2,FALSE)) -> Acreedores por prestaciones de servicios | I30: ='Factura Transportista C2 (N5)'!H35 -> 485.24
E31: (COMPRA 2) | F31: ='Liquidación Aranceles C3 (N5)'!C28 -> 2013-05-19 | H31: =IF(G31="","",VLOOKUP(G31,'Cuadro de Cuentas'!$B$3:$C$567,2,FALSE)) -> 
C32: ='Liquidación Aranceles C3 (N5)'!C30+'Liquidación Aranceles C3 (N5)'!C31 -> 1458.95904 | D32: 6001 | E32: =IF(D32="","",VLOOKUP(D32,'Cuadro de Cuentas'!$B$3:$C$567,2,FALSE)) -> Compras de mercaderías en tránsito | F32: =IF(G32="","","a") ->  | H32: =IF(G32="","",VLOOKUP(G32,'Cuadro de Cuentas'!$B$3:$C$567,2,FALSE)) -> 
C33: ='Liquidación Aranceles C3 (N5)'!C32 -> 2087.668598 | D33: 472 | E33: =IF(D33="","",VLOOKUP(D33,'Cuadro de Cuentas'!$B$3:$C$567,2,FALSE)) -> Hacienda Pública, IVA soportado | F33: =IF(G33="","","a") -> a | G33: 572 | H33: =IF(G33="","",VLOOKUP(G33,'Cuadro de Cuentas'!$B$3:$C$567,2,FALSE)) -> Bancos e instituciones de crédito c/c vista, euros | I33: ='Liquidación Aranceles C3 (N5)'!C33 -> 3546.627638
E34: (COMPRA 3) | F34: ='Factura Compra 3 (N5)'!L19 -> 2013-05-21 | H34: =IF(G34="","",VLOOKUP(G34,'Cuadro de Cuentas'!$B$3:$C$567,2,FALSE)) -> 
C35: =+'Factura Compra 3 (N5)'!L62+'Factura Transportista C3 (N5)'!H28+'Factura Transportista C3 (N5)'!G30+'Liquidación Aranceles C3 (N5)'!C30+'Liquidación Aranceles C3 (N5)'!C31 -> 10451.27904 | D35: 600 | E35: =IF(D35="","",VLOOKUP(D35,'Cuadro de Cuentas'!$B$3:$C$567,2,FALSE)) -> Compras de mercaderías | H35: =IF(G35="","",VLOOKUP(G35,'Cuadro de Cuentas'!$B$3:$C$567,2,FALSE)) -> 
C36: ='Factura Transportista C3 (N5)'!H34 -> 89.25 | D36: 472 | E36: =IF(D36="","",VLOOKUP(D36,'Cuadro de Cuentas'!$B$3:$C$567,2,FALSE)) -> Hacienda Pública, IVA soportado | F36: a | G36: 6001 | H36: =IF(G36="","",VLOOKUP(G36,'Cuadro de Cuentas'!$B$3:$C$567,2,FALSE)) -> Compras de mercaderías en tránsito | I36: =C32 -> 1458.95904
E37: =IF(D37="","",VLOOKUP(D37,'Cuadro de Cuentas'!$B$3:$C$567,2,FALSE)) ->  | F37: a | G37: 400 | H37: =IF(G37="","",VLOOKUP(G37,'Cuadro de Cuentas'!$B$3:$C$567,2,FALSE)) -> Proveedores | I37: ='Factura Compra 3 (N5)'!L62 -> 8482.32
E38: =IF(D38="","",VLOOKUP(D38,'Cuadro de Cuentas'!$B$3:$C$567,2,FALSE)) ->  | F38: a | G38: 410 | H38: =IF(G38="","",VLOOKUP(G38,'Cuadro de Cuentas'!$B$3:$C$567,2,FALSE)) -> Acreedores por prestaciones de servicios | I38: ='Factura Transportista C3 (N5)'!H35 -> 599.25
E39: (COMPRA 3) | F39: ='Factura Compra 1 (N5)'!H69 -> 2013-05-23 | H39: =IF(G39="","",VLOOKUP(G39,'Cuadro de Cuentas'!$B$3:$C$567,2,FALSE)) -> 
C40: =+'Factura Compra 1 (N5)'!L69 -> 5776.7962 | D40: 400 | E40: =IF(D40="","",VLOOKUP(D40,'Cuadro de Cuentas'!$B$3:$C$567,2,FALSE)) -> Proveedores | H40: =IF(G40="","",VLOOKUP(G40,'Cuadro de Cuentas'!$B$3:$C$567,2,FALSE)) -> 
E41: =IF(D41="","",VLOOKUP(D41,'Cuadro de Cuentas'!$B$3:$C$567,2,FALSE)) ->  | F41: a | G41: 572 | H41: =IF(G41="","",VLOOKUP(G41,'Cuadro de Cuentas'!$B$3:$C$567,2,FALSE)) -> Bancos e instituciones de crédito c/c vista, euros | I41: =+C40 -> 5776.7962
E42: (LIQUIDACIÓN COMPRA 1) | F42: ='Factura Transportista C2 (N5)'!D38 -> 2013-05-24 | H42: =IF(G42="","",VLOOKUP(G42,'Cuadro de Cuentas'!$B$3:$C$567,2,FALSE)) -> 
C43: =+'Factura Transportista C2 (N5)'!H38 -> 485.24 | D43: 410 | E43: =IF(D43="","",VLOOKUP(D43,'Cuadro de Cuentas'!$B$3:$C$567,2,FALSE)) -> Acreedores por prestaciones de servicios | H43: =IF(G43="","",VLOOKUP(G43,'Cuadro de Cuentas'!$B$3:$C$567,2,FALSE)) -> 
E44: =IF(D44="","",VLOOKUP(D44,'Cuadro de Cuentas'!$B$3:$C$567,2,FALSE)) ->  | F44: a | G44: 572 | H44: =IF(G44="","",VLOOKUP(G44,'Cuadro de Cuentas'!$B$3:$C$567,2,FALSE)) -> Bancos e instituciones de crédito c/c vista, euros | I44: =+C43 -> 485.24
E45: (LIQUIDACIÓN TRANSPORTE COMPRA 2) | F45: ='Factura Venta 1 (N5)'!E56 -> 2013-05-26 | H45: =IF(G45="","",VLOOKUP(G45,'Cuadro de Cuentas'!$B$3:$C$567,2,FALSE)) -> 
C46: =I47 -> 9575.94824 | D46: 572 | E46: =IF(D46="","",VLOOKUP(D46,'Cuadro de Cuentas'!$B$3:$C$567,2,FALSE)) -> Bancos e instituciones de crédito c/c vista, euros | H46: =IF(G46="","",VLOOKUP(G46,'Cuadro de Cuentas'!$B$3:$C$567,2,FALSE)) -> 
E47: =IF(D47="","",VLOOKUP(D47,'Cuadro de Cuentas'!$B$3:$C$567,2,FALSE)) ->  | F47: a | G47: 430 | H47: =IF(G47="","",VLOOKUP(G47,'Cuadro de Cuentas'!$B$3:$C$567,2,FALSE)) -> Clientes | I47: ='Factura Venta 1 (N5)'!G56 -> 9575.94824
E48: (LIQUIDACIÓN VENTA 1) | F48: 2013-05-27 | H48: =IF(G48="","",VLOOKUP(G48,'Cuadro de Cuentas'!$B$3:$C$567,2,FALSE)) -> 
C49: =+'Factura Transportista C3 (N5)'!H38 -> 599.25 | D49: 410 | E49: =IF(D49="","",VLOOKUP(D49,'Cuadro de Cuentas'!$B$3:$C$567,2,FALSE)) -> Acreedores por prestaciones de servicios | H49: =IF(G49="","",VLOOKUP(G49,'Cuadro de Cuentas'!$B$3:$C$567,2,FALSE)) -> 
E50: =IF(D50="","",VLOOKUP(D50,'Cuadro de Cuentas'!$B$3:$C$567,2,FALSE)) ->  | F50: a | G50: 572 | H50: =IF(G50="","",VLOOKUP(G50,'Cuadro de Cuentas'!$B$3:$C$567,2,FALSE)) -> Bancos e instituciones de crédito c/c vista, euros | I50: =+C49 -> 599.25
E51: (LIQUIDACIÓN TRANSPORTE COMPRA 3) | F51: ='Factura Venta 2 (N5)'!G18 -> 2013-05-27 | H51: =IF(G51="","",VLOOKUP(G51,'Cuadro de Cuentas'!$B$3:$C$567,2,FALSE)) -> 
C52: ='Factura Venta 2 (N5)'!G48 -> 20772.2715 | D52: 430 | E52: =IF(D52="","",VLOOKUP(D52,'Cuadro de Cuentas'!$B$3:$C$567,2,FALSE)) -> Clientes | F52: =IF(G52="","","a") ->  | H52: =IF(G52="","",VLOOKUP(G52,'Cuadro de Cuentas'!$B$3:$C$567,2,FALSE)) -> 
E53: =IF(D53="","",VLOOKUP(D53,'Cuadro de Cuentas'!$B$3:$C$567,2,FALSE)) ->  | F53: a | G53: 700 | H53: =IF(G53="","",VLOOKUP(G53,'Cuadro de Cuentas'!$B$3:$C$567,2,FALSE)) -> Ventas de mercaderías | I53: ='Factura Venta 2 (N5)'!G28-'Factura Venta 2 (N5)'!G44-'Factura Venta 2 (N5)'!G45 -> 16194.15
E54: =IF(D54="","",VLOOKUP(D54,'Cuadro de Cuentas'!$B$3:$C$567,2,FALSE)) ->  | F54: a | G54: 759 | H54: =IF(G54="","",VLOOKUP(G54,'Cuadro de Cuentas'!$B$3:$C$567,2,FALSE)) -> Ingresos por servicios diversos | I54: ='Factura Venta 2 (N5)'!G30+'Factura Venta 2 (N5)'!G32 -> 1002
E55: =IF(D55="","",VLOOKUP(D55,'Cuadro de Cuentas'!$B$3:$C$567,2,FALSE)) ->  | F55: a | G55: 477 | H55: =IF(G55="","",VLOOKUP(G55,'Cuadro de Cuentas'!$B$3:$C$567,2,FALSE)) -> Hacienda Pública, IVA repercutido | I55: =+'Factura Venta 2 (N5)'!G47 -> 3576.1215
E56: (VENTA 2) | F56: ='Factura Transportista V1 (N5)'!H62 -> 2013-05-28 | H56: =IF(G56="","",VLOOKUP(G56,'Cuadro de Cuentas'!$B$3:$C$567,2,FALSE)) -> 
C57: ='Factura Transportista V1 (N5)'!L62 -> 548.69 | D57: 410 | E57: =IF(D57="","",VLOOKUP(D57,'Cuadro de Cuentas'!$B$3:$C$567,2,FALSE)) -> Acreedores por prestaciones de servicios | H57: =IF(G57="","",VLOOKUP(G57,'Cuadro de Cuentas'!$B$3:$C$567,2,FALSE)) -> 
E58: =IF(D58="","",VLOOKUP(D58,'Cuadro de Cuentas'!$B$3:$C$567,2,FALSE)) ->  | F58: a | G58: 572 | H58: =IF(G58="","",VLOOKUP(G58,'Cuadro de Cuentas'!$B$3:$C$567,2,FALSE)) -> Bancos e instituciones de crédito c/c vista, euros | I58: =C57 -> 548.69
E59: (LIQUIDACIÓN TRANSPORTE VENTA 1) | F59: ='Factura Transportista V2 (N5)'!L19 -> 2013-05-29 | H59: =IF(G59="","",VLOOKUP(G59,'Cuadro de Cuentas'!$B$3:$C$567,2,FALSE)) -> 
C60: ='Factura Transportista V2 (N5)'!K53+'Factura Transportista V2 (N5)'!L53 -> 1002 | D60: 624 | E60: =IF(D60="","",VLOOKUP(D60,'Cuadro de Cuentas'!$B$3:$C$567,2,FALSE)) -> Transportes | H60: =IF(G60="","",VLOOKUP(G60,'Cuadro de Cuentas'!$B$3:$C$567,2,FALSE)) -> 
C61: ='Factura Transportista V2 (N5)'!L54 -> 175.35 | D61: 472 | E61: =IF(D61="","",VLOOKUP(D61,'Cuadro de Cuentas'!$B$3:$C$567,2,FALSE)) -> Hacienda Pública, IVA soportado | F61: a | G61: 410 | H61: =IF(G61="","",VLOOKUP(G61,'Cuadro de Cuentas'!$B$3:$C$567,2,FALSE)) -> Acreedores por prestaciones de servicios | I61: ='Factura Transportista V2 (N5)'!L55 -> 1177.35
E62: (TRANSPORTE VENTA 2) | F62: ='Factura Compra 2 (N5)'!H69 -> 2013-06-02 | H62: =IF(G62="","",VLOOKUP(G62,'Cuadro de Cuentas'!$B$3:$C$567,2,FALSE)) -> 
C63: ='Factura Compra 2 (N5)'!L69 -> 6737.3775 | D63: 400 | E63: =IF(D63="","",VLOOKUP(D63,'Cuadro de Cuentas'!$B$3:$C$567,2,FALSE)) -> Proveedores | H63: =IF(G63="","",VLOOKUP(G63,'Cuadro de Cuentas'!$B$3:$C$567,2,FALSE)) -> 
E64: =IF(D64="","",VLOOKUP(D64,'Cuadro de Cuentas'!$B$3:$C$567,2,FALSE)) ->  | F64: a | G64: 572 | H64: =IF(G64="","",VLOOKUP(G64,'Cuadro de Cuentas'!$B$3:$C$567,2,FALSE)) -> Bancos e instituciones de crédito c/c vista, euros | I64: =C63 -> 6737.3775
E65: (LIQUIDACIÓN COMPRA 2) | F65: ='Factura Venta 2 (N5)'!E56 -> 2013-06-11 | H65: =IF(G65="","",VLOOKUP(G65,'Cuadro de Cuentas'!$B$3:$C$567,2,FALSE)) -> 
C66: =I67 -> 20772.2715 | D66: 572 | E66: =IF(D66="","",VLOOKUP(D66,'Cuadro de Cuentas'!$B$3:$C$567,2,FALSE)) -> Bancos e instituciones de crédito c/c vista, euros | H66: =IF(G66="","",VLOOKUP(G66,'Cuadro de Cuentas'!$B$3:$C$567,2,FALSE)) -> 
E67: =IF(D67="","",VLOOKUP(D67,'Cuadro de Cuentas'!$B$3:$C$567,2,FALSE)) ->  | F67: a | G67: 430 | H67: =IF(G67="","",VLOOKUP(G67,'Cuadro de Cuentas'!$B$3:$C$567,2,FALSE)) -> Clientes | I67: ='Factura Venta 2 (N5)'!G56 -> 20772.2715
E68: (LIQUIDACIÓN VENTA 2) | F68: ='Factura Transportista V2 (N5)'!H62 -> 2013-06-13 | H68: =IF(G68="","",VLOOKUP(G68,'Cuadro de Cuentas'!$B$3:$C$567,2,FALSE)) -> 
C69: ='Factura Transportista V2 (N5)'!L62 -> 1177.35 | D69: 410 | E69: =IF(D69="","",VLOOKUP(D69,'Cuadro de Cuentas'!$B$3:$C$567,2,FALSE)) -> Acreedores por prestaciones de servicios | H69: =IF(G69="","",VLOOKUP(G69,'Cuadro de Cuentas'!$B$3:$C$567,2,FALSE)) -> 
E70: =IF(D70="","",VLOOKUP(D70,'Cuadro de Cuentas'!$B$3:$C$567,2,FALSE)) ->  | F70: a | G70: 572 | H70: =IF(G70="","",VLOOKUP(G70,'Cuadro de Cuentas'!$B$3:$C$567,2,FALSE)) -> Bancos e instituciones de crédito c/c vista, euros | I70: =C69 -> 1177.35
E71: (LIQUIDACIÓN TRANSPORTE VENTA 2) | F71: ='Factura Compra 3 (N5)'!H69 -> 2013-07-05 | H71: =IF(G71="","",VLOOKUP(G71,'Cuadro de Cuentas'!$B$3:$C$567,2,FALSE)) -> 
C72: ='Factura Compra 3 (N5)'!L69 -> 3392.928 | D72: 400 | E72: =IF(D72="","",VLOOKUP(D72,'Cuadro de Cuentas'!$B$3:$C$567,2,FALSE)) -> Proveedores | H72: =IF(G72="","",VLOOKUP(G72,'Cuadro de Cuentas'!$B$3:$C$567,2,FALSE)) -> 
E73: =IF(D73="","",VLOOKUP(D73,'Cuadro de Cuentas'!$B$3:$C$567,2,FALSE)) ->  | F73: a | G73: 572 | H73: =IF(G73="","",VLOOKUP(G73,'Cuadro de Cuentas'!$B$3:$C$567,2,FALSE)) -> Bancos e instituciones de crédito c/c vista, euros | I73: =+C72 -> 3392.928
E74: (1er PAGO COMPRA 3) | F74: ='Factura Compra 3 (N5)'!H71 -> 2013-08-19 | H74: =IF(G74="","",VLOOKUP(G74,'Cuadro de Cuentas'!$B$3:$C$567,2,FALSE)) -> 
C75: ='Factura Compra 3 (N5)'!L71 -> 5089.392 | D75: 400 | E75: =IF(D75="","",VLOOKUP(D75,'Cuadro de Cuentas'!$B$3:$C$567,2,FALSE)) -> Proveedores | H75: =IF(G75="","",VLOOKUP(G75,'Cuadro de Cuentas'!$B$3:$C$567,2,FALSE)) -> 
E76: =IF(D76="","",VLOOKUP(D76,'Cuadro de Cuentas'!$B$3:$C$567,2,FALSE)) ->  | F76: a | G76: 572 | H76: =IF(G76="","",VLOOKUP(G76,'Cuadro de Cuentas'!$B$3:$C$567,2,FALSE)) -> Bancos e instituciones de crédito c/c vista, euros | I76: =+C75 -> 5089.392
E77: (2º PAGO COMPRA 3) | H77: =IF(G77="","",VLOOKUP(G77,'Cuadro de Cuentas'!$B$3:$C$567,2,FALSE)) -> 
C78: =SUM(C5:C77) -> 121542.0977 | E78: =IF(D78="","",VLOOKUP(D78,'Cuadro de Cuentas'!$B$3:$C$567,2,FALSE)) ->  | H78: =IF(G78="","",VLOOKUP(G78,'Cuadro de Cuentas'!$B$3:$C$567,2,FALSE)) ->  | I78: =SUM(I5:I77) -> 121542.0977

Sheet Factura Compra 1 (N5) (hidden)
I5: Star Mounts Company
I6: Direction, USA
I7: CIF:
C16: Name: | D16: Buena Visión S.A. | K16: Invoice No.
C17: Direction: | D17: Spain | K17: A-002890
C19: CIF: | K19: Date: | L19: ='Sol. Ficha Almacén y Rdo. (N5)'!C11 -> 2013-05-08
C20: Ref:
C26: Quantity | D26: Item | E26: Description | K26: Unit Price | L26: Extended Price
L27: =IF(D27<>"",D27*K27,"") -> 
C39: ='Sol. Ficha Almacén y Rdo. (N5)'!E11 -> 590 | E39: Monturas de gafas de metal común / Mounts of glasses of common metal (TARIC 9003.19.00.10) | K39: ='Sol. Ficha Almacén y Rdo. (N5)'!F11 -> 10.3 | L39: =C39*K39 -> 6077
L51: =IF(D51<>"",D51*K51,"") -> 
L52: =IF(D52<>"",D52*K52,"") -> 
K53: Subtotal | L53: =+SUM(L27:L52) -> 6077
E58: Customer Bank: | J58: Discount | K58: ='Sol. Ficha Almacén y Rdo. (N5)'!G11 -> 0.02 | L58: =K58*L53 -> 121.54 | N58: Arancel = | O58: =L62*2.2% -> 127.0895164
I59: Cash Discount | K59: ='Sol. Ficha Almacén y Rdo. (N5)'!H11 -> 0.03 | L59: =K59*(L53-L58) -> 178.6638 | N59: Derecho adicional = | O59: =L62*15% -> 866.51943
D60: 3 | E60: IBAN: | J60: Total | L60: =L53-L58-L59 -> 5776.7962 | N60: IVA (21%) = | O60: =(L62+O58+O59)*21% -> 1421.785081
J61: Total Tax | L61: =K61*L60 -> 0 | N61: Total a pagar = | O61: =O58+O59+O60 -> 2415.394027
E62: SWITF: | J62: TOTAL DOCUMENT | L62: =L60+L61 -> 5776.7962
D67: Observations:
E69: Con vencimientos el / Expiring on: | H69: =IF(K59<>0,L19+15,L19+45) -> 2013-05-23 | I69: Por importe de / To the value of: | L69: =IF(K59<>0,L62,40%*L62) -> 5776.7962
E71: =IF(K59<>0,"","Con vencimientos el / Expiring on:") ->  | H71: =IF(K59<>0,"",L19+90) ->  | I71: =IF(K59<>0,"","Por importe de / To the value of:") ->  | L71: =IF(K59<>0,"",60%*L62) -> 

Sheet Factura Transportista C1 (N5) (hidden)
E3: TRANSPORTES USA S.L.
E4: Dirección
E5: C.P. Localidad, Spain
E6: Teléfono/Fax:
E7: CIF:
C10: FACTURA / INVOICE.: | D10: M13-00871 | E10: REF.: | G10: FECHA / DATE: | H10: ='Sol. Ficha Almacén y Rdo. (N5)'!C11-24 -> 2013-04-14
C12: To:
C13: Buena Visión S.A., | D13: CIF: , Dirección, | G13: C.P., Localidad, | H13: Spain
C15: Envío / Shipment:
C16: Destinatario / Consignee: Mercancía / Cargo:
C17: Bultos / Packages:
C18: Peso / Weight:
C19: Dimensiones / Dimensions:
C20: Recogida / Collection: | G20: FECHA/DATE: | H20: =H10 -> 2013-04-14
C21: Entrega / Delivery: | G21: FECHA/DATE: | H21: ='Sol. Ficha Almacén y Rdo. (N5)'!C11 -> 2013-05-08
C24: DESCRIPCION / DESCRIPTION | G24: NO SUJETO A IVA / NO SUBJECT TO VAT | H24: SUJETO A IVA / SUBJECT TO VAT
C28: Servicio Transporte Mercancía (Compra 1) | H28: ='Sol. Ficha Almacén y Rdo. (N5)'!I11 -> 298
C30: Seguro Transporte Mercancía (Compra 1) | G30: ='Sol. Ficha Almacén y Rdo. (N5)'!J11 -> 60
C33: BASE IMPONIBLE / TAXABLE BASE: | G33: =SUM(G26:G32) -> 60 | H33: =SUM(H26:H32) -> 298
C34: IVA / VAT (21%): | H34: =H33*21% -> 62.58
C35: TOTAL (EUR): | H35: =G33+H33+H34 -> 420.58
C38: Con vencimientos el / Expiring on: | D38: =H10+30 -> 2013-05-14 | G38: Por importe de / To the value of: | H38: =H35 -> 420.58
C40: Servicio / Service: | F40: BANK:
C41: Tiempo de tránsito / Transit time (days): | F41: ACCOUNT Nº: IBAN: ES78 2100 4145 91 2200077652 No incluido/Not included: SWIFT: CAIXESBBXXX
F42: IBAN:
C43: No incluido / Not included: | F43: SWIFT:

Sheet Liquidación Aranceles C1 (N5) (hidden)
B23: Liquidación Documento Único Administrativo (DUA)
B26: Cargo en Cuenta Corriente a favor de la Agencia Tributaria
B28: Fecha Valor: | C28: ='Sol. Ficha Almacén y Rdo. (N5)'!C11-2 -> 2013-05-06
B30: ='Factura Compra 1 (N5)'!N58 -> Arancel = | C30: ='Factura Compra 1 (N5)'!O58 -> 127.0895164
B31: ='Factura Compra 1 (N5)'!N59 -> Derecho adicional = | C31: ='Factura Compra 1 (N5)'!O59 -> 866.51943
B32: ='Factura Compra 1 (N5)'!N60 -> IVA (21%) = | C32: ='Factura Compra 1 (N5)'!O60 -> 1421.785081
B33: ='Factura Compra 1 (N5)'!N61 -> Total a pagar = | C33: ='Factura Compra 1 (N5)'!O61 -> 2415.394027

Sheet Factura Venta 1 (N5) (hidden)
D4: BUENA VISIÓN S.A.
D5: CIF:
C9: Cliente: | D9: ÓPTICAS MADRILEÑAS S.L.
C10: Dirección:
C11: Código Postal: | E11: Localidad - País: | F11: España
C12: Teléfono: | E12: Fax:
C13: E-mail: | E13: C.I.F:
F18: Fecha Factura: | G18: ='Sol. Ficha Almacén y Rdo. (N5)'!C12 -> 2013-05-11
F19: Número Factura: | G19: 2013-531
C24: Cantidad | D24: Código | E24: Concepto | F24: Precio/Unidad | G24: Importe
C28: ='Sol. Ficha Almacén y Rdo. (N5)'!E12 -> 610 | E28: Monturas de gafas de metal común | F28: ='Sol. Ficha Almacén y Rdo. (N5)'!F12 -> 14 | G28: =C28*F28 -> 8540
C30: 1 | E30: Servicio de transporte de la mercancía | G30: ='Sol. Ficha Almacén y Rdo. (N5)'!I12 -> 389
C32: 1 | E32: Seguro de transporte de la mercancía | G32: ='Sol. Ficha Almacén y Rdo. (N5)'!J12 -> 78
C44: Descuento: | D44: ='Sol. Ficha Almacén y Rdo. (N5)'!G12 -> 0.09 | E44: sobre el importe bruto de la mercancía | G44: =D44*G28 -> 768.6
C45: Descuento por Pronto Pago: | D45: ='Sol. Ficha Almacén y Rdo. (N5)'!H12 -> 0.04 | E45: sobre el importe neto de la mercancía | G45: =D45*(G28-G44) -> 310.856
C46: Subtotal: | G46: =SUM(G26:G42)-G44-G45 -> 7927.544
C47: IVA: | D47: ='Resumen Operaciones '!H5 -> 0.21 | E47: El seguro de transporte de la mercancía está exento de IVA | G47: =D47*(G46-G32) -> 1648.40424
C48: Importe Total: | G48: =G46+G47 -> 9575.94824
C53: FORMA DE PAGO
C56: Con vencimiento el | E56: =IF(D45<>0,G18+15,G18+90) -> 2013-05-26 | F56: por importe de | G56: =G48 -> 9575.94824
C61: Dirección – C.P. Localidad – Tel.
C62: YYY@YYY.com - www.YYY.com

Sheet Factura Transportista V1 (N5) (hidden)
I5: Transcargo Levante, S.L.
I6: Dirección, España
I7: CIF:
C16: Nombre: | D16: Buena Visión S.A. | K16: Número Factura:
C17: Dirección: | D17: España | K17: 162
C19: CIF: | K19: Fecha: | L19: ='Resumen Operaciones '!C12+2 -> 2013-05-13
C20: Teléfono: | G20: Fax:
C21: E-mail:
C26: Cantidad | D26: Código | E26: Descripción | K26: No Sujeto a IVA | L26: Sujeto a IVA
L27: =IF(D27<>"",D27*K27,"") -> 
C38: 1 | E38: Servicio de transporte de la mercancía | L38: ='Enunciado Supuesto (N5)'!P28 -> 389
C40: 1 | E40: Seguro de transporte de la mercancía | K40: ='Enunciado Supuesto (N5)'!R28 -> 78
L50: =IF(D50<>"",D50*K50,"") -> 
L51: =IF(D51<>"",D51*K51,"") -> 
L52: =IF(D52<>"",D52*K52,"") -> 
H53: Base Imponible | K53: =K40 -> 78 | L53: =L38 -> 389
I54: IVA | J54: ='Resumen Operaciones '!H4 -> 0.21 | L54: =J54*L53 -> 81.69
H55: Total Factura | L55: =K53+L53+L54 -> 548.69
D59: FORMA DE PAGO
F62: Vencimiento: | H62: =L19+15 -> 2013-05-28 | I62: Importe: | L62: =L55 -> 548.69

Sheet Factura Compra 2 (N5) (hidden)
I5: Star Mounts Company
I6: Direction, USA
I7: CIF:
C16: Name: | D16: Buena Visión S.A. | K16: Invoice No.
C17: Direction: | D17: Spain | K17: A-003468
C19: CIF: | K19: Date: | L19: ='Sol. Ficha Almacén y Rdo. (N5)'!C13 -> 2013-05-18
C20: Ref:
C26: Quantity | D26: Item | E26: Description | K26: Unit Price | L26: Extended Price
L27: =IF(D27<>"",D27*K27,"") -> 
C39: ='Sol. Ficha Almacén y Rdo. (N5)'!E13 -> 675 | E39: Monturas de gafas de metal común / Mounts of glasses of common metal (TARIC 9003.19.00.10) | K39: ='Sol. Ficha Almacén y Rdo. (N5)'!F13 -> 10.5 | L39: =C39*K39 -> 7087.5
L51: =IF(D51<>"",D51*K51,"") -> 
L52: =IF(D52<>"",D52*K52,"") -> 
K53: Subtotal | L53: =+SUM(L27:L52) -> 7087.5
E58: Customer Bank: | J58: Discount | K58: ='Sol. Ficha Almacén y Rdo. (N5)'!G13 -> 0.03 | L58: =K58*L53 -> 212.625 | N58: Arancel = | O58: =L62*2.2% -> 148.222305
I59: Cash Discount | K59: ='Sol. Ficha Almacén y Rdo. (N5)'!H13 -> 0.02 | L59: =K59*(L53-L58) -> 137.4975 | N59: Derecho adicional = | O59: =L62*15% -> 1010.606625
D60: 3 | E60: IBAN: | J60: Total | L60: =L53-L58-L59 -> 6737.3775 | N60: IVA (21%) = | O60: =(L62+O58+O59)*21% -> 1658.20335
J61: Total Tax | L61: =K61*L60 -> 0 | N61: Total a pagar = | O61: =O58+O59+O60 -> 2817.03228
E62: SWITF: | J62: TOTAL DOCUMENT | L62: =L60+L61 -> 6737.3775
D67: Observations:
E69: Con vencimientos el / Expiring on: | H69: =IF(K59<>0,L19+15,L19+45) -> 2013-06-02 | I69: Por importe de / To the value of: | L69: =IF(K59<>0,L62,40%*L62) -> 6737.3775
E71: =IF(K59<>0,"","Con vencimientos el / Expiring on:") ->  | H71: =IF(K59<>0,"",L19+90) ->  | I71: =IF(K59<>0,"","Por importe de / To the value of:") ->  | L71: =IF(K59<>0,"",60%*L62) -> 

Sheet Factura Transportista C2 (N5) (hidden)
E3: TRANSPORTES USA S.L.
E4: Dirección
E5: C.P. Localidad, Spain
E6: Teléfono/Fax:
E7: CIF:
C10: FACTURA / INVOICE.: | D10: M13-01032 | E10: REF.: | G10: FECHA / DATE: | H10: ='Sol. Ficha Almacén y Rdo. (N5)'!C13-24 -> 2013-04-24
C12: To:
C13: Buena Visión S.A., | D13: CIF: , Dirección, | G13: C.P., Localidad, | H13: Spain
C15: Envío / Shipment:
C16: Destinatario / Consignee: Mercancía / Cargo:
C17: Bultos / Packages:
C18: Peso / Weight:
C19: Dimensiones / Dimensions:
C20: Recogida / Collection: | G20: FECHA/DATE: | H20: =H10 -> 2013-04-24
C21: Entrega / Delivery: | G21: FECHA/DATE: | H21: ='Sol. Ficha Almacén y Rdo. (N5)'!C13 -> 2013-05-18
C24: DESCRIPCION / DESCRIPTION | G24: NO SUJETO A IVA / NO SUBJECT TO VAT | H24: SUJETO A IVA / SUBJECT TO VAT
C28: Servicio Transporte Mercancía (Compra 2) | H28: ='Sol. Ficha Almacén y Rdo. (N5)'!I13 -> 344
C30: Seguro Transporte Mercancía (Compra 2) | G30: ='Sol. Ficha Almacén y Rdo. (N5)'!J13 -> 69
C33: BASE IMPONIBLE / TAXABLE BASE: | G33: =SUM(G26:G32) -> 69 | H33: =SUM(H26:H32) -> 344
C34: IVA / VAT (21%): | H34: =H33*21% -> 72.24
C35: TOTAL (EUR): | H35: =G33+H33+H34 -> 485.24
C38: Con vencimientos el / Expiring on: | D38: =H10+30 -> 2013-05-24 | G38: Por importe de / To the value of: | H38: =H35 -> 485.24
C40: Servicio / Service: | F40: BANK:
C41: Tiempo de tránsito / Transit time (days): | F41: ACCOUNT Nº: IBAN: ES78 2100 4145 91 2200077652 No incluido/Not included: SWIFT: CAIXESBBXXX
F42: IBAN:
C43: No incluido / Not included: | F43: SWIFT:

Sheet Liquidación Aranceles C2 (N5) (hidden)
B23: Liquidación Documento Único Administrativo (DUA)
B26: Cargo en Cuenta Corriente a favor de la Agencia Tributaria
B28: Fecha Valor: | C28: ='Sol. Ficha Almacén y Rdo. (N4)'!C13-2 -> 2013-05-16
B30: ='Factura Compra 1 (N4)'!N58 -> Arancel = | C30: ='Factura Compra 2 (N4)'!O58 -> 148.222305
B31: ='Factura Compra 1 (N4)'!N59 -> Derecho adicional = | C31: ='Factura Compra 2 (N4)'!O59 -> 1010.606625
B32: ='Factura Compra 1 (N4)'!N60 -> IVA (21%) = | C32: ='Factura Compra 2 (N4)'!O60 -> 1658.20335
B33: ='Factura Compra 1 (N4)'!N61 -> Total a pagar = | C33: ='Factura Compra 2 (N4)'!O61 -> 2817.03228

Sheet Factura Compra 3 (N5) (hidden)
I5: Star Mounts Company
I6: Direction, USA
I7: CIF:
C16: Name: | D16: Buena Visión S.A. | K16: Invoice No.
C17: Direction: | D17: Spain | K17: A-003604
C19: CIF: | K19: Date: | L19: ='Sol. Ficha Almacén y Rdo. (N4)'!C14 -> 2013-05-21
C20: Ref:
C26: Quantity | D26: Item | E26: Description | K26: Unit Price | L26: Extended Price
L27: =IF(D27<>"",D27*K27,"") -> 
C39: ='Sol. Ficha Almacén y Rdo. (N4)'!E14 -> 840 | E39: Monturas de gafas de metal común / Mounts of glasses of common metal (TARIC 9003.19.00.10) | K39: ='Sol. Ficha Almacén y Rdo. (N4)'!F14 -> 10.2 | L39: =C39*K39 -> 8568
L51: =IF(D51<>"",D51*K51,"") -> 
L52: =IF(D52<>"",D52*K52,"") -> 
K53: Subtotal | L53: =+SUM(L27:L52) -> 8568
E58: Customer Bank: | J58: Discount | K58: ='Sol. Ficha Almacén y Rdo. (N4)'!G14 -> 0.01 | L58: =K58*L53 -> 85.68 | N58: Arancel = | O58: =L62*2.2% -> 186.61104
I59: Cash Discount | K59: ='Sol. Ficha Almacén y Rdo. (N4)'!H14 -> 0 | L59: =K59*(L53-L58) -> 0 | N59: Derecho adicional = | O59: =L62*15% -> 1272.348
D60: 3 | E60: IBAN: | J60: Total | L60: =L53-L58-L59 -> 8482.32 | N60: IVA (21%) = | O60: =(L62+O58+O59)*21% -> 2087.668598
J61: Total Tax | L61: =K61*L60 -> 0 | N61: Total a pagar = | O61: =O58+O59+O60 -> 3546.627638
E62: SWITF: | J62: TOTAL DOCUMENT | L62: =L60+L61 -> 8482.32
D67: Observations:
E69: Con vencimientos el / Expiring on: | H69: =IF(K59<>0,L19+15,L19+45) -> 2013-07-05 | I69: Por importe de / To the value of: | L69: =IF(K59<>0,L62,40%*L62) -> 3392.928
E71: =IF(K59<>0,"","Con vencimientos el / Expiring on:") -> Con vencimientos el / Expiring on: | H71: =IF(K59<>0,"",L19+90) -> 2013-08-19 | I71: =IF(K59<>0,"","Por importe de / To the value of:") -> Por importe de / To the value of: | L71: =IF(K59<>0,"",60%*L62) -> 5089.392

Sheet Factura Transportista C3 (N5) (hidden)
E3: TRANSPORTES USA S.L.
E4: Dirección
E5: C.P. Localidad, Spain
E6: Teléfono/Fax:
E7: CIF:
C10: FACTURA / INVOICE.: | D10: M13-01107 | E10: REF.: | G10: FECHA / DATE: | H10: ='Sol. Ficha Almacén y Rdo. (N5)'!C14-24 -> 2013-04-27
C12: To:
C13: Buena Visión S.A., | D13: CIF: , Dirección, | G13: C.P., Localidad, | H13: Spain
C15: Envío / Shipment:
C16: Destinatario / Consignee: Mercancía / Cargo:
C17: Bultos / Packages:
C18: Peso / Weight:
C19: Dimensiones / Dimensions:
C20: Recogida / Collection: | G20: FECHA/DATE: | H20: =H10 -> 2013-04-27
C21: Entrega / Delivery: | G21: FECHA/DATE: | H21: ='Sol. Ficha Almacén y Rdo. (N5)'!C14 -> 2013-05-21
C24: DESCRIPCION / DESCRIPTION | G24: NO SUJETO A IVA / NO SUBJECT TO VAT | H24: SUJETO A IVA / SUBJECT TO VAT
C28: Servicio Transporte Mercancía (Compra 3) | H28: ='Sol. Ficha Almacén y Rdo. (N5)'!I14 -> 425
C30: Seguro Transporte Mercancía (Compra 3) | G30: ='Sol. Ficha Almacén y Rdo. (N5)'!J14 -> 85
C33: BASE IMPONIBLE / TAXABLE BASE: | G33: =SUM(G26:G32) -> 85 | H33: =SUM(H26:H32) -> 425
C34: IVA / VAT (21%): | H34: =H33*21% -> 89.25
C35: TOTAL (EUR): | H35: =G33+H33+H34 -> 599.25
C38: Con vencimientos el / Expiring on: | D38: =H10+30 -> 2013-05-27 | G38: Por importe de / To the value of: | H38: =H35 -> 599.25
C40: Servicio / Service: | F40: BANK:
C41: Tiempo de tránsito / Transit time (days): | F41: ACCOUNT Nº: IBAN: ES78 2100 4145 91 2200077652 No incluido/Not included: SWIFT: CAIXESBBXXX
F42: IBAN:
C43: No incluido / Not included: | F43: SWIFT:

Sheet Liquidación Aranceles C3 (N5) (hidden)
B23: Liquidación Documento Único Administrativo (DUA)
B26: Cargo en Cuenta Corriente a favor de la Agencia Tributaria
B28: Fecha Valor: | C28: ='Sol. Ficha Almacén y Rdo. (N4)'!C14-2 -> 2013-05-19
B30: ='Factura Compra 1 (N4)'!N58 -> Arancel = | C30: ='Factura Compra 3 (N4)'!O58 -> 186.61104
B31: ='Factura Compra 1 (N4)'!N59 -> Derecho adicional = | C31: ='Factura Compra 3 (N4)'!O59 -> 1272.348
B32: ='Factura Compra 1 (N4)'!N60 -> IVA (21%) = | C32: ='Factura Compra 3 (N4)'!O60 -> 2087.668598
B33: ='Factura Compra 1 (N4)'!N61 -> Total a pagar = | C33: ='Factura Compra 3 (N4)'!O61 -> 3546.627638

Sheet Factura Venta 2 (N5) (hidden)
D4: BUENA VISIÓN S.A.
D5: CIF:
C9: Cliente: | D9: ÓPTICAS VALENCIANAS S.L.
C10: Dirección:
C11: Código Postal: | E11: Localidad - País: | F11: España
C12: Teléfono: | E12: Fax:
C13: E-mail: | E13: C.I.F:
F18: Fecha Factura: | G18: ='Sol. Ficha Almacén y Rdo. (N5)'!C15 -> 2013-05-27
F19: Número Factura: | G19: 2013-674
C24: Cantidad | D24: Código | E24: Concepto | F24: Precio/Unidad | G24: Importe
C28: ='Sol. Ficha Almacén y Rdo. (N5)'!E15 -> 1325 | E28: Monturas de gafas de metal común | F28: ='Sol. Ficha Almacén y Rdo. (N5)'!F15 -> 14 | G28: =C28*F28 -> 18550
C30: 1 | E30: Servicio de transporte de la mercancía | G30: ='Sol. Ficha Almacén y Rdo. (N5)'!I15 -> 835
C32: 1 | E32: Seguro de transporte de la mercancía | G32: ='Sol. Ficha Almacén y Rdo. (N5)'!J15 -> 167
C44: Descuento: | D44: ='Sol. Ficha Almacén y Rdo. (N5)'!G15 -> 0.1 | E44: sobre el importe bruto de la mercancía | G44: =D44*G28 -> 1855
C45: Descuento por Pronto Pago: | D45: ='Sol. Ficha Almacén y Rdo. (N5)'!H15 -> 0.03 | E45: sobre el importe neto de la mercancía | G45: =D45*(G28-G44) -> 500.85
C46: Subtotal: | G46: =SUM(G26:G42)-G44-G45 -> 17196.15
C47: IVA: | D47: ='Resumen Operaciones '!H5 -> 0.21 | E47: El seguro de transporte de la mercancía está exento de IVA | G47: =D47*(G46-G32) -> 3576.1215
C48: Importe Total: | G48: =G46+G47 -> 20772.2715
C53: FORMA DE PAGO
C56: Con vencimiento el | E56: =IF(D45<>0,G18+15,G18+90) -> 2013-06-11 | F56: por importe de | G56: =G48 -> 20772.2715
C61: Dirección – C.P. Localidad – Tel.
C62: YYY@YYY.com - www.YYY.com

Sheet Factura Transportista V2 (N5) (hidden)
I5: Transcargo Levante, S.L.
I6: Dirección, España
I7: CIF:
C16: Nombre: | D16: Buena Visión S.A. | K16: Número Factura:
C17: Dirección: | D17: España | K17: 196
C19: CIF: | K19: Fecha: | L19: ='Resumen Operaciones '!C15+2 -> 2013-05-29
C20: Teléfono: | G20: Fax:
C21: E-mail:
C26: Cantidad | D26: Código | E26: Descripción | K26: No Sujeto a IVA | L26: Sujeto a IVA
L27: =IF(D27<>"",D27*K27,"") -> 
C38: 1 | E38: Servicio de transporte de la mercancía | L38: ='Resumen Operaciones '!I15 -> 835
C40: 1 | E40: Seguro de transporte de la mercancía | K40: ='Resumen Operaciones '!J15 -> 167
L50: =IF(D50<>"",D50*K50,"") -> 
L51: =IF(D51<>"",D51*K51,"") -> 
L52: =IF(D52<>"",D52*K52,"") -> 
H53: Base Imponible | K53: =K40 -> 167 | L53: =L38 -> 835
I54: IVA | J54: ='Resumen Operaciones '!H4 -> 0.21 | L54: =J54*L53 -> 175.35
H55: Total Factura | L55: =K53+L53+L54 -> 1177.35
D59: FORMA DE PAGO
F62: Vencimiento: | H62: =L19+15 -> 2013-06-13 | I62: Importe: | L62: =L55 -> 1177.35

Sheet Índice Tema 2 (hidden)
D3: TEMA 2. ACREEDORES Y DEUDORES POR OPERACIONES DE TRÁFICO | O3: ÍNDICE LIBRO
D5: OBJETIVO DEL TEMA
D7: CONCEPTOS BÁSICOS
D9: Niveles | E9: Operaciones | F9: Objetivos de los casos propuestos
E10: Compras | F10: Al vencimiento se paga mediante transferencia bancaria
E11: Venta 1 | F11: Al vencimiento no se cobra, renegociación y cobro posterior a través de transferencia bancaria
E12: Venta 2 | F12: Al vencimiento no se cobra y se considera como una pérdida definitiva
E13: Compras | F13: Aceptamos efectos comerciales y se paga al vencimiento
E14: Venta 1 | F14: Transformación en efecto comercial y al vencimiento se cobra
E15: Venta 2 | F15: Dudoso cobro con deterioro y al vencimiento se cobra
E16: Compras | F16: Aceptamos efectos comerciales y se paga al vencimiento
E17: Venta 1 | F17: Transformación en efecto comercial, gestión de cobro y al vencimiento se cobra
E18: Venta 2 | F18: Transformación en efecto comercial, endoso y al vencimiento se cobra
E19: Compras | F19: Aceptamos efectos comerciales y se paga al vencimiento
E20: Venta 1 | F20: Transformación en efecto y al vencimiento resulta impagado. Renegociación, nuevo efecto y al vencimiento se cobra
E21: Venta 2 | F21: Transformación en efecto y dudoso cobro al vencimiento con deterioro. Renegociación, se cobra una parte y el resto resulta incobrable
E22: Compras | F22: Al vencimiento se paga mediante cheque bancario
E23: Venta 1 | F23: Transformación en efecto, descuento bancario y al vencimiento el librado paga
E24: Venta 2 | F24: Transformación en efecto, descuento bancario y al vencimiento el librado no paga. Nuevo efecto incluyendo los gastos de devolución y al vencimiento se cobra
E25: Compras | F25: Al vencimiento se paga mediante pagaré bancario
E26: Venta 1 | F26: Recibimos un cheque, al vencimiento no se cobra y se cargan gastos de devolución. Renegociación y al vencimiento se cobra mediante transferencia bancaria el importe de la factura más los intereses de demora
E27: Venta 2 | F27: Transformación en efecto, descuento bancario y al vencimiento el librado no paga. Protesto vía judicial y se cobra mediante transferencia bancaria el importe del efecto impagado
C29: ANEXO. | D29: CUADRO DE CUENTAS

Sheet Objetivo Tema 2 (hidden)
G1: Haga un doble click sobre la imagen para ver esta Presentación
P3: ÍNDICE TEMA 2

Sheet Conceptos Básicos Tema 2 (hidden)
G1: Haga un doble click sobre la imagen para ver esta Presentación
P3: ÍNDICE TEMA 2

Sheet Acreedores y Deudores Nivel 1 (hidden)
B1: Haga un doble click sobre la imagen para ver esta Presentación | P1: ÍNDICE TEMA 2
H2: ACREEDORES Y DEUDORES POR OPERACIONES DE TRÁFICO — NIVEL 1
H6: A continuación, Usted debe llevar a cabo los siguientes pasos:
H8: A) Imprima los documentos que le servirán para resolver el supuesto que seguidamente se le propone. Para ello, haga doble click sobre el botón denominado Documentos Nivel 1.
H13: B) Imprima el enunciado del supuesto que se le propone y las plantillas para su resolución. Para ello, haga doble click sobre el botón de Enunciado-Plantillas Nivel 1.
H19: C) Imprima la solución del supuesto que se le propone. Para ello, haga doble click sobre el botón de Solución Nivel 1.

Sheet Enunciado Supuesto (ADN1) (hidden)
C3: El día 1 de mayo de 2013 la empresa Buena Visión S.A. tenía en su almacén | P3: ='Resumen Operaciones '!E210 -> 320 | R3: monturas de gafas de metal
C4: común valoradas en | G4: ='Resumen Operaciones '!E212 -> 6080 | I4: .
C6: Se trata de productos originarios de Estados Unidos que son comprados al único proveedor español que los im-
C7: porta denominado Ópticas Reunidas S.A. El IVA soportado por dicho producto está fijado en el | T7: ='Resumen Operaciones '!H210 -> 0.21 | U7: .
C9: La venta de estas monturas por parte de la empresa Buena Visión S.A. se realiza en el mercado español de los
C10: distribuidores de productos oftalmológicos. El IVA repercutido del producto está establecido en el | U10: ='Resumen Operaciones '!H211 -> 0.21 | V10: . El
C11: servicio de transporte y de seguro de las mercancías es prestado por la propia empresa vendedora.
C13: Durante el mes de mayo se realizaron las operaciones que seguidamente se exponen:
C15: ='Resumen Operaciones '!C216 -> Fecha | F15: ='Resumen Operaciones '!D216 -> Operación | H15: ='Resumen Operaciones '!E216 -> Unidades | J15: ='Resumen Operaciones '!F216 -> Precio bruto | L15: ='Resumen Operaciones '!G216 -> Descuento comercial | N15: ='Resumen Operaciones '!H216 -> Vencimiento factura (I) | P15: ='Resumen Operaciones '!I216 -> Vencimiento factura (II) | S15: ='Resumen Operaciones '!J216 -> Deterioro crédito comercial | V15: ='Resumen Operaciones '!K216 -> Vencimiento renegociación
C16: ='Resumen Operaciones '!C217 -> 2013-05-08 | F16: ='Resumen Operaciones '!D217 -> Compra 1 | H16: ='Resumen Operaciones '!E217 -> 635 | J16: ='Resumen Operaciones '!F217 -> 17.6 | L16: ='Resumen Operaciones '!G217 -> 0.03 | N16: ='Resumen Operaciones '!H217 -> 2013-06-22
C17: ='Resumen Operaciones '!C218 -> 2013-05-11 | F17: ='Resumen Operaciones '!D218 -> Venta 1 | H17: ='Resumen Operaciones '!E218 -> 620 | J17: ='Resumen Operaciones '!F218 -> 23.8 | L17: ='Resumen Operaciones '!G218 -> 0.06 | N17: ='Resumen Operaciones '!H218 -> 2013-08-09 | S17: ='Resumen Operaciones '!J218 -> 2013-08-09 | V17: ='Resumen Operaciones '!K218 -> 2013-09-18
C18: ='Resumen Operaciones '!C219 -> 2013-05-18 | F18: ='Resumen Operaciones '!D219 -> Compra 2 | H18: ='Resumen Operaciones '!E219 -> 510 | J18: ='Resumen Operaciones '!F219 -> 17.9 | L18: ='Resumen Operaciones '!G219 -> 0.03 | N18: ='Resumen Operaciones '!H219 -> 2013-07-02
C19: ='Resumen Operaciones '!C220 -> 2013-05-21 | F19: ='Resumen Operaciones '!D220 -> Compra 3 | H19: ='Resumen Operaciones '!E220 -> 420 | J19: ='Resumen Operaciones '!F220 -> 17.4 | L19: ='Resumen Operaciones '!G220 -> 0.02 | N19: ='Resumen Operaciones '!H220 -> 2013-07-05 | P19: ='Resumen Operaciones '!I220 -> 2013-08-19
C20: ='Resumen Operaciones '!C221 -> 2013-05-27 | F20: ='Resumen Operaciones '!D221 -> Venta 2 | H20: ='Resumen Operaciones '!E221 -> 1070 | J20: ='Resumen Operaciones '!F221 -> 23.8 | L20: ='Resumen Operaciones '!G221 -> 0.06 | N20: ='Resumen Operaciones '!H221 -> 2013-08-25 | S20: ='Resumen Operaciones '!J221 -> 2013-08-25
C22: NOTA: Las magnitudes monetarias que se presentan en este supuesto no incluyen el IVA correspondiente.
C24: Todas las compras realizadas por la empresa Buena Visión, S.A. se pagan al vencimiento de la factura mediante
C25: transferencia bancaria.
C27: En relación con el cliente de la Venta 1, llegado el vencimiento de la factura, ésta no es atendida por lo que la
C28: empresa lo contabiliza mediante el sistema de seguimiento individualizado para morosos.
C30: Puestos en contacto con el cliente de la Venta 1, éste acepta realizar el pago en el plazo de cuarenta días desde
